Workbook

Sheet Figure 1b
A1: Title | B1: The lysophospholipase D enzyme Gdpd3 is required to maintain chronic myelogenous leukaemia stem cells
A2: Authour | B2: Kazuhito Naka, Ryosuke Ochiai, Eriko Matsubara, Chie Kondo, Kyung-Min Yang, Takayuki Hoshii, Masatake Araki, Kimi Araki, Yusuke Sotomaru, Ko Sasaki, Kinuko Mitani, Dong-Wook Kim, Akira Ooshima and Seong-Jin Kim
A4: Figure 1 b
A6: Raw data | H6: Processed data
A7: Normal | B7: GDPD3 mRNA | H7: Normal | I7: Gdbd3/actb
B8: Sample 1 | C8: Sample 2 | D8: Sample 3 | E8: Average | I8: Sample 1 | J8: Sample 2 | K8: Sample 3 | L8: average | M8: stdev
A9: CD150+ | B9: 605900 | C9: 670400 | D9: 784800 | E9: =AVERAGE(B9:D9) -> 687033 | H9: CD150+ | I9: =B9/$E16 -> 0.0039 | J9: 0.0043 | K9: 0.0051 | L9: =AVERAGE(I9:K9) -> 0.0044 | M9: =STDEV(I9:K9) -> 0.0006
A10: CD48+ | B10: 420100 | C10: 631100 | D10: 682500 | E10: =AVERAGE(B10:D10) -> 577900 | H10: CD48+ | I10: 0.0027 | J10: 0.0040 | K10: 0.0043 | L10: =AVERAGE(I10:K10) -> 0.0037 | M10: =STDEV(I10:K10) -> 0.0009
A11: MPP | B11: 422300 | C11: 443800 | D11: 468400 | E11: =AVERAGE(B11:D11) -> 444833 | H11: MPP | I11: 0.0060 | J11: 0.0063 | K11: 0.0066 | L11: =AVERAGE(I11:K11) -> 0.0063 | M11: =STDEV(I11:K11) -> 0.0003
A12: LK | B12: 1568000 | C12: 1860000 | D12: 1864000 | E12: =AVERAGE(B12:D12) -> 1764000 | H12: LK | I12: 0.0041 | J12: 0.0049 | K12: 0.0049 | L12: =AVERAGE(I12:K12) -> 0.0046 | M12: =STDEV(I12:K12) -> 0.0004
A14: Normal | B14: actb mRNA
B15: Sample 1 | C15: Sample 2 | D15: Sample 3 | E15: Average
A16: CD150+ | B16: 1.55E+08 | C16: 1.45E+08 | D16: 1.66E+08 | E16: =AVERAGE(B16:D16) -> 155133333
A17: CD48+ | B17: 1.45E+08 | C17: 1.64E+08 | D17: 1.63E+08 | E17: =AVERAGE(B17:D17) -> 157466667
A18: MPP | B18: 6.51E+07 | C18: 7.61E+07 | D18: 7.13E+07 | E18: =AVERAGE(B18:D18) -> 70826667
A19: LK | B19: 3.61E+08 | C19: 3.99E+08 | D19: 3.84E+08 | E19: =AVERAGE(B19:D19) -> 381400000
A21: CML | B21: GDPD3 mRNA | H21: CML | I21: Gdbd3/actb
B22: Sample 1 | C22: Sample 2 | D22: Sample 3 | I22: Sample 1 | J22: Sample 2 | K22: Sample 3 | L22: average | M22: stdev | N22: T test
A23: CD150+ | B23: 540700 | C23: 687600 | D23: 462000 | E23: =AVERAGE(B23:D23) -> 563433.3333 | H23: CD150+ | I23: =B23/$E30 -> 0.0133 | J23: 0.0169 | K23: 0.0114 | L23: =AVERAGE(I23:K23) -> 0.0138 | M23: =STDEV(I23:K23) -> 0.0028 | N23: =TTEST(I9:K9,I23:K23,2,2) -> 0.00476
A24: CD48+ | B24: 590500 | C24: 549000 | D24: 496000 | E24: =AVERAGE(B24:D24) -> 545166.6667 | H24: CD48+ | I24: 0.0092 | J24: 0.0086 | K24: 0.0077 | L24: =AVERAGE(I24:K24) -> 0.0085 | M24: =STDEV(I24:K24) -> 0.0007 | N24: =TTEST(I10:K10,I24:K24,2,2) -> 0.00189
A25: MPP | B25: 603700 | C25: 497800 | D25: 489100 | E25: =AVERAGE(B25:D25) -> 530200 | H25: MPP | I25: 0.0081 | J25: 0.0067 | K25: 0.0065 | L25: =AVERAGE(I25:K25) -> 0.0071 | M25: =STDEV(I25:K25) -> 0.0009 | N25: 0.19571
A26: LK | B26: 1952000 | C26: 1677000 | D26: 1687000 | E26: =AVERAGE(B26:D26) -> 1772000 | H26: LK | I26: 0.0058 | J26: 0.0050 | K26: 0.0050 | L26: =AVERAGE(I26:K26) -> 0.0053 | M26: =STDEV(I26:K26) -> 0.0005 | N26: 0.15079
A28: CML | B28: actb mRNA
B29: Sample 1 | C29: Sample 2 | D29: Sample 3
A30: CD150+ | B30: 4.15E+07 | C30: 3.89E+07 | D30: 4.17E+07 | E30: =AVERAGE(B30:D30) -> 40700000
A31: CD48+ | B31: 6.42E+07 | C31: 6.17E+07 | D31: 6.63E+07 | E31: =AVERAGE(B31:D31) -> 64073333
A32: MPP | B32: 7.48E+07 | C32: 7.72E+07 | D32: 7.20E+07 | E32: =AVERAGE(B32:D32) -> 74680000
A33: LK | B33: 3.46E+08 | C33: 3.16E+08 | D33: 3.44E+08 | E33: =AVERAGE(B33:D33) -> 335333333
A35: qRT-PCR determination of Gdpd3 mRNA expression in LT-stem (CD150+), CD48+, MPP, and LK cells (see Supplementary Fig.2) isolated from Gdpd3+/+tet-CML-affected (SCL-tTA+TRE-BCR-ABL1+) mice (1male, 6females) or normal littermate (SCL-tTA+) mice (4males, 4females).
A36: Data are the mean ratio±s.d. of transcript levels normalised to Actb (n=3 biologically independent samples) (P-value, unpaired two-sided Student’s t-test).

Sheet Figure 1c
A1: Title | B1: The lysophospholipase D enzyme Gdpd3 is required to maintain chronic myelogenous leukaemia stem cells
A2: Authour | B2: Kazuhito Naka, Ryosuke Ochiai, Eriko Matsubara, Chie Kondo, Kyung-Min Yang, Takayuki Hoshii, Masatake Araki, Kimi Araki, Yusuke Sotomaru, Ko Sasaki, Kinuko Mitani, Dong-Wook Kim, Akira Ooshima and Seong-Jin Kim
A4: Figure 1 c | C4: Raw data | F4: Processed data
C5: Colony number | F5: Normalised to 1,000 cells
A6: CML LSK | B6: Sorted cell number | C6: Sample 1 | D6: Sample 2 | E6: Sample 3 | F6: Sample 1 | G6: Sample 2 | H6: Sample 3 | I6: Average | J6: Stdev | K6: T Test
A7: Control | B7: 655 | C7: 87 | D7: 97 | E7: 98 | F7: =C7/$B7*3000 -> 398.47 | G7: =D7/$B7*3000 -> 444.27 | H7: 448.85 | I7: =AVERAGE(F7:H7) -> 430.53 | J7: =STDEV(F7:H7) -> 27.86
A8: mGdpd3 siRNA #1 | B8: 630 | C8: 44 | D8: 44 | E8: 47 | F8: =C8/$B8*3000 -> 209.52 | G8: =D8/$B8*3000 -> 209.52 | H8: =E8/$B8*3000 -> 223.81 | I8: =AVERAGE(F8:H8) -> 214.29 | J8: 8.25 | K8: =TTEST(F7:H7,F8:H8,2,2) -> 0.000209
A9: mGdpd3 siRNA #3 | B9: 559 | C9: 18 | D9: 13 | E9: 21 | F9: 96.60 | G9: 69.77 | H9: 112.70 | I9: 93.02 | J9: 21.69 | K9: =TTEST(F7:H7,F9:H9,2,2) -> 0.000078
A12: Quantitation of the colony-forming capacity of Gdpd3+/+ CML-LSK cells that were transduced with/without Cy3-labelled siRNA targetting mouse Gdpd3 mRNA (mGdpd3 siRNA #1 or #3).
A13: Cy3+ and Cy3- CML-LSK cells were purified at three days post-transduction and plated in semi-solid methylcellulose medium.
A14: Data are the mean colony number±s.d. (n=3) and are representative of biologically independent three experiments (P-value compared with control, unpaired two-sided Student’s t-test).

Sheet Figure 1d
A1: Title | B1: The lysophospholipase D enzyme Gdpd3 is required to maintain chronic myelogenous leukaemia stem cells
A2: Authour | B2: Kazuhito Naka, Ryosuke Ochiai, Eriko Matsubara, Chie Kondo, Kyung-Min Yang, Takayuki Hoshii, Masatake Araki, Kimi Araki, Yusuke Sotomaru, Ko Sasaki, Kinuko Mitani, Dong-Wook Kim, Akira Ooshima and Seong-Jin Kim
A4: Figure 1d
C5: Raw data | F5: Processed data
C6: Colony number | F6: Normalised to 1,000 cells
B7: Normal KSL | C7: Sample 1 | D7: Sample 2 | E7: Sample 3 | F7: Sample 1 | G7: Sample 2 | H7: Sample 3 | I7: Average | J7: Stdev | K7: T Test
B8: WT | C8: 153 | D8: 129 | E8: 145 | F8: =C8/1000*3000 -> 459 | G8: =D8/1000*3000 -> 387 | H8: 435 | I8: =AVERAGE(F8:H8) -> 427.00 | J8: =STDEV(F8:H8) -> 36.66
B9: Gdpd3B KO | C9: 133 | D9: 139 | E9: 117 | F9: =C9/1000*3000 -> 399 | G9: =D9/1000*3000 -> 417 | H9: =E9/1000*3000 -> 351 | I9: =AVERAGE(F9:H9) -> 389.00 | J9: 34.12 | K9: =TTEST(F8:H8,F9:H9,2,2) -> 0.25906
A12: Quantitation of colony-forming capacity of haematopoietic stem/progenitor (LSK) cells that were isolated from normal Gdpd3+/+ (1female) and Gdpd3-/- (1female) mouse and cultured in semi-solid methylcellulose medium under hypoxic (3% O2) conditions.
A13: Data are the mean colony number±s.d. (n=3) and are representative of biologically independent two experiments (P-value, unpaired two-sided Student’s t-test).

Sheet Figure 1e
A1: Title | B1: The lysophospholipase D enzyme Gdpd3 is required to maintain chronic myelogenous leukaemia stem cells
A2: Authour | B2: Kazuhito Naka, Ryosuke Ochiai, Eriko Matsubara, Chie Kondo, Kyung-Min Yang, Takayuki Hoshii, Masatake Araki, Kimi Araki, Yusuke Sotomaru, Ko Sasaki, Kinuko Mitani, Dong-Wook Kim, Akira Ooshima and Seong-Jin Kim
A4: Figure 1e
C5: Raw data
C6: Absolute number of LT-CML stem cells
C7: Sample 1 | D7: Sample 2 | E7: Sample 3 | F7: Average | G7: Stdev | H7: T Test
B8: WT | C8: 6169.4 | D8: 6882 | E8: 2806.86 | F8: =AVERAGE(C8:E8) -> 5286.09 | G8: =STDEV(C8:E8) -> 2176.44
B9: Gdpd3B KO | C9: 10918.8 | D9: 8770.08 | E9: 6674.8 | F9: =AVERAGE(C9:E9) -> 8787.89 | G9: =STDEV(C9:E9) -> 2122.06 | H9: =TTEST(C8:E8,C9:E9,2,2) -> 0.11674
A13: Absolute numbers of LT-CML stem cells isolated from the two hind limbs of Gdpd3+/+tet-CML-affected mice (3females, n=3 biologically independent samples) and Gdpd3-/-tet-CML-affected mice (1male, 2females, n=3 biologically independent samples) (P-value, unpaired two-sided Student’s t-test).

Sheet Figure 1f
A1: Title | B1: The lysophospholipase D enzyme Gdpd3 is required to maintain chronic myelogenous leukaemia stem cells
A2: Authour | B2: Kazuhito Naka, Ryosuke Ochiai, Eriko Matsubara, Chie Kondo, Kyung-Min Yang, Takayuki Hoshii, Masatake Araki, Kimi Araki, Yusuke Sotomaru, Ko Sasaki, Kinuko Mitani, Dong-Wook Kim, Akira Ooshima and Seong-Jin Kim
A4: Figure 1f
C6: Raw data | F6: Processed data
C7: Colony number | F7: Normalised to 1,000 cells
B8: LT-CML stem cells | C8: Sample 1 | D8: Sample 2 | E8: Sample 3 | F8: Sample 1 | G8: Sample 2 | H8: Sample 3 | I8: Average | J8: Stdev | K8: T Test
B9: WT | C9: 180 | D9: 195 | E9: 217 | F9: =C9/1000*3000 -> 540 | G9: =D9/1000*3000 -> 585 | H9: 651 | I9: =AVERAGE(F9:H9) -> 592.00 | J9: =STDEV(F9:H9) -> 55.83
B10: Gdpd3B KO | C10: 414 | D10: 418 | E10: 474 | F10: =C10/1000*3000 -> 1242 | G10: 1254 | H10: 1422 | I10: =AVERAGE(F10:H10) -> 1306.00 | J10: 100.64 | K10: =TTEST(F9:H9,F10:H10,2,2) -> 0.00043
A13: Quantitation of colony-forming capacity of LT-CML stem cells that were isolated from a Gdpd3+/+tet-CML-affected mouse (1male) and a Gdpd3-/-tet-CML-affected mouse (1male) and co-cultured on a OP-9 stromal cell layer under hypoxic (3% O2) conditions.
A14: Data are the mean colony number±s.d. (n=3) and are representative of biologically independent three experiments (P-value, unpaired two-sided Student’s t-test).

Sheet Figure 1g
A1: Title | B1: The lysophospholipase D enzyme Gdpd3 is required to maintain chronic myelogenous leukaemia stem cells
A2: Authour | B2: Kazuhito Naka, Ryosuke Ochiai, Eriko Matsubara, Chie Kondo, Kyung-Min Yang, Takayuki Hoshii, Masatake Araki, Kimi Araki, Yusuke Sotomaru, Ko Sasaki, Kinuko Mitani, Dong-Wook Kim, Akira Ooshima and Seong-Jin Kim
A4: Figure 1g | B4: Survival rates of Gdpd3+/+tet-CML-affected mice (18males, 8females, n=26 biologically independent samples) and Gdpd3+/+tet-CML-affected mice (19males, 4females, n=23 biologically independent samples) after induction of CML by Dox withdrawal.
A9: Total mouse number (n) | B9: 26 | C9: 23
B10: Number of dead mouse | D10: Accumulated Number of dead mouse | F10: Survival rate for graph (%)
A11: Time post-Dox withdrawal (day) | B11: Wild type | C11: Gdpd3B KO | D11: =B11 -> Wild type | E11: =C11 -> Gdpd3B KO | F11: =D11 -> Wild type | G11: =E11 -> Gdpd3B KO
A12: 1 | D12: =SUM(B$12:B12) -> 0 | E12: =SUM(C$12:C12) -> 0 | F12: =(B$9-D12)/B$9*100 -> 100.00 | G12: =(C$9-E12)/C$9*100 -> 100.00
A13: 2 | D13: =SUM(B$12:B13) -> 0 | E13: =SUM(C$12:C13) -> 0 | F13: =(B$9-D13)/B$9*100 -> 100.00 | G13: =(C$9-E13)/C$9*100 -> 100.00
A14: 3 | D14: =SUM(B$12:B14) -> 0 | E14: =SUM(C$12:C14) -> 0 | F14: 100.00 | G14: 100.00
A15: 4 | D15: =SUM(B$12:B15) -> 0 | E15: =SUM(C$12:C15) -> 0 | F15: 100.00 | G15: 100.00
A16: 5 | D16: =SUM(B$12:B16) -> 0 | E16: =SUM(C$12:C16) -> 0 | F16: 100.00 | G16: 100.00
A17: 6 | D17: =SUM(B$12:B17) -> 0 | E17: =SUM(C$12:C17) -> 0 | F17: 100.00 | G17: 100.00
A18: 7 | D18: =SUM(B$12:B18) -> 0 | E18: =SUM(C$12:C18) -> 0 | F18: 100.00 | G18: 100.00
A19: 8 | D19: =SUM(B$12:B19) -> 0 | E19: =SUM(C$12:C19) -> 0 | F19: 100.00 | G19: 100.00
A20: 9 | D20: =SUM(B$12:B20) -> 0 | E20: =SUM(C$12:C20) -> 0 | F20: 100.00 | G20: 100.00
A21: 10 | D21: =SUM(B$12:B21) -> 0 | E21: =SUM(C$12:C21) -> 0 | F21: 100.00 | G21: 100.00
A22: 11 | D22: =SUM(B$12:B22) -> 0 | E22: =SUM(C$12:C22) -> 0 | F22: 100.00 | G22: 100.00
A23: 12 | D23: =SUM(B$12:B23) -> 0 | E23: =SUM(C$12:C23) -> 0 | F23: 100.00 | G23: 100.00
A24: 13 | D24: =SUM(B$12:B24) -> 0 | E24: =SUM(C$12:C24) -> 0 | F24: 100.00 | G24: 100.00
A25: 14 | D25: =SUM(B$12:B25) -> 0 | E25: =SUM(C$12:C25) -> 0 | F25: 100.00 | G25: 100.00
A26: 15 | D26: =SUM(B$12:B26) -> 0 | E26: =SUM(C$12:C26) -> 0 | F26: 100.00 | G26: 100.00
A27: 16 | D27: =SUM(B$12:B27) -> 0 | E27: =SUM(C$12:C27) -> 0 | F27: 100.00 | G27: 100.00
A28: 17 | D28: =SUM(B$12:B28) -> 0 | E28: =SUM(C$12:C28) -> 0 | F28: 100.00 | G28: 100.00
A29: 18 | D29: =SUM(B$12:B29) -> 0 | E29: =SUM(C$12:C29) -> 0 | F29: 100.00 | G29: 100.00
A30: 19 | D30: =SUM(B$12:B30) -> 0 | E30: =SUM(C$12:C30) -> 0 | F30: 100.00 | G30: 100.00
A31: 20 | D31: =SUM(B$12:B31) -> 0 | E31: =SUM(C$12:C31) -> 0 | F31: 100.00 | G31: 100.00
A32: 21 | D32: =SUM(B$12:B32) -> 0 | E32: =SUM(C$12:C32) -> 0 | F32: 100.00 | G32: 100.00
A33: 22 | D33: =SUM(B$12:B33) -> 0 | E33: =SUM(C$12:C33) -> 0 | F33: 100.00 | G33: 100.00
A34: 23 | D34: =SUM(B$12:B34) -> 0 | E34: =SUM(C$12:C34) -> 0 | F34: 100.00 | G34: 100.00
A35: 24 | D35: =SUM(B$12:B35) -> 0 | E35: =SUM(C$12:C35) -> 0 | F35: 100.00 | G35: 100.00
A36: 25 | D36: =SUM(B$12:B36) -> 0 | E36: =SUM(C$12:C36) -> 0 | F36: 100.00 | G36: 100.00
A37: 26 | D37: =SUM(B$12:B37) -> 0 | E37: =SUM(C$12:C37) -> 0 | F37: 100.00 | G37: 100.00
A38: 27 | D38: =SUM(B$12:B38) -> 0 | E38: =SUM(C$12:C38) -> 0 | F38: 100.00 | G38: 100.00
A39: 28 | D39: =SUM(B$12:B39) -> 0 | E39: =SUM(C$12:C39) -> 0 | F39: 100.00 | G39: 100.00
A40: 29 | D40: =SUM(B$12:B40) -> 0 | E40: =SUM(C$12:C40) -> 0 | F40: 100.00 | G40: 100.00
A41: 30 | D41: =SUM(B$12:B41) -> 0 | E41: =SUM(C$12:C41) -> 0 | F41: 100.00 | G41: 100.00
A42: 31 | D42: =SUM(B$12:B42) -> 0 | E42: =SUM(C$12:C42) -> 0 | F42: 100.00 | G42: 100.00
A43: 32 | C43: 1 | D43: =SUM(B$12:B43) -> 0 | E43: =SUM(C$12:C43) -> 1 | F43: 100.00 | G43: 95.65
A44: 33 | D44: =SUM(B$12:B44) -> 0 | E44: =SUM(C$12:C44) -> 1 | F44: 100.00 | G44: 95.65
A45: 34 | D45: =SUM(B$12:B45) -> 0 | E45: =SUM(C$12:C45) -> 1 | F45: 100.00 | G45: 95.65
A46: 35 | D46: =SUM(B$12:B46) -> 0 | E46: =SUM(C$12:C46) -> 1 | F46: 100.00 | G46: 95.65
A47: 36 | D47: =SUM(B$12:B47) -> 0 | E47: =SUM(C$12:C47) -> 1 | F47: 100.00 | G47: 95.65
A48: 37 | D48: =SUM(B$12:B48) -> 0 | E48: =SUM(C$12:C48) -> 1 | F48: 100.00 | G48: 95.65
A49: 38 | D49: =SUM(B$12:B49) -> 0 | E49: =SUM(C$12:C49) -> 1 | F49: 100.00 | G49: 95.65
A50: 39 | D50: =SUM(B$12:B50) -> 0 | E50: =SUM(C$12:C50) -> 1 | F50: 100.00 | G50: 95.65
A51: 40 | C51: 1 | D51: =SUM(B$12:B51) -> 0 | E51: =SUM(C$12:C51) -> 2 | F51: 100.00 | G51: 91.30
A52: 41 | D52: =SUM(B$12:B52) -> 0 | E52: =SUM(C$12:C52) -> 2 | F52: 100.00 | G52: 91.30
A53: 42 | C53: 1 | D53: =SUM(B$12:B53) -> 0 | E53: =SUM(C$12:C53) -> 3 | F53: 100.00 | G53: 86.96
A54: 43 | D54: =SUM(B$12:B54) -> 0 | E54: =SUM(C$12:C54) -> 3 | F54: 100.00 | G54: 86.96
A55: 44 | D55: =SUM(B$12:B55) -> 0 | E55: =SUM(C$12:C55) -> 3 | F55: 100.00 | G55: 86.96
A56: 45 | D56: =SUM(B$12:B56) -> 0 | E56: =SUM(C$12:C56) -> 3 | F56: 100.00 | G56: 86.96
A57: 46 | D57: =SUM(B$12:B57) -> 0 | E57: =SUM(C$12:C57) -> 3 | F57: 100.00 | G57: 86.96
A58: 47 | D58: =SUM(B$12:B58) -> 0 | E58: =SUM(C$12:C58) -> 3 | F58: 100.00 | G58: 86.96
A59: 48 | D59: =SUM(B$12:B59) -> 0 | E59: =SUM(C$12:C59) -> 3 | F59: 100.00 | G59: 86.96
A60: 49 | D60: =SUM(B$12:B60) -> 0 | E60: =SUM(C$12:C60) -> 3 | F60: 100.00 | G60: 86.96
A61: 50 | D61: =SUM(B$12:B61) -> 0 | E61: =SUM(C$12:C61) -> 3 | F61: 100.00 | G61: 86.96
A62: 51 | D62: =SUM(B$12:B62) -> 0 | E62: =SUM(C$12:C62) -> 3 | F62: 100.00 | G62: 86.96
A63: 52 | D63: =SUM(B$12:B63) -> 0 | E63: =SUM(C$12:C63) -> 3 | F63: 100.00 | G63: 86.96
A64: 53 | D64: =SUM(B$12:B64) -> 0 | E64: =SUM(C$12:C64) -> 3 | F64: 100.00 | G64: 86.96
A65: 54 | D65: =SUM(B$12:B65) -> 0 | E65: =SUM(C$12:C65) -> 3 | F65: 100.00 | G65: 86.96
A66: 55 | D66: =SUM(B$12:B66) -> 0 | E66: =SUM(C$12:C66) -> 3 | F66: 100.00 | G66: 86.96
A67: 56 | D67: =SUM(B$12:B67) -> 0 | E67: =SUM(C$12:C67) -> 3 | F67: 100.00 | G67: 86.96
A68: 57 | D68: =SUM(B$12:B68) -> 0 | E68: =SUM(C$12:C68) -> 3 | F68: 100.00 | G68: 86.96
A69: 58 | D69: =SUM(B$12:B69) -> 0 | E69: =SUM(C$12:C69) -> 3 | F69: 100.00 | G69: 86.96
A70: 59 | D70: =SUM(B$12:B70) -> 0 | E70: =SUM(C$12:C70) -> 3 | F70: 100.00 | G70: 86.96
A71: 60 | D71: =SUM(B$12:B71) -> 0 | E71: =SUM(C$12:C71) -> 3 | F71: 100.00 | G71: 86.96
A72: 61 | D72: =SUM(B$12:B72) -> 0 | E72: =SUM(C$12:C72) -> 3 | F72: 100.00 | G72: 86.96
A73: 62 | D73: =SUM(B$12:B73) -> 0 | E73: =SUM(C$12:C73) -> 3 | F73: 100.00 | G73: 86.96
A74: 63 | D74: =SUM(B$12:B74) -> 0 | E74: =SUM(C$12:C74) -> 3 | F74: 100.00 | G74: 86.96
A75: 64 | D75: =SUM(B$12:B75) -> 0 | E75: =SUM(C$12:C75) -> 3 | F75: 100.00 | G75: 86.96
A76: 65 | D76: =SUM(B$12:B76) -> 0 | E76: =SUM(C$12:C76) -> 3 | F76: 100.00 | G76: 86.96
A77: 66 | D77: =SUM(B$12:B77) -> 0 | E77: =SUM(C$12:C77) -> 3 | F77: =(B$9-D77)/B$9*100 -> 100.00 | G77: =(C$9-E77)/C$9*100 -> 86.96
A78: 67 | C78: 1 | D78: =SUM(B$12:B78) -> 0 | E78: =SUM(C$12:C78) -> 4 | F78: 100.00 | G78: 82.61
A79: 68 | D79: =SUM(B$12:B79) -> 0 | E79: =SUM(C$12:C79) -> 4 | F79: 100.00 | G79: 82.61
A80: 69 | D80: =SUM(B$12:B80) -> 0 | E80: =SUM(C$12:C80) -> 4 | F80: 100.00 | G80: 82.61
A81: 70 | D81: =SUM(B$12:B81) -> 0 | E81: =SUM(C$12:C81) -> 4 | F81: 100.00 | G81: 82.61
A82: 71 | D82: =SUM(B$12:B82) -> 0 | E82: =SUM(C$12:C82) -> 4 | F82: 100.00 | G82: 82.61
A83: 72 | D83: =SUM(B$12:B83) -> 0 | E83: =SUM(C$12:C83) -> 4 | F83: 100.00 | G83: 82.61
A84: 73 | C84: 1 | D84: =SUM(B$12:B84) -> 0 | E84: =SUM(C$12:C84) -> 5 | F84: 100.00 | G84: 78.26
A85: 74 | D85: =SUM(B$12:B85) -> 0 | E85: =SUM(C$12:C85) -> 5 | F85: 100.00 | G85: 78.26
A86: 75 | D86: =SUM(B$12:B86) -> 0 | E86: =SUM(C$12:C86) -> 5 | F86: 100.00 | G86: 78.26
A87: 76 | D87: =SUM(B$12:B87) -> 0 | E87: =SUM(C$12:C87) -> 5 | F87: 100.00 | G87: 78.26
A88: 77 | D88: =SUM(B$12:B88) -> 0 | E88: =SUM(C$12:C88) -> 5 | F88: 100.00 | G88: 78.26
A89: 78 | D89: =SUM(B$12:B89) -> 0 | E89: =SUM(C$12:C89) -> 5 | F89: 100.00 | G89: 78.26
A90: 79 | D90: =SUM(B$12:B90) -> 0 | E90: =SUM(C$12:C90) -> 5 | F90: 100.00 | G90: 78.26
A91: 80 | D91: =SUM(B$12:B91) -> 0 | E91: =SUM(C$12:C91) -> 5 | F91: 100.00 | G91: 78.26
A92: 81 | D92: =SUM(B$12:B92) -> 0 | E92: =SUM(C$12:C92) -> 5 | F92: 100.00 | G92: 78.26
A93: 82 | D93: =SUM(B$12:B93) -> 0 | E93: =SUM(C$12:C93) -> 5 | F93: 100.00 | G93: 78.26
A94: 83 | D94: =SUM(B$12:B94) -> 0 | E94: =SUM(C$12:C94) -> 5 | F94: 100.00 | G94: 78.26
A95: 84 | D95: =SUM(B$12:B95) -> 0 | E95: =SUM(C$12:C95) -> 5 | F95: 100.00 | G95: 78.26
A96: 85 | D96: =SUM(B$12:B96) -> 0 | E96: =SUM(C$12:C96) -> 5 | F96: 100.00 | G96: 78.26
A97: 86 | D97: =SUM(B$12:B97) -> 0 | E97: =SUM(C$12:C97) -> 5 | F97: 100.00 | G97: 78.26
A98: 87 | D98: =SUM(B$12:B98) -> 0 | E98: =SUM(C$12:C98) -> 5 | F98: 100.00 | G98: 78.26
A99: 88 | D99: =SUM(B$12:B99) -> 0 | E99: =SUM(C$12:C99) -> 5 | F99: 100.00 | G99: 78.26
A100: 89 | D100: =SUM(B$12:B100) -> 0 | E100: =SUM(C$12:C100) -> 5 | F100: 100.00 | G100: 78.26
A101: 90 | D101: =SUM(B$12:B101) -> 0 | E101: =SUM(C$12:C101) -> 5 | F101: 100.00 | G101: 78.26
A102: 91 | D102: =SUM(B$12:B102) -> 0 | E102: =SUM(C$12:C102) -> 5 | F102: 100.00 | G102: 78.26
A103: 92 | B103: 1 | D103: =SUM(B$12:B103) -> 1 | E103: =SUM(C$12:C103) -> 5 | F103: 96.15 | G103: 78.26
A104: 93 | D104: =SUM(B$12:B104) -> 1 | E104: =SUM(C$12:C104) -> 5 | F104: 96.15 | G104: 78.26
A105: 94 | D105: =SUM(B$12:B105) -> 1 | E105: =SUM(C$12:C105) -> 5 | F105: 96.15 | G105: 78.26
A106: 95 | D106: =SUM(B$12:B106) -> 1 | E106: =SUM(C$12:C106) -> 5 | F106: 96.15 | G106: 78.26
A107: 96 | D107: =SUM(B$12:B107) -> 1 | E107: =SUM(C$12:C107) -> 5 | F107: 96.15 | G107: 78.26
A108: 97 | D108: =SUM(B$12:B108) -> 1 | E108: =SUM(C$12:C108) -> 5 | F108: 96.15 | G108: 78.26
A109: 98 | D109: =SUM(B$12:B109) -> 1 | E109: =SUM(C$12:C109) -> 5 | F109: 96.15 | G109: 78.26
A110: 99 | D110: =SUM(B$12:B110) -> 1 | E110: =SUM(C$12:C110) -> 5 | F110: 96.15 | G110: 78.26
A111: 100 | D111: =SUM(B$12:B111) -> 1 | E111: =SUM(C$12:C111) -> 5 | F111: 96.15 | G111: 78.26
A112: 101 | D112: =SUM(B$12:B112) -> 1 | E112: =SUM(C$12:C112) -> 5 | F112: 96.15 | G112: 78.26
A113: 102 | D113: =SUM(B$12:B113) -> 1 | E113: =SUM(C$12:C113) -> 5 | F113: 96.15 | G113: 78.26
A114: 103 | D114: =SUM(B$12:B114) -> 1 | E114: =SUM(C$12:C114) -> 5 | F114: 96.15 | G114: 78.26
A115: 104 | D115: =SUM(B$12:B115) -> 1 | E115: =SUM(C$12:C115) -> 5 | F115: 96.15 | G115: 78.26
A116: 105 | D116: =SUM(B$12:B116) -> 1 | E116: =SUM(C$12:C116) -> 5 | F116: 96.15 | G116: 78.26
A117: 106 | D117: =SUM(B$12:B117) -> 1 | E117: =SUM(C$12:C117) -> 5 | F117: 96.15 | G117: 78.26
A118: 107 | D118: =SUM(B$12:B118) -> 1 | E118: =SUM(C$12:C118) -> 5 | F118: 96.15 | G118: 78.26
A119: 108 | D119: =SUM(B$12:B119) -> 1 | E119: =SUM(C$12:C119) -> 5 | F119: 96.15 | G119: 78.26
A120: 109 | D120: =SUM(B$12:B120) -> 1 | E120: =SUM(C$12:C120) -> 5 | F120: 96.15 | G120: 78.26
A121: 110 | D121: =SUM(B$12:B121) -> 1 | E121: =SUM(C$12:C121) -> 5 | F121: 96.15 | G121: 78.26
A122: 111 | D122: =SUM(B$12:B122) -> 1 | E122: =SUM(C$12:C122) -> 5 | F122: 96.15 | G122: 78.26
A123: 112 | D123: =SUM(B$12:B123) -> 1 | E123: =SUM(C$12:C123) -> 5 | F123: 96.15 | G123: 78.26
A124: 113 | D124: =SUM(B$12:B124) -> 1 | E124: =SUM(C$12:C124) -> 5 | F124: 96.15 | G124: 78.26
A125: 114 | D125: =SUM(B$12:B125) -> 1 | E125: =SUM(C$12:C125) -> 5 | F125: 96.15 | G125: 78.26
A126: 115 | D126: =SUM(B$12:B126) -> 1 | E126: =SUM(C$12:C126) -> 5 | F126: 96.15 | G126: 78.26
A127: 116 | D127: =SUM(B$12:B127) -> 1 | E127: =SUM(C$12:C127) -> 5 | F127: 96.15 | G127: 78.26
A128: 117 | D128: =SUM(B$12:B128) -> 1 | E128: =SUM(C$12:C128) -> 5 | F128: 96.15 | G128: 78.26
A129: 118 | D129: =SUM(B$12:B129) -> 1 | E129: =SUM(C$12:C129) -> 5 | F129: 96.15 | G129: 78.26
A130: 119 | D130: =SUM(B$12:B130) -> 1 | E130: =SUM(C$12:C130) -> 5 | F130: 96.15 | G130: 78.26
A131: 120 | D131: =SUM(B$12:B131) -> 1 | E131: =SUM(C$12:C131) -> 5 | F131: 96.15 | G131: 78.26
A132: 121 | D132: =SUM(B$12:B132) -> 1 | E132: =SUM(C$12:C132) -> 5 | F132: 96.15 | G132: 78.26
A133: 122 | D133: =SUM(B$12:B133) -> 1 | E133: =SUM(C$12:C133) -> 5 | F133: 96.15 | G133: 78.26
A134: 123 | D134: =SUM(B$12:B134) -> 1 | E134: =SUM(C$12:C134) -> 5 | F134: 96.15 | G134: 78.26
A135: 124 | D135: =SUM(B$12:B135) -> 1 | E135: =SUM(C$12:C135) -> 5 | F135: 96.15 | G135: 78.26
A136: 125 | B136: 1 | D136: =SUM(B$12:B136) -> 2 | E136: =SUM(C$12:C136) -> 5 | F136: 92.31 | G136: 78.26
A137: 126 | D137: =SUM(B$12:B137) -> 2 | E137: =SUM(C$12:C137) -> 5 | F137: 92.31 | G137: 78.26
A138: 127 | C138: 1 | D138: =SUM(B$12:B138) -> 2 | E138: =SUM(C$12:C138) -> 6 | F138: 92.31 | G138: 73.91
A139: 128 | D139: =SUM(B$12:B139) -> 2 | E139: =SUM(C$12:C139) -> 6 | F139: 92.31 | G139: 73.91
A140: 129 | D140: =SUM(B$12:B140) -> 2 | E140: =SUM(C$12:C140) -> 6 | F140: 92.31 | G140: 73.91
A141: 130 | B141: 1 | D141: =SUM(B$12:B141) -> 3 | E141: =SUM(C$12:C141) -> 6 | F141: =(B$9-D141)/B$9*100 -> 88.46 | G141: =(C$9-E141)/C$9*100 -> 73.91
A142: 131 | D142: =SUM(B$12:B142) -> 3 | E142: =SUM(C$12:C142) -> 6 | F142: 88.46 | G142: 73.91
A143: 132 | D143: =SUM(B$12:B143) -> 3 | E143: =SUM(C$12:C143) -> 6 | F143: 88.46 | G143: 73.91
A144: 133 | D144: =SUM(B$12:B144) -> 3 | E144: =SUM(C$12:C144) -> 6 | F144: 88.46 | G144: 73.91
A145: 134 | B145: 2 | D145: =SUM(B$12:B145) -> 5 | E145: =SUM(C$12:C145) -> 6 | F145: 80.77 | G145: 73.91
A146: 135 | D146: =SUM(B$12:B146) -> 5 | E146: =SUM(C$12:C146) -> 6 | F146: 80.77 | G146: 73.91
A147: 136 | D147: =SUM(B$12:B147) -> 5 | E147: =SUM(C$12:C147) -> 6 | F147: 80.77 | G147: 73.91
A148: 137 | D148: =SUM(B$12:B148) -> 5 | E148: =SUM(C$12:C148) -> 6 | F148: 80.77 | G148: 73.91
A149: 138 | D149: =SUM(B$12:B149) -> 5 | E149: =SUM(C$12:C149) -> 6 | F149: 80.77 | G149: 73.91
A150: 139 | D150: =SUM(B$12:B150) -> 5 | E150: =SUM(C$12:C150) -> 6 | F150: 80.77 | G150: 73.91
A151: 140 | D151: =SUM(B$12:B151) -> 5 | E151: =SUM(C$12:C151) -> 6 | F151: 80.77 | G151: 73.91
A152: 141 | D152: =SUM(B$12:B152) -> 5 | E152: =SUM(C$12:C152) -> 6 | F152: 80.77 | G152: 73.91
A153: 142 | C153: 1 | D153: =SUM(B$12:B153) -> 5 | E153: =SUM(C$12:C153) -> 7 | F153: 80.77 | G153: 69.57
A154: 143 | D154: =SUM(B$12:B154) -> 5 | E154: =SUM(C$12:C154) -> 7 | F154: 80.77 | G154: 69.57
A155: 144 | D155: =SUM(B$12:B155) -> 5 | E155: =SUM(C$12:C155) -> 7 | F155: 80.77 | G155: 69.57
A156: 145 | B156: 1 | D156: =SUM(B$12:B156) -> 6 | E156: =SUM(C$12:C156) -> 7 | F156: 76.92 | G156: 69.57
A157: 146 | D157: =SUM(B$12:B157) -> 6 | E157: =SUM(C$12:C157) -> 7 | F157: 76.92 | G157: 69.57
A158: 147 | D158: =SUM(B$12:B158) -> 6 | E158: =SUM(C$12:C158) -> 7 | F158: 76.92 | G158: 69.57
A159: 148 | D159: =SUM(B$12:B159) -> 6 | E159: =SUM(C$12:C159) -> 7 | F159: 76.92 | G159: 69.57
A160: 149 | D160: =SUM(B$12:B160) -> 6 | E160: =SUM(C$12:C160) -> 7 | F160: 76.92 | G160: 69.57
A161: 150 | D161: =SUM(B$12:B161) -> 6 | E161: =SUM(C$12:C161) -> 7 | F161: 76.92 | G161: 69.57
A162: 151 | D162: =SUM(B$12:B162) -> 6 | E162: =SUM(C$12:C162) -> 7 | F162: 76.92 | G162: 69.57
A163: 152 | D163: =SUM(B$12:B163) -> 6 | E163: =SUM(C$12:C163) -> 7 | F163: 76.92 | G163: 69.57
A164: 153 | B164: 1 | D164: =SUM(B$12:B164) -> 7 | E164: =SUM(C$12:C164) -> 7 | F164: 73.08 | G164: 69.57
A165: 154 | D165: =SUM(B$12:B165) -> 7 | E165: =SUM(C$12:C165) -> 7 | F165: 73.08 | G165: 69.57
A166: 155 | D166: =SUM(B$12:B166) -> 7 | E166: =SUM(C$12:C166) -> 7 | F166: 73.08 | G166: 69.57
A167: 156 | D167: =SUM(B$12:B167) -> 7 | E167: =SUM(C$12:C167) -> 7 | F167: 73.08 | G167: 69.57
A168: 157 | D168: =SUM(B$12:B168) -> 7 | E168: =SUM(C$12:C168) -> 7 | F168: 73.08 | G168: 69.57
A169: 158 | D169: =SUM(B$12:B169) -> 7 | E169: =SUM(C$12:C169) -> 7 | F169: 73.08 | G169: 69.57
A170: 159 | D170: =SUM(B$12:B170) -> 7 | E170: =SUM(C$12:C170) -> 7 | F170: 73.08 | G170: 69.57
A171: 160 | D171: =SUM(B$12:B171) -> 7 | E171: =SUM(C$12:C171) -> 7 | F171: 73.08 | G171: 69.57
A172: 161 | D172: =SUM(B$12:B172) -> 7 | E172: =SUM(C$12:C172) -> 7 | F172: 73.08 | G172: 69.57
A173: 162 | D173: =SUM(B$12:B173) -> 7 | E173: =SUM(C$12:C173) -> 7 | F173: 73.08 | G173: 69.57
A174: 163 | D174: =SUM(B$12:B174) -> 7 | E174: =SUM(C$12:C174) -> 7 | F174: 73.08 | G174: 69.57
A175: 164 | D175: =SUM(B$12:B175) -> 7 | E175: =SUM(C$12:C175) -> 7 | F175: 73.08 | G175: 69.57
A176: 165 | D176: =SUM(B$12:B176) -> 7 | E176: =SUM(C$12:C176) -> 7 | F176: 73.08 | G176: 69.57
A177: 166 | D177: =SUM(B$12:B177) -> 7 | E177: =SUM(C$12:C177) -> 7 | F177: 73.08 | G177: 69.57
A178: 167 | D178: =SUM(B$12:B178) -> 7 | E178: =SUM(C$12:C178) -> 7 | F178: 73.08 | G178: 69.57
A179: 168 | D179: =SUM(B$12:B179) -> 7 | E179: =SUM(C$12:C179) -> 7 | F179: 73.08 | G179: 69.57
A180: 169 | D180: =SUM(B$12:B180) -> 7 | E180: =SUM(C$12:C180) -> 7 | F180: 73.08 | G180: 69.57
A181: 170 | B181: 1 | D181: =SUM(B$12:B181) -> 8 | E181: =SUM(C$12:C181) -> 7 | F181: 69.23 | G181: 69.57
A182: 171 | D182: =SUM(B$12:B182) -> 8 | E182: =SUM(C$12:C182) -> 7 | F182: 69.23 | G182: 69.57
A183: 172 | D183: =SUM(B$12:B183) -> 8 | E183: =SUM(C$12:C183) -> 7 | F183: 69.23 | G183: 69.57
A184: 173 | D184: =SUM(B$12:B184) -> 8 | E184: =SUM(C$12:C184) -> 7 | F184: 69.23 | G184: 69.57
A185: 174 | B185: 1 | D185: =SUM(B$12:B185) -> 9 | E185: =SUM(C$12:C185) -> 7 | F185: 65.38 | G185: 69.57
A186: 175 | D186: =SUM(B$12:B186) -> 9 | E186: =SUM(C$12:C186) -> 7 | F186: 65.38 | G186: 69.57
A187: 176 | D187: =SUM(B$12:B187) -> 9 | E187: =SUM(C$12:C187) -> 7 | F187: 65.38 | G187: 69.57
A188: 177 | B188: 1 | D188: =SUM(B$12:B188) -> 10 | E188: =SUM(C$12:C188) -> 7 | F188: 61.54 | G188: 69.57
A189: 178 | D189: =SUM(B$12:B189) -> 10 | E189: =SUM(C$12:C189) -> 7 | F189: 61.54 | G189: 69.57
A190: 179 | D190: =SUM(B$12:B190) -> 10 | E190: =SUM(C$12:C190) -> 7 | F190: 61.54 | G190: 69.57
A191: 180 | B191: 2 | D191: =SUM(B$12:B191) -> 12 | E191: =SUM(C$12:C191) -> 7 | F191: 53.85 | G191: 69.57
A192: 181 | B192: 1 | D192: =SUM(B$12:B192) -> 13 | E192: =SUM(C$12:C192) -> 7 | F192: 50.00 | G192: 69.57
A193: 182 | B193: 1 | C193: 1 | D193: =SUM(B$12:B193) -> 14 | E193: =SUM(C$12:C193) -> 8 | F193: 46.15 | G193: 65.22
A194: 183 | D194: =SUM(B$12:B194) -> 14 | E194: =SUM(C$12:C194) -> 8 | F194: 46.15 | G194: 65.22
A195: 184 | C195: 1 | D195: =SUM(B$12:B195) -> 14 | E195: =SUM(C$12:C195) -> 9 | F195: 46.15 | G195: 60.87
A196: 185 | D196: =SUM(B$12:B196) -> 14 | E196: =SUM(C$12:C196) -> 9 | F196: 46.15 | G196: 60.87
A197: 186 | D197: =SUM(B$12:B197) -> 14 | E197: =SUM(C$12:C197) -> 9 | F197: 46.15 | G197: 60.87
A198: 187 | B198: 1 | D198: =SUM(B$12:B198) -> 15 | E198: =SUM(C$12:C198) -> 9 | F198: 42.31 | G198: 60.87
A199: 188 | D199: =SUM(B$12:B199) -> 15 | E199: =SUM(C$12:C199) -> 9 | F199: 42.31 | G199: 60.87
A200: 189 | D200: =SUM(B$12:B200) -> 15 | E200: =SUM(C$12:C200) -> 9 | F200: 42.31 | G200: 60.87
A201: 190 | D201: =SUM(B$12:B201) -> 15 | E201: =SUM(C$12:C201) -> 9 | F201: 42.31 | G201: 60.87
A202: 191 | D202: =SUM(B$12:B202) -> 15 | E202: =SUM(C$12:C202) -> 9 | F202: 42.31 | G202: 60.87
A203: 192 | D203: =SUM(B$12:B203) -> 15 | E203: =SUM(C$12:C203) -> 9 | F203: 42.31 | G203: 60.87
A204: 193 | D204: =SUM(B$12:B204) -> 15 | E204: =SUM(C$12:C204) -> 9 | F204: 42.31 | G204: 60.87
A205: 194 | B205: 1 | D205: =SUM(B$12:B205) -> 16 | E205: =SUM(C$12:C205) -> 9 | F205: =(B$9-D205)/B$9*100 -> 38.46 | G205: =(C$9-E205)/C$9*100 -> 60.87
... 106 more rows

Sheet Figure 2a
A1: Title | B1: The lysophospholipase D enzyme Gdpd3 is required to maintain chronic myelogenous leukaemia stem cells
A2: Authour | B2: Kazuhito Naka, Ryosuke Ochiai, Eriko Matsubara, Chie Kondo, Kyung-Min Yang, Takayuki Hoshii, Masatake Araki, Kimi Araki, Yusuke Sotomaru, Ko Sasaki, Kinuko Mitani, Dong-Wook Kim, Akira Ooshima and Seong-Jin Kim
A4: Figure 2a | B4: Survival rates of retro-CML-affected mice in a primary BMT experiment that received BCR-ABL1/EGFP-transduced LSK cells from either Gdpd3+/+ mice (1 male, 1 female) or Gdpd3-/- mice (2 females).
B5: Results shown are cumulative data obtained from two biologically independent experiments.
A9: Total mouse number (n) | B9: 11 | C9: 14
B10: Number of dead mouse | D10: Accumulated Number of dead mouse | F10: Survival rate for graph (%)
A11: Time post-transplantation (day) | B11: Wild type | C11: Gdpd3B KO | D11: =B11 -> Wild type | E11: =C11 -> Gdpd3B KO | F11: =D11 -> Wild type | G11: =E11 -> Gdpd3B KO
A12: 1 | D12: =SUM(B$12:B12) -> 0 | E12: =SUM(C$12:C12) -> 0 | F12: =(B$9-D12)/B$9*100 -> 100.00 | G12: =(C$9-E12)/C$9*100 -> 100.00
A13: 2 | D13: =SUM(B$12:B13) -> 0 | E13: =SUM(C$12:C13) -> 0 | F13: =(B$9-D13)/B$9*100 -> 100.00 | G13: 100.00
A14: 3 | D14: =SUM(B$12:B14) -> 0 | E14: =SUM(C$12:C14) -> 0 | F14: 100.00 | G14: 100.00
A15: 4 | D15: =SUM(B$12:B15) -> 0 | E15: =SUM(C$12:C15) -> 0 | F15: 100.00 | G15: 100.00
A16: 5 | D16: =SUM(B$12:B16) -> 0 | E16: =SUM(C$12:C16) -> 0 | F16: 100.00 | G16: 100.00
A17: 6 | D17: =SUM(B$12:B17) -> 0 | E17: =SUM(C$12:C17) -> 0 | F17: 100.00 | G17: 100.00
A18: 7 | D18: =SUM(B$12:B18) -> 0 | E18: =SUM(C$12:C18) -> 0 | F18: 100.00 | G18: 100.00
A19: 8 | D19: =SUM(B$12:B19) -> 0 | E19: =SUM(C$12:C19) -> 0 | F19: 100.00 | G19: 100.00
A20: 9 | D20: =SUM(B$12:B20) -> 0 | E20: =SUM(C$12:C20) -> 0 | F20: 100.00 | G20: 100.00
A21: 10 | D21: =SUM(B$12:B21) -> 0 | E21: =SUM(C$12:C21) -> 0 | F21: 100.00 | G21: 100.00
A22: 11 | D22: =SUM(B$12:B22) -> 0 | E22: =SUM(C$12:C22) -> 0 | F22: 100.00 | G22: 100.00
A23: 12 | D23: =SUM(B$12:B23) -> 0 | E23: =SUM(C$12:C23) -> 0 | F23: 100.00 | G23: 100.00
A24: 13 | D24: =SUM(B$12:B24) -> 0 | E24: =SUM(C$12:C24) -> 0 | F24: 100.00 | G24: 100.00
A25: 14 | D25: =SUM(B$12:B25) -> 0 | E25: =SUM(C$12:C25) -> 0 | F25: 100.00 | G25: 100.00
A26: 15 | C26: 1 | D26: =SUM(B$12:B26) -> 0 | E26: =SUM(C$12:C26) -> 1 | F26: 100.00 | G26: 92.86
A27: 16 | B27: 1 | D27: =SUM(B$12:B27) -> 1 | E27: =SUM(C$12:C27) -> 1 | F27: 90.91 | G27: 92.86
A28: 17 | B28: 1 | C28: 3 | D28: =SUM(B$12:B28) -> 2 | E28: =SUM(C$12:C28) -> 4 | F28: 81.82 | G28: 71.43
A29: 18 | C29: 1 | D29: =SUM(B$12:B29) -> 2 | E29: =SUM(C$12:C29) -> 5 | F29: 81.82 | G29: 64.29
A30: 19 | C30: 5 | D30: =SUM(B$12:B30) -> 2 | E30: =SUM(C$12:C30) -> 10 | F30: 81.82 | G30: 28.57
A31: 20 | B31: 1 | C31: 1 | D31: =SUM(B$12:B31) -> 3 | E31: =SUM(C$12:C31) -> 11 | F31: 72.73 | G31: 21.43
A32: 21 | C32: 2 | D32: =SUM(B$12:B32) -> 3 | E32: =SUM(C$12:C32) -> 13 | F32: 72.73 | G32: 7.14
A33: 22 | D33: =SUM(B$12:B33) -> 3 | E33: =SUM(C$12:C33) -> 13 | F33: 72.73 | G33: 7.14
A34: 23 | B34: 1 | C34: 1 | D34: =SUM(B$12:B34) -> 4 | E34: =SUM(C$12:C34) -> 14 | F34: 63.64 | G34: 0.00
A35: 24 | B35: 1 | D35: =SUM(B$12:B35) -> 5 | E35: =SUM(C$12:C35) -> 14 | F35: 54.55 | G35: 0.00
A36: 25 | B36: 1 | D36: =SUM(B$12:B36) -> 6 | E36: =SUM(C$12:C36) -> 14 | F36: 45.45 | G36: 0.00
A37: 26 | D37: =SUM(B$12:B37) -> 6 | E37: =SUM(C$12:C37) -> 14 | F37: 45.45 | G37: 0.00
A38: 27 | B38: 2 | D38: =SUM(B$12:B38) -> 8 | E38: =SUM(C$12:C38) -> 14 | F38: 27.27 | G38: 0.00
A39: 28 | D39: =SUM(B$12:B39) -> 8 | E39: =SUM(C$12:C39) -> 14 | F39: 27.27 | G39: 0.00
A40: 29 | B40: 1 | D40: =SUM(B$12:B40) -> 9 | E40: =SUM(C$12:C40) -> 14 | F40: 18.18 | G40: 0.00
A41: 30 | D41: =SUM(B$12:B41) -> 9 | E41: =SUM(C$12:C41) -> 14 | F41: 18.18 | G41: 0.00
A42: 31 | B42: 2 | D42: =SUM(B$12:B42) -> 11 | E42: =SUM(C$12:C42) -> 14 | F42: 0.00 | G42: 0.00
A43: 32 | D43: =SUM(B$12:B43) -> 11 | E43: =SUM(C$12:C43) -> 14 | F43: 0.00 | G43: 0.00
A44: 33 | D44: =SUM(B$12:B44) -> 11 | E44: =SUM(C$12:C44) -> 14 | F44: 0.00 | G44: 0.00
A45: 34 | D45: =SUM(B$12:B45) -> 11 | E45: =SUM(C$12:C45) -> 14 | F45: 0.00 | G45: 0.00
A46: 35 | D46: =SUM(B$12:B46) -> 11 | E46: =SUM(C$12:C46) -> 14 | F46: 0.00 | G46: 0.00
A47: 36 | D47: =SUM(B$12:B47) -> 11 | E47: =SUM(C$12:C47) -> 14 | F47: 0.00 | G47: 0.00
A48: 37 | D48: =SUM(B$12:B48) -> 11 | E48: =SUM(C$12:C48) -> 14 | F48: 0.00 | G48: 0.00
A49: 38 | D49: =SUM(B$12:B49) -> 11 | E49: =SUM(C$12:C49) -> 14 | F49: 0.00 | G49: 0.00
A50: 39 | D50: =SUM(B$12:B50) -> 11 | E50: =SUM(C$12:C50) -> 14 | F50: 0.00 | G50: 0.00
A51: 40 | D51: =SUM(B$12:B51) -> 11 | E51: =SUM(C$12:C51) -> 14 | F51: 0.00 | G51: 0.00

Sheet Figure 2b
A1: Title | B1: The lysophospholipase D enzyme Gdpd3 is required to maintain chronic myelogenous leukaemia stem cells
A2: Authour | B2: Kazuhito Naka, Ryosuke Ochiai, Eriko Matsubara, Chie Kondo, Kyung-Min Yang, Takayuki Hoshii, Masatake Araki, Kimi Araki, Yusuke Sotomaru, Ko Sasaki, Kinuko Mitani, Dong-Wook Kim, Akira Ooshima and Seong-Jin Kim
A4: Figure 2b | B4: Survival rate of second-round BMT recipient mice that received serial transplantation of BCR-ABL1/EGFP+ CML-LSK cells (3x104 cells) isolated from either the Gdpd3+/+ retro-CML-affected mice (14 females) or Gdpd3-/- retro-CML-affected mice (15 females).
B5: Results shown are cumulative data obtained from three biologically independent experiments. Mouse survival was monitored for ninety days.
A9: Total mouse number (n) | B9: 19 | C9: 28
B10: Number of dead mouse | D10: Accumulated Number of dead mouse | F10: Survival rate for graph (%)
A11: Time post-transplantation (day) | B11: Wild type | C11: Gdpd3B KO | D11: =B11 -> Wild type | E11: =C11 -> Gdpd3B KO | F11: =D11 -> Wild type | G11: =E11 -> Gdpd3B KO
A12: 1 | D12: =SUM(B$12:B12) -> 0 | E12: =SUM(C$12:C12) -> 0 | F12: =(B$9-D12)/B$9*100 -> 100.00 | G12: =(C$9-E12)/C$9*100 -> 100.00
A13: 2 | D13: =SUM(B$12:B13) -> 0 | E13: =SUM(C$12:C13) -> 0 | F13: =(B$9-D13)/B$9*100 -> 100.00 | G13: 100.00
A14: 3 | D14: =SUM(B$12:B14) -> 0 | E14: =SUM(C$12:C14) -> 0 | F14: 100.00 | G14: 100.00
A15: 4 | D15: =SUM(B$12:B15) -> 0 | E15: =SUM(C$12:C15) -> 0 | F15: 100.00 | G15: 100.00
A16: 5 | D16: =SUM(B$12:B16) -> 0 | E16: =SUM(C$12:C16) -> 0 | F16: 100.00 | G16: 100.00
A17: 6 | D17: =SUM(B$12:B17) -> 0 | E17: =SUM(C$12:C17) -> 0 | F17: 100.00 | G17: 100.00
A18: 7 | D18: =SUM(B$12:B18) -> 0 | E18: =SUM(C$12:C18) -> 0 | F18: 100.00 | G18: 100.00
A19: 8 | D19: =SUM(B$12:B19) -> 0 | E19: =SUM(C$12:C19) -> 0 | F19: 100.00 | G19: 100.00
A20: 9 | D20: =SUM(B$12:B20) -> 0 | E20: =SUM(C$12:C20) -> 0 | F20: 100.00 | G20: 100.00
A21: 10 | D21: =SUM(B$12:B21) -> 0 | E21: =SUM(C$12:C21) -> 0 | F21: 100.00 | G21: 100.00
A22: 11 | D22: =SUM(B$12:B22) -> 0 | E22: =SUM(C$12:C22) -> 0 | F22: 100.00 | G22: 100.00
A23: 12 | D23: =SUM(B$12:B23) -> 0 | E23: =SUM(C$12:C23) -> 0 | F23: 100.00 | G23: 100.00
A24: 13 | D24: =SUM(B$12:B24) -> 0 | E24: =SUM(C$12:C24) -> 0 | F24: 100.00 | G24: 100.00
A25: 14 | D25: =SUM(B$12:B25) -> 0 | E25: =SUM(C$12:C25) -> 0 | F25: 100.00 | G25: 100.00
A26: 15 | D26: =SUM(B$12:B26) -> 0 | E26: =SUM(C$12:C26) -> 0 | F26: 100.00 | G26: 100.00
A27: 16 | B27: 2 | D27: =SUM(B$12:B27) -> 2 | E27: =SUM(C$12:C27) -> 0 | F27: 89.47 | G27: 100.00
A28: 17 | D28: =SUM(B$12:B28) -> 2 | E28: =SUM(C$12:C28) -> 0 | F28: 89.47 | G28: 100.00
A29: 18 | B29: 2 | D29: =SUM(B$12:B29) -> 4 | E29: =SUM(C$12:C29) -> 0 | F29: 78.95 | G29: 100.00
A30: 19 | B30: 1 | D30: =SUM(B$12:B30) -> 5 | E30: =SUM(C$12:C30) -> 0 | F30: 73.68 | G30: 100.00
A31: 20 | B31: 1 | D31: =SUM(B$12:B31) -> 6 | E31: =SUM(C$12:C31) -> 0 | F31: 68.42 | G31: 100.00
A32: 21 | B32: 1 | D32: =SUM(B$12:B32) -> 7 | E32: =SUM(C$12:C32) -> 0 | F32: 63.16 | G32: 100.00
A33: 22 | B33: 2 | D33: =SUM(B$12:B33) -> 9 | E33: =SUM(C$12:C33) -> 0 | F33: 52.63 | G33: 100.00
A34: 23 | B34: 1 | D34: =SUM(B$12:B34) -> 10 | E34: =SUM(C$12:C34) -> 0 | F34: 47.37 | G34: 100.00
A35: 24 | B35: 1 | D35: =SUM(B$12:B35) -> 11 | E35: =SUM(C$12:C35) -> 0 | F35: 42.11 | G35: 100.00
A36: 25 | D36: =SUM(B$12:B36) -> 11 | E36: =SUM(C$12:C36) -> 0 | F36: 42.11 | G36: 100.00
A37: 26 | B37: 1 | D37: =SUM(B$12:B37) -> 12 | E37: =SUM(C$12:C37) -> 0 | F37: 36.84 | G37: 100.00
A38: 27 | D38: =SUM(B$12:B38) -> 12 | E38: =SUM(C$12:C38) -> 0 | F38: 36.84 | G38: 100.00
A39: 28 | D39: =SUM(B$12:B39) -> 12 | E39: =SUM(C$12:C39) -> 0 | F39: 36.84 | G39: 100.00
A40: 29 | D40: =SUM(B$12:B40) -> 12 | E40: =SUM(C$12:C40) -> 0 | F40: 36.84 | G40: 100.00
A41: 30 | B41: 1 | D41: =SUM(B$12:B41) -> 13 | E41: =SUM(C$12:C41) -> 0 | F41: 31.58 | G41: 100.00
A42: 31 | D42: =SUM(B$12:B42) -> 13 | E42: =SUM(C$12:C42) -> 0 | F42: 31.58 | G42: 100.00
A43: 32 | D43: =SUM(B$12:B43) -> 13 | E43: =SUM(C$12:C43) -> 0 | F43: 31.58 | G43: 100.00
A44: 33 | D44: =SUM(B$12:B44) -> 13 | E44: =SUM(C$12:C44) -> 0 | F44: 31.58 | G44: 100.00
A45: 34 | D45: =SUM(B$12:B45) -> 13 | E45: =SUM(C$12:C45) -> 0 | F45: 31.58 | G45: 100.00
A46: 35 | D46: =SUM(B$12:B46) -> 13 | E46: =SUM(C$12:C46) -> 0 | F46: 31.58 | G46: 100.00
A47: 36 | D47: =SUM(B$12:B47) -> 13 | E47: =SUM(C$12:C47) -> 0 | F47: 31.58 | G47: 100.00
A48: 37 | C48: 1 | D48: =SUM(B$12:B48) -> 13 | E48: =SUM(C$12:C48) -> 1 | F48: 31.58 | G48: 96.43
A49: 38 | D49: =SUM(B$12:B49) -> 13 | E49: =SUM(C$12:C49) -> 1 | F49: 31.58 | G49: 96.43
A50: 39 | D50: =SUM(B$12:B50) -> 13 | E50: =SUM(C$12:C50) -> 1 | F50: 31.58 | G50: 96.43
A51: 40 | D51: =SUM(B$12:B51) -> 13 | E51: =SUM(C$12:C51) -> 1 | F51: 31.58 | G51: 96.43
A52: 41 | D52: =SUM(B$12:B52) -> 13 | E52: =SUM(C$12:C52) -> 1 | F52: 31.58 | G52: 96.43
A53: 42 | D53: =SUM(B$12:B53) -> 13 | E53: =SUM(C$12:C53) -> 1 | F53: 31.58 | G53: 96.43
A54: 43 | D54: =SUM(B$12:B54) -> 13 | E54: =SUM(C$12:C54) -> 1 | F54: 31.58 | G54: 96.43
A55: 44 | D55: =SUM(B$12:B55) -> 13 | E55: =SUM(C$12:C55) -> 1 | F55: 31.58 | G55: 96.43
A56: 45 | D56: =SUM(B$12:B56) -> 13 | E56: =SUM(C$12:C56) -> 1 | F56: 31.58 | G56: 96.43
A57: 46 | D57: =SUM(B$12:B57) -> 13 | E57: =SUM(C$12:C57) -> 1 | F57: 31.58 | G57: 96.43
A58: 47 | D58: =SUM(B$12:B58) -> 13 | E58: =SUM(C$12:C58) -> 1 | F58: 31.58 | G58: 96.43
A59: 48 | D59: =SUM(B$12:B59) -> 13 | E59: =SUM(C$12:C59) -> 1 | F59: 31.58 | G59: 96.43
A60: 49 | D60: =SUM(B$12:B60) -> 13 | E60: =SUM(C$12:C60) -> 1 | F60: 31.58 | G60: 96.43
A61: 50 | D61: =SUM(B$12:B61) -> 13 | E61: =SUM(C$12:C61) -> 1 | F61: 31.58 | G61: 96.43
A62: 51 | D62: =SUM(B$12:B62) -> 13 | E62: =SUM(C$12:C62) -> 1 | F62: 31.58 | G62: 96.43
A63: 52 | D63: =SUM(B$12:B63) -> 13 | E63: =SUM(C$12:C63) -> 1 | F63: 31.58 | G63: 96.43
A64: 53 | D64: =SUM(B$12:B64) -> 13 | E64: =SUM(C$12:C64) -> 1 | F64: 31.58 | G64: 96.43
A65: 54 | D65: =SUM(B$12:B65) -> 13 | E65: =SUM(C$12:C65) -> 1 | F65: 31.58 | G65: 96.43
A66: 55 | D66: =SUM(B$12:B66) -> 13 | E66: =SUM(C$12:C66) -> 1 | F66: 31.58 | G66: 96.43
A67: 56 | D67: =SUM(B$12:B67) -> 13 | E67: =SUM(C$12:C67) -> 1 | F67: 31.58 | G67: 96.43
A68: 57 | B68: 1 | D68: =SUM(B$12:B68) -> 14 | E68: =SUM(C$12:C68) -> 1 | F68: 26.32 | G68: 96.43
A69: 58 | D69: =SUM(B$12:B69) -> 14 | E69: =SUM(C$12:C69) -> 1 | F69: 26.32 | G69: 96.43
A70: 59 | D70: =SUM(B$12:B70) -> 14 | E70: =SUM(C$12:C70) -> 1 | F70: 26.32 | G70: 96.43
A71: 60 | D71: =SUM(B$12:B71) -> 14 | E71: =SUM(C$12:C71) -> 1 | F71: 26.32 | G71: 96.43
A72: 61 | D72: =SUM(B$12:B72) -> 14 | E72: =SUM(C$12:C72) -> 1 | F72: 26.32 | G72: 96.43
A73: 62 | D73: =SUM(B$12:B73) -> 14 | E73: =SUM(C$12:C73) -> 1 | F73: 26.32 | G73: 96.43
A74: 63 | D74: =SUM(B$12:B74) -> 14 | E74: =SUM(C$12:C74) -> 1 | F74: 26.32 | G74: 96.43
A75: 64 | D75: =SUM(B$12:B75) -> 14 | E75: =SUM(C$12:C75) -> 1 | F75: 26.32 | G75: 96.43
A76: 65 | D76: =SUM(B$12:B76) -> 14 | E76: =SUM(C$12:C76) -> 1 | F76: 26.32 | G76: 96.43
A77: 66 | C77: 1 | D77: =SUM(B$12:B77) -> 14 | E77: =SUM(C$12:C77) -> 2 | F77: =(B$9-D77)/B$9*100 -> 26.32 | G77: 92.86
A78: 67 | D78: =SUM(B$12:B78) -> 14 | E78: =SUM(C$12:C78) -> 2 | F78: 26.32 | G78: 92.86
A79: 68 | D79: =SUM(B$12:B79) -> 14 | E79: =SUM(C$12:C79) -> 2 | F79: 26.32 | G79: 92.86
A80: 69 | D80: =SUM(B$12:B80) -> 14 | E80: =SUM(C$12:C80) -> 2 | F80: 26.32 | G80: 92.86
A81: 70 | D81: =SUM(B$12:B81) -> 14 | E81: =SUM(C$12:C81) -> 2 | F81: 26.32 | G81: 92.86
A82: 71 | D82: =SUM(B$12:B82) -> 14 | E82: =SUM(C$12:C82) -> 2 | F82: 26.32 | G82: 92.86
A83: 72 | D83: =SUM(B$12:B83) -> 14 | E83: =SUM(C$12:C83) -> 2 | F83: 26.32 | G83: 92.86
A84: 73 | D84: =SUM(B$12:B84) -> 14 | E84: =SUM(C$12:C84) -> 2 | F84: 26.32 | G84: 92.86
A85: 74 | D85: =SUM(B$12:B85) -> 14 | E85: =SUM(C$12:C85) -> 2 | F85: 26.32 | G85: 92.86
A86: 75 | D86: =SUM(B$12:B86) -> 14 | E86: =SUM(C$12:C86) -> 2 | F86: 26.32 | G86: 92.86
A87: 76 | C87: 1 | D87: =SUM(B$12:B87) -> 14 | E87: =SUM(C$12:C87) -> 3 | F87: 26.32 | G87: 89.29
A88: 77 | D88: =SUM(B$12:B88) -> 14 | E88: =SUM(C$12:C88) -> 3 | F88: 26.32 | G88: 89.29
A89: 78 | D89: =SUM(B$12:B89) -> 14 | E89: =SUM(C$12:C89) -> 3 | F89: 26.32 | G89: 89.29
A90: 79 | C90: 1 | D90: =SUM(B$12:B90) -> 14 | E90: =SUM(C$12:C90) -> 4 | F90: 26.32 | G90: 85.71
A91: 80 | D91: =SUM(B$12:B91) -> 14 | E91: =SUM(C$12:C91) -> 4 | F91: 26.32 | G91: 85.71
A92: 81 | D92: =SUM(B$12:B92) -> 14 | E92: =SUM(C$12:C92) -> 4 | F92: 26.32 | G92: 85.71
A93: 82 | D93: =SUM(B$12:B93) -> 14 | E93: =SUM(C$12:C93) -> 4 | F93: 26.32 | G93: 85.71
A94: 83 | C94: 1 | D94: =SUM(B$12:B94) -> 14 | E94: =SUM(C$12:C94) -> 5 | F94: 26.32 | G94: 82.14
A95: 84 | D95: =SUM(B$12:B95) -> 14 | E95: =SUM(C$12:C95) -> 5 | F95: 26.32 | G95: 82.14
A96: 85 | D96: =SUM(B$12:B96) -> 14 | E96: =SUM(C$12:C96) -> 5 | F96: 26.32 | G96: 82.14
A97: 86 | D97: =SUM(B$12:B97) -> 14 | E97: =SUM(C$12:C97) -> 5 | F97: 26.32 | G97: 82.14
A98: 87 | D98: =SUM(B$12:B98) -> 14 | E98: =SUM(C$12:C98) -> 5 | F98: 26.32 | G98: 82.14
A99: 88 | D99: =SUM(B$12:B99) -> 14 | E99: =SUM(C$12:C99) -> 5 | F99: 26.32 | G99: 82.14
A100: 89 | D100: =SUM(B$12:B100) -> 14 | E100: =SUM(C$12:C100) -> 5 | F100: 26.32 | G100: 82.14
A101: 90 | D101: =SUM(B$12:B101) -> 14 | E101: =SUM(C$12:C101) -> 5 | F101: 26.32 | G101: 82.14

Sheet Figure 2c
A1: Title | B1: The lysophospholipase D enzyme Gdpd3 is required to maintain chronic myelogenous leukaemia stem cells
A2: Authour | B2: Kazuhito Naka, Ryosuke Ochiai, Eriko Matsubara, Chie Kondo, Kyung-Min Yang, Takayuki Hoshii, Masatake Araki, Kimi Araki, Yusuke Sotomaru, Ko Sasaki, Kinuko Mitani, Dong-Wook Kim, Akira Ooshima and Seong-Jin Kim
A4: Figure 2c
A7: Absolute no. of BCR-ABL1/EGFP+ LSK cells | F7: Post-1st BMT
B9: Mouse | C9: Cell | D9: Absolute No | E9: Average | F9: Stdev | G9: T Test
A10: WT | B10: 1 | C10: BM | D10: 5937
B11: 2 | C11: BM | D11: 13933
B12: 3 | C12: BM | D12: 9530
B13: 4 | C13: BM | D13: 6952
B14: 5 | C14: BM | D14: 13393
B15: 6 | C15: BM | D15: 7788
B16: 7 | C16: BM | D16: 14457 | E16: =AVERAGE(D10:D16) -> 10284 | F16: =STDEV(D10:D16) -> 3586.8
A17: Gdpd3B KO | B17: 1 | C17: BM | D17: 19978
B18: 2 | C18: BM | D18: 5082
B19: 3 | C19: BM | D19: 7259 | E19: =AVERAGE(D17:D19) -> 10773 | F19: =STDEV(D17:D19) -> 8045.8 | G19: =TTEST(D10:D16,D17:D19,2,2) -> 0.89257
A22: Absolute numbers of BCR-ABL1/EGFP+ CML-LSK cells isolated from BM of the two hind limbs of Gdpd3+/+ retro-CML-affected mice and Gdpd3-/- retro-CML-affected mice after a first-round of serial BM transplantation.
A23: (P-value, unpaired two-sided Student’s t-test). (See also Supplementary Fig.6)

Sheet Figure 2d
A1: Title | B1: The lysophospholipase D enzyme Gdpd3 is required to maintain chronic myelogenous leukaemia stem cells
A2: Authour | B2: Kazuhito Naka, Ryosuke Ochiai, Eriko Matsubara, Chie Kondo, Kyung-Min Yang, Takayuki Hoshii, Masatake Araki, Kimi Araki, Yusuke Sotomaru, Ko Sasaki, Kinuko Mitani, Dong-Wook Kim, Akira Ooshima and Seong-Jin Kim
A4: Figure 2d
A7: Absolute no. of BCR-ABL1/EGFP+ LSK cells | E7: Post-1st BMT
B9: Mouse | C9: Cell | D9: Absolute No | E9: Average | F9: Stdev | G9: T Test
A10: WT | B10: 1 | C10: Spleen | D10: 16325
B11: 2 | C11: Spleen | D11: 18632
B12: 3 | C12: Spleen | D12: 19679
B13: 4 | C13: Spleen | D13: 45273
B14: 5 | C14: Spleen | D14: 57134
B15: 6 | C15: Spleen | D15: 22194 | E15: =AVERAGE(D10:D15) -> 29873 | F15: =STDEV(D10:D15) -> 17047.6
A16: Gdpd3B KO | B16: 1 | C16: Spleen | D16: 19170
B17: 2 | C17: Spleen | D17: 168518
B18: 3 | C18: Spleen | D18: 128800
B19: 4 | C19: Spleen | D19: 71885 | E19: =AVERAGE(D16:D18) -> 105496 | F19: =STDEV(D16:D18) -> 77353.3 | G19: =TTEST(D10:D15,D16:D19,2,2) -> 0.03896
A22: Absolute numbers of BCR-ABL1/EGFP+ CML-LSK cells isolated from spleen of Gdpd3+/+ retro-CML-affected mice and Gdpd3-/- retro-CML-affected mice after a first-round of serial BM transplantation.
A23: (P-value, unpaired two-sided Student’s t-test)

Sheet Figure 2e
A1: Title | B1: The lysophospholipase D enzyme Gdpd3 is required to maintain chronic myelogenous leukaemia stem cells
A2: Authour | B2: Kazuhito Naka, Ryosuke Ochiai, Eriko Matsubara, Chie Kondo, Kyung-Min Yang, Takayuki Hoshii, Masatake Araki, Kimi Araki, Yusuke Sotomaru, Ko Sasaki, Kinuko Mitani, Dong-Wook Kim, Akira Ooshima and Seong-Jin Kim
A4: Figure 2e
A7: Absolute no. of BCR-ABL1/EGFP+ LSK cells | E7: Post-2nd BMT
B9: Mouse | C9: Cell | D9: Absolute No | E9: Average | F9: Stdev | G9: T Test
A10: WT | B10: 1 | C10: BM | D10: 99444
B11: 2 | C11: BM | D11: 26010
B12: 3 | C12: BM | D12: 19229
B13: 4 | C13: BM | D13: 71782
B14: 5 | C14: BM | D14: 26752
B15: 6 | C15: BM | D15: 15718
B16: 7 | C16: BM | D16: 24886
B17: 8 | C17: BM | D17: 26095 | E17: =AVERAGE(D10:D17) -> 38740 | F17: =STDEV(D10:D17) -> 30107.0
A18: Gdpd3B KO | B18: 1 | C18: BM | D18: 937
B19: 2 | C19: BM | D19: 510
B20: 3 | C20: BM | D20: 540
B21: 4 | C21: BM | D21: 131
B22: 5 | C22: BM | D22: 357
B23: 6 | C23: BM | D23: 326
B24: 7 | C24: BM | D24: 644
B25: 8 | C25: BM | D25: 174 | E25: =AVERAGE(D18:D25) -> 453 | F25: =STDEV(D18:D25) -> 264.0 | G25: =TTEST(D10:D17,D18:D25,2,2) -> 0.00292
A28: Absolute numbers of BCR-ABL1/EGFP+ CML-LSK cells isolated from BM of the two hind limbs of Gdpd3+/+ retro-CML-affected mice and Gdpd3-/- retro-CML-affected mice after second-round of serial BM transplantation.
A29: (P-value, unpaired two-sided Student’s t-test)

Sheet Figure 2f
A1: Title | B1: The lysophospholipase D enzyme Gdpd3 is required to maintain chronic myelogenous leukaemia stem cells
A2: Authour | B2: Kazuhito Naka, Ryosuke Ochiai, Eriko Matsubara, Chie Kondo, Kyung-Min Yang, Takayuki Hoshii, Masatake Araki, Kimi Araki, Yusuke Sotomaru, Ko Sasaki, Kinuko Mitani, Dong-Wook Kim, Akira Ooshima and Seong-Jin Kim
A4: Figure 2f
A7: Absolute no. of BCR-ABL1/EGFP+ LSK cells | E7: Post-2nd BMT
B9: Mouse | C9: Cell | D9: Absolute No | E9: Average | F9: Stdev | G9: T Test
A10: WT | B10: 1 | C10: Spleen | D10: 69734
B11: 2 | C11: Spleen | D11: 50544
B12: 3 | C12: Spleen | D12: 523227
B13: 4 | C13: Spleen | D13: 134363
B14: 5 | C14: Spleen | D14: 316944
B15: 6 | C15: Spleen | D15: 116096
B16: 7 | C16: Spleen | D16: 186575
B17: 8 | C17: Spleen | D17: 267827 | E17: =AVERAGE(D10:D17) -> 208164 | F17: =STDEV(D10:D17) -> 157232.1
A18: Gdpd3B KO | B18: 1 | C18: Spleen | D18: 7341
B19: 2 | C19: Spleen | D19: 1617
B20: 3 | C20: Spleen | D20: 4880
B21: 4 | C21: Spleen | D21: 1552
B22: 5 | C22: Spleen | D22: 2080
B23: 6 | C23: Spleen | D23: 2029
B24: 7 | C24: Spleen | D24: 18834
B25: 8 | C25: Spleen | D25: 1815 | E25: =AVERAGE(D18:D25) -> 5019 | F25: =STDEV(D18:D25) -> 5948.6 | G25: =TTEST(D10:D17,D18:D25,2,2) -> 0.00262
A28: Absolute numbers of BCR-ABL1/EGFP+ CML-LSK cells isolated from spleen of Gdpd3+/+ retro-CML-affected mice and Gdpd3-/- retro-CML-affected mice after second-round of serial BM transplantation.
A29: (P-value, unpaired two-sided Student’s t-test)

Sheet Figure 2g
A1: Title | B1: The lysophospholipase D enzyme Gdpd3 is required to maintain chronic myelogenous leukaemia stem cells
A2: Authour | B2: Kazuhito Naka, Ryosuke Ochiai, Eriko Matsubara, Chie Kondo, Kyung-Min Yang, Takayuki Hoshii, Masatake Araki, Kimi Araki, Yusuke Sotomaru, Ko Sasaki, Kinuko Mitani, Dong-Wook Kim, Akira Ooshima and Seong-Jin Kim
A4: Figure 2g
E7: Cell Cycle Distribution (%)
B8: Mouse | C8: Cell | D8: Cell Cycle Phase | E8: Sample 1 | F8: Sample 2 | G8: Sample 3 | H8: Average | I8: Stdev | J8: T Test
B9: WT | C9: Speen | D9: G0/G1 | E9: 63.9 | F9: 64.8 | G9: 65.2 | H9: =AVERAGE(E9:G9) -> 64.6 | I9: =STDEV(E9:G9) -> 0.67
B10: Gdpd3 KO | C10: Speen | D10: G0/G1 | E10: 43.5 | F10: 47.9 | G10: 49.3 | H10: =AVERAGE(E10:G10) -> 46.9 | I10: =STDEV(E10:G10) -> 3.03 | J10: =TTEST(E9:G9,E10:G10,2,2) -> 0.000582
B11: WT | C11: Speen | D11: S | E11: 29.9 | F11: 26.7 | G11: 30.7 | H11: 29.1 | I11: 2.12
B12: Gdpd3 KO | C12: Speen | D12: S | E12: 54.2 | F12: 50.7 | G12: 47.9 | H12: 50.9 | I12: 3.16 | J12: =TTEST(E11:G11,E12:G12,2,2) -> 0.000573
B13: WT | C13: Speen | D13: G2/M | E13: 2.7 | F13: 4.8 | G13: 3.8 | H13: 3.8 | I13: 1.05
B14: Gdpd3 KO | C14: Speen | D14: G2/M | E14: 0.7 | F14: 0.6 | G14: 1.4 | H14: 0.9 | I14: 0.44 | J14: =TTEST(E13:G13,E14:G14,2,2) -> 0.012006
A17: Cell cycle distribution of CML-LSK cells in spleen of Gdpd3+/+ retro-CML-affected mice (3 females) or Gdpd3-/- retro-CML-affected mice (3 females) that were intraperitoneally administered BrdU for three hours after a first-round of BMT.
A18: Results are the mean frequency±s.d. of G0/G1 phase CML-LSK cells, BrdU+ S-phase CML-LSK cells, and G2/M phase CML-LSK cells (n=3 biologically independent samples) (P-value, unpaired two-sided Student’s t-test). (See also Supplementary Fig.7).

Sheet Figure 3a
A1: Title | B1: The lysophospholipase D enzyme Gdpd3 is required to maintain chronic myelogenous leukaemia stem cells
A2: Authour | B2: Kazuhito Naka, Ryosuke Ochiai, Eriko Matsubara, Chie Kondo, Kyung-Min Yang, Takayuki Hoshii, Masatake Araki, Kimi Araki, Yusuke Sotomaru, Ko Sasaki, Kinuko Mitani, Dong-Wook Kim, Akira Ooshima and Seong-Jin Kim
A4: Figure 3a | B4: BMMNCs
B5: LPA concentration（ng mL-1） | L5: Average | O5: Stdev | R5: T test
B6: LPA | C6: Normal | F6: Gdpd3+/+ CML cells | I6: Gdpd3-/- CML cells | L6: Normal | M6: Gdpd3+/+ CML cells | N6: Gdpd3-/- CML cells | O6: Normal | P6: Gdpd3+/+ CML cells | Q6: Gdpd3-/- CML cells
C8: Sample 1 | D8: Sample 2 | E8: Sample 3 | F8: Sample 4 | G8: Sample 5 | H8: Sample 6 | I8: Sample 7 | J8: Sample 8 | K8: Sample 9 | L8: 1～3 | M8: 4～6 | N8: 7～9 | O8: 1～3 | P8: 4～6 | Q8: 7～9 | R8: Normal vs WT CML | S8: WT CML vs Gdpd3 CML
B9: LPA 16:0 | C9: 0.72 | D9: 0.67 | E9: 0.54 | F9: 1.24 | G9: 1.18 | H9: 0.81 | I9: 0.97 | J9: 0.69 | K9: 0.99 | L9: =AVERAGE(C9:E9) -> 0.64 | M9: =AVERAGE(F9:H9) -> 1.08 | N9: =AVERAGE(I9:K9) -> 0.88 | O9: =STDEV(C9:E9) -> 0.0965 | P9: =STDEV(F9:H9) -> 0.2300 | Q9: =STDEV(I9:K9) -> 0.1647 | R9: =TTEST(C9:E9,F9:H9,1,2) -> 0.0195 | S9: =TTEST(F9:H9,I9:K9,1,2) -> 0.1491
B10: LPA 16:1 | C10: 0.27 | D10: 0.14 | E10: 0.17 | F10: 0.72 | G10: 0.48 | H10: 0.41 | I10: 0.43 | J10: 0.15 | K10: 0.72 | L10: =AVERAGE(C10:E10) -> 0.19 | M10: =AVERAGE(F10:H10) -> 0.54 | N10: =AVERAGE(I10:K10) -> 0.43 | O10: 0.0696 | P10: 0.1601 | Q10: 0.2827 | R10: =TTEST(C10:E10,F10:H10,1,2) -> 0.0138 | S10: =TTEST(F10:H10,I10:K10,1,2) -> 0.3045
B11: LPA 18:0 | C11: 2.12 | D11: 1.47 | E11: 1.05 | F11: 2.54 | G11: 3.03 | H11: 1.90 | I11: 2.18 | J11: 1.58 | K11: 2.13 | L11: 1.54 | M11: 2.49 | N11: =AVERAGE(I11:K11) -> 1.97 | O11: 0.5380 | P11: 0.5631 | Q11: 0.3317 | R11: 0.0518 | S11: 0.1190
B12: LPA 18:1 | C12: 4.89 | D12: 2.02 | E12: 1.32 | F12: 1.51 | G12: 1.30 | H12: 0.91 | I12: 0.75 | J12: 0.62 | K12: 0.75 | L12: 2.74 | M12: 1.24 | N12: 0.71 | O12: 1.8951 | P12: 0.3051 | Q12: 0.0755 | R12: 0.1233 | S12: 0.0213
B13: LPA 20:2 | C13: 0.57 | D13: 0.33 | E13: 0.41 | F13: 1.11 | G13: 0.84 | H13: 0.77 | I13: 0.70 | J13: 0.48 | K13: 0.78 | L13: 0.43 | M13: 0.91 | N13: 0.65 | O13: 0.1257 | P13: 0.1791 | Q13: 0.1547 | R13: 0.0101 | S13: 0.0693
B14: LPA 20:3 | C14: 0.27 | D14: 0.09 | E14: 0.12 | F14: 0.60 | G14: 0.35 | H14: 0.56 | I14: 0.40 | J14: 0.10 | K14: 0.50 | L14: 0.16 | M14: 0.50 | N14: 0.33 | O14: 0.0983 | P14: 0.1322 | Q14: 0.2107 | R14: 0.0114 | S14: 0.1515
B15: LPA 20:4 | C15: 0.38 | D15: 0.23 | E15: 0.24 | F15: 0.72 | G15: 0.61 | H15: 0.39 | I15: 0.44 | J15: 0.34 | K15: 0.45 | L15: 0.28 | M15: 0.57 | N15: 0.41 | O15: 0.0808 | P15: 0.1726 | Q15: 0.0586 | R15: 0.0284 | S15: 0.0962
B16: LPA 22:6 | C16: 0.19 | D16: 0.16 | E16: 0.12 | F16: 0.33 | G16: 0.30 | H16: 0.17 | I16: 0.18 | J16: 0.19 | K16: 0.23 | L16: 0.16 | M16: 0.27 | N16: 0.20 | O16: 0.0369 | P16: 0.0838 | Q16: 0.0282 | R16: 0.0482 | S16: 0.1131
B21: Lipidomics data are listed for LPAs.
B22: LPAs in BMMNCs (1x10^7) from Gdpd3+/+ tet-CML-affected mice (5 females) and from Gdpd3-/- tet-CML-affected mice (1 male, 3 females) at five weeks post-Dox withdrawal, and from normal healthy C57BL/6 mice (8 wk old; 2 males, 4 females). (see Methods and Supplementary Method 1).
B23: T test data are the mean concentration (ng ml-1) ±s.d. (n=3 biologically independent samples) (P-value, unpaired one-sided Student’s t-test).

Sheet Figure 3b
A1: Title | B1: The lysophospholipase D enzyme Gdpd3 is required to maintain chronic myelogenous leukaemia stem cells
A2: Authour | B2: Kazuhito Naka, Ryosuke Ochiai, Eriko Matsubara, Chie Kondo, Kyung-Min Yang, Takayuki Hoshii, Masatake Araki, Kimi Araki, Yusuke Sotomaru, Ko Sasaki, Kinuko Mitani, Dong-Wook Kim, Akira Ooshima and Seong-Jin Kim
A4: Figure 3b
A7: LSK
B8: LPA concentration（ng mL-1） | H8: Average | J8: Stdev | L8: T test
A9: LPA | B9: Gdpd3+/+ CML cells | E9: Gdpd3-/- CML cells | H9: Gdpd3+/+ CML cells | I9: Gdpd3-/- CML cells | J9: Gdpd3+/+ CML cells | K9: Gdpd3-/- CML cells
B11: Sample 4 | C11: Sample 5 | D11: Sample 6 | E11: Sample 7 | F11: Sample 8 | G11: Sample 9 | H11: 4～6 | I11: 7～9 | J11: 4～6 | K11: 7～9
A12: LPA 16:0 | B12: 0.10 | C12: 0.11 | D12: 0.17 | E12: 0.10 | F12: 0.04 | G12: 0.09 | H12: =AVERAGE(B12:D12) -> 0.1273 | I12: =AVERAGE(E12:G12) -> 0.0752 | J12: =STDEV(B12:D12) -> 0.0352 | K12: =STDEV(E12:G12) -> 0.0333 | L12: =TTEST(B12:D12,E12:G12,1,2) -> 0.067958
A13: LPA 18:0 | B13: 0.17 | C13: 0.23 | D13: 0.34 | E13: 0.12 | F13: 0.10 | G13: 0.12 | H13: =AVERAGE(B13:D13) -> 0.2466 | I13: =AVERAGE(E13:G13) -> 0.1126 | J13: =STDEV(B13:D13) -> 0.0849 | K13: =STDEV(E13:G13) -> 0.0126 | L13: =TTEST(B13:D13,E13:G13,1,2) -> 0.026898
A14: LPA 18:1 | B14: 0.10 | C14: 0.10 | D14: 0.15 | E14: 0.11 | F14: 0.08 | G14: 0.06 | H14: 0.1175 | I14: =AVERAGE(E14:G14) -> 0.0814 | J14: =STDEV(B14:D14) -> 0.0255 | K14: =STDEV(E14:G14) -> 0.0263 | L14: 0.081629
A15: LPA 20:4 | B15: 0.06 | C15: 0.08 | D15: 0.10 | E15: 0.07 | F15: 0.06 | G15: 0.06 | H15: 0.0791 | I15: 0.0643 | J15: =STDEV(B15:D15) -> 0.0237 | K15: =STDEV(E15:G15) -> 0.0089 | L15: 0.183197
B21: Lipidomics data are listed for LPAs.
B22: LPAs in CML-LSK cells (5x10^5) isolated from Gdpd3+/+ tet-CML-affected mice (4 males and 11 females) and Gdpd3-/- tet-CML-affected mice (6 males, 10 females) at five weeks post-Dox withdrawal (see Methods and Supplementary Method 1).
B23: T-test data are the mean concentration (ng ml-1) ±s.d. (n=3 biologically independent samples) (P-value, unpaired one-sided Student’s t-test).

Sheet Figure 4 Lipid mediators
F1: Area value | P1: IS-corrected value | AA1: WT Bone Marrow Mononuclear Cells | AD1: Gdpd3+/+ CML Bone Marrow Mononuclear Cells | AG1: Gdpd3-/- CML Bone Marrow Mononuclear Cells | AJ1: Area Ratio | AM1: p-value | BB1: F-value
E2: Sample Name | F2: WT Nomarmal Bone Marrow Mononuclear Cells | I2: Gdpd3+/+ CML Bone Marrow Mononuclear Cells | L2: Gdpd3-/- CML Bone Marrow Mononuclear Cells | P2: WT Bone Marrow Mononuclear Cells | S2: Gdpd3+/+ CML Bone Marrow Mononuclear Cells | V2: Gdpd3-/- CML Bone Marrow Mononuclear Cells | Y2: BL | AA2: average | AB2: CV(%) | AD2: average | AE2: CV(%) | AG2: average | AH2: CV(%) | AJ2: CML/Normal | AK2: GDPD3 KO CML/CML
F3: 1 | G3: 2 | H3: 3 | I3: 4 | J3: 5 | K3: 6 | L3: 7 | M3: 8 | N3: 9 | O3: BL | P3: 1 | Q3: 2 | R3: 3 | S3: 4 | T3: 5 | U3: 6 | V3: 7 | W3: 8 | X3: 9 | AP3: Average in Each Group | AT3: Fluctuation in Each Group | AX3: Total Average | AY3: Fluctuation | AZ3: N | BA3: Total Number
C5: Categoly | D5: Compounds | E5: Used IS | AP5: Sample 1, 2, 3 | AQ5: Sample 4, 5, 6 | AR5: Sample 7, 8, 9 | AT5: Sample 1, 2, 3 | AU5: Sample 4, 5, 6 | AV5: Sample 7, 8, 9
A6: 1 | B6: 127 | C6: AA | D6: 11,12-DHET | E6: 14,15-DiHET-d11 | F6: - | G6: - | H6: - | I6: - | J6: - | K6: - | L6: - | M6: - | N6: - | O6: - | P6: - | Q6: - | R6: - | S6: - | T6: - | U6: - | V6: - | W6: - | X6: - | Y6: - | AA6: - | AB6: - | AD6: - | AE6: - | AG6: - | AH6: - | AJ6: - | AK6: - | AM6: - | AP6: - | AQ6: - | AR6: - | AT6: - | AU6: - | AV6: - | AX6: - | AY6: - | AZ6: 3 | BA6: 9 | BB6: -
A7: 2 | B7: 204 | C7: AA | D7: 11,12-EET | E7: 11,12-EET-d11 | F7: - | G7: - | H7: - | I7: - | J7: - | K7: - | L7: - | M7: - | N7: - | O7: - | P7: - | Q7: - | R7: - | S7: - | T7: - | U7: - | V7: - | W7: - | X7: - | Y7: - | AA7: - | AB7: - | AD7: - | AE7: - | AG7: - | AH7: - | AJ7: - | AK7: - | AM7: - | AP7: - | AQ7: - | AR7: - | AT7: - | AU7: - | AV7: - | AX7: - | AY7: - | AZ7: 3 | BA7: 9 | BB7: -
A8: 3 | B8: 68 | C8: AA | D8: 11b-13,14-dihydro-15-keto-PGF2α | E8: PGD2-d4 | F8: - | G8: - | H8: - | I8: - | J8: - | K8: - | L8: - | M8: - | N8: - | O8: - | P8: - | Q8: - | R8: - | S8: - | T8: - | U8: - | V8: - | W8: - | X8: - | Y8: - | AA8: - | AB8: - | AD8: - | AE8: - | AG8: - | AH8: - | AJ8: - | AK8: - | AM8: - | AP8: - | AQ8: - | AR8: - | AT8: - | AU8: - | AV8: - | AX8: - | AY8: - | AZ8: 3 | BA8: 9 | BB8: -
A9: 4 | B9: 59 | C9: AA | D9: 11b-PGE2 | E9: PGE2-d4 | F9: - | G9: - | H9: - | I9: - | J9: - | K9: - | L9: - | M9: - | N9: - | O9: - | P9: - | Q9: - | R9: - | S9: - | T9: - | U9: - | V9: - | W9: - | X9: - | Y9: - | AA9: - | AB9: - | AD9: - | AE9: - | AG9: - | AH9: - | AJ9: - | AK9: - | AM9: - | AP9: - | AQ9: - | AR9: - | AT9: - | AU9: - | AV9: - | AX9: - | AY9: - | AZ9: 3 | BA9: 9 | BB9: -
A10: 5 | B10: 44 | C10: AA | D10: 11b-PGF2α | E10: PGF2α-d4 | F10: - | G10: - | H10: - | I10: - | J10: - | K10: - | L10: - | M10: - | N10: - | O10: - | P10: - | Q10: - | R10: - | S10: - | T10: - | U10: - | V10: - | W10: - | X10: - | Y10: - | AA10: - | AB10: - | AD10: - | AE10: - | AG10: - | AH10: - | AJ10: - | AK10: - | AM10: - | AP10: - | AQ10: - | AR10: - | AT10: - | AU10: - | AV10: - | AX10: - | AY10: - | AZ10: 3 | BA10: 9 | BB10: -
A11: 6 | B11: 29 | C11: AA | D11: 11-dehydro-2,3-dinor-TXB2 | E11: 6-keto-PGF1α-d4 | F11: - | G11: - | H11: - | I11: - | J11: - | K11: - | L11: - | M11: - | N11: - | O11: - | P11: - | Q11: - | R11: - | S11: - | T11: - | U11: - | V11: - | W11: - | X11: - | Y11: - | AA11: - | AB11: - | AD11: - | AE11: - | AG11: - | AH11: - | AJ11: - | AK11: - | AM11: - | AP11: - | AQ11: - | AR11: - | AT11: - | AU11: - | AV11: - | AX11: - | AY11: - | AZ11: 3 | BA11: 9 | BB11: -
A12: 7 | B12: 56 | C12: AA | D12: 11-dehydro-TXB2 | E12: PGE2-d4 | F12: - | G12: - | H12: - | I12: - | J12: - | K12: - | L12: - | M12: - | N12: - | O12: - | P12: - | Q12: - | R12: - | S12: - | T12: - | U12: - | V12: - | W12: - | X12: - | Y12: - | AA12: - | AB12: - | AD12: - | AE12: - | AG12: - | AH12: - | AJ12: - | AK12: - | AM12: - | AP12: - | AQ12: - | AR12: - | AT12: - | AU12: - | AV12: - | AX12: - | AY12: - | AZ12: 3 | BA12: 9 | BB12: -
A13: 8 | B13: 167 | C13: AA | D13: 11-HETE | E13: 12-HETE-d8 | F13: 80,833 | G13: 110,281 | H13: 142,619 | I13: 230,137 | J13: 436,033 | K13: 256,244 | L13: 287,977 | M13: 337,153 | N13: 251,474 | O13: - | P13: 0.161 | Q13: 0.122 | R13: 0.170 | S13: 0.331 | T13: 0.476 | U13: 0.201 | V13: 0.225 | W13: 0.233 | X13: 0.198 | Y13: - | AA13: 0.151 | AB13: 17.1 | AD13: 0.336 | AE13: 41.0 | AG13: 0.219 | AH13: 8.3 | AJ13: =AD13/AA13 -> 2.2 | AK13: 0.7 | AM13: =FDIST(BB13,AZ13-2,BA13-AZ13) -> 0.09 | AP13: =AVERAGE(P13:R13) -> 0.151 | AQ13: =AVERAGE(S13:U13) -> 0.336 | AR13: =AVERAGE(V13:X13) -> 0.219 | AT13: =DEVSQ(P13:R13) -> 0.001323 | AU13: =DEVSQ(S13:U13) -> 0.037952 | AV13: =DEVSQ(V13:X13) -> 0.000656 | AX13: =AVERAGE(P13:X13) -> 0.235 | AY13: =DEVSQ(P13:X13)-SUM(AT13:AV13) -> 0.053 | AZ13: 3 | BA13: 9 | BB13: =(AY13/(AZ13-1))/(SUM(AT13:AV13)/(BA13-AZ13)) -> 3.954
A14: 9 | B14: 85 | C14: AA | D14: 11-trans-LTC4 | E14: LTC4-d5 | F14: 12,489 | G14: 3,864 | H14: 3,393 | I14: 8,629 | J14: 13,724 | K14: 9,966 | L14: 24,707 | M14: 16,163 | N14: 2,914 | O14: - | P14: 0.010 | Q14: 0.002 | R14: 0.002 | S14: 0.006 | T14: 0.006 | U14: 0.003 | V14: 0.009 | W14: 0.004 | X14: 0.001 | Y14: - | AA14: 0.004 | AB14: 107.9 | AD14: 0.005 | AE14: 26.6 | AG14: 0.005 | AH14: 87.4 | AJ14: =AD14/AA14 -> 1.1 | AK14: 1.0 | AM14: =FDIST(BB14,AZ14-2,BA14-AZ14) -> 0.91 | AP14: =AVERAGE(P14:R14) -> 0.004 | AQ14: =AVERAGE(S14:U14) -> 0.005 | AR14: =AVERAGE(V14:X14) -> 0.005 | AT14: =DEVSQ(P14:R14) -> 0.000044 | AU14: =DEVSQ(S14:U14) -> 0.000003 | AV14: =DEVSQ(V14:X14) -> 0.000033 | AX14: =AVERAGE(P14:X14) -> 0.005 | AY14: =DEVSQ(P14:X14)-SUM(AT14:AV14) -> 0.000 | AZ14: 3 | BA14: 9 | BB14: =(AY14/(AZ14-1))/(SUM(AT14:AV14)/(BA14-AZ14)) -> 0.013
A15: 10 | B15: 93 | C15: AA | D15: 11-trans-LTD4 | E15: LTD4-d5 | F15: - | G15: - | H15: - | I15: - | J15: - | K15: - | L15: - | M15: - | N15: - | O15: - | P15: - | Q15: - | R15: - | S15: - | T15: - | U15: - | V15: - | W15: - | X15: - | Y15: - | AA15: - | AB15: - | AD15: - | AE15: - | AG15: - | AH15: - | AJ15: - | AK15: - | AM15: - | AP15: - | AQ15: - | AR15: - | AT15: - | AU15: - | AV15: - | AX15: - | AY15: - | AZ15: 3 | BA15: 9 | BB15: -
A16: 11 | B16: 99 | C16: AA | D16: 11-trans-LTE4 | E16: LTC4-d5 | F16: - | G16: - | H16: - | I16: - | J16: - | K16: - | L16: - | M16: - | N16: - | O16: - | P16: - | Q16: - | R16: - | S16: - | T16: - | U16: - | V16: - | W16: - | X16: - | Y16: - | AA16: - | AB16: - | AD16: - | AE16: - | AG16: - | AH16: - | AJ16: - | AK16: - | AM16: - | AP16: - | AQ16: - | AR16: - | AT16: - | AU16: - | AV16: - | AX16: - | AY16: - | AZ16: 3 | BA16: 9 | BB16: -
A17: 12 | B17: 176 | C17: AA | D17: 12-HETE | E17: 12-HETE-d8 | F17: 625,463 | G17: 1,219,947 | H17: 1,703,465 | I17: 1,065,381 | J17: 2,245,439 | K17: 1,494,878 | L17: 1,815,479 | M17: 1,429,675 | N17: 2,755,521 | O17: 23,139 | P17: 1.245 | Q17: 1.345 | R17: 2.029 | S17: 1.532 | T17: 2.452 | U17: 1.171 | V17: 1.418 | W17: 0.989 | X17: 2.175 | Y17: 0.013 | AA17: 1.540 | AB17: 27.7 | AD17: 1.718 | AE17: 38.4 | AG17: 1.527 | AH17: 39.3 | AJ17: =AD17/AA17 -> 1.1 | AK17: 0.9 | AM17: =FDIST(BB17,AZ17-2,BA17-AZ17) -> 0.76 | AP17: =AVERAGE(P17:R17) -> 1.540 | AQ17: =AVERAGE(S17:U17) -> 1.718 | AR17: =AVERAGE(V17:X17) -> 1.527 | AT17: =DEVSQ(P17:R17) -> 0.364720 | AU17: =DEVSQ(S17:U17) -> 0.872243 | AV17: =DEVSQ(V17:X17) -> 0.721577 | AX17: =AVERAGE(P17:X17) -> 1.595 | AY17: =DEVSQ(P17:X17)-SUM(AT17:AV17) -> 0.069 | AZ17: 3 | BA17: 9 | BB17: =(AY17/(AZ17-1))/(SUM(AT17:AV17)/(BA17-AZ17)) -> 0.105
A18: 13 | B18: 126 | C18: AA | D18: 12-HHT | E18: 14,15-DiHET-d11 | F18: 40,057 | G18: 44,243 | H18: 50,706 | I18: 80,577 | J18: 161,957 | K18: 127,877 | L18: 110,250 | M18: 110,403 | N18: 73,510 | O18: - | P18: 0.039 | Q18: 0.022 | R18: 0.033 | S18: 0.057 | T18: 0.094 | U18: 0.054 | V18: 0.050 | W18: 0.043 | X18: 0.031 | Y18: - | AA18: 0.032 | AB18: 27.6 | AD18: 0.069 | AE18: 32.2 | AG18: 0.041 | AH18: 23.1 | AJ18: =AD18/AA18 -> 2.2 | AK18: 0.6 | AM18: =FDIST(BB18,AZ18-2,BA18-AZ18) -> 0.07 | AP18: =AVERAGE(P18:R18) -> 0.032 | AQ18: =AVERAGE(S18:U18) -> 0.069 | AR18: =AVERAGE(V18:X18) -> 0.041 | AT18: =DEVSQ(P18:R18) -> 0.000152 | AU18: =DEVSQ(S18:U18) -> 0.000973 | AV18: =DEVSQ(V18:X18) -> 0.000181 | AX18: =AVERAGE(P18:X18) -> 0.047 | AY18: =DEVSQ(P18:X18)-SUM(AT18:AV18) -> 0.002 | AZ18: 3 | BA18: 9 | BB18: =(AY18/(AZ18-1))/(SUM(AT18:AV18)/(BA18-AZ18)) -> 5.064
A19: 14 | B19: 188 | C19: AA | D19: 12-HpETE | E19: 5-HETE-d8 | F19: - | G19: - | H19: - | I19: - | J19: - | K19: - | L19: - | M19: - | N19: - | O19: - | P19: - | Q19: - | R19: - | S19: - | T19: - | U19: - | V19: - | W19: - | X19: - | Y19: - | AA19: - | AB19: - | AD19: - | AE19: - | AG19: - | AH19: - | AJ19: - | AK19: - | AM19: - | AP19: - | AQ19: - | AR19: - | AT19: - | AU19: - | AV19: - | AX19: - | AY19: - | AZ19: 3 | BA19: 9 | BB19: -
A20: 15 | B20: 189 | C20: AA | D20: 12-KETE | E20: 5-HETE-d8 | F20: 5,022 | G20: 10,788 | H20: 12,344 | I20: 4,765 | J20: 14,841 | K20: 8,351 | L20: 12,634 | M20: 9,476 | N20: 13,388 | O20: - | P20: 0.018 | Q20: 0.021 | R20: 0.024 | S20: 0.012 | T20: 0.028 | U20: 0.012 | V20: 0.017 | W20: 0.011 | X20: 0.019 | Y20: - | AA20: 0.021 | AB20: 15.7 | AD20: 0.017 | AE20: 54.4 | AG20: 0.016 | AH20: 27.1 | AJ20: =AD20/AA20 -> 0.8 | AK20: 0.9 | AM20: =FDIST(BB20,AZ20-2,BA20-AZ20) -> 0.48 | AP20: =AVERAGE(P20:R20) -> 0.021 | AQ20: =AVERAGE(S20:U20) -> 0.017 | AR20: =AVERAGE(V20:X20) -> 0.016 | AT20: =DEVSQ(P20:R20) -> 0.000022 | AU20: =DEVSQ(S20:U20) -> 0.000175 | AV20: =DEVSQ(V20:X20) -> 0.000037 | AX20: =AVERAGE(P20:X20) -> 0.018 | AY20: =DEVSQ(P20:X20)-SUM(AT20:AV20) -> 0.000 | AZ20: 3 | BA20: 9 | BB20: =(AY20/(AZ20-1))/(SUM(AT20:AV20)/(BA20-AZ20)) -> 0.573
A21: 16 | B21: 118 | C21: AA | D21: 12-keto-LTB4 | E21: 14,15-DiHET-d11 | F21: - | G21: - | H21: - | I21: - | J21: - | K21: - | L21: - | M21: - | N21: - | O21: - | P21: - | Q21: - | R21: - | S21: - | T21: - | U21: - | V21: - | W21: - | X21: - | Y21: - | AA21: - | AB21: - | AD21: - | AE21: - | AG21: - | AH21: - | AJ21: - | AK21: - | AM21: - | AP21: - | AQ21: - | AR21: - | AT21: - | AU21: - | AV21: - | AX21: - | AY21: - | AZ21: 3 | BA21: 9 | BB21: -
A22: 17 | B22: 112 | C22: AA | D22: 13,14-dihydro-15-keto PGJ2 | E22: LTB4-d4 | F22: - | G22: - | H22: - | I22: - | J22: - | K22: - | L22: - | M22: - | N22: - | O22: - | P22: - | Q22: - | R22: - | S22: - | T22: - | U22: - | V22: - | W22: - | X22: - | Y22: - | AA22: - | AB22: - | AD22: - | AE22: - | AG22: - | AH22: - | AJ22: - | AK22: - | AM22: - | AP22: - | AQ22: - | AR22: - | AT22: - | AU22: - | AV22: - | AX22: - | AY22: - | AZ22: 3 | BA22: 9 | BB22: -
A23: 18 | B23: 107 | C23: AA | D23: 13,14-dihydro-15-keto-PGA2 | E23: LTB4-d4 | F23: - | G23: - | H23: - | I23: - | J23: - | K23: - | L23: - | M23: - | N23: - | O23: - | P23: - | Q23: - | R23: - | S23: - | T23: - | U23: - | V23: - | W23: - | X23: - | Y23: - | AA23: - | AB23: - | AD23: - | AE23: - | AG23: - | AH23: - | AJ23: - | AK23: - | AM23: - | AP23: - | AQ23: - | AR23: - | AT23: - | AU23: - | AV23: - | AX23: - | AY23: - | AZ23: 3 | BA23: 9 | BB23: -
A24: 19 | B24: 81 | C24: AA | D24: 13,14-dihydro-15-keto-PGD2 | E24: PGD2-d4 | F24: - | G24: - | H24: - | I24: - | J24: - | K24: - | L24: - | M24: - | N24: - | O24: - | P24: - | Q24: - | R24: - | S24: - | T24: - | U24: - | V24: - | W24: - | X24: - | Y24: - | AA24: - | AB24: - | AD24: - | AE24: - | AG24: - | AH24: - | AJ24: - | AK24: - | AM24: - | AP24: - | AQ24: - | AR24: - | AT24: - | AU24: - | AV24: - | AX24: - | AY24: - | AZ24: 3 | BA24: 9 | BB24: -
A25: 20 | B25: 76 | C25: AA | D25: 13,14-dihydro-15-keto-PGE2 | E25: PGD2-d4 | F25: - | G25: - | H25: - | I25: - | J25: - | K25: - | L25: - | M25: - | N25: - | O25: - | P25: - | Q25: - | R25: - | S25: - | T25: - | U25: - | V25: - | W25: - | X25: - | Y25: - | AA25: - | AB25: - | AD25: - | AE25: - | AG25: - | AH25: - | AJ25: - | AK25: - | AM25: - | AP25: - | AQ25: - | AR25: - | AT25: - | AU25: - | AV25: - | AX25: - | AY25: - | AZ25: 3 | BA25: 9 | BB25: -
A26: 21 | B26: 74 | C26: AA | D26: 13,14-dihydro-15-keto-PGF2α | E26: PGD2-d4 | F26: - | G26: - | H26: - | I26: - | J26: - | K26: - | L26: - | M26: - | N26: - | O26: - | P26: - | Q26: - | R26: - | S26: - | T26: - | U26: - | V26: - | W26: - | X26: - | Y26: - | AA26: - | AB26: - | AD26: - | AE26: - | AG26: - | AH26: - | AJ26: - | AK26: - | AM26: - | AP26: - | AQ26: - | AR26: - | AT26: - | AU26: - | AV26: - | AX26: - | AY26: - | AZ26: 3 | BA26: 9 | BB26: -
A27: 22 | B27: 19 | C27: AA | D27: 13,14-dihydro-15-keto-tetranor-PGD2 | E27: 6-keto-PGF1α-d4 | F27: - | G27: - | H27: - | I27: - | J27: - | K27: - | L27: - | M27: - | N27: - | O27: - | P27: - | Q27: - | R27: - | S27: - | T27: - | U27: - | V27: - | W27: - | X27: - | Y27: - | AA27: - | AB27: - | AD27: - | AE27: - | AG27: - | AH27: - | AJ27: - | AK27: - | AM27: - | AP27: - | AQ27: - | AR27: - | AT27: - | AU27: - | AV27: - | AX27: - | AY27: - | AZ27: 3 | BA27: 9 | BB27: -
A28: 23 | B28: 30 | C28: AA | D28: 13,14-dihydro-15-keto-tetranor-PGE2 | E28: 6-keto-PGF1α-d4 | F28: - | G28: - | H28: - | I28: - | J28: - | K28: - | L28: - | M28: - | N28: - | O28: - | P28: - | Q28: - | R28: - | S28: - | T28: - | U28: - | V28: - | W28: - | X28: - | Y28: - | AA28: - | AB28: - | AD28: - | AE28: - | AG28: - | AH28: - | AJ28: - | AK28: - | AM28: - | AP28: - | AQ28: - | AR28: - | AT28: - | AU28: - | AV28: - | AX28: - | AY28: - | AZ28: 3 | BA28: 9 | BB28: -
A29: 24 | B29: 15 | C29: AA | D29: 13,14-dihydro-15-keto-tetranor-PGF1α | E29: 6-keto-PGF1α-d4 | F29: - | G29: - | H29: - | I29: - | J29: - | K29: - | L29: - | M29: - | N29: - | O29: - | P29: - | Q29: - | R29: - | S29: - | T29: - | U29: - | V29: - | W29: - | X29: - | Y29: - | AA29: - | AB29: - | AD29: - | AE29: - | AG29: - | AH29: - | AJ29: - | AK29: - | AM29: - | AP29: - | AQ29: - | AR29: - | AT29: - | AU29: - | AV29: - | AX29: - | AY29: - | AZ29: 3 | BA29: 9 | BB29: -
A30: 25 | B30: 11 | C30: AA | D30: 13,14-dihydro-15-keto-tetranor-PGF1β | E30: 6-keto-PGF1α-d4 | F30: - | G30: - | H30: - | I30: - | J30: - | K30: - | L30: - | M30: - | N30: - | O30: - | P30: - | Q30: - | R30: - | S30: - | T30: - | U30: - | V30: - | W30: - | X30: - | Y30: - | AA30: - | AB30: - | AD30: - | AE30: - | AG30: - | AH30: - | AJ30: - | AK30: - | AM30: - | AP30: - | AQ30: - | AR30: - | AT30: - | AU30: - | AV30: - | AX30: - | AY30: - | AZ30: 3 | BA30: 9 | BB30: -
A31: 26 | B31: 71 | C31: AA | D31: 13,14-dihydro-PGF1α | E31: PGD2-d4 | F31: - | G31: - | H31: - | I31: - | J31: - | K31: - | L31: - | M31: - | N31: - | O31: - | P31: - | Q31: - | R31: - | S31: - | T31: - | U31: - | V31: - | W31: - | X31: - | Y31: - | AA31: - | AB31: - | AD31: - | AE31: - | AG31: - | AH31: - | AJ31: - | AK31: - | AM31: - | AP31: - | AQ31: - | AR31: - | AT31: - | AU31: - | AV31: - | AX31: - | AY31: - | AZ31: 3 | BA31: 9 | BB31: -
A32: 27 | B32: 125 | C32: AA | D32: 14,15-DHET | E32: 14,15-DiHET-d11 | F32: - | G32: 2,544 | H32: 737 | I32: 3,823 | J32: 1,235 | K32: 2,950 | L32: 2,095 | M32: 3,823 | N32: 5,572 | O32: - | P32: - | Q32: 0.001 | R32: 0.000 | S32: 0.003 | T32: 0.001 | U32: 0.001 | V32: 0.001 | W32: 0.001 | X32: 0.002 | Y32: - | AA32: 0.001 | AB32: 63.5 | AD32: 0.002 | AE32: 66.5 | AG32: 0.002 | AH32: 44.3 | AJ32: =AD32/AA32 -> 1.8 | AK32: 1.0 | AM32: =FDIST(BB32,AZ32-2,BA32-AZ32) -> 0.46 | AP32: =AVERAGE(P32:R32) -> 0.001 | AQ32: =AVERAGE(S32:U32) -> 0.002 | AR32: =AVERAGE(V32:X32) -> 0.002 | AT32: =DEVSQ(P32:R32) -> 0.000000 | AU32: =DEVSQ(S32:U32) -> 0.000002 | AV32: =DEVSQ(V32:X32) -> 0.000001 | AX32: =AVERAGE(P32:X32) -> 0.001 | AY32: =DEVSQ(P32:X32)-SUM(AT32:AV32) -> 0.000 | AZ32: 3 | BA32: 9 | BB32: =(AY32/(AZ32-1))/(SUM(AT32:AV32)/(BA32-AZ32)) -> 0.636
A33: 28 | B33: 196 | C33: AA | D33: 14,15-EET | E33: 11,12-EET-d11 | F33: - | G33: - | H33: - | I33: - | J33: - | K33: - | L33: - | M33: - | N33: - | O33: - | P33: - | Q33: - | R33: - | S33: - | T33: - | U33: - | V33: - | W33: - | X33: - | Y33: - | AA33: - | AB33: - | AD33: - | AE33: - | AG33: - | AH33: - | AJ33: - | AK33: - | AM33: - | AP33: - | AQ33: - | AR33: - | AT33: - | AU33: - | AV33: - | AX33: - | AY33: - | AZ33: 3 | BA33: 9 | BB33: -
A34: 29 | B34: 73 | C34: AA | D34: 14,15-LTC4 | E34: LTC4-d5 | F34: 6,030 | G34: 12,027 | H34: 26,385 | I34: 11,367 | J34: 24,286 | K34: 40,373 | L34: 26,843 | M34: 27,072 | N34: 31,827 | O34: - | P34: 0.005 | Q34: 0.005 | R34: 0.013 | S34: 0.007 | T34: 0.010 | U34: 0.014 | V34: 0.010 | W34: 0.007 | X34: 0.009 | Y34: - | AA34: 0.008 | AB34: 64.1 | AD34: 0.010 | AE34: 30.2 | AG34: 0.009 | AH34: 16.1 | AJ34: =AD34/AA34 -> 1.3 | AK34: 0.8 | AM34: =FDIST(BB34,AZ34-2,BA34-AZ34) -> 0.53 | AP34: =AVERAGE(P34:R34) -> 0.008 | AQ34: =AVERAGE(S34:U34) -> 0.010 | AR34: =AVERAGE(V34:X34) -> 0.009 | AT34: =DEVSQ(P34:R34) -> 0.000048 | AU34: =DEVSQ(S34:U34) -> 0.000019 | AV34: =DEVSQ(V34:X34) -> 0.000004 | AX34: =AVERAGE(P34:X34) -> 0.009 | AY34: =DEVSQ(P34:X34)-SUM(AT34:AV34) -> 0.000 | AZ34: 3 | BA34: 9 | BB34: =(AY34/(AZ34-1))/(SUM(AT34:AV34)/(BA34-AZ34)) -> 0.453
A35: 30 | B35: 79 | C35: AA | D35: 14,15-LTE4 | E35: LTC4-d5 | F35: - | G35: - | H35: - | I35: - | J35: - | K35: - | L35: - | M35: - | N35: - | O35: - | P35: - | Q35: - | R35: - | S35: - | T35: - | U35: - | V35: - | W35: - | X35: - | Y35: - | AA35: - | AB35: - | AD35: - | AE35: - | AG35: - | AH35: - | AJ35: - | AK35: - | AM35: - | AP35: - | AQ35: - | AR35: - | AT35: - | AU35: - | AV35: - | AX35: - | AY35: - | AZ35: 3 | BA35: 9 | BB35: -
A36: 31 | B36: 136 | C36: AA | D36: 15-deoxy-delta-12,14-PGJ2 | E36: 14,15-DiHET-d11 | F36: - | G36: - | H36: - | I36: - | J36: - | K36: - | L36: - | M36: - | N36: - | O36: - | P36: - | Q36: - | R36: - | S36: - | T36: - | U36: - | V36: - | W36: - | X36: - | Y36: - | AA36: - | AB36: - | AD36: - | AE36: - | AG36: - | AH36: - | AJ36: - | AK36: - | AM36: - | AP36: - | AQ36: - | AR36: - | AT36: - | AU36: - | AV36: - | AX36: - | AY36: - | AZ36: 3 | BA36: 9 | BB36: -
A37: 32 | B37: 159 | C37: AA | D37: 15-HETE | E37: 15-HETE-d8 | F37: 27,294 | G37: 42,362 | H37: 47,102 | I37: 108,901 | J37: 184,714 | K37: 85,670 | L37: 113,372 | M37: 117,069 | N37: 128,248 | O37: - | P37: 0.055 | Q37: 0.047 | R37: 0.056 | S37: 0.169 | T37: 0.204 | U37: 0.068 | V37: 0.100 | W37: 0.085 | X37: 0.105 | Y37: - | AA37: 0.053 | AB37: 9.1 | AD37: 0.147 | AE37: 48.2 | AG37: 0.096 | AH37: 10.7 | AJ37: =AD37/AA37 -> 2.8 | AK37: 0.7 | AM37: =FDIST(BB37,AZ37-2,BA37-AZ37) -> 0.10 | AP37: =AVERAGE(P37:R37) -> 0.053 | AQ37: =AVERAGE(S37:U37) -> 0.147 | AR37: =AVERAGE(V37:X37) -> 0.096 | AT37: =DEVSQ(P37:R37) -> 0.000046 | AU37: =DEVSQ(S37:U37) -> 0.010061 | AV37: =DEVSQ(V37:X37) -> 0.000214 | AX37: =AVERAGE(P37:X37) -> 0.099 | AY37: =DEVSQ(P37:X37)-SUM(AT37:AV37) -> 0.013 | AZ37: 3 | BA37: 9 | BB37: =(AY37/(AZ37-1))/(SUM(AT37:AV37)/(BA37-AZ37)) -> 3.899
A38: 33 | B38: 174 | C38: AA | D38: 15-HpETE | E38: 12-HETE-d8 | F38: - | G38: - | H38: - | I38: - | J38: - | K38: - | L38: - | M38: - | N38: - | O38: - | P38: - | Q38: - | R38: - | S38: - | T38: - | U38: - | V38: - | W38: - | X38: - | Y38: - | AA38: - | AB38: - | AD38: - | AE38: - | AG38: - | AH38: - | AJ38: - | AK38: - | AM38: - | AP38: - | AQ38: - | AR38: - | AT38: - | AU38: - | AV38: - | AX38: - | AY38: - | AZ38: 3 | BA38: 9 | BB38: -
A39: 34 | B39: 173 | C39: AA | D39: 15-KETE | E39: 12-HETE-d8 | F39: - | G39: - | H39: - | I39: - | J39: 4,045 | K39: 3,612 | L39: 3,465 | M39: 2,787 | N39: 4,353 | O39: - | P39: - | Q39: - | R39: - | S39: - | T39: 0.004 | U39: 0.003 | V39: 0.003 | W39: 0.002 | X39: 0.003 | Y39: - | AA39: - | AB39: - | AD39: 0.004 | AE39: 31.0 | AG39: 0.003 | AH39: 28.0 | AK39: 0.7 | AM39: =FDIST(BB39,AZ39-2,BA39-AZ39) -> 0.30 | AP39: - | AQ39: =AVERAGE(S39:U39) -> 0.004 | AR39: =AVERAGE(V39:X39) -> 0.003 | AT39: - | AU39: =DEVSQ(S39:U39) -> 0.000001 | AV39: =DEVSQ(V39:X39) -> 0.000001 | AX39: =AVERAGE(P39:X39) -> 0.003 | AY39: =DEVSQ(P39:X39)-SUM(AT39:AV39) -> 0.000 | AZ39: 3 | BA39: 9 | BB39: =(AY39/(AZ39-1))/(SUM(AT39:AV39)/(BA39-AZ39)) -> 1.309
A40: 35 | B40: 69 | C40: AA | D40: 15-keto-PGE2 | E40: PGD2-d4 | F40: - | G40: - | H40: - | I40: - | J40: - | K40: - | L40: - | M40: - | N40: - | O40: - | P40: - | Q40: - | R40: - | S40: - | T40: - | U40: - | V40: - | W40: - | X40: - | Y40: - | AA40: - | AB40: - | AD40: - | AE40: - | AG40: - | AH40: - | AJ40: - | AK40: - | AM40: - | AP40: - | AQ40: - | AR40: - | AT40: - | AU40: - | AV40: - | AX40: - | AY40: - | AZ40: 3 | BA40: 9 | BB40: -
A41: 36 | B41: 67 | C41: AA | D41: 15-keto-PGF1α | E41: PGD2-d4 | F41: - | G41: - | H41: - | I41: - | J41: - | K41: - | L41: - | M41: - | N41: - | O41: - | P41: - | Q41: - | R41: - | S41: - | T41: - | U41: - | V41: - | W41: - | X41: - | Y41: - | AA41: - | AB41: - | AD41: - | AE41: - | AG41: - | AH41: - | AJ41: - | AK41: - | AM41: - | AP41: - | AQ41: - | AR41: - | AT41: - | AU41: - | AV41: - | AX41: - | AY41: - | AZ41: 3 | BA41: 9 | BB41: -
A42: 37 | B42: 58 | C42: AA | D42: 15-keto-PGF2α | E42: PGE2-d4 | F42: - | G42: - | H42: - | I42: - | J42: - | K42: - | L42: - | M42: - | N42: - | O42: - | P42: - | Q42: - | R42: - | S42: - | T42: - | U42: - | V42: - | W42: - | X42: - | Y42: - | AA42: - | AB42: - | AD42: - | AE42: - | AG42: - | AH42: - | AJ42: - | AK42: - | AM42: - | AP42: - | AQ42: - | AR42: - | AT42: - | AU42: - | AV42: - | AX42: - | AY42: - | AZ42: 3 | BA42: 9 | BB42: -
A43: 38 | B43: 149 | C43: AA | D43: 16-HETE | E43: 15-HETE-d8 | F43: - | G43: - | H43: - | I43: - | J43: - | K43: - | L43: - | M43: - | N43: - | O43: - | P43: - | Q43: - | R43: - | S43: - | T43: - | U43: - | V43: - | W43: - | X43: - | Y43: - | AA43: - | AB43: - | AD43: - | AE43: - | AG43: - | AH43: - | AJ43: - | AK43: - | AM43: - | AP43: - | AQ43: - | AR43: - | AT43: - | AU43: - | AV43: - | AX43: - | AY43: - | AZ43: 3 | BA43: 9 | BB43: -
A44: 39 | B44: 146 | C44: AA | D44: 17-HETE | E44: 15-HETE-d8 | F44: - | G44: - | H44: - | I44: - | J44: - | K44: - | L44: - | M44: - | N44: - | O44: - | P44: - | Q44: - | R44: - | S44: - | T44: - | U44: - | V44: - | W44: - | X44: - | Y44: - | AA44: - | AB44: - | AD44: - | AE44: - | AG44: - | AH44: - | AJ44: - | AK44: - | AM44: - | AP44: - | AQ44: - | AR44: - | AT44: - | AU44: - | AV44: - | AX44: - | AY44: - | AZ44: 3 | BA44: 9 | BB44: -
A45: 40 | B45: 9 | C45: AA | D45: 18-carboxy-dinor-LTB4 | E45: 6-keto-PGF1α-d4 | F45: - | G45: - | H45: - | I45: - | J45: - | K45: - | L45: - | M45: - | N45: - | O45: - | P45: - | Q45: - | R45: - | S45: - | T45: - | U45: - | V45: - | W45: - | X45: - | Y45: - | AA45: - | AB45: - | AD45: - | AE45: - | AG45: - | AH45: - | AJ45: - | AK45: - | AM45: - | AP45: - | AQ45: - | AR45: - | AT45: - | AU45: - | AV45: - | AX45: - | AY45: - | AZ45: 3 | BA45: 9 | BB45: -
A46: 41 | B46: 141 | C46: AA | D46: 18-HETE | E46: 15-HETE-d8 | F46: - | G46: - | H46: - | I46: - | J46: - | K46: - | L46: - | M46: - | N46: - | O46: - | P46: - | Q46: - | R46: - | S46: - | T46: - | U46: - | V46: - | W46: - | X46: - | Y46: - | AA46: - | AB46: - | AD46: - | AE46: - | AG46: - | AH46: - | AJ46: - | AK46: - | AM46: - | AP46: - | AQ46: - | AR46: - | AT46: - | AU46: - | AV46: - | AX46: - | AY46: - | AZ46: 3 | BA46: 9 | BB46: -
A47: 42 | B47: 135 | C47: AA | D47: 19-HETE | E47: 14,15-DiHET-d11 | F47: - | G47: - | H47: - | I47: - | J47: - | K47: - | L47: - | M47: - | N47: - | O47: - | P47: - | Q47: - | R47: - | S47: - | T47: - | U47: - | V47: - | W47: - | X47: - | Y47: - | AA47: - | AB47: - | AD47: - | AE47: - | AG47: - | AH47: - | AJ47: - | AK47: - | AM47: - | AP47: - | AQ47: - | AR47: - | AT47: - | AU47: - | AV47: - | AX47: - | AY47: - | AZ47: 3 | BA47: 9 | BB47: -
A48: 43 | B48: 16 | C48: AA | D48: 2,3-dinor-11b-PGF2α | E48: 6-keto-PGF1α-d4 | F48: - | G48: - | H48: - | I48: - | J48: - | K48: - | L48: - | M48: - | N48: - | O48: - | P48: - | Q48: - | R48: - | S48: - | T48: - | U48: - | V48: - | W48: - | X48: - | Y48: - | AA48: - | AB48: - | AD48: - | AE48: - | AG48: - | AH48: - | AJ48: - | AK48: - | AM48: - | AP48: - | AQ48: - | AR48: - | AT48: - | AU48: - | AV48: - | AX48: - | AY48: - | AZ48: 3 | BA48: 9 | BB48: -
A49: 44 | B49: 13 | C49: AA | D49: 2,3-dinor-8-iso-PGF2α | E49: 6-keto-PGF1α-d4 | F49: - | G49: - | H49: - | I49: - | J49: - | K49: - | L49: - | M49: - | N49: - | O49: - | P49: - | Q49: - | R49: - | S49: - | T49: - | U49: - | V49: - | W49: - | X49: - | Y49: - | AA49: - | AB49: - | AD49: - | AE49: - | AG49: - | AH49: - | AJ49: - | AK49: - | AM49: - | AP49: - | AQ49: - | AR49: - | AT49: - | AU49: - | AV49: - | AX49: - | AY49: - | AZ49: 3 | BA49: 9 | BB49: -
A50: 45 | B50: 14 | C50: AA | D50: 2,3-dinor-TXB2 | E50: TXB2-d4 | F50: - | G50: - | H50: - | I50: - | J50: - | K50: - | L50: - | M50: - | N50: - | O50: - | P50: - | Q50: - | R50: - | S50: - | T50: - | U50: - | V50: - | W50: - | X50: - | Y50: - | AA50: - | AB50: - | AD50: - | AE50: - | AG50: - | AH50: - | AJ50: - | AK50: - | AM50: - | AP50: - | AQ50: - | AR50: - | AT50: - | AU50: - | AV50: - | AX50: - | AY50: - | AZ50: 3 | BA50: 9 | BB50: -
A51: 46 | B51: 129 | C51: AA | D51: 20-carboxy-AA | E51: 14,15-DiHET-d11 | F51: - | G51: - | H51: - | I51: - | J51: - | K51: - | L51: - | M51: - | N51: - | O51: - | P51: - | Q51: - | R51: - | S51: - | T51: - | U51: - | V51: - | W51: - | X51: - | Y51: - | AA51: - | AB51: - | AD51: - | AE51: - | AG51: - | AH51: - | AJ51: - | AK51: - | AM51: - | AP51: - | AQ51: - | AR51: - | AT51: - | AU51: - | AV51: - | AX51: - | AY51: - | AZ51: 3 | BA51: 9 | BB51: -
A52: 47 | B52: 21 | C52: AA | D52: 20-carboxy-LTB4 | E52: 6-keto-PGF1α-d4 | F52: - | G52: - | H52: - | I52: - | J52: - | K52: - | L52: - | M52: - | N52: - | O52: - | P52: - | Q52: - | R52: - | S52: - | T52: - | U52: - | V52: - | W52: - | X52: - | Y52: - | AA52: - | AB52: - | AD52: - | AE52: - | AG52: - | AH52: - | AJ52: - | AK52: - | AM52: - | AP52: - | AQ52: - | AR52: - | AT52: - | AU52: - | AV52: - | AX52: - | AY52: - | AZ52: 3 | BA52: 9 | BB52: -
A53: 48 | B53: 137 | C53: AA | D53: 20-HETE | E53: 15-HETE-d8 | F53: - | G53: - | H53: - | I53: - | J53: - | K53: - | L53: - | M53: - | N53: - | O53: - | P53: - | Q53: - | R53: - | S53: - | T53: - | U53: - | V53: - | W53: - | X53: - | Y53: - | AA53: - | AB53: - | AD53: - | AE53: - | AG53: - | AH53: - | AJ53: - | AK53: - | AM53: - | AP53: - | AQ53: - | AR53: - | AT53: - | AU53: - | AV53: - | AX53: - | AY53: - | AZ53: 3 | BA53: 9 | BB53: -
A54: 49 | B54: 27 | C54: AA | D54: 20-hydroxy-LTB4 | E54: 6-keto-PGF1α-d4 | F54: - | G54: - | H54: - | I54: - | J54: - | K54: - | L54: - | M54: - | N54: - | O54: - | P54: - | Q54: - | R54: - | S54: - | T54: - | U54: - | V54: - | W54: - | X54: - | Y54: - | AA54: - | AB54: - | AD54: - | AE54: - | AG54: - | AH54: - | AJ54: - | AK54: - | AM54: - | AP54: - | AQ54: - | AR54: - | AT54: - | AU54: - | AV54: - | AX54: - | AY54: - | AZ54: 3 | BA54: 9 | BB54: -
A55: 50 | B55: 8 | C55: AA | D55: 20-hydroxy-PGE2 | E55: 6-keto-PGF1α-d4 | F55: - | G55: - | H55: - | I55: - | J55: - | K55: - | L55: - | M55: - | N55: - | O55: - | P55: - | Q55: - | R55: - | S55: - | T55: - | U55: - | V55: - | W55: - | X55: - | Y55: - | AA55: - | AB55: - | AD55: - | AE55: - | AG55: - | AH55: - | AJ55: - | AK55: - | AM55: - | AP55: - | AQ55: - | AR55: - | AT55: - | AU55: - | AV55: - | AX55: - | AY55: - | AZ55: 3 | BA55: 9 | BB55: -
A56: 51 | B56: 7 | C56: AA | D56: 20-hydroxy-PGF2α or 19-hydroxy-PGF2α | E56: 6-keto-PGF1α-d4 | F56: - | G56: - | H56: - | I56: - | J56: - | K56: - | L56: - | M56: - | N56: - | O56: - | P56: - | Q56: - | R56: - | S56: - | T56: - | U56: - | V56: - | W56: - | X56: - | Y56: - | AA56: - | AB56: - | AD56: - | AE56: - | AG56: - | AH56: - | AJ56: - | AK56: - | AM56: - | AP56: - | AQ56: - | AR56: - | AT56: - | AU56: - | AV56: - | AX56: - | AY56: - | AZ56: 3 | BA56: 9 | BB56: -
A57: 52 | B57: 106 | C57: AA | D57: 5,15-DiHETE | E57: LTB4-d4 | F57: 9,048 | G57: 17,968 | H57: 17,563 | I57: 39,274 | J57: 74,836 | K57: 35,659 | L57: 39,244 | M57: 43,832 | N57: 43,503 | O57: - | P57: 0.016 | Q57: 0.017 | R57: 0.022 | S57: 0.055 | T57: 0.083 | U57: 0.028 | V57: 0.033 | W57: 0.031 | X57: 0.033 | Y57: - | AA57: 0.018 | AB57: 17.5 | AD57: 0.055 | AE57: 50.4 | AG57: 0.032 | AH57: 4.4 | AJ57: =AD57/AA57 -> 3.0 | AK57: 0.6 | AM57: =FDIST(BB57,AZ57-2,BA57-AZ57) -> 0.09 | AP57: =AVERAGE(P57:R57) -> 0.018 | AQ57: =AVERAGE(S57:U57) -> 0.055 | AR57: =AVERAGE(V57:X57) -> 0.032 | AT57: =DEVSQ(P57:R57) -> 0.000021 | AU57: =DEVSQ(S57:U57) -> 0.001549 | AV57: =DEVSQ(V57:X57) -> 0.000004 | AX57: =AVERAGE(P57:X57) -> 0.035 | AY57: =DEVSQ(P57:X57)-SUM(AT57:AV57) -> 0.002 | AZ57: 3 | BA57: 9 | BB57: =(AY57/(AZ57-1))/(SUM(AT57:AV57)/(BA57-AZ57)) -> 3.957
A58: 53 | B58: 132 | C58: AA | D58: 5,6-DHET | E58: 14,15-DiHET-d11 | F58: - | G58: - | H58: - | I58: - | J58: - | K58: - | L58: - | M58: - | N58: - | O58: - | P58: - | Q58: - | R58: - | S58: - | T58: - | U58: - | V58: - | W58: - | X58: - | Y58: - | AA58: - | AB58: - | AD58: - | AE58: - | AG58: - | AH58: - | AJ58: - | AK58: - | AM58: - | AP58: - | AQ58: - | AR58: - | AT58: - | AU58: - | AV58: - | AX58: - | AY58: - | AZ58: 3 | BA58: 9 | BB58: -
A59: 54 | B59: 190 | C59: AA | D59: 5,6-DHET-lactone | E59: 5-HETE-d8 | F59: - | G59: - | H59: - | I59: - | J59: - | K59: - | L59: - | M59: - | N59: - | O59: - | P59: - | Q59: - | R59: - | S59: - | T59: - | U59: - | V59: - | W59: - | X59: - | Y59: - | AA59: - | AB59: - | AD59: - | AE59: - | AG59: - | AH59: - | AJ59: - | AK59: - | AM59: - | AP59: - | AQ59: - | AR59: - | AT59: - | AU59: - | AV59: - | AX59: - | AY59: - | AZ59: 3 | BA59: 9 | BB59: -
A60: 55 | B60: 207 | C60: AA | D60: 5,6-EET | E60: 11,12-EET-d11 | F60: - | G60: - | H60: - | I60: - | J60: - | K60: - | L60: - | M60: - | N60: - | O60: - | P60: - | Q60: - | R60: - | S60: - | T60: - | U60: - | V60: - | W60: - | X60: - | Y60: - | AA60: - | AB60: - | AD60: - | AE60: - | AG60: - | AH60: - | AJ60: - | AK60: - | AM60: - | AP60: - | AQ60: - | AR60: - | AT60: - | AU60: - | AV60: - | AX60: - | AY60: - | AZ60: 3 | BA60: 9 | BB60: -
A61: 56 | B61: 182 | C61: AA | D61: 5-HETE | E61: 5-HETE-d8 | F61: 46,961 | G61: 43,878 | H61: 54,143 | I61: 75,762 | J61: 126,824 | K61: 94,393 | L61: 132,780 | M61: 112,723 | N61: 74,928 | O61: - | P61: 0.167 | Q61: 0.085 | R61: 0.107 | S61: 0.188 | T61: 0.239 | U61: 0.133 | V61: 0.184 | W61: 0.130 | X61: 0.107 | Y61: - | AA61: 0.120 | AB61: 35.1 | AD61: 0.187 | AE61: 28.4 | AG61: 0.140 | AH61: 28.1 | AJ61: =AD61/AA61 -> 1.6 | AK61: 0.8 | AM61: =FDIST(BB61,AZ61-2,BA61-AZ61) -> 0.24 | AP61: =AVERAGE(P61:R61) -> 0.120 | AQ61: =AVERAGE(S61:U61) -> 0.187 | AR61: =AVERAGE(V61:X61) -> 0.140 | AT61: =DEVSQ(P61:R61) -> 0.003538 | AU61: =DEVSQ(S61:U61) -> 0.005615 | AV61: =DEVSQ(V61:X61) -> 0.003109 | AX61: =AVERAGE(P61:X61) -> 0.149 | AY61: =DEVSQ(P61:X61)-SUM(AT61:AV61) -> 0.007 | AZ61: 3 | BA61: 9 | BB61: =(AY61/(AZ61-1))/(SUM(AT61:AV61)/(BA61-AZ61)) -> 1.736
A62: 57 | B62: 192 | C62: AA | D62: 5-HpETE | E62: 5-HETE-d8 | F62: - | G62: - | H62: - | I62: - | J62: - | K62: - | L62: - | M62: - | N62: - | O62: - | P62: - | Q62: - | R62: - | S62: - | T62: - | U62: - | V62: - | W62: - | X62: - | Y62: - | AA62: - | AB62: - | AD62: - | AE62: - | AG62: - | AH62: - | AJ62: - | AK62: - | AM62: - | AP62: - | AQ62: - | AR62: - | AT62: - | AU62: - | AV62: - | AX62: - | AY62: - | AZ62: 3 | BA62: 9 | BB62: -
A63: 58 | B63: 45 | C63: AA | D63: 5-iPF2α-VI | E63: PGF2α-d4 | F63: - | G63: - | H63: - | I63: - | J63: - | K63: - | L63: - | M63: - | N63: - | O63: - | P63: - | Q63: - | R63: - | S63: - | T63: - | U63: - | V63: - | W63: - | X63: - | Y63: - | AA63: - | AB63: - | AD63: - | AE63: - | AG63: - | AH63: - | AJ63: - | AK63: - | AM63: - | AP63: - | AQ63: - | AR63: - | AT63: - | AU63: - | AV63: - | AX63: - | AY63: - | AZ63: 3 | BA63: 9 | BB63: -
A64: 59 | B64: 197 | C64: AA | D64: 5-KETE | E64: 11,12-EET-d11 | F64: - | G64: - | H64: - | I64: - | J64: - | K64: - | L64: - | M64: - | N64: - | O64: - | P64: - | Q64: - | R64: - | S64: 0.013 | T64: 0.030 | U64: 0.025 | V64: 0.012 | W64: 0.005 | X64: 0.010 | Y64: - | AA64: - | AB64: - | AD64: 0.023 | AE64: 39.9 | AG64: 0.009 | AH64: 40.6 | AK64: 0.4 | AM64: =FDIST(BB64,AZ64-2,BA64-AZ64) -> 0.08 | AP64: - | AQ64: =AVERAGE(S64:U64) -> 0.023 | AR64: =AVERAGE(V64:X64) -> 0.009 | AT64: - | AU64: =DEVSQ(S64:U64) -> 0.000162 | AV64: =DEVSQ(V64:X64) -> 0.000027 | AX64: =AVERAGE(P64:X64) -> 0.016 | AY64: =DEVSQ(P64:X64)-SUM(AT64:AV64) -> 0.000 | AZ64: 3 | BA64: 9 | BB64: =(AY64/(AZ64-1))/(SUM(AT64:AV64)/(BA64-AZ64)) -> 4.320
A65: 60 | B65: 61 | C65: AA | D65: 5S,14R-LXB4 | E65: PGD2-d4 | F65: - | G65: - | H65: - | I65: - | J65: - | K65: - | L65: - | M65: - | N65: - | O65: - | P65: - | Q65: - | R65: - | S65: - | T65: - | U65: - | V65: - | W65: - | X65: - | Y65: - | AA65: - | AB65: - | AD65: - | AE65: - | AG65: - | AH65: - | AJ65: - | AK65: - | AM65: - | AP65: - | AQ65: - | AR65: - | AT65: - | AU65: - | AV65: - | AX65: - | AY65: - | AZ65: 3 | BA65: 9 | BB65: -
A66: 61 | B66: 75 | C66: AA | D66: 5S,6R-LXA4 | E66: PGD2-d4 | F66: - | G66: - | H66: - | I66: - | J66: - | K66: - | L66: - | M66: - | N66: - | O66: - | P66: - | Q66: - | R66: - | S66: - | T66: - | U66: - | V66: - | W66: - | X66: - | Y66: - | AA66: - | AB66: - | AD66: - | AE66: - | AG66: - | AH66: - | AJ66: - | AK66: - | AM66: - | AP66: - | AQ66: - | AR66: - | AT66: - | AU66: - | AV66: - | AX66: - | AY66: - | AZ66: 3 | BA66: 9 | BB66: -
A67: 62 | B67: 78 | C67: AA | D67: 5S,6S-LXA4 | E67: PGD2-d4 | F67: - | G67: - | H67: - | I67: - | J67: - | K67: - | L67: - | M67: - | N67: - | O67: - | P67: - | Q67: - | R67: - | S67: - | T67: - | U67: - | V67: - | W67: - | X67: - | Y67: - | AA67: - | AB67: - | AD67: - | AE67: - | AG67: - | AH67: - | AJ67: - | AK67: - | AM67: - | AP67: - | AQ67: - | AR67: - | AT67: - | AU67: - | AV67: - | AX67: - | AY67: - | AZ67: 3 | BA67: 9 | BB67: -
A68: 63 | B68: 33 | C68: AA | D68: 6,15-diketo-13,14-dihydro-PGF1α | E68: 6-keto-PGF1α-d4 | F68: - | G68: - | H68: - | I68: - | J68: - | K68: - | L68: - | M68: - | N68: - | O68: - | P68: - | Q68: - | R68: - | S68: - | T68: - | U68: - | V68: - | W68: - | X68: - | Y68: - | AA68: - | AB68: - | AD68: - | AE68: - | AG68: - | AH68: - | AJ68: - | AK68: - | AM68: - | AP68: - | AQ68: - | AR68: - | AT68: - | AU68: - | AV68: - | AX68: - | AY68: - | AZ68: 3 | BA68: 9 | BB68: -
A69: 64 | B69: 18 | C69: AA | D69: 6-keto-PGF1α | E69: 6-keto-PGF1α-d4 | F69: 78,171 | G69: 79,525 | H69: 91,925 | I69: 96,003 | J69: 75,133 | K69: 77,797 | L69: 85,434 | M69: 85,195 | N69: 78,986 | O69: 11,512 | P69: 0.013 | Q69: 0.011 | R69: 0.011 | S69: 0.013 | T69: 0.011 | U69: 0.011 | V69: 0.011 | W69: 0.012 | X69: 0.012 | Y69: 0.011 | AA69: 0.012 | AB69: 6.3 | AD69: 0.012 | AE69: 11.0 | AG69: 0.012 | AH69: 2.0 | AJ69: =AD69/AA69 -> 1.0 | AK69: 1.0 | AM69: =FDIST(BB69,AZ69-2,BA69-AZ69) -> 0.88 | AP69: =AVERAGE(P69:R69) -> 0.012 | AQ69: =AVERAGE(S69:U69) -> 0.012 | AR69: =AVERAGE(V69:X69) -> 0.012 | AT69: =DEVSQ(P69:R69) -> 0.000001 | AU69: =DEVSQ(S69:U69) -> 0.000003 | AV69: =DEVSQ(V69:X69) -> 0.000000 | AX69: =AVERAGE(P69:X69) -> 0.012 | AY69: =DEVSQ(P69:X69)-SUM(AT69:AV69) -> 0.000 | AZ69: 3 | BA69: 9 | BB69: =(AY69/(AZ69-1))/(SUM(AT69:AV69)/(BA69-AZ69)) -> 0.025
A70: 65 | B70: 105 | C70: AA | D70: 6-trans-LTB4 | E70: LTB4-d4 | F70: 110,733 | G70: 97,884 | H70: 103,389 | I70: 115,364 | J70: 183,376 | K70: 167,879 | L70: 244,304 | M70: 152,803 | N70: 157,379 | O70: - | P70: 0.198 | Q70: 0.091 | R70: 0.130 | S70: 0.160 | T70: 0.204 | U70: 0.130 | V70: 0.206 | W70: 0.107 | X70: 0.121 | Y70: - | AA70: 0.140 | AB70: 38.6 | AD70: 0.165 | AE70: 22.6 | AG70: 0.145 | AH70: 37.1 | AJ70: =AD70/AA70 -> 1.2 | AK70: 0.9 | AM70: =FDIST(BB70,AZ70-2,BA70-AZ70) -> 0.65 | AP70: =AVERAGE(P70:R70) -> 0.140 | AQ70: =AVERAGE(S70:U70) -> 0.165 | AR70: =AVERAGE(V70:X70) -> 0.145 | AT70: =DEVSQ(P70:R70) -> 0.005818 | AU70: =DEVSQ(S70:U70) -> 0.002767 | AV70: =DEVSQ(V70:X70) -> 0.005785 | AX70: =AVERAGE(P70:X70) -> 0.150 | AY70: =DEVSQ(P70:X70)-SUM(AT70:AV70) -> 0.001 | AZ70: 3 | BA70: 9 | BB70: =(AY70/(AZ70-1))/(SUM(AT70:AV70)/(BA70-AZ70)) -> 0.223
A71: 66 | B71: 102 | C71: AA | D71: 8,12-iso-iPF2a-VI-1,5-lactone | E71: LTB4-d4 | F71: - | G71: - | H71: - | I71: - | J71: - | K71: - | L71: - | M71: - | N71: - | O71: - | P71: - | Q71: - | R71: - | S71: - | T71: - | U71: - | V71: - | W71: - | X71: - | Y71: - | AA71: - | AB71: - | AD71: - | AE71: - | AG71: - | AH71: - | AJ71: - | AK71: - | AM71: - | AP71: - | AQ71: - | AR71: - | AT71: - | AU71: - | AV71: - | AX71: - | AY71: - | AZ71: 3 | BA71: 9 | BB71: -
A72: 67 | B72: 103 | C72: AA | D72: 8,15-DiHETE | E72: LTB4-d4 | F72: - | G72: - | H72: - | I72: - | J72: - | K72: - | L72: - | M72: - | N72: - | O72: - | P72: - | Q72: - | R72: - | S72: - | T72: - | U72: - | V72: - | W72: - | X72: - | Y72: - | AA72: - | AB72: - | AD72: - | AE72: - | AG72: - | AH72: - | AJ72: - | AK72: - | AM72: - | AP72: - | AQ72: - | AR72: - | AT72: - | AU72: - | AV72: - | AX72: - | AY72: - | AZ72: 3 | BA72: 9 | BB72: -
A73: 68 | B73: 128 | C73: AA | D73: 8,9-DHET | E73: 14,15-DiHET-d11 | F73: - | G73: - | H73: - | I73: - | J73: - | K73: - | L73: - | M73: - | N73: - | O73: - | P73: - | Q73: - | R73: - | S73: - | T73: - | U73: - | V73: - | W73: - | X73: - | Y73: - | AA73: - | AB73: - | AD73: - | AE73: - | AG73: - | AH73: - | AJ73: - | AK73: - | AM73: - | AP73: - | AQ73: - | AR73: - | AT73: - | AU73: - | AV73: - | AX73: - | AY73: - | AZ73: 3 | BA73: 9 | BB73: -
A74: 69 | B74: 206 | C74: AA | D74: 8,9-EET | E74: 11,12-EET-d11 | F74: - | G74: - | H74: - | I74: - | J74: - | K74: - | L74: - | M74: - | N74: - | O74: - | P74: - | Q74: - | R74: - | S74: - | T74: - | U74: - | V74: - | W74: - | X74: - | Y74: - | AA74: - | AB74: - | AD74: - | AE74: - | AG74: - | AH74: - | AJ74: - | AK74: - | AM74: - | AP74: - | AQ74: - | AR74: - | AT74: - | AU74: - | AV74: - | AX74: - | AY74: - | AZ74: 3 | BA74: 9 | BB74: -
A75: 70 | B75: 170 | C75: AA | D75: 8-HETE | E75: 12-HETE-d8 | F75: 10,624 | G75: 17,412 | H75: 24,727 | I75: 31,783 | J75: 64,547 | K75: 39,613 | L75: 45,544 | M75: 35,026 | N75: 46,989 | O75: - | P75: 0.021 | Q75: 0.019 | R75: 0.029 | S75: 0.046 | T75: 0.070 | U75: 0.031 | V75: 0.036 | W75: 0.024 | X75: 0.037 | Y75: - | AA75: 0.023 | AB75: 23.4 | AD75: 0.049 | AE75: 40.6 | AG75: 0.032 | AH75: 21.8 | AJ75: =AD75/AA75 -> 2.1 | AK75: 0.7 | AM75: =FDIST(BB75,AZ75-2,BA75-AZ75) -> 0.12 | AP75: =AVERAGE(P75:R75) -> 0.023 | AQ75: =AVERAGE(S75:U75) -> 0.049 | AR75: =AVERAGE(V75:X75) -> 0.032 | AT75: =DEVSQ(P75:R75) -> 0.000059 | AU75: =DEVSQ(S75:U75) -> 0.000795 | AV75: =DEVSQ(V75:X75) -> 0.000099 | AX75: =AVERAGE(P75:X75) -> 0.035 | AY75: =DEVSQ(P75:X75)-SUM(AT75:AV75) -> 0.001 | AZ75: 3 | BA75: 9 | BB75: =(AY75/(AZ75-1))/(SUM(AT75:AV75)/(BA75-AZ75)) -> 3.238
A76: 71 | B76: 51 | C76: AA | D76: 8-iso-13,14-dihydro-15-keto-PGF2α | E76: PGF2α-d4 | F76: - | G76: - | H76: - | I76: - | J76: - | K76: - | L76: - | M76: - | N76: - | O76: - | P76: - | Q76: - | R76: - | S76: - | T76: - | U76: - | V76: - | W76: - | X76: - | Y76: - | AA76: - | AB76: - | AD76: - | AE76: - | AG76: - | AH76: - | AJ76: - | AK76: - | AM76: - | AP76: - | AQ76: - | AR76: - | AT76: - | AU76: - | AV76: - | AX76: - | AY76: - | AZ76: 3 | BA76: 9 | BB76: -
A77: 72 | B77: 36 | C77: AA | D77: 8-iso-15(R)-PGF2α | E77: PGF2α-d4 | F77: - | G77: - | H77: - | I77: - | J77: - | K77: - | L77: - | M77: - | N77: - | O77: - | P77: - | Q77: - | R77: - | S77: - | T77: - | U77: - | V77: - | W77: - | X77: - | Y77: - | AA77: - | AB77: - | AD77: - | AE77: - | AG77: - | AH77: - | AJ77: - | AK77: - | AM77: - | AP77: - | AQ77: - | AR77: - | AT77: - | AU77: - | AV77: - | AX77: - | AY77: - | AZ77: 3 | BA77: 9 | BB77: -
A78: 73 | B78: 47 | C78: AA | D78: 8-iso-15-keto-PGF2α | E78: PGF2α-d4 | F78: - | G78: - | H78: - | I78: - | J78: - | K78: - | L78: - | M78: - | N78: - | O78: - | P78: - | Q78: - | R78: - | S78: - | T78: - | U78: - | V78: - | W78: - | X78: - | Y78: - | AA78: - | AB78: - | AD78: - | AE78: - | AG78: - | AH78: - | AJ78: - | AK78: - | AM78: - | AP78: - | AQ78: - | AR78: - | AT78: - | AU78: - | AV78: - | AX78: - | AY78: - | AZ78: 3 | BA78: 9 | BB78: -
A79: 74 | B79: 91 | C79: AA | D79: 8-iso-PGA2 | E79: PGA2-d4 | F79: - | G79: - | H79: - | I79: - | J79: - | K79: - | L79: - | M79: - | N79: - | O79: 15,528 | P79: - | Q79: - | R79: - | S79: - | T79: - | U79: - | V79: - | W79: - | X79: - | Y79: 0.009 | AA79: - | AB79: - | AD79: - | AE79: - | AG79: - | AH79: - | AJ79: - | AK79: - | AM79: - | AP79: - | AQ79: - | AR79: - | AT79: - | AU79: - | AV79: - | AX79: - | AY79: - | AZ79: 3 | BA79: 9 | BB79: -
A80: 75 | B80: 53 | C80: AA | D80: 8-iso-PGE2 | E80: PGE2-d4 | F80: - | G80: - | H80: - | I80: - | J80: - | K80: - | L80: - | M80: - | N80: - | O80: - | P80: - | Q80: - | R80: - | S80: - | T80: - | U80: - | V80: - | W80: - | X80: - | Y80: - | AA80: - | AB80: - | AD80: - | AE80: - | AG80: - | AH80: - | AJ80: - | AK80: - | AM80: - | AP80: - | AQ80: - | AR80: - | AT80: - | AU80: - | AV80: - | AX80: - | AY80: - | AZ80: 3 | BA80: 9 | BB80: -
A81: 76 | B81: 38 | C81: AA | D81: 8-iso-PGF2α | E81: PGF2α-d4 | F81: 261 | G81: 4,133 | H81: 2,871 | I81: 5,478 | J81: 7,120 | K81: 5,511 | L81: 3,156 | M81: 874 | N81: 5,369 | O81: - | P81: 0.001 | Q81: 0.005 | R81: 0.005 | S81: 0.009 | T81: 0.011 | U81: 0.007 | V81: 0.004 | W81: 0.001 | X81: 0.006 | Y81: - | AA81: 0.004 | AB81: 69.8 | AD81: 0.009 | AE81: 25.1 | AG81: 0.004 | AH81: 70.8 | AJ81: =AD81/AA81 -> 2.5 | AK81: 0.4 | AM81: =FDIST(BB81,AZ81-2,BA81-AZ81) -> 0.08 | AP81: =AVERAGE(P81:R81) -> 0.004 | AQ81: =AVERAGE(S81:U81) -> 0.009 | AR81: =AVERAGE(V81:X81) -> 0.004 | AT81: =DEVSQ(P81:R81) -> 0.000013 | AU81: =DEVSQ(S81:U81) -> 0.000010 | AV81: =DEVSQ(V81:X81) -> 0.000014 | AX81: =AVERAGE(P81:X81) -> 0.005 | AY81: =DEVSQ(P81:X81)-SUM(AT81:AV81) -> 0.000 | AZ81: 3 | BA81: 9 | BB81: =(AY81/(AZ81-1))/(SUM(AT81:AV81)/(BA81-AZ81)) -> 4.555
A82: 77 | B82: 179 | C82: AA | D82: 9-HETE | E82: 5-HETE-d8 | F82: - | G82: - | H82: - | I82: - | J82: - | K82: - | L82: - | M82: - | N82: - | O82: - | P82: - | Q82: - | R82: - | S82: - | T82: - | U82: - | V82: - | W82: - | X82: - | Y82: - | AA82: - | AB82: - | AD82: - | AE82: - | AG82: - | AH82: - | AJ82: - | AK82: - | AM82: - | AP82: - | AQ82: - | AR82: - | AT82: - | AU82: - | AV82: - | AX82: - | AY82: - | AZ82: 3 | BA82: 9 | BB82: -
A83: 78 | B83: 214 | C83: AA | D83: AA | E83: AA-d8 | F83: 342,738 | G83: 388,392 | H83: 554,448 | I83: 1,602,969 | J83: 2,149,153 | K83: 1,301,755 | L83: 2,019,724 | M83: 2,141,357 | N83: 1,181,705 | O83: - | P83: 0.156 | Q83: 0.105 | R83: 0.123 | S83: 0.332 | T83: 0.365 | U83: 0.200 | V83: 0.251 | W83: 0.249 | X83: 0.172 | Y83: - | AA83: 0.128 | AB83: 20.6 | AD83: 0.299 | AE83: 29.2 | AG83: 0.224 | AH83: 20.2 | AJ83: =AD83/AA83 -> 2.3 | AK83: 0.7 | AM83: =FDIST(BB83,AZ83-2,BA83-AZ83) -> 0.04 | AP83: =AVERAGE(P83:R83) -> 0.128 | AQ83: =AVERAGE(S83:U83) -> 0.299 | AR83: =AVERAGE(V83:X83) -> 0.224 | AT83: =DEVSQ(P83:R83) -> 0.001387 | AU83: =DEVSQ(S83:U83) -> 0.015223 | AV83: =DEVSQ(V83:X83) -> 0.004108 | AX83: =AVERAGE(P83:X83) -> 0.217 | AY83: =DEVSQ(P83:X83)-SUM(AT83:AV83) -> 0.044 | AZ83: 3 | BA83: 9 | BB83: =(AY83/(AZ83-1))/(SUM(AT83:AV83)/(BA83-AZ83)) -> 6.378
A84: 79 | B84: 35 | C84: AA | D84: iPF2α-IV | E84: PGF2α-d4 | F84: - | G84: - | H84: - | I84: - | J84: - | K84: - | L84: - | M84: - | N84: - | O84: - | P84: - | Q84: - | R84: - | S84: - | T84: - | U84: - | V84: - | W84: - | X84: - | Y84: - | AA84: - | AB84: - | AD84: - | AE84: - | AG84: - | AH84: - | AJ84: - | AK84: - | AM84: - | AP84: - | AQ84: - | AR84: - | AT84: - | AU84: - | AV84: - | AX84: - | AY84: - | AZ84: 3 | BA84: 9 | BB84: -
A85: 80 | B85: 123 | C85: AA | D85: LTB3 | E85: 14,15-DiHET-d11 | F85: - | G85: - | H85: - | I85: - | J85: - | K85: - | L85: - | M85: - | N85: - | O85: - | P85: - | Q85: - | R85: - | S85: - | T85: - | U85: - | V85: - | W85: - | X85: - | Y85: - | AA85: - | AB85: - | AD85: - | AE85: - | AG85: - | AH85: - | AJ85: - | AK85: - | AM85: - | AP85: - | AQ85: - | AR85: - | AT85: - | AU85: - | AV85: - | AX85: - | AY85: - | AZ85: 3 | BA85: 9 | BB85: -
A86: 81 | B86: 110 | C86: AA | D86: LTB4 | E86: LTB4-d4 | F86: 124,229 | G86: 117,139 | H86: 132,074 | I86: 133,193 | J86: 207,653 | K86: 179,085 | L86: 298,972 | M86: 170,099 | N86: 184,343 | O86: - | P86: 0.222 | Q86: 0.109 | R86: 0.166 | S86: 0.185 | T86: 0.231 | U86: 0.139 | V86: 0.253 | W86: 0.120 | X86: 0.141 | Y86: - | AA86: 0.166 | AB86: 34.0 | AD86: 0.185 | AE86: 24.9 | AG86: 0.171 | AH86: 41.7 | AJ86: =AD86/AA86 -> 1.1 | AK86: 0.9 | AM86: =FDIST(BB86,AZ86-2,BA86-AZ86) -> 0.78 | AP86: =AVERAGE(P86:R86) -> 0.166 | AQ86: =AVERAGE(S86:U86) -> 0.185 | AR86: =AVERAGE(V86:X86) -> 0.171 | AT86: =DEVSQ(P86:R86) -> 0.006337 | AU86: =DEVSQ(S86:U86) -> 0.004262 | AV86: =DEVSQ(V86:X86) -> 0.010196 | AX86: =AVERAGE(P86:X86) -> 0.174 | AY86: =DEVSQ(P86:X86)-SUM(AT86:AV86) -> 0.001 | AZ86: 3 | BA86: 9 | BB86: =(AY86/(AZ86-1))/(SUM(AT86:AV86)/(BA86-AZ86)) -> 0.087
A87: 82 | B87: 84 | C87: AA | D87: LTC4 | E87: LTC4-d5 | F87: - | G87: - | H87: - | I87: - | J87: - | K87: - | L87: - | M87: - | N87: - | O87: - | P87: - | Q87: - | R87: - | S87: - | T87: - | U87: - | V87: - | W87: - | X87: - | Y87: - | AA87: - | AB87: - | AD87: - | AE87: - | AG87: - | AH87: - | AJ87: - | AK87: - | AM87: - | AP87: - | AQ87: - | AR87: - | AT87: - | AU87: - | AV87: - | AX87: - | AY87: - | AZ87: 3 | BA87: 9 | BB87: -
A88: 83 | B88: 87 | C88: AA | D88: LTD4 | E88: LTD4-d5 | F88: - | G88: - | H88: - | I88: - | J88: - | K88: - | L88: - | M88: - | N88: - | O88: - | P88: - | Q88: - | R88: - | S88: - | T88: - | U88: - | V88: - | W88: - | X88: - | Y88: - | AA88: - | AB88: - | AD88: - | AE88: - | AG88: - | AH88: - | AJ88: - | AK88: - | AM88: - | AP88: - | AQ88: - | AR88: - | AT88: - | AU88: - | AV88: - | AX88: - | AY88: - | AZ88: 3 | BA88: 9 | BB88: -
A89: 84 | B89: 89 | C89: AA | D89: LTE4 | E89: LTC4-d5 | F89: - | G89: - | H89: - | I89: - | J89: - | K89: - | L89: - | M89: - | N89: - | O89: - | P89: - | Q89: - | R89: - | S89: - | T89: - | U89: - | V89: - | W89: - | X89: - | Y89: - | AA89: - | AB89: - | AD89: - | AE89: - | AG89: - | AH89: - | AJ89: - | AK89: - | AM89: - | AP89: - | AQ89: - | AR89: - | AT89: - | AU89: - | AV89: - | AX89: - | AY89: - | AZ89: 3 | BA89: 9 | BB89: -
A90: 85 | B90: 90 | C90: AA | D90: LTF4 | E90: LTC4-d5 | F90: - | G90: - | H90: - | I90: - | J90: - | K90: - | L90: - | M90: - | N90: - | O90: - | P90: - | Q90: - | R90: - | S90: - | T90: - | U90: - | V90: - | W90: - | X90: - | Y90: - | AA90: - | AB90: - | AD90: - | AE90: - | AG90: - | AH90: - | AJ90: - | AK90: - | AM90: - | AP90: - | AQ90: - | AR90: - | AT90: - | AU90: - | AV90: - | AX90: - | AY90: - | AZ90: 3 | BA90: 9 | BB90: -
A91: 86 | B91: 121 | C91: AA | D91: N-acetyl-LTE4 | E91: 14,15-DiHET-d11 | F91: - | G91: - | H91: - | I91: - | J91: - | K91: - | L91: - | M91: - | N91: - | O91: - | P91: - | Q91: - | R91: - | S91: - | T91: - | U91: - | V91: - | W91: - | X91: - | Y91: - | AA91: - | AB91: - | AD91: - | AE91: - | AG91: - | AH91: - | AJ91: - | AK91: - | AM91: - | AP91: - | AQ91: - | AR91: - | AT91: - | AU91: - | AV91: - | AX91: - | AY91: - | AZ91: 3 | BA91: 9 | BB91: -
A92: 87 | B92: 96 | C92: AA | D92: PGA2 | E92: PGA2-d4 | F92: 27,919 | G92: 45,872 | H92: 34,803 | I92: 44,749 | J92: 40,000 | K92: 46,921 | L92: 43,449 | M92: 51,080 | N92: 46,732 | O92: 6,752 | P92: 0.005 | Q92: 0.004 | R92: 0.004 | S92: 0.006 | T92: 0.004 | U92: 0.004 | V92: 0.004 | W92: 0.004 | X92: 0.004 | Y92: 0.004 | AA92: 0.004 | AB92: 6.8 | AD92: 0.005 | AE92: 20.7 | AG92: 0.004 | AH92: 3.4 | AJ92: =AD92/AA92 -> 1.1 | AK92: 0.8 | AM92: =FDIST(BB92,AZ92-2,BA92-AZ92) -> 0.27 | AP92: =AVERAGE(P92:R92) -> 0.004 | AQ92: =AVERAGE(S92:U92) -> 0.005 | AR92: =AVERAGE(V92:X92) -> 0.004 | AT92: =DEVSQ(P92:R92) -> 0.000000 | AU92: =DEVSQ(S92:U92) -> 0.000002 | AV92: =DEVSQ(V92:X92) -> 0.000000 | AX92: =AVERAGE(P92:X92) -> 0.004 | AY92: =DEVSQ(P92:X92)-SUM(AT92:AV92) -> 0.000 | AZ92: 3 | BA92: 9 | BB92: =(AY92/(AZ92-1))/(SUM(AT92:AV92)/(BA92-AZ92)) -> 1.447
A93: 88 | B93: 100 | C93: AA | D93: PGB2 | E93: PGA2-d4 | F93: 8,826 | G93: 20,224 | H93: 17,027 | I93: 15,159 | J93: 18,249 | K93: 19,669 | L93: 18,014 | M93: 20,553 | N93: 17,534 | O93: 2,670 | P93: 0.001 | Q93: 0.002 | R93: 0.002 | S93: 0.002 | T93: 0.002 | U93: 0.002 | V93: 0.002 | W93: 0.002 | X93: 0.001 | Y93: 0.001 | AA93: 0.002 | AB93: 15.7 | AD93: 0.002 | AE93: 11.9 | AG93: 0.002 | AH93: 7.1 | AJ93: =AD93/AA93 -> 1.0 | AK93: 0.8 | AM93: =FDIST(BB93,AZ93-2,BA93-AZ93) -> 0.22 | AP93: =AVERAGE(P93:R93) -> 0.002 | AQ93: =AVERAGE(S93:U93) -> 0.002 | AR93: =AVERAGE(V93:X93) -> 0.002 | AT93: =DEVSQ(P93:R93) -> 0.000000 | AU93: =DEVSQ(S93:U93) -> 0.000000 | AV93: =DEVSQ(V93:X93) -> 0.000000 | AX93: =AVERAGE(P93:X93) -> 0.002 | AY93: =DEVSQ(P93:X93)-SUM(AT93:AV93) -> 0.000 | AZ93: 3 | BA93: 9 | BB93: =(AY93/(AZ93-1))/(SUM(AT93:AV93)/(BA93-AZ93)) -> 1.899
A94: 89 | B94: 65 | C94: AA | D94: PGD2 | E94: PGD2-d4 | F94: 640,833 | G94: 828,317 | H94: 696,714 | I94: 1,516,713 | J94: 2,949,444 | K94: 1,044,265 | L94: 1,214,353 | M94: 1,739,381 | N94: 1,036,094 | O94: - | P94: 0.574 | Q94: 0.371 | R94: 0.424 | S94: 0.882 | T94: 1.651 | U94: 0.442 | V94: 0.522 | W94: 0.671 | X94: 0.418 | Y94: - | AA94: 0.456 | AB94: 23.0 | AD94: 0.992 | AE94: 61.7 | AG94: 0.537 | AH94: 23.7 | AJ94: =AD94/AA94 -> 2.2 | AK94: 0.5 | AM94: =FDIST(BB94,AZ94-2,BA94-AZ94) -> 0.22 | AP94: =AVERAGE(P94:R94) -> 0.456 | AQ94: =AVERAGE(S94:U94) -> 0.992 | AR94: =AVERAGE(V94:X94) -> 0.537 | AT94: =DEVSQ(P94:R94) -> 0.022077 | AU94: =DEVSQ(S94:U94) -> 0.749680 | AV94: =DEVSQ(V94:X94) -> 0.032312 | AX94: =AVERAGE(P94:X94) -> 0.662 | AY94: =DEVSQ(P94:X94)-SUM(AT94:AV94) -> 0.500 | AZ94: 3 | BA94: 9 | BB94: =(AY94/(AZ94-1))/(SUM(AT94:AV94)/(BA94-AZ94)) -> 1.866
A95: 90 | B95: 55 | C95: AA | D95: PGE2 | E95: PGE2-d4 | F95: 139,141 | G95: 195,836 | H95: 152,288 | I95: 351,132 | J95: 550,211 | K95: 233,097 | L95: 257,013 | M95: 286,429 | N95: 236,639 | O95: 274 | P95: 0.091 | Q95: 0.066 | R95: 0.067 | S95: 0.150 | T95: 0.216 | U95: 0.070 | V95: 0.082 | W95: 0.080 | X95: 0.071 | Y95: 0.001 | AA95: 0.074 | AB95: 19.0 | AD95: 0.145 | AE95: 50.1 | AG95: 0.078 | AH95: 7.6 | AJ95: =AD95/AA95 -> 1.9 | AK95: 0.5 | AM95: =FDIST(BB95,AZ95-2,BA95-AZ95) -> 0.16 | AP95: =AVERAGE(P95:R95) -> 0.074 | AQ95: =AVERAGE(S95:U95) -> 0.145 | AR95: =AVERAGE(V95:X95) -> 0.078 | AT95: =DEVSQ(P95:R95) -> 0.000402 | AU95: =DEVSQ(S95:U95) -> 0.010607 | AV95: =DEVSQ(V95:X95) -> 0.000070 | AX95: =AVERAGE(P95:X95) -> 0.099 | AY95: =DEVSQ(P95:X95)-SUM(AT95:AV95) -> 0.010 | AZ95: 3 | BA95: 9 | BB95: =(AY95/(AZ95-1))/(SUM(AT95:AV95)/(BA95-AZ95)) -> 2.601
A96: 91 | B96: 49 | C96: AA | D96: PGF2α | E96: PGF2α-d4 | F96: 37,002 | G96: 47,120 | H96: 46,209 | I96: 78,108 | J96: 112,098 | K96: 68,683 | L96: 68,977 | M96: 76,388 | N96: 55,010 | O96: 2,033 | P96: 0.100 | Q96: 0.059 | R96: 0.080 | S96: 0.126 | T96: 0.175 | U96: 0.083 | V96: 0.083 | W96: 0.089 | X96: 0.064 | Y96: 0.018 | AA96: 0.080 | AB96: 25.7 | AD96: 0.128 | AE96: 35.9 | AG96: 0.079 | AH96: 16.8 | AJ96: =AD96/AA96 -> 1.6 | AK96: 0.6 | AM96: =FDIST(BB96,AZ96-2,BA96-AZ96) -> 0.15 | AP96: =AVERAGE(P96:R96) -> 0.080 | AQ96: =AVERAGE(S96:U96) -> 0.128 | AR96: =AVERAGE(V96:X96) -> 0.079 | AT96: =DEVSQ(P96:R96) -> 0.000835 | AU96: =DEVSQ(S96:U96) -> 0.004251 | AV96: =DEVSQ(V96:X96) -> 0.000347 | AX96: =AVERAGE(P96:X96) -> 0.096 | AY96: =DEVSQ(P96:X96)-SUM(AT96:AV96) -> 0.005 | AZ96: 3 | BA96: 9 | BB96: =(AY96/(AZ96-1))/(SUM(AT96:AV96)/(BA96-AZ96)) -> 2.676
A97: 92 | B97: 98 | C97: AA | D97: PGJ2 | E97: PGA2-d4 | F97: - | G97: - | H97: - | I97: - | J97: - | K97: - | L97: - | M97: - | N97: - | O97: 2,136 | P97: - | Q97: - | R97: - | S97: - | T97: - | U97: - | V97: - | W97: - | X97: - | Y97: 0.001 | AA97: - | AB97: - | AD97: - | AE97: - | AG97: - | AH97: - | AJ97: - | AK97: - | AM97: - | AP97: - | AQ97: - | AR97: - | AT97: - | AU97: - | AV97: - | AX97: - | AY97: - | AZ97: 3 | BA97: 9 | BB97: -
A98: 93 | B98: 62 | C98: AA | D98: PGK2 | E98: PGD2-d4 | F98: - | G98: - | H98: - | I98: - | J98: - | K98: - | L98: - | M98: - | N98: - | O98: - | P98: - | Q98: - | R98: - | S98: - | T98: - | U98: - | V98: - | W98: - | X98: - | Y98: - | AA98: - | AB98: - | AD98: - | AE98: - | AG98: - | AH98: - | AJ98: - | AK98: - | AM98: - | AP98: - | AQ98: - | AR98: - | AT98: - | AU98: - | AV98: - | AX98: - | AY98: - | AZ98: 3 | BA98: 9 | BB98: -
A99: 94 | B99: 120 | C99: AA | D99: tetranor-12-HETE | E99: 14,15-DiHET-d11 | F99: 117 | G99: 865 | H99: 370 | I99: 374 | J99: 374 | K99: 3,773 | L99: 1,884 | M99: 374 | N99: 2,010 | O99: - | P99: 0.000 | Q99: 0.000 | R99: 0.000 | S99: 0.000 | T99: 0.000 | U99: 0.002 | V99: 0.001 | W99: 0.000 | X99: 0.001 | Y99: - | AA99: 0.000 | AB99: 60.8 | AD99: 0.001 | AE99: 113.0 | AG99: 0.001 | AH99: 66.0 | AJ99: =AD99/AA99 -> 2.6 | AK99: 0.9 | AM99: =FDIST(BB99,AZ99-2,BA99-AZ99) -> 0.47 | AP99: =AVERAGE(P99:R99) -> 0.000 | AQ99: =AVERAGE(S99:U99) -> 0.001 | AR99: =AVERAGE(V99:X99) -> 0.001 | AT99: =DEVSQ(P99:R99) -> 0.000000 | AU99: =DEVSQ(S99:U99) -> 0.000001 | AV99: =DEVSQ(V99:X99) -> 0.000000 | AX99: =AVERAGE(P99:X99) -> 0.001 | AY99: =DEVSQ(P99:X99)-SUM(AT99:AV99) -> 0.000 | AZ99: 3 | BA99: 9 | BB99: =(AY99/(AZ99-1))/(SUM(AT99:AV99)/(BA99-AZ99)) -> 0.587
A100: 95 | B100: 6 | C100: AA | D100: tetranor-PGAM | E100: tetranor-PGEM-d6 | F100: 4,897 | G100: 6,353 | H100: 5,546 | I100: 4,544 | J100: 5,830 | K100: 5,487 | L100: 5,443 | M100: 5,737 | N100: 5,342 | O100: 907 | P100: 0.008 | Q100: 0.004 | R100: 0.006 | S100: 0.003 | T100: 0.005 | U100: 0.004 | V100: 0.004 | W100: 0.004 | X100: 0.004 | Y100: 0.004 | AA100: 0.006 | AB100: 36.6 | AD100: 0.004 | AE100: 24.5 | AG100: 0.004 | AH100: 7.5 | AJ100: =AD100/AA100 -> 0.7 | AK100: 0.9 | AM100: =FDIST(BB100,AZ100-2,BA100-AZ100) -> 0.20 | AP100: =AVERAGE(P100:R100) -> 0.006 | AQ100: =AVERAGE(S100:U100) -> 0.004 | AR100: =AVERAGE(V100:X100) -> 0.004 | AT100: =DEVSQ(P100:R100) -> 0.000009 | AU100: =DEVSQ(S100:U100) -> 0.000002 | AV100: =DEVSQ(V100:X100) -> 0.000000 | AX100: =AVERAGE(P100:X100) -> 0.005 | AY100: =DEVSQ(P100:X100)-SUM(AT100:AV100) -> 0.000 | AZ100: 3 | BA100: 9 | BB100: =(AY100/(AZ100-1))/(SUM(AT100:AV100)/(BA100-AZ100)) -> 2.068
A101: 96 | B101: 4 | C101: AA | D101: tetranor-PGDM | E101: tetranor-PGEM-d6 | F101: - | G101: - | H101: - | I101: - | J101: - | K101: - | L101: - | M101: - | N101: - | O101: - | P101: - | Q101: - | R101: - | S101: - | T101: - | U101: - | V101: - | W101: - | X101: - | Y101: - | AA101: - | AB101: - | AD101: - | AE101: - | AG101: - | AH101: - | AJ101: - | AK101: - | AM101: - | AP101: - | AQ101: - | AR101: - | AT101: - | AU101: - | AV101: - | AX101: - | AY101: - | AZ101: 3 | BA101: 9 | BB101: -
A102: 97 | B102: 3 | C102: AA | D102: tetranor-PGEM | E102: tetranor-PGEM-d6 | F102: - | G102: - | H102: - | I102: - | J102: - | K102: - | L102: - | M102: - | N102: - | O102: - | P102: - | Q102: - | R102: - | S102: - | T102: - | U102: - | V102: - | W102: - | X102: - | Y102: - | AA102: - | AB102: - | AD102: - | AE102: - | AG102: - | AH102: - | AJ102: - | AK102: - | AM102: - | AP102: - | AQ102: - | AR102: - | AT102: - | AU102: - | AV102: - | AX102: - | AY102: - | AZ102: 3 | BA102: 9 | BB102: -
A103: 98 | B103: 1 | C103: AA | D103: tetranor-PGFM | E103: tetranor-PGEM-d6 | F103: - | G103: - | H103: - | I103: - | J103: - | K103: - | L103: - | M103: - | N103: - | O103: - | P103: - | Q103: - | R103: - | S103: - | T103: - | U103: - | V103: - | W103: - | X103: - | Y103: - | AA103: - | AB103: - | AD103: - | AE103: - | AG103: - | AH103: - | AJ103: - | AK103: - | AM103: - | AP103: - | AQ103: - | AR103: - | AT103: - | AU103: - | AV103: - | AX103: - | AY103: - | AZ103: 3 | BA103: 9 | BB103: -
A104: 99 | B104: 5 | C104: AA | D104: tetranor-PGJM | E104: tetranor-PGEM-d6 | F104: - | G104: - | H104: - | I104: - | J104: - | K104: - | L104: - | M104: - | N104: - | O104: - | P104: - | Q104: - | R104: - | S104: - | T104: - | U104: - | V104: - | W104: - | X104: - | Y104: - | AA104: - | AB104: - | AD104: - | AE104: - | AG104: - | AH104: - | AJ104: - | AK104: - | AM104: - | AP104: - | AQ104: - | AR104: - | AT104: - | AU104: - | AV104: - | AX104: - | AY104: - | AZ104: 3 | BA104: 9 | BB104: -
A105: 100 | B105: 41 | C105: AA | D105: TXB2 | E105: TXB2-d4 | F105: 559,771 | G105: 654,414 | H105: 650,868 | I105: 1,275,826 | J105: 2,124,260 | K105: 1,836,977 | L105: 1,646,152 | M105: 1,440,460 | N105: 948,287 | O105: - | P105: 0.391 | Q105: 0.218 | R105: 0.297 | S105: 0.557 | T105: 0.887 | U105: 0.585 | V105: 0.579 | W105: 0.436 | X105: 0.294 | Y105: - | AA105: 0.302 | AB105: 28.7 | AD105: 0.676 | AE105: 27.0 | AG105: 0.436 | AH105: 32.8 | AJ105: =AD105/AA105 -> 2.2 | AK105: 0.6 | AM105: =FDIST(BB105,AZ105-2,BA105-AZ105) -> 0.06 | AP105: =AVERAGE(P105:R105) -> 0.302 | AQ105: =AVERAGE(S105:U105) -> 0.676 | AR105: =AVERAGE(V105:X105) -> 0.436 | AT105: =DEVSQ(P105:R105) -> 0.014973 | AU105: =DEVSQ(S105:U105) -> 0.066800 | AV105: =DEVSQ(V105:X105) -> 0.040844 | AX105: =AVERAGE(P105:X105) -> 0.471 | AY105: =DEVSQ(P105:X105)-SUM(AT105:AV105) -> 0.216 | AZ105: 3 | BA105: 9 | BB105: =(AY105/(AZ105-1))/(SUM(AT105:AV105)/(BA105-AZ105)) -> 5.281
A106: 101 | B106: 80 | C106: ADA | D106: 1a,1b-dihomo-PGF2α | E106: PGD2-d4 | F106: - | G106: - | H106: - | I106: - | J106: - | K106: - | L106: - | M106: - | N106: - | O106: - | P106: - | Q106: - | R106: - | S106: - | T106: - | U106: - | V106: - | W106: - | X106: - | Y106: - | AA106: - | AB106: - | AD106: - | AE106: - | AG106: - | AH106: - | AJ106: - | AK106: - | AM106: - | AP106: - | AQ106: - | AR106: - | AT106: - | AU106: - | AV106: - | AX106: - | AY106: - | AZ106: 3 | BA106: 9 | BB106: -
A107: 102 | B107: 133 | C107: ALA | D107: 13-HOTrE | E107: 14,15-DiHET-d11 | F107: 1,835 | G107: 13,962 | H107: 5,879 | I107: 15,054 | J107: 14,571 | K107: 14,202 | L107: 16,166 | M107: 7,584 | N107: 15,616 | O107: - | P107: 0.002 | Q107: 0.007 | R107: 0.004 | S107: 0.011 | T107: 0.008 | U107: 0.006 | V107: 0.007 | W107: 0.003 | X107: 0.007 | Y107: - | AA107: 0.004 | AB107: 61.9 | AD107: 0.008 | AE107: 28.0 | AG107: 0.006 | AH107: 41.4 | AJ107: =AD107/AA107 -> 2.0 | AK107: 0.7 | AM107: =FDIST(BB107,AZ107-2,BA107-AZ107) -> 0.18 | AP107: =AVERAGE(P107:R107) -> 0.004 | AQ107: =AVERAGE(S107:U107) -> 0.008 | AR107: =AVERAGE(V107:X107) -> 0.006 | AT107: =DEVSQ(P107:R107) -> 0.000014 | AU107: =DEVSQ(S107:U107) -> 0.000011 | AV107: =DEVSQ(V107:X107) -> 0.000011 | AX107: =AVERAGE(P107:X107) -> 0.006 | AY107: =DEVSQ(P107:X107)-SUM(AT107:AV107) -> 0.000 | AZ107: 3 | BA107: 9 | BB107: =(AY107/(AZ107-1))/(SUM(AT107:AV107)/(BA107-AZ107)) -> 2.304
A108: 103 | B108: 143 | C108: ALA | D108: 13-HpOTrE | E108: 15-HETE-d8 | F108: - | G108: - | H108: - | I108: - | J108: - | K108: - | L108: - | M108: - | N108: - | O108: - | P108: - | Q108: - | R108: - | S108: - | T108: - | U108: - | V108: - | W108: - | X108: - | Y108: - | AA108: - | AB108: - | AD108: - | AE108: - | AG108: - | AH108: - | AJ108: - | AK108: - | AM108: - | AP108: - | AQ108: - | AR108: - | AT108: - | AU108: - | AV108: - | AX108: - | AY108: - | AZ108: 3 | BA108: 9 | BB108: -
A109: 104 | B109: 130 | C109: ALA | D109: 9-HOTrE | E109: 14,15-DiHET-d11 | F109: - | G109: - | H109: - | I109: - | J109: - | K109: - | L109: - | M109: - | N109: - | O109: - | P109: - | Q109: - | R109: - | S109: - | T109: - | U109: - | V109: - | W109: - | X109: - | Y109: - | AA109: - | AB109: - | AD109: - | AE109: - | AG109: - | AH109: - | AJ109: - | AK109: - | AM109: - | AP109: - | AQ109: - | AR109: - | AT109: - | AU109: - | AV109: - | AX109: - | AY109: - | AZ109: 3 | BA109: 9 | BB109: -
A110: 105 | B110: 92 | C110: DGLA | D110: 13,14-dihydro-15-keto-PGD1 | E110: PGA2-d4 | F110: - | G110: - | H110: - | I110: - | J110: - | K110: - | L110: - | M110: - | N110: - | O110: - | P110: - | Q110: - | R110: - | S110: - | T110: - | U110: - | V110: - | W110: - | X110: - | Y110: - | AA110: - | AB110: - | AD110: - | AE110: - | AG110: - | AH110: - | AJ110: - | AK110: - | AM110: - | AP110: - | AQ110: - | AR110: - | AT110: - | AU110: - | AV110: - | AX110: - | AY110: - | AZ110: 3 | BA110: 9 | BB110: -
A111: 106 | B111: 72 | C111: DGLA | D111: 13,14-dihydro-PGE1 | E111: PGD2-d4 | F111: - | G111: - | H111: - | I111: - | J111: - | K111: - | L111: - | M111: - | N111: - | O111: - | P111: - | Q111: - | R111: - | S111: - | T111: - | U111: - | V111: - | W111: - | X111: - | Y111: - | AA111: - | AB111: - | AD111: - | AE111: - | AG111: - | AH111: - | AJ111: - | AK111: - | AM111: - | AP111: - | AQ111: - | AR111: - | AT111: - | AU111: - | AV111: - | AX111: - | AY111: - | AZ111: 3 | BA111: 9 | BB111: -
A112: 107 | B112: 184 | C112: DGLA | D112: 15-HETrE | E112: 5-HETE-d8 | F112: 10,069 | G112: 27,565 | H112: 39,033 | I112: 55,166 | J112: 79,130 | K112: 41,075 | L112: 51,740 | M112: 73,933 | N112: 85,079 | O112: - | P112: 0.036 | Q112: 0.054 | R112: 0.077 | S112: 0.137 | T112: 0.149 | U112: 0.058 | V112: 0.072 | W112: 0.085 | X112: 0.121 | Y112: - | AA112: 0.056 | AB112: 37.5 | AD112: 0.115 | AE112: 43.1 | AG112: 0.093 | AH112: 27.6 | AJ112: =AD112/AA112 -> 2.1 | AK112: 0.8 | AM112: =FDIST(BB112,AZ112-2,BA112-AZ112) -> 0.18 | AP112: =AVERAGE(P112:R112) -> 0.056 | AQ112: =AVERAGE(S112:U112) -> 0.115 | AR112: =AVERAGE(V112:X112) -> 0.093 | AT112: =DEVSQ(P112:R112) -> 0.000869 | AU112: =DEVSQ(S112:U112) -> 0.004890 | AV112: =DEVSQ(V112:X112) -> 0.001304 | AX112: =AVERAGE(P112:X112) -> 0.088 | AY112: =DEVSQ(P112:X112)-SUM(AT112:AV112) -> 0.005 | AZ112: 3 | BA112: 9 | BB112: =(AY112/(AZ112-1))/(SUM(AT112:AV112)/(BA112-AZ112)) -> 2.276
A113: 108 | B113: 31 | C113: DGLA | D113: 2,3-dinor-PGE1 | E113: 6-keto-PGF1α-d4 | F113: - | G113: - | H113: - | I113: - | J113: - | K113: - | L113: - | M113: - | N113: - | O113: - | P113: - | Q113: - | R113: - | S113: - | T113: - | U113: - | V113: - | W113: - | X113: - | Y113: - | AA113: - | AB113: - | AD113: - | AE113: - | AG113: - | AH113: - | AJ113: - | AK113: - | AM113: - | AP113: - | AQ113: - | AR113: - | AT113: - | AU113: - | AV113: - | AX113: - | AY113: - | AZ113: 3 | BA113: 9 | BB113: -
A114: 109 | B114: 12 | C114: DGLA | D114: 2,3-dinor-TXB1 | E114: TXB2-d4 | F114: - | G114: - | H114: - | I114: - | J114: - | K114: - | L114: - | M114: - | N114: - | O114: - | P114: - | Q114: - | R114: - | S114: - | T114: - | U114: - | V114: - | W114: - | X114: - | Y114: - | AA114: - | AB114: - | AD114: - | AE114: - | AG114: - | AH114: - | AJ114: - | AK114: - | AM114: - | AP114: - | AQ114: - | AR114: - | AT114: - | AU114: - | AV114: - | AX114: - | AY114: - | AZ114: 3 | BA114: 9 | BB114: -
A115: 110 | B115: 205 | C115: DGLA | D115: 5-HETrE | E115: 11,12-EET-d11 | F115: - | G115: - | H115: - | I115: - | J115: - | K115: - | L115: - | M115: - | N115: - | O115: - | P115: - | Q115: - | R115: - | S115: - | T115: - | U115: - | V115: - | W115: - | X115: - | Y115: - | AA115: - | AB115: - | AD115: - | AE115: - | AG115: - | AH115: - | AJ115: - | AK115: - | AM115: - | AP115: - | AQ115: - | AR115: - | AT115: - | AU115: - | AV115: - | AX115: - | AY115: - | AZ115: 3 | BA115: 9 | BB115: -
A116: 111 | B116: 23 | C116: DGLA | D116: 6-keto-PGE1 | E116: 6-keto-PGF1α-d4 | F116: - | G116: - | H116: - | I116: - | J116: - | K116: - | L116: - | M116: - | N116: - | O116: - | P116: - | Q116: - | R116: - | S116: - | T116: - | U116: - | V116: - | W116: - | X116: - | Y116: - | AA116: - | AB116: - | AD116: - | AE116: - | AG116: - | AH116: - | AJ116: - | AK116: - | AM116: - | AP116: - | AQ116: - | AR116: - | AT116: - | AU116: - | AV116: - | AX116: - | AY116: - | AZ116: 3 | BA116: 9 | BB116: -
A117: 112 | B117: 187 | C117: DGLA | D117: 8-HETrE | E117: 5-HETE-d8 | F117: 549 | G117: 1,385 | H117: 1,687 | I117: 259 | J117: 994 | K117: 1,125 | L117: 563 | M117: 1,831 | N117: 1,688 | O117: - | P117: 0.002 | Q117: 0.003 | R117: 0.003 | S117: 0.001 | T117: 0.002 | U117: 0.002 | V117: 0.001 | W117: 0.002 | X117: 0.002 | Y117: - | AA117: 0.003 | AB117: 26.2 | AD117: 0.001 | AE117: 47.3 | AG117: 0.002 | AH117: 49.1 | AJ117: =AD117/AA117 -> 0.5 | AK117: 1.3 | AM117: =FDIST(BB117,AZ117-2,BA117-AZ117) -> 0.17 | AP117: =AVERAGE(P117:R117) -> 0.003 | AQ117: =AVERAGE(S117:U117) -> 0.001 | AR117: =AVERAGE(V117:X117) -> 0.002 | AT117: =DEVSQ(P117:R117) -> 0.000001 | AU117: =DEVSQ(S117:U117) -> 0.000001 | AV117: =DEVSQ(V117:X117) -> 0.000002 | AX117: =AVERAGE(P117:X117) -> 0.002 | AY117: =DEVSQ(P117:X117)-SUM(AT117:AV117) -> 0.000 | AZ117: 3 | BA117: 9 | BB117: =(AY117/(AZ117-1))/(SUM(AT117:AV117)/(BA117-AZ117)) -> 2.380
A118: 113 | B118: 94 | C118: DGLA | D118: 8-iso-PGA1 | E118: PGA2-d4 | F118: 11,565 | G118: 32,216 | H118: 24,215 | I118: 17,604 | J118: 17,608 | K118: 35,813 | L118: 24,290 | M118: 34,636 | N118: 27,654 | O118: 3,961 | P118: 0.002 | Q118: 0.003 | R118: 0.003 | S118: 0.002 | T118: 0.002 | U118: 0.003 | V118: 0.002 | W118: 0.003 | X118: 0.002 | Y118: 0.002 | AA118: 0.003 | AB118: 21.8 | AD118: 0.002 | AE118: 20.9 | AG118: 0.002 | AH118: 13.4 | AJ118: =AD118/AA118 -> 0.9 | AK118: 1.0 | AM118: =FDIST(BB118,AZ118-2,BA118-AZ118) -> 0.62 | AP118: =AVERAGE(P118:R118) -> 0.003 | AQ118: =AVERAGE(S118:U118) -> 0.002 | AR118: =AVERAGE(V118:X118) -> 0.002 | AT118: =DEVSQ(P118:R118) -> 0.000001 | AU118: =DEVSQ(S118:U118) -> 0.000000 | AV118: =DEVSQ(V118:X118) -> 0.000000 | AX118: =AVERAGE(P118:X118) -> 0.002 | AY118: =DEVSQ(P118:X118)-SUM(AT118:AV118) -> 0.000 | AZ118: 3 | BA118: 9 | BB118: =(AY118/(AZ118-1))/(SUM(AT118:AV118)/(BA118-AZ118)) -> 0.279
A119: 114 | B119: 57 | C119: DGLA | D119: 8-iso-PGE1 | E119: PGE2-d4 | F119: - | G119: 2,194 | H119: - | I119: - | J119: - | K119: - | L119: - | M119: 1,533 | N119: - | O119: - | P119: - | Q119: 0.001 | R119: - | S119: - | T119: - | U119: - | V119: - | W119: 0.000 | X119: - | Y119: - | AA119: 0.001 | AB119: - | AD119: - | AE119: - | AG119: 0.000 | AH119: - | AK119: - | AM119: - | AP119: =AVERAGE(P119:R119) -> 0.001 | AQ119: - | AR119: =AVERAGE(V119:X119) -> 0.000 | AT119: =DEVSQ(P119:R119) -> 0.000000 | AU119: - | AV119: =DEVSQ(V119:X119) -> 0.000000 | AX119: =AVERAGE(P119:X119) -> 0.001 | AY119: =DEVSQ(P119:X119)-SUM(AT119:AV119) -> 0.000 | AZ119: 3 | BA119: 9 | BB119: -
A120: 115 | B120: 43 | C120: DGLA | D120: 8-iso-PGF1a | E120: PGF2α-d4 | F120: - | G120: - | H120: - | I120: - | J120: - | K120: - | L120: - | M120: - | N120: - | O120: - | P120: - | Q120: - | R120: - | S120: - | T120: - | U120: - | V120: - | W120: - | X120: - | Y120: - | AA120: - | AB120: - | AD120: - | AE120: - | AG120: - | AH120: - | AJ120: - | AK120: - | AM120: - | AP120: - | AQ120: - | AR120: - | AT120: - | AU120: - | AV120: - | AX120: - | AY120: - | AZ120: 3 | BA120: 9 | BB120: -
A121: 116 | B121: 101 | C121: DGLA | D121: PGA1 | E121: PGA2-d4 | F121: - | G121: - | H121: - | I121: - | J121: - | K121: - | L121: - | M121: - | N121: - | O121: - | P121: - | Q121: - | R121: - | S121: - | T121: - | U121: - | V121: - | W121: - | X121: - | Y121: - | AA121: - | AB121: - | AD121: - | AE121: - | AG121: - | AH121: - | AJ121: - | AK121: - | AM121: - | AP121: - | AQ121: - | AR121: - | AT121: - | AU121: - | AV121: - | AX121: - | AY121: - | AZ121: 3 | BA121: 9 | BB121: -
A122: 117 | B122: 66 | C122: DGLA | D122: PGD1 | E122: PGD2-d4 | F122: 33,253 | G122: 50,015 | H122: 42,331 | I122: 90,281 | J122: 125,341 | K122: 50,917 | L122: 61,099 | M122: 91,558 | N122: 74,271 | O122: - | P122: 0.030 | Q122: 0.022 | R122: 0.026 | S122: 0.052 | T122: 0.070 | U122: 0.022 | V122: 0.026 | W122: 0.035 | X122: 0.030 | Y122: - | AA122: 0.026 | AB122: 14.2 | AD122: 0.048 | AE122: 51.2 | AG122: 0.031 | AH122: 14.9 | AJ122: =AD122/AA122 -> 1.9 | AK122: 0.6 | AM122: =FDIST(BB122,AZ122-2,BA122-AZ122) -> 0.22 | AP122: =AVERAGE(P122:R122) -> 0.026 | AQ122: =AVERAGE(S122:U122) -> 0.048 | AR122: =AVERAGE(V122:X122) -> 0.031 | AT122: =DEVSQ(P122:R122) -> 0.000027 | AU122: =DEVSQ(S122:U122) -> 0.001212 | AV122: =DEVSQ(V122:X122) -> 0.000041 | AX122: =AVERAGE(P122:X122) -> 0.035 | AY122: =DEVSQ(P122:X122)-SUM(AT122:AV122) -> 0.001 | AZ122: 3 | BA122: 9 | BB122: =(AY122/(AZ122-1))/(SUM(AT122:AV122)/(BA122-AZ122)) -> 1.914
A123: 118 | B123: 64 | C123: DGLA | D123: PGE1 | E123: PGD2-d4 | F123: 29,233 | G123: 44,585 | H123: 37,300 | I123: 78,055 | J123: 126,080 | K123: 44,610 | L123: 50,194 | M123: 97,453 | N123: 75,494 | O123: - | P123: 0.026 | Q123: 0.020 | R123: 0.023 | S123: 0.045 | T123: 0.071 | U123: 0.019 | V123: 0.022 | W123: 0.038 | X123: 0.030 | Y123: - | AA123: 0.023 | AB123: 13.5 | AD123: 0.045 | AE123: 57.5 | AG123: 0.030 | AH123: 26.8 | AJ123: 2.0 | AK123: 0.7 | AM123: 0.26 | AP123: 0.023 | AQ123: 0.045 | AR123: 0.030 | AT123: 0.000019 | AU123: 0.001338 | AV123: 0.000128 | AX123: 0.033 | AY123: 0.001 | AZ123: 3 | BA123: 9 | BB123: 1.534
A124: 119 | B124: 50 | C124: DGLA | D124: PGF1α | E124: PGF2α-d4 | F124: 2,845 | G124: 34,482 | H124: 21,853 | I124: 23,365 | J124: 24,239 | K124: 33,447 | L124: 35,065 | M124: 42,922 | N124: 36,650 | O124: - | P124: 0.008 | Q124: 0.043 | R124: 0.038 | S124: 0.038 | T124: 0.038 | U124: 0.040 | V124: 0.042 | W124: 0.050 | X124: 0.042 | Y124: - | AA124: 0.030 | AB124: 64.8 | AD124: 0.039 | AE124: 3.9 | AG124: 0.045 | AH124: 9.8 | AJ124: 1.3 | AK124: 1.2 | AM124: 0.28 | AP124: 0.030 | AQ124: 0.039 | AR124: 0.045 | AT124: 0.000733 | AU124: 0.000005 | AV124: 0.000039 | AX124: 0.038 | AY124: 0.000 | AZ124: 3 | BA124: 9 | BB124: 1.381
A125: 120 | B125: 37 | C125: DGLA | D125: TXB1 | E125: TXB2-d4 | F125: - | G125: - | H125: - | I125: - | J125: - | K125: - | L125: - | M125: - | N125: - | O125: - | P125: - | Q125: - | R125: - | S125: - | T125: - | U125: - | V125: - | W125: - | X125: - | Y125: - | AA125: - | AB125: - | AD125: - | AE125: - | AG125: - | AH125: - | AJ125: - | AK125: - | AM125: - | AP125: - | AQ125: - | AR125: - | AT125: - | AU125: - | AV125: - | AX125: - | AY125: - | AZ125: 3 | BA125: 9 | BB125: -
A126: 121 | B126: 111 | C126: DHA | D126: 10,17-DiHDHA | E126: LTB4-d4 | F126: - | G126: - | H126: - | I126: - | J126: - | K126: - | L126: - | M126: - | N126: - | O126: - | P126: - | Q126: - | R126: - | S126: - | T126: - | U126: - | V126: - | W126: - | X126: - | Y126: - | AA126: - | AB126: - | AD126: - | AE126: - | AG126: - | AH126: - | AJ126: - | AK126: - | AM126: - | AP126: - | AQ126: - | AR126: - | AT126: - | AU126: - | AV126: - | AX126: - | AY126: - | AZ126: 3 | BA126: 9 | BB126: -
A127: 122 | B127: 169 | C127: DHA | D127: 10-HDHA | E127: 12-HETE-d8 | F127: 849 | G127: 978 | H127: 845 | I127: 5,689 | J127: 5,953 | K127: 5,657 | L127: 4,494 | M127: 4,917 | N127: 9,340 | O127: - | P127: 0.002 | Q127: 0.001 | R127: 0.001 | S127: 0.008 | T127: 0.007 | U127: 0.004 | V127: 0.004 | W127: 0.003 | X127: 0.007 | Y127: - | AA127: 0.001 | AB127: 29.9 | AD127: 0.006 | AE127: 29.5 | AG127: 0.005 | AH127: 47.5 | AJ127: 5.1 | AK127: 0.7 | AM127: 0.04 | AP127: 0.001 | AQ127: 0.006 | AR127: 0.005 | AT127: 0.000000 | AU127: 0.000007 | AV127: 0.000010 | AX127: 0.004 | AY127: 0.000 | AZ127: 3 | BA127: 9 | BB127: 7.003
A128: 123 | B128: 177 | C128: DHA | D128: 11-HDHA | E128: 5-HETE-d8 | F128: - | G128: - | H128: - | I128: - | J128: - | K128: - | L128: - | M128: - | N128: - | O128: - | P128: - | Q128: - | R128: - | S128: - | T128: - | U128: - | V128: - | W128: - | X128: - | Y128: - | AA128: - | AB128: - | AD128: - | AE128: - | AG128: - | AH128: - | AJ128: - | AK128: - | AM128: - | AP128: - | AQ128: - | AR128: - | AT128: - | AU128: - | AV128: - | AX128: - | AY128: - | AZ128: 3 | BA128: 9 | BB128: -
A129: 124 | B129: 168 | C129: DHA | D129: 13-HDHA | E129: 12-HETE-d8 | F129: - | G129: - | H129: - | I129: - | J129: - | K129: - | L129: - | M129: - | N129: - | O129: - | P129: - | Q129: - | R129: - | S129: - | T129: - | U129: - | V129: - | W129: - | X129: - | Y129: - | AA129: - | AB129: - | AD129: - | AE129: - | AG129: - | AH129: - | AJ129: - | AK129: - | AM129: - | AP129: - | AQ129: - | AR129: - | AT129: - | AU129: - | AV129: - | AX129: - | AY129: - | AZ129: 3 | BA129: 9 | BB129: -
A130: 125 | B130: 172 | C130: DHA | D130: 14-HDHA | E130: 12-HETE-d8 | F130: 27,588 | G130: 57,545 | H130: 62,727 | I130: 116,800 | J130: 150,092 | K130: 114,235 | L130: 147,540 | M130: 123,184 | N130: 116,940 | O130: - | P130: 0.055 | Q130: 0.063 | R130: 0.075 | S130: 0.168 | T130: 0.164 | U130: 0.090 | V130: 0.115 | W130: 0.085 | X130: 0.092 | Y130: - | AA130: 0.064 | AB130: 15.4 | AD130: 0.140 | AE130: 31.4 | AG130: 0.098 | AH130: 16.1 | AJ130: 2.2 | AK130: 0.7 | AM130: 0.05 | AP130: 0.064 | AQ130: 0.140 | AR130: 0.098 | AT130: 0.000198 | AU130: 0.003902 | AV130: 0.000494 | AX130: 0.101 | AY130: 0.009 | AZ130: 3 | BA130: 9 | BB130: 5.702
A131: 126 | B131: 200 | C131: DHA | D131: 16,17-EpDPA | E131: 11,12-EET-d11 | F131: - | G131: - | H131: - | I131: - | J131: - | K131: - | L131: - | M131: - | N131: - | O131: - | P131: - | Q131: - | R131: - | S131: - | T131: - | U131: - | V131: - | W131: - | X131: - | Y131: - | AA131: - | AB131: - | AD131: - | AE131: - | AG131: - | AH131: - | AJ131: - | AK131: - | AM131: - | AP131: - | AQ131: - | AR131: - | AT131: - | AU131: - | AV131: - | AX131: - | AY131: - | AZ131: 3 | BA131: 9 | BB131: -
A132: 127 | B132: 164 | C132: DHA | D132: 16-HDHA | E132: 12-HETE-d8 | F132: 7,065 | G132: 12,743 | H132: 18,638 | I132: 27,584 | J132: 52,781 | K132: 27,224 | L132: 29,855 | M132: 41,170 | N132: 37,933 | O132: - | P132: 0.014 | Q132: 0.014 | R132: 0.022 | S132: 0.040 | T132: 0.058 | U132: 0.021 | V132: 0.023 | W132: 0.028 | X132: 0.030 | Y132: - | AA132: 0.017 | AB132: 28.1 | AD132: 0.040 | AE132: 45.9 | AG132: 0.027 | AH132: 12.8 | AJ132: =AD132/AA132 -> 2.4 | AK132: 0.7 | AM132: =FDIST(BB132,AZ132-2,BA132-AZ132) -> 0.12 | AP132: =AVERAGE(P132:R132) -> 0.017 | AQ132: =AVERAGE(S132:U132) -> 0.040 | AR132: =AVERAGE(V132:X132) -> 0.027 | AT132: =DEVSQ(P132:R132) -> 0.000044 | AU132: =DEVSQ(S132:U132) -> 0.000659 | AV132: =DEVSQ(V132:X132) -> 0.000024 | AX132: =AVERAGE(P132:X132) -> 0.028 | AY132: =DEVSQ(P132:X132)-SUM(AT132:AV132) -> 0.001 | AZ132: 3 | BA132: 9 | BB132: =(AY132/(AZ132-1))/(SUM(AT132:AV132)/(BA132-AZ132)) -> 3.214
A133: 128 | B133: 165 | C133: DHA | D133: 17-HDHA | E133: 12-HETE-d8 | F133: 4,490 | G133: 5,683 | H133: 7,743 | I133: 14,643 | J133: 32,158 | K133: 19,796 | L133: 19,882 | M133: 20,061 | N133: 7,282 | O133: - | P133: 0.009 | Q133: 0.006 | R133: 0.009 | S133: 0.021 | T133: 0.035 | U133: 0.016 | V133: 0.016 | W133: 0.014 | X133: 0.006 | Y133: - | AA133: 0.008 | AB133: 20.1 | AD133: 0.024 | AE133: 42.3 | AG133: 0.012 | AH133: 44.7 | AJ133: =AD133/AA133 -> 2.9 | AK133: 0.5 | AM133: =FDIST(BB133,AZ133-2,BA133-AZ133) -> 0.07 | AP133: =AVERAGE(P133:R133) -> 0.008 | AQ133: =AVERAGE(S133:U133) -> 0.024 | AR133: =AVERAGE(V133:X133) -> 0.012 | AT133: =DEVSQ(P133:R133) -> 0.000005 | AU133: =DEVSQ(S133:U133) -> 0.000204 | AV133: =DEVSQ(V133:X133) -> 0.000055 | AX133: =AVERAGE(P133:X133) -> 0.015 | AY133: =DEVSQ(P133:X133)-SUM(AT133:AV133) -> 0.000 | AZ133: 3 | BA133: 9 | BB133: =(AY133/(AZ133-1))/(SUM(AT133:AV133)/(BA133-AZ133)) -> 4.642
A134: 129 | B134: 183 | C134: DHA | D134: 17-HpDHA | E134: 5-HETE-d8 | F134: - | G134: - | H134: - | I134: - | J134: - | K134: - | L134: - | M134: - | N134: - | O134: - | P134: - | Q134: - | R134: - | S134: - | T134: - | U134: - | V134: - | W134: - | X134: - | Y134: - | AA134: - | AB134: - | AD134: - | AE134: - | AG134: - | AH134: - | AJ134: - | AK134: - | AM134: - | AP134: - | AQ134: - | AR134: - | AT134: - | AU134: - | AV134: - | AX134: - | AY134: - | AZ134: 3 | BA134: 9 | BB134: -
A135: 130 | B135: 124 | C135: DHA | D135: 19,20-DiHDPA | E135: 14,15-DiHET-d11 | F135: - | G135: - | H135: - | I135: - | J135: - | K135: - | L135: - | M135: - | N135: - | O135: - | P135: - | Q135: - | R135: - | S135: - | T135: - | U135: - | V135: - | W135: - | X135: - | Y135: - | AA135: - | AB135: - | AD135: - | AE135: - | AG135: - | AH135: - | AJ135: - | AK135: - | AM135: - | AP135: - | AQ135: - | AR135: - | AT135: - | AU135: - | AV135: - | AX135: - | AY135: - | AZ135: 3 | BA135: 9 | BB135: -
A136: 131 | B136: 195 | C136: DHA | D136: 19,20-EpDPA | E136: 5-HETE-d8 | F136: - | G136: - | H136: - | I136: - | J136: - | K136: - | L136: - | M136: - | N136: - | O136: - | P136: - | Q136: - | R136: - | S136: - | T136: - | U136: - | V136: - | W136: - | X136: - | Y136: - | AA136: - | AB136: - | AD136: - | AE136: - | AG136: - | AH136: - | AJ136: - | AK136: - | AM136: - | AP136: - | AQ136: - | AR136: - | AT136: - | AU136: - | AV136: - | AX136: - | AY136: - | AZ136: 3 | BA136: 9 | BB136: -
A137: 132 | B137: 156 | C137: DHA | D137: 20-HDHA | E137: 15-HETE-d8 | F137: - | G137: - | H137: - | I137: - | J137: - | K137: - | L137: - | M137: - | N137: - | O137: - | P137: - | Q137: - | R137: - | S137: - | T137: - | U137: - | V137: - | W137: - | X137: - | Y137: - | AA137: - | AB137: - | AD137: - | AE137: - | AG137: - | AH137: - | AJ137: - | AK137: - | AM137: - | AP137: - | AQ137: - | AR137: - | AT137: - | AU137: - | AV137: - | AX137: - | AY137: - | AZ137: 3 | BA137: 9 | BB137: -
A138: 133 | B138: 191 | C138: DHA | D138: 4-HDHA | E138: 5-HETE-d8 | F138: - | G138: - | H138: - | I138: - | J138: - | K138: - | L138: - | M138: - | N138: - | O138: - | P138: - | Q138: - | R138: - | S138: - | T138: - | U138: - | V138: - | W138: - | X138: - | Y138: - | AA138: - | AB138: - | AD138: - | AE138: - | AG138: - | AH138: - | AJ138: - | AK138: - | AM138: - | AP138: - | AQ138: - | AR138: - | AT138: - | AU138: - | AV138: - | AX138: - | AY138: - | AZ138: 3 | BA138: 9 | BB138: -
A139: 134 | B139: 115 | C139: DHA | D139: 7,17-hydroxy-DPA | E139: 14,15-DiHET-d11 | F139: - | G139: - | H139: - | I139: - | J139: - | K139: - | L139: - | M139: - | N139: - | O139: - | P139: - | Q139: - | R139: - | S139: - | T139: - | U139: - | V139: - | W139: - | X139: - | Y139: - | AA139: - | AB139: - | AD139: - | AE139: - | AG139: - | AH139: - | AJ139: - | AK139: - | AM139: - | AP139: - | AQ139: - | AR139: - | AT139: - | AU139: - | AV139: - | AX139: - | AY139: - | AZ139: 3 | BA139: 9 | BB139: -
A140: 135 | B140: 178 | C140: DHA | D140: 7-HDHA | E140: 5-HETE-d8 | F140: - | G140: - | H140: - | I140: - | J140: - | K140: - | L140: - | M140: - | N140: - | O140: - | P140: - | Q140: - | R140: - | S140: - | T140: - | U140: - | V140: - | W140: - | X140: - | Y140: - | AA140: - | AB140: - | AD140: - | AE140: - | AG140: - | AH140: - | AJ140: - | AK140: - | AM140: - | AP140: - | AQ140: - | AR140: - | AT140: - | AU140: - | AV140: - | AX140: - | AY140: - | AZ140: 3 | BA140: 9 | BB140: -
A141: 136 | B141: 181 | C141: DHA | D141: 8-HDHA | E141: 5-HETE-d8 | F141: 10,329 | G141: 19,372 | H141: 23,143 | I141: 45,207 | J141: 59,706 | K141: 33,238 | L141: 44,497 | M141: 44,227 | N141: 39,984 | O141: - | P141: 0.037 | Q141: 0.038 | R141: 0.046 | S141: 0.112 | T141: 0.113 | U141: 0.047 | V141: 0.062 | W141: 0.051 | X141: 0.057 | Y141: - | AA141: 0.040 | AB141: 12.5 | AD141: 0.091 | AE141: 41.7 | AG141: 0.057 | AH141: 9.2 | AJ141: =AD141/AA141 -> 2.3 | AK141: 0.6 | AM141: =FDIST(BB141,AZ141-2,BA141-AZ141) -> 0.09 | AP141: =AVERAGE(P141:R141) -> 0.040 | AQ141: =AVERAGE(S141:U141) -> 0.091 | AR141: =AVERAGE(V141:X141) -> 0.057 | AT141: =DEVSQ(P141:R141) -> 0.000051 | AU141: =DEVSQ(S141:U141) -> 0.002846 | AV141: =DEVSQ(V141:X141) -> 0.000054 | AX141: =AVERAGE(P141:X141) -> 0.062 | AY141: =DEVSQ(P141:X141)-SUM(AT141:AV141) -> 0.004 | AZ141: 3 | BA141: 9 | BB141: =(AY141/(AZ141-1))/(SUM(AT141:AV141)/(BA141-AZ141)) -> 4.045
A142: 137 | B142: 212 | C142: DHA | D142: DHA | E142: AA-d8 | F142: 46,109 | G142: 69,041 | H142: 86,935 | I142: 293,721 | J142: 312,525 | K142: 255,963 | L142: 387,282 | M142: 458,869 | N142: 176,595 | O142: - | P142: 0.021 | Q142: 0.019 | R142: 0.019 | S142: 0.061 | T142: 0.053 | U142: 0.039 | V142: 0.048 | W142: 0.053 | X142: 0.026 | Y142: - | AA142: 0.020 | AB142: 6.5 | AD142: 0.051 | AE142: 21.3 | AG142: 0.042 | AH142: 34.7 | AJ142: =AD142/AA142 -> 2.6 | AK142: 0.8 | AM142: =FDIST(BB142,AZ142-2,BA142-AZ142) -> 0.04 | AP142: =AVERAGE(P142:R142) -> 0.020 | AQ142: =AVERAGE(S142:U142) -> 0.051 | AR142: =AVERAGE(V142:X142) -> 0.042 | AT142: =DEVSQ(P142:R142) -> 0.000003 | AU142: =DEVSQ(S142:U142) -> 0.000237 | AV142: =DEVSQ(V142:X142) -> 0.000435 | AX142: =AVERAGE(P142:X142) -> 0.038 | AY142: =DEVSQ(P142:X142)-SUM(AT142:AV142) -> 0.002 | AZ142: 3 | BA142: 9 | BB142: =(AY142/(AZ142-1))/(SUM(AT142:AV142)/(BA142-AZ142)) -> 7.029
A143: 138 | B143: 108 | C143: DHA | D143: Maresin1 | E143: LTB4-d4 | F143: - | G143: - | H143: - | I143: - | J143: - | K143: - | L143: - | M143: - | N143: - | O143: - | P143: - | Q143: - | R143: - | S143: - | T143: - | U143: - | V143: - | W143: - | X143: - | Y143: - | AA143: - | AB143: - | AD143: - | AE143: - | AG143: - | AH143: - | AJ143: - | AK143: - | AM143: - | AP143: - | AQ143: - | AR143: - | AT143: - | AU143: - | AV143: - | AX143: - | AY143: - | AZ143: 3 | BA143: 9 | BB143: -
A144: 139 | B144: 77 | C144: DHA | D144: Resolvin D1 | E144: PGD2-d4 | F144: - | G144: - | H144: - | I144: - | J144: - | K144: - | L144: - | M144: - | N144: - | O144: - | P144: - | Q144: - | R144: - | S144: - | T144: - | U144: - | V144: - | W144: - | X144: - | Y144: - | AA144: - | AB144: - | AD144: - | AE144: - | AG144: - | AH144: - | AJ144: - | AK144: - | AM144: - | AP144: - | AQ144: - | AR144: - | AT144: - | AU144: - | AV144: - | AX144: - | AY144: - | AZ144: 3 | BA144: 9 | BB144: -
A145: 140 | B145: 70 | C145: DHA | D145: Resolvin D2 | E145: PGD2-d4 | F145: - | G145: - | H145: - | I145: - | J145: - | K145: - | L145: - | M145: - | N145: - | O145: - | P145: - | Q145: - | R145: - | S145: - | T145: - | U145: - | V145: - | W145: - | X145: - | Y145: - | AA145: - | AB145: - | AD145: - | AE145: - | AG145: - | AH145: - | AJ145: - | AK145: - | AM145: - | AP145: - | AQ145: - | AR145: - | AT145: - | AU145: - | AV145: - | AX145: - | AY145: - | AZ145: 3 | BA145: 9 | BB145: -
A146: 141 | B146: 60 | C146: DHA | D146: Resolvin D3 | E146: PGE2-d4 | F146: - | G146: - | H146: - | I146: - | J146: - | K146: - | L146: - | M146: - | N146: - | O146: - | P146: - | Q146: - | R146: - | S146: - | T146: - | U146: - | V146: - | W146: - | X146: - | Y146: - | AA146: - | AB146: - | AD146: - | AE146: - | AG146: - | AH146: - | AJ146: - | AK146: - | AM146: - | AP146: - | AQ146: - | AR146: - | AT146: - | AU146: - | AV146: - | AX146: - | AY146: - | AZ146: 3 | BA146: 9 | BB146: -
A147: 142 | B147: 88 | C147: DHA | D147: Resolvin D4 | E147: PGA2-d4 | F147: - | G147: - | H147: - | I147: - | J147: - | K147: - | L147: - | M147: - | N147: - | O147: - | P147: - | Q147: - | R147: - | S147: - | T147: - | U147: - | V147: - | W147: - | X147: - | Y147: - | AA147: - | AB147: - | AD147: - | AE147: - | AG147: - | AH147: - | AJ147: - | AK147: - | AM147: - | AP147: - | AQ147: - | AR147: - | AT147: - | AU147: - | AV147: - | AX147: - | AY147: - | AZ147: 3 | BA147: 9 | BB147: -
A148: 143 | B148: 113 | C148: DHA | D148: Resolvin D5 | E148: LTB4-d4 | F148: - | G148: - | H148: - | I148: - | J148: - | K148: - | L148: - | M148: - | N148: - | O148: - | P148: - | Q148: - | R148: - | S148: - | T148: - | U148: - | V148: - | W148: - | X148: - | Y148: - | AA148: - | AB148: - | AD148: - | AE148: - | AG148: - | AH148: - | AJ148: - | AK148: - | AM148: - | AP148: - | AQ148: - | AR148: - | AT148: - | AU148: - | AV148: - | AX148: - | AY148: - | AZ148: 3 | BA148: 9 | BB148: -
A149: 144 | B149: 138 | C149: EA | D149: 11,12-EET-EA | E149: 15-HETE-d8 | F149: - | G149: - | H149: - | I149: - | J149: - | K149: - | L149: - | M149: - | N149: - | O149: - | P149: - | Q149: - | R149: - | S149: - | T149: - | U149: - | V149: - | W149: - | X149: - | Y149: - | AA149: - | AB149: - | AD149: - | AE149: - | AG149: - | AH149: - | AJ149: - | AK149: - | AM149: - | AP149: - | AQ149: - | AR149: - | AT149: - | AU149: - | AV149: - | AX149: - | AY149: - | AZ149: 3 | BA149: 9 | BB149: -
A150: 145 | B150: 131 | C150: EA | D150: 14,15-EET-EA | E150: 14,15-DiHET-d11 | F150: - | G150: - | H150: - | I150: - | J150: - | K150: - | L150: - | M150: - | N150: - | O150: - | P150: - | Q150: - | R150: - | S150: - | T150: - | U150: - | V150: - | W150: - | X150: - | Y150: - | AA150: - | AB150: - | AD150: - | AE150: - | AG150: - | AH150: - | AJ150: - | AK150: - | AM150: - | AP150: - | AQ150: - | AR150: - | AT150: - | AU150: - | AV150: - | AX150: - | AY150: - | AZ150: 3 | BA150: 9 | BB150: -
A151: 146 | B151: 148 | C151: EA | D151: 5,6-EET-EA | E151: 15-HETE-d8 | F151: - | G151: - | H151: - | I151: - | J151: - | K151: - | L151: - | M151: - | N151: - | O151: - | P151: - | Q151: - | R151: - | S151: - | T151: - | U151: - | V151: - | W151: - | X151: - | Y151: - | AA151: - | AB151: - | AD151: - | AE151: - | AG151: - | AH151: - | AJ151: - | AK151: - | AM151: - | AP151: - | AQ151: - | AR151: - | AT151: - | AU151: - | AV151: - | AX151: - | AY151: - | AZ151: 3 | BA151: 9 | BB151: -
A152: 147 | B152: 144 | C152: EA | D152: 8,9-EET-EA | E152: 15-HETE-d8 | F152: - | G152: - | H152: - | I152: - | J152: - | K152: - | L152: - | M152: - | N152: - | O152: - | P152: - | Q152: - | R152: - | S152: - | T152: - | U152: - | V152: - | W152: - | X152: - | Y152: - | AA152: - | AB152: - | AD152: - | AE152: - | AG152: - | AH152: - | AJ152: - | AK152: - | AM152: - | AP152: - | AQ152: - | AR152: - | AT152: - | AU152: - | AV152: - | AX152: - | AY152: - | AZ152: 3 | BA152: 9 | BB152: -
A153: 148 | B153: 203 | C153: EA | D153: AEA | E153: OEA-d4 | F153: 991 | G153: 4,513 | H153: 1,258 | I153: 5,168 | J153: 6,686 | K153: 1,503 | L153: 4,165 | M153: 7,042 | N153: 3,147 | O153: - | P153: 0.000 | Q153: 0.000 | R153: 0.000 | S153: 0.000 | T153: 0.000 | U153: 0.000 | V153: 0.000 | W153: 0.000 | X153: 0.000 | Y153: - | AA153: 0.000 | AB153: 64.5 | AD153: 0.000 | AE153: 67.3 | AG153: 0.000 | AH153: 38.1 | AJ153: =AD153/AA153 -> 1.7 | AK153: 0.7 | AM153: =FDIST(BB153,AZ153-2,BA153-AZ153) -> 0.48 | AP153: =AVERAGE(P153:R153) -> 0.000 | AQ153: =AVERAGE(S153:U153) -> 0.000 | AR153: =AVERAGE(V153:X153) -> 0.000 | AT153: =DEVSQ(P153:R153) -> 0.000000 | AU153: =DEVSQ(S153:U153) -> 0.000000 | AV153: =DEVSQ(V153:X153) -> 0.000000 | AX153: =AVERAGE(P153:X153) -> 0.000 | AY153: =DEVSQ(P153:X153)-SUM(AT153:AV153) -> 0.000 | AZ153: 3 | BA153: 9 | BB153: =(AY153/(AZ153-1))/(SUM(AT153:AV153)/(BA153-AZ153)) -> 0.568
A154: 149 | B154: 82 | C154: EA | D154: LTB4-EA | E154: PGD2-d4 | F154: 11,911 | G154: 11,052 | H154: 11,407 | I154: 13,924 | J154: 14,714 | K154: 17,450 | L154: 11,512 | M154: 9,709 | N154: 17,951 | O154: - | P154: 0.011 | Q154: 0.005 | R154: 0.007 | S154: 0.008 | T154: 0.008 | U154: 0.007 | V154: 0.005 | W154: 0.004 | X154: 0.007 | Y154: - | AA154: 0.008 | AB154: 38.6 | AD154: 0.008 | AE154: 5.8 | AG154: 0.005 | AH154: 33.4 | AJ154: =AD154/AA154 -> 1.1 | AK154: 0.7 | AM154: =FDIST(BB154,AZ154-2,BA154-AZ154) -> 0.27 | AP154: =AVERAGE(P154:R154) -> 0.008 | AQ154: =AVERAGE(S154:U154) -> 0.008 | AR154: =AVERAGE(V154:X154) -> 0.005 | AT154: =DEVSQ(P154:R154) -> 0.000017 | AU154: =DEVSQ(S154:U154) -> 0.000000 | AV154: =DEVSQ(V154:X154) -> 0.000006 | AX154: =AVERAGE(P154:X154) -> 0.007 | AY154: =DEVSQ(P154:X154)-SUM(AT154:AV154) -> 0.000 | AZ154: 3 | BA154: 9 | BB154: =(AY154/(AZ154-1))/(SUM(AT154:AV154)/(BA154-AZ154)) -> 1.500
A155: 150 | B155: 210 | C155: EA | D155: OEA | E155: OEA-d4 | F155: 85,318 | G155: 142,083 | H155: 123,535 | I155: 237,239 | J155: 233,997 | K155: 186,151 | L155: 234,153 | M155: 246,589 | N155: 205,265 | O155: 2,607 | P155: 0.011 | Q155: 0.008 | R155: 0.007 | S155: 0.015 | T155: 0.014 | U155: 0.008 | V155: 0.010 | W155: 0.009 | X155: 0.008 | Y155: 0.001 | AA155: 0.009 | AB155: 18.3 | AD155: 0.012 | AE155: 34.0 | AG155: 0.009 | AH155: 12.1 | AJ155: =AD155/AA155 -> 1.4 | AK155: 0.8 | AM155: =FDIST(BB155,AZ155-2,BA155-AZ155) -> 0.27 | AP155: =AVERAGE(P155:R155) -> 0.009 | AQ155: =AVERAGE(S155:U155) -> 0.012 | AR155: =AVERAGE(V155:X155) -> 0.009 | AT155: =DEVSQ(P155:R155) -> 0.000005 | AU155: =DEVSQ(S155:U155) -> 0.000035 | AV155: =DEVSQ(V155:X155) -> 0.000002 | AX155: =AVERAGE(P155:X155) -> 0.010 | AY155: =DEVSQ(P155:X155)-SUM(AT155:AV155) -> 0.000 | AZ155: 3 | BA155: 9 | BB155: =(AY155/(AZ155-1))/(SUM(AT155:AV155)/(BA155-AZ155)) -> 1.460
A156: 151 | B156: 32 | C156: EA | D156: PGD2-EA | E156: 6-keto-PGF1α-d4 | F156: - | G156: - | H156: - | I156: - | J156: - | K156: - | L156: - | M156: - | N156: - | O156: - | P156: - | Q156: - | R156: - | S156: - | T156: - | U156: - | V156: - | W156: - | X156: - | Y156: - | AA156: - | AB156: - | AD156: - | AE156: - | AG156: - | AH156: - | AJ156: - | AK156: - | AM156: - | AP156: - | AQ156: - | AR156: - | AT156: - | AU156: - | AV156: - | AX156: - | AY156: - | AZ156: 3 | BA156: 9 | BB156: -
A157: 152 | B157: 28 | C157: EA | D157: PGE1-EA | E157: 6-keto-PGF1α-d4 | F157: - | G157: - | H157: - | I157: - | J157: - | K157: - | L157: - | M157: - | N157: - | O157: - | P157: - | Q157: - | R157: - | S157: - | T157: - | U157: - | V157: - | W157: - | X157: - | Y157: - | AA157: - | AB157: - | AD157: - | AE157: - | AG157: - | AH157: - | AJ157: - | AK157: - | AM157: - | AP157: - | AQ157: - | AR157: - | AT157: - | AU157: - | AV157: - | AX157: - | AY157: - | AZ157: 3 | BA157: 9 | BB157: -
A158: 153 | B158: 24 | C158: EA | D158: PGE2-EA | E158: 6-keto-PGF1α-d4 | F158: - | G158: - | H158: - | I158: - | J158: - | K158: - | L158: - | M158: - | N158: - | O158: - | P158: - | Q158: - | R158: - | S158: - | T158: - | U158: - | V158: - | W158: - | X158: - | Y158: - | AA158: - | AB158: - | AD158: - | AE158: - | AG158: - | AH158: - | AJ158: - | AK158: - | AM158: - | AP158: - | AQ158: - | AR158: - | AT158: - | AU158: - | AV158: - | AX158: - | AY158: - | AZ158: 3 | BA158: 9 | BB158: -
A159: 154 | B159: 22 | C159: EA | D159: PGF2a-EA | E159: 6-keto-PGF1α-d4 | F159: - | G159: - | H159: - | I159: - | J159: - | K159: - | L159: - | M159: - | N159: - | O159: - | P159: - | Q159: - | R159: - | S159: - | T159: - | U159: - | V159: - | W159: - | X159: - | Y159: - | AA159: - | AB159: - | AD159: - | AE159: - | AG159: - | AH159: - | AJ159: - | AK159: - | AM159: - | AP159: - | AQ159: - | AR159: - | AT159: - | AU159: - | AV159: - | AX159: - | AY159: - | AZ159: 3 | BA159: 9 | BB159: -
A160: 155 | B160: 199 | C160: EDA | D160: 11-HEDE | E160: 11,12-EET-d11 | F160: 13,548 | G160: 33,231 | H160: 51,411 | I160: 75,670 | J160: 88,176 | K160: 61,279 | L160: 62,672 | M160: 99,949 | N160: 73,667 | O160: - | P160: 0.211 | Q160: 0.366 | R160: 0.506 | S160: 1.051 | T160: 0.786 | U160: 0.402 | V160: 0.398 | W160: 0.479 | X160: 0.461 | Y160: - | AA160: 0.361 | AB160: 41.0 | AD160: 0.747 | AE160: 43.7 | AG160: 0.446 | AH160: 9.5 | AJ160: =AD160/AA160 -> 2.1 | AK160: 0.6 | AM160: =FDIST(BB160,AZ160-2,BA160-AZ160) -> 0.14 | AP160: =AVERAGE(P160:R160) -> 0.361 | AQ160: =AVERAGE(S160:U160) -> 0.747 | AR160: =AVERAGE(V160:X160) -> 0.446 | AT160: =DEVSQ(P160:R160) -> 0.043730 | AU160: =DEVSQ(S160:U160) -> 0.212971 | AV160: =DEVSQ(V160:X160) -> 0.003626 | AX160: =AVERAGE(P160:X160) -> 0.518 | AY160: =DEVSQ(P160:X160)-SUM(AT160:AV160) -> 0.247 | AZ160: 3 | BA160: 9 | BB160: =(AY160/(AZ160-1))/(SUM(AT160:AV160)/(BA160-AZ160)) -> 2.841
A161: 156 | B161: 201 | C161: EDA | D161: 15-HEDE | E161: 11,12-EET-d11 | F161: 7,606 | G161: 39,732 | H161: 53,680 | I161: 153,221 | J161: 89,426 | K161: 83,796 | L161: 110,758 | M161: 101,702 | N161: 157,048 | O161: - | P161: 0.118 | Q161: 0.438 | R161: 0.529 | S161: 2.129 | T161: 0.798 | U161: 0.550 | V161: 0.703 | W161: 0.487 | X161: 0.983 | Y161: - | AA161: 0.361 | AB161: 59.6 | AD161: 1.159 | AE161: 73.3 | AG161: 0.725 | AH161: 34.3 | AJ161: =AD161/AA161 -> 3.2 | AK161: 0.6 | AM161: =FDIST(BB161,AZ161-2,BA161-AZ161) -> 0.24 | AP161: =AVERAGE(P161:R161) -> 0.361 | AQ161: =AVERAGE(S161:U161) -> 1.159 | AR161: =AVERAGE(V161:X161) -> 0.725 | AT161: =DEVSQ(P161:R161) -> 0.092863 | AU161: =DEVSQ(S161:U161) -> 1.441884 | AV161: =DEVSQ(V161:X161) -> 0.123343 | AX161: =AVERAGE(P161:X161) -> 0.748 | AY161: =DEVSQ(P161:X161)-SUM(AT161:AV161) -> 0.956 | AZ161: 3 | BA161: 9 | BB161: =(AY161/(AZ161-1))/(SUM(AT161:AV161)/(BA161-AZ161)) -> 1.731
A162: 157 | B162: 208 | C162: EDA | D162: 15-KEDE | E162: OEA-d4 | F162: - | G162: - | H162: - | I162: - | J162: - | K162: - | L162: - | M162: - | N162: - | O162: - | P162: - | Q162: - | R162: - | S162: - | T162: - | U162: - | V162: - | W162: - | X162: - | Y162: - | AA162: - | AB162: - | AD162: - | AE162: - | AG162: - | AH162: - | AJ162: - | AK162: - | AM162: - | AP162: - | AQ162: - | AR162: - | AT162: - | AU162: - | AV162: - | AX162: - | AY162: - | AZ162: 3 | BA162: 9 | BB162: -
A163: 158 | B163: 40 | C163: EPA | D163: 11-dehydro-TXB3 | E163: PGF2α-d4 | F163: - | G163: - | H163: - | I163: - | J163: - | K163: - | L163: - | M163: - | N163: - | O163: - | P163: - | Q163: - | R163: - | S163: - | T163: - | U163: - | V163: - | W163: - | X163: - | Y163: - | AA163: - | AB163: - | AD163: - | AE163: - | AG163: - | AH163: - | AJ163: - | AK163: - | AM163: - | AP163: - | AQ163: - | AR163: - | AT163: - | AU163: - | AV163: - | AX163: - | AY163: - | AZ163: 3 | BA163: 9 | BB163: -
A164: 159 | B164: 140 | C164: EPA | D164: 11-HEPE | E164: 15-HETE-d8 | F164: - | G164: - | H164: - | I164: - | J164: - | K164: - | L164: - | M164: - | N164: - | O164: - | P164: - | Q164: - | R164: - | S164: - | T164: - | U164: - | V164: - | W164: - | X164: - | Y164: - | AA164: - | AB164: - | AD164: - | AE164: - | AG164: - | AH164: - | AJ164: - | AK164: - | AM164: - | AP164: - | AQ164: - | AR164: - | AT164: - | AU164: - | AV164: - | AX164: - | AY164: - | AZ164: 3 | BA164: 9 | BB164: -
A165: 160 | B165: 147 | C165: EPA | D165: 12-HEPE | E165: 15-HETE-d8 | F165: 9,471 | G165: 12,991 | H165: 16,347 | I165: 12,164 | J165: 24,597 | K165: 13,849 | L165: 10,726 | M165: 18,718 | N165: 25,831 | O165: - | P165: 0.019 | Q165: 0.014 | R165: 0.019 | S165: 0.019 | T165: 0.027 | U165: 0.011 | V165: 0.009 | W165: 0.014 | X165: 0.021 | Y165: - | AA165: 0.018 | AB165: 15.7 | AD165: 0.019 | AE165: 42.7 | AG165: 0.015 | AH165: 40.0 | AJ165: =AD165/AA165 -> 1.1 | AK165: 0.8 | AM165: =FDIST(BB165,AZ165-2,BA165-AZ165) -> 0.55 | AP165: =AVERAGE(P165:R165) -> 0.018 | AQ165: =AVERAGE(S165:U165) -> 0.019 | AR165: =AVERAGE(V165:X165) -> 0.015 | AT165: =DEVSQ(P165:R165) -> 0.000015 | AU165: =DEVSQ(S165:U165) -> 0.000132 | AV165: =DEVSQ(V165:X165) -> 0.000069 | AX165: =AVERAGE(P165:X165) -> 0.017 | AY165: =DEVSQ(P165:X165)-SUM(AT165:AV165) -> 0.000 | AZ165: 3 | BA165: 9 | BB165: =(AY165/(AZ165-1))/(SUM(AT165:AV165)/(BA165-AZ165)) -> 0.402
A166: 161 | B166: 155 | C166: EPA | D166: 12-HpEPE | E166: 15-HETE-d8 | F166: - | G166: - | H166: - | I166: - | J166: - | K166: - | L166: - | M166: - | N166: - | O166: - | P166: - | Q166: - | R166: - | S166: - | T166: - | U166: - | V166: - | W166: - | X166: - | Y166: - | AA166: - | AB166: - | AD166: - | AE166: - | AG166: - | AH166: - | AJ166: - | AK166: - | AM166: - | AP166: - | AQ166: - | AR166: - | AT166: - | AU166: - | AV166: - | AX166: - | AY166: - | AZ166: 3 | BA166: 9 | BB166: -
A167: 162 | B167: 114 | C167: EPA | D167: 14,15-DiHETE | E167: 14,15-DiHET-d11 | F167: - | G167: - | H167: - | I167: - | J167: - | K167: - | L167: - | M167: - | N167: - | O167: - | P167: - | Q167: - | R167: - | S167: - | T167: - | U167: - | V167: - | W167: - | X167: - | Y167: - | AA167: - | AB167: - | AD167: - | AE167: - | AG167: - | AH167: - | AJ167: - | AK167: - | AM167: - | AP167: - | AQ167: - | AR167: - | AT167: - | AU167: - | AV167: - | AX167: - | AY167: - | AZ167: 3 | BA167: 9 | BB167: -
A168: 163 | B168: 175 | C168: EPA | D168: 14,15-EpETE | E168: 12-HETE-d8 | F168: - | G168: - | H168: - | I168: - | J168: - | K168: - | L168: - | M168: - | N168: - | O168: - | P168: - | Q168: - | R168: - | S168: - | T168: - | U168: - | V168: - | W168: - | X168: - | Y168: - | AA168: - | AB168: - | AD168: - | AE168: - | AG168: - | AH168: - | AJ168: - | AK168: - | AM168: - | AP168: - | AQ168: - | AR168: - | AT168: - | AU168: - | AV168: - | AX168: - | AY168: - | AZ168: 3 | BA168: 9 | BB168: -
A169: 164 | B169: 139 | C169: EPA | D169: 15-HEPE | E169: 15-HETE-d8 | F169: 1,405 | G169: 1,878 | H169: 2,207 | I169: 5,691 | J169: 11,892 | K169: 1,720 | L169: 3,307 | M169: 3,747 | N169: 4,028 | O169: - | P169: 0.003 | Q169: 0.002 | R169: 0.003 | S169: 0.009 | T169: 0.013 | U169: 0.001 | V169: 0.003 | W169: 0.003 | X169: 0.003 | Y169: - | AA169: 0.003 | AB169: 15.3 | AD169: 0.008 | AE169: 76.6 | AG169: 0.003 | AH169: 9.7 | AJ169: =AD169/AA169 -> 3.1 | AK169: 0.4 | AM169: =FDIST(BB169,AZ169-2,BA169-AZ169) -> 0.19 | AP169: =AVERAGE(P169:R169) -> 0.003 | AQ169: =AVERAGE(S169:U169) -> 0.008 | AR169: =AVERAGE(V169:X169) -> 0.003 | AT169: =DEVSQ(P169:R169) -> 0.000000 | AU169: =DEVSQ(S169:U169) -> 0.000071 | AV169: =DEVSQ(V169:X169) -> 0.000000 | AX169: =AVERAGE(P169:X169) -> 0.004 | AY169: =DEVSQ(P169:X169)-SUM(AT169:AV169) -> 0.000 | AZ169: 3 | BA169: 9 | BB169: =(AY169/(AZ169-1))/(SUM(AT169:AV169)/(BA169-AZ169)) -> 2.145
A170: 165 | B170: 152 | C170: EPA | D170: 15-HpEPE | E170: 15-HETE-d8 | F170: - | G170: - | H170: - | I170: - | J170: - | K170: - | L170: - | M170: - | N170: - | O170: - | P170: - | Q170: - | R170: - | S170: - | T170: - | U170: - | V170: - | W170: - | X170: - | Y170: - | AA170: - | AB170: - | AD170: - | AE170: - | AG170: - | AH170: - | AJ170: - | AK170: - | AM170: - | AP170: - | AQ170: - | AR170: - | AT170: - | AU170: - | AV170: - | AX170: - | AY170: - | AZ170: 3 | BA170: 9 | BB170: -
A171: 166 | B171: 104 | C171: EPA | D171: 17,18-DiHETE | E171: LTB4-d4 | F171: - | G171: - | H171: - | I171: - | J171: - | K171: - | L171: - | M171: - | N171: - | O171: - | P171: - | Q171: - | R171: - | S171: - | T171: - | U171: - | V171: - | W171: - | X171: - | Y171: - | AA171: - | AB171: - | AD171: - | AE171: - | AG171: - | AH171: - | AJ171: - | AK171: - | AM171: - | AP171: - | AQ171: - | AR171: - | AT171: - | AU171: - | AV171: - | AX171: - | AY171: - | AZ171: 3 | BA171: 9 | BB171: -
A172: 167 | B172: 160 | C172: EPA | D172: 17,18-EpETE | E172: 15-HETE-d8 | F172: - | G172: - | H172: - | I172: - | J172: - | K172: - | L172: - | M172: - | N172: - | O172: - | P172: - | Q172: - | R172: - | S172: - | T172: - | U172: - | V172: - | W172: - | X172: - | Y172: - | AA172: - | AB172: - | AD172: - | AE172: - | AG172: - | AH172: - | AJ172: - | AK172: - | AM172: - | AP172: - | AQ172: - | AR172: - | AT172: - | AU172: - | AV172: - | AX172: - | AY172: - | AZ172: 3 | BA172: 9 | BB172: -
A173: 168 | B173: 134 | C173: EPA | D173: 18-HEPE | E173: 14,15-DiHET-d11 | F173: - | G173: - | H173: - | I173: - | J173: - | K173: - | L173: - | M173: - | N173: - | O173: - | P173: - | Q173: - | R173: - | S173: - | T173: - | U173: - | V173: - | W173: - | X173: - | Y173: - | AA173: - | AB173: - | AD173: - | AE173: - | AG173: - | AH173: - | AJ173: - | AK173: - | AM173: - | AP173: - | AQ173: - | AR173: - | AT173: - | AU173: - | AV173: - | AX173: - | AY173: - | AZ173: 3 | BA173: 9 | BB173: -
A174: 169 | B174: 119 | C174: EPA | D174: 5,6-DiHETE | E174: 14,15-DiHET-d11 | F174: - | G174: - | H174: - | I174: - | J174: - | K174: - | L174: - | M174: - | N174: - | O174: - | P174: - | Q174: - | R174: - | S174: - | T174: - | U174: - | V174: - | W174: - | X174: - | Y174: - | AA174: - | AB174: - | AD174: - | AE174: - | AG174: - | AH174: - | AJ174: - | AK174: - | AM174: - | AP174: - | AQ174: - | AR174: - | AT174: - | AU174: - | AV174: - | AX174: - | AY174: - | AZ174: 3 | BA174: 9 | BB174: -
A175: 170 | B175: 150 | C175: EPA | D175: 5-HEPE | E175: 15-HETE-d8 | F175: - | G175: - | H175: - | I175: - | J175: - | K175: - | L175: - | M175: - | N175: - | O175: - | P175: - | Q175: - | R175: - | S175: - | T175: - | U175: - | V175: - | W175: - | X175: - | Y175: - | AA175: - | AB175: - | AD175: - | AE175: - | AG175: - | AH175: - | AJ175: - | AK175: - | AM175: - | AP175: - | AQ175: - | AR175: - | AT175: - | AU175: - | AV175: - | AX175: - | AY175: - | AZ175: 3 | BA175: 9 | BB175: -
A176: 171 | B176: 158 | C176: EPA | D176: 5-HpEPE | E176: 15-HETE-d8 | F176: - | G176: - | H176: - | I176: - | J176: - | K176: - | L176: - | M176: - | N176: - | O176: - | P176: - | Q176: - | R176: - | S176: - | T176: - | U176: - | V176: - | W176: - | X176: - | Y176: - | AA176: - | AB176: - | AD176: - | AE176: - | AG176: - | AH176: - | AJ176: - | AK176: - | AM176: - | AP176: - | AQ176: - | AR176: - | AT176: - | AU176: - | AV176: - | AX176: - | AY176: - | AZ176: 3 | BA176: 9 | BB176: -
A177: 172 | B177: 142 | C177: EPA | D177: 8-HEPE | E177: 15-HETE-d8 | F177: - | G177: - | H177: - | I177: - | J177: - | K177: - | L177: - | M177: - | N177: - | O177: - | P177: - | Q177: - | R177: - | S177: - | T177: - | U177: - | V177: - | W177: - | X177: - | Y177: - | AA177: - | AB177: - | AD177: - | AE177: - | AG177: - | AH177: - | AJ177: - | AK177: - | AM177: - | AP177: - | AQ177: - | AR177: - | AT177: - | AU177: - | AV177: - | AX177: - | AY177: - | AZ177: 3 | BA177: 9 | BB177: -
A178: 173 | B178: 25 | C178: EPA | D178: 8-iso-PGF3α | E178: 6-keto-PGF1α-d4 | F178: - | G178: - | H178: - | I178: - | J178: - | K178: - | L178: - | M178: - | N178: - | O178: - | P178: - | Q178: - | R178: - | S178: - | T178: - | U178: - | V178: - | W178: - | X178: - | Y178: - | AA178: - | AB178: - | AD178: - | AE178: - | AG178: - | AH178: - | AJ178: - | AK178: - | AM178: - | AP178: - | AQ178: - | AR178: - | AT178: - | AU178: - | AV178: - | AX178: - | AY178: - | AZ178: 3 | BA178: 9 | BB178: -
A179: 174 | B179: 145 | C179: EPA | D179: 9-HEPE | E179: 15-HETE-d8 | F179: - | G179: - | H179: - | I179: - | J179: - | K179: - | L179: - | M179: - | N179: - | O179: - | P179: - | Q179: - | R179: - | S179: - | T179: - | U179: - | V179: - | W179: - | X179: - | Y179: - | AA179: - | AB179: - | AD179: - | AE179: - | AG179: - | AH179: - | AJ179: - | AK179: - | AM179: - | AP179: - | AQ179: - | AR179: - | AT179: - | AU179: - | AV179: - | AX179: - | AY179: - | AZ179: 3 | BA179: 9 | BB179: -
A180: 175 | B180: 10 | C180: EPA | D180: delta17-6-keto-PGF1α | E180: 6-keto-PGF1α-d4 | F180: - | G180: - | H180: - | I180: - | J180: - | K180: - | L180: - | M180: - | N180: - | O180: - | P180: - | Q180: - | R180: - | S180: - | T180: - | U180: - | V180: - | W180: - | X180: - | Y180: - | AA180: - | AB180: - | AD180: - | AE180: - | AG180: - | AH180: - | AJ180: - | AK180: - | AM180: - | AP180: - | AQ180: - | AR180: - | AT180: - | AU180: - | AV180: - | AX180: - | AY180: - | AZ180: 3 | BA180: 9 | BB180: -
A181: 176 | B181: 211 | C181: EPA | D181: EPA | E181: AA-d8 | F181: - | G181: - | H181: - | I181: - | J181: - | K181: - | L181: - | M181: - | N181: - | O181: - | P181: - | Q181: - | R181: - | S181: - | T181: - | U181: - | V181: - | W181: - | X181: - | Y181: - | AA181: - | AB181: - | AD181: - | AE181: - | AG181: - | AH181: - | AJ181: - | AK181: - | AM181: - | AP181: - | AQ181: - | AR181: - | AT181: - | AU181: - | AV181: - | AX181: - | AY181: - | AZ181: 3 | BA181: 9 | BB181: -
A182: 177 | B182: 97 | C182: EPA | D182: LTB5 | E182: PGA2-d4 | F182: - | G182: - | H182: - | I182: - | J182: - | K182: - | L182: - | M182: - | N182: - | O182: - | P182: - | Q182: - | R182: - | S182: - | T182: - | U182: - | V182: - | W182: - | X182: - | Y182: - | AA182: - | AB182: - | AD182: - | AE182: - | AG182: - | AH182: - | AJ182: - | AK182: - | AM182: - | AP182: - | AQ182: - | AR182: - | AT182: - | AU182: - | AV182: - | AX182: - | AY182: - | AZ182: 3 | BA182: 9 | BB182: -
A183: 178 | B183: 52 | C183: EPA | D183: LXA5 | E183: PGE2-d4 | F183: - | G183: - | H183: - | I183: - | J183: - | K183: - | L183: - | M183: - | N183: - | O183: - | P183: - | Q183: - | R183: - | S183: - | T183: - | U183: - | V183: - | W183: - | X183: - | Y183: - | AA183: - | AB183: - | AD183: - | AE183: - | AG183: - | AH183: - | AJ183: - | AK183: - | AM183: - | AP183: - | AQ183: - | AR183: - | AT183: - | AU183: - | AV183: - | AX183: - | AY183: - | AZ183: 3 | BA183: 9 | BB183: -
A184: 179 | B184: 46 | C184: EPA | D184: PGD3 | E184: PGF2α-d4 | F184: - | G184: - | H184: - | I184: 1,076 | J184: 5,510 | K184: - | L184: - | M184: 3,217 | N184: - | O184: - | P184: - | Q184: - | R184: - | S184: 0.002 | T184: 0.009 | U184: - | V184: - | W184: 0.004 | X184: - | Y184: - | AA184: - | AB184: - | AD184: 0.005 | AE184: 93.9 | AG184: 0.004 | AH184: - | AK184: 0.7 | AM184: =FDIST(BB184,AZ184-2,BA184-AZ184) -> 0.69 | AP184: - | AQ184: =AVERAGE(S184:U184) -> 0.005 | AR184: =AVERAGE(V184:X184) -> 0.004 | AT184: - | AU184: =DEVSQ(S184:U184) -> 0.000024 | AV184: =DEVSQ(V184:X184) -> 0.000000 | AX184: =AVERAGE(P184:X184) -> 0.005 | AY184: =DEVSQ(P184:X184)-SUM(AT184:AV184) -> 0.000 | AZ184: 3 | BA184: 9 | BB184: =(AY184/(AZ184-1))/(SUM(AT184:AV184)/(BA184-AZ184)) -> 0.174
A185: 180 | B185: 42 | C185: EPA | D185: PGE3 | E185: PGF2α-d4 | F185: - | G185: - | H185: - | I185: - | J185: - | K185: - | L185: - | M185: - | N185: - | O185: - | P185: - | Q185: - | R185: - | S185: - | T185: - | U185: - | V185: - | W185: - | X185: - | Y185: - | AA185: - | AB185: - | AD185: - | AE185: - | AG185: - | AH185: - | AJ185: - | AK185: - | AM185: - | AP185: - | AQ185: - | AR185: - | AT185: - | AU185: - | AV185: - | AX185: - | AY185: - | AZ185: 3 | BA185: 9 | BB185: -
A186: 181 | B186: 34 | C186: EPA | D186: PGF3α | E186: PGF2α-d4 | F186: - | G186: - | H186: - | I186: - | J186: - | K186: - | L186: - | M186: - | N186: - | O186: - | P186: - | Q186: - | R186: - | S186: - | T186: - | U186: - | V186: - | W186: - | X186: - | Y186: - | AA186: - | AB186: - | AD186: - | AE186: - | AG186: - | AH186: - | AJ186: - | AK186: - | AM186: - | AP186: - | AQ186: - | AR186: - | AT186: - | AU186: - | AV186: - | AX186: - | AY186: - | AZ186: 3 | BA186: 9 | BB186: -
A187: 182 | B187: 20 | C187: EPA | D187: Resolvin E1 | E187: 6-keto-PGF1α-d4 | F187: - | G187: - | H187: - | I187: - | J187: - | K187: - | L187: - | M187: - | N187: - | O187: - | P187: - | Q187: - | R187: - | S187: - | T187: - | U187: - | V187: - | W187: - | X187: - | Y187: - | AA187: - | AB187: - | AD187: - | AE187: - | AG187: - | AH187: - | AJ187: - | AK187: - | AM187: - | AP187: - | AQ187: - | AR187: - | AT187: - | AU187: - | AV187: - | AX187: - | AY187: - | AZ187: 3 | BA187: 9 | BB187: -
A188: 183 | B188: 26 | C188: EPA | D188: TXB3 | E188: TXB2-d4 | F188: - | G188: - | H188: - | I188: - | J188: - | K188: - | L188: - | M188: - | N188: - | O188: - | P188: - | Q188: - | R188: - | S188: - | T188: - | U188: - | V188: - | W188: - | X188: - | Y188: - | AA188: - | AB188: - | AD188: - | AE188: - | AG188: - | AH188: - | AJ188: - | AK188: - | AM188: - | AP188: - | AQ188: - | AR188: - | AT188: - | AU188: - | AV188: - | AX188: - | AY188: - | AZ188: 3 | BA188: 9 | BB188: -
A189: 184 | B189: 116 | C189: LA | D189: 12,13-DiHOME | E189: 14,15-DiHET-d11 | F189: - | G189: - | H189: - | I189: - | J189: - | K189: - | L189: - | M189: - | N189: - | O189: - | P189: - | Q189: - | R189: - | S189: - | T189: - | U189: - | V189: - | W189: - | X189: - | Y189: - | AA189: - | AB189: - | AD189: - | AE189: - | AG189: - | AH189: - | AJ189: - | AK189: - | AM189: - | AP189: - | AQ189: - | AR189: - | AT189: - | AU189: - | AV189: - | AX189: - | AY189: - | AZ189: 3 | BA189: 9 | BB189: -
A190: 185 | B190: 193 | C190: LA | D190: 12,13-EpOME | E190: 5-HETE-d8 | F190: - | G190: - | H190: - | I190: - | J190: - | K190: - | L190: - | M190: - | N190: - | O190: - | P190: - | Q190: - | R190: - | S190: - | T190: - | U190: - | V190: - | W190: - | X190: - | Y190: - | AA190: - | AB190: - | AD190: - | AE190: - | AG190: - | AH190: - | AJ190: - | AK190: - | AM190: - | AP190: - | AQ190: - | AR190: - | AT190: - | AU190: - | AV190: - | AX190: - | AY190: - | AZ190: 3 | BA190: 9 | BB190: -
A191: 186 | B191: 153 | C191: LA | D191: 13-HODE | E191: 15-HETE-d8 | F191: 166,063 | G191: 419,151 | H191: 441,309 | I191: 1,287,469 | J191: 878,915 | K191: 695,822 | L191: 1,017,230 | M191: 892,469 | N191: 1,480,267 | O191: 1,371 | P191: 0.335 | Q191: 0.465 | R191: 0.520 | S191: 2.003 | T191: 0.971 | U191: 0.549 | V191: 0.898 | W191: 0.647 | X191: 1.207 | Y191: 0.008 | AA191: 0.440 | AB191: 21.6 | AD191: 1.174 | AE191: 63.7 | AG191: 0.917 | AH191: 30.6 | AJ191: =AD191/AA191 -> 2.7 | AK191: 0.8 | AM191: =FDIST(BB191,AZ191-2,BA191-AZ191) -> 0.21 | AP191: =AVERAGE(P191:R191) -> 0.440 | AQ191: =AVERAGE(S191:U191) -> 1.174 | AR191: =AVERAGE(V191:X191) -> 0.917 | AT191: =DEVSQ(P191:R191) -> 0.018048 | AU191: =DEVSQ(S191:U191) -> 1.118098 | AV191: =DEVSQ(V191:X191) -> 0.157505 | AX191: =AVERAGE(P191:X191) -> 0.844 | AY191: =DEVSQ(P191:X191)-SUM(AT191:AV191) -> 0.833 | AZ191: 3 | BA191: 9 | BB191: =(AY191/(AZ191-1))/(SUM(AT191:AV191)/(BA191-AZ191)) -> 1.931
A192: 187 | B192: 163 | C192: LA | D192: 13-HpODE | E192: 15-HETE-d8 | F192: - | G192: - | H192: - | I192: - | J192: - | K192: - | L192: - | M192: - | N192: - | O192: - | P192: - | Q192: - | R192: - | S192: - | T192: - | U192: - | V192: - | W192: - | X192: - | Y192: - | AA192: - | AB192: - | AD192: - | AE192: - | AG192: - | AH192: - | AJ192: - | AK192: - | AM192: - | AP192: - | AQ192: - | AR192: - | AT192: - | AU192: - | AV192: - | AX192: - | AY192: - | AZ192: 3 | BA192: 9 | BB192: -
A193: 188 | B193: 162 | C193: LA | D193: 13-KODE | E193: 15-HETE-d8 | F193: 1,361 | G193: 2,918 | H193: 5,347 | I193: 7,793 | J193: 7,915 | K193: 10,418 | L193: 14,822 | M193: 13,702 | N193: 15,450 | O193: - | P193: 0.003 | Q193: 0.003 | R193: 0.006 | S193: 0.012 | T193: 0.009 | U193: 0.008 | V193: 0.013 | W193: 0.010 | X193: 0.013 | Y193: - | AA193: 0.004 | AB193: 47.0 | AD193: 0.010 | AE193: 21.8 | AG193: 0.012 | AH193: 14.3 | AJ193: =AD193/AA193 -> 2.4 | AK193: 1.2 | AM193: =FDIST(BB193,AZ193-2,BA193-AZ193) -> 0.01 | AP193: =AVERAGE(P193:R193) -> 0.004 | AQ193: =AVERAGE(S193:U193) -> 0.010 | AR193: =AVERAGE(V193:X193) -> 0.012 | AT193: =DEVSQ(P193:R193) -> 0.000007 | AU193: =DEVSQ(S193:U193) -> 0.000009 | AV193: =DEVSQ(V193:X193) -> 0.000006 | AX193: =AVERAGE(P193:X193) -> 0.009 | AY193: =DEVSQ(P193:X193)-SUM(AT193:AV193) -> 0.000 | AZ193: 3 | BA193: 9 | BB193: =(AY193/(AZ193-1))/(SUM(AT193:AV193)/(BA193-AZ193)) -> 13.076
A194: 189 | B194: 117 | C194: LA | D194: 9,10-DiHOME | E194: 14,15-DiHET-d11 | F194: - | G194: - | H194: - | I194: - | J194: - | K194: - | L194: - | M194: - | N194: - | O194: - | P194: - | Q194: - | R194: - | S194: - | T194: - | U194: - | V194: - | W194: - | X194: - | Y194: - | AA194: - | AB194: - | AD194: - | AE194: - | AG194: - | AH194: - | AJ194: - | AK194: - | AM194: - | AP194: - | AQ194: - | AR194: - | AT194: - | AU194: - | AV194: - | AX194: - | AY194: - | AZ194: 3 | BA194: 9 | BB194: -
A195: 190 | B195: 194 | C195: LA | D195: 9,10-EpOME | E195: 5-HETE-d8 | F195: - | G195: - | H195: - | I195: - | J195: - | K195: - | L195: - | M195: - | N195: - | O195: - | P195: - | Q195: - | R195: - | S195: - | T195: - | U195: - | V195: - | W195: - | X195: - | Y195: - | AA195: - | AB195: - | AD195: - | AE195: - | AG195: - | AH195: - | AJ195: - | AK195: - | AM195: - | AP195: - | AQ195: - | AR195: - | AT195: - | AU195: - | AV195: - | AX195: - | AY195: - | AZ195: 3 | BA195: 9 | BB195: -
A196: 191 | B196: 154 | C196: LA | D196: 9-HODE | E196: 15-HETE-d8 | F196: 68,716 | G196: 149,736 | H196: 170,703 | I196: 276,590 | J196: 320,528 | K196: 194,162 | L196: 209,798 | M196: 250,333 | N196: 262,805 | O196: - | P196: 0.139 | Q196: 0.166 | R196: 0.201 | S196: 0.430 | T196: 0.354 | U196: 0.153 | V196: 0.185 | W196: 0.181 | X196: 0.214 | Y196: - | AA196: 0.169 | AB196: 18.6 | AD196: 0.313 | AE196: 45.8 | AG196: 0.194 | AH196: 9.3 | AJ196: =AD196/AA196 -> 1.9 | AK196: 0.6 | AM196: =FDIST(BB196,AZ196-2,BA196-AZ196) -> 0.17 | AP196: =AVERAGE(P196:R196) -> 0.169 | AQ196: =AVERAGE(S196:U196) -> 0.313 | AR196: =AVERAGE(V196:X196) -> 0.194 | AT196: =DEVSQ(P196:R196) -> 0.001963 | AU196: =DEVSQ(S196:U196) -> 0.040950 | AV196: =DEVSQ(V196:X196) -> 0.000648 | AX196: =AVERAGE(P196:X196) -> 0.225 | AY196: =DEVSQ(P196:X196)-SUM(AT196:AV196) -> 0.035 | AZ196: 3 | BA196: 9 | BB196: =(AY196/(AZ196-1))/(SUM(AT196:AV196)/(BA196-AZ196)) -> 2.442
A197: 192 | B197: 161 | C197: LA | D197: 9-HpODE | E197: 15-HETE-d8 | F197: - | G197: - | H197: - | I197: - | J197: - | K197: - | L197: - | M197: - | N197: - | O197: - | P197: - | Q197: - | R197: - | S197: - | T197: - | U197: - | V197: - | W197: - | X197: - | Y197: - | AA197: - | AB197: - | AD197: - | AE197: - | AG197: - | AH197: - | AJ197: - | AK197: - | AM197: - | AP197: - | AQ197: - | AR197: - | AT197: - | AU197: - | AV197: - | AX197: - | AY197: - | AZ197: 3 | BA197: 9 | BB197: -
A198: 193 | B198: 166 | C198: LA | D198: 9-KODE | E198: 12-HETE-d8 | F198: 4,635 | G198: 4,981 | H198: 3,819 | I198: 4,237 | J198: 11,303 | K198: 8,822 | L198: 11,772 | M198: 3,206 | N198: 8,744 | O198: - | P198: 0.009 | Q198: 0.005 | R198: 0.005 | S198: 0.006 | T198: 0.012 | U198: 0.007 | V198: 0.009 | W198: 0.002 | X198: 0.007 | Y198: - | AA198: 0.006 | AB198: 38.5 | AD198: 0.008 | AE198: 40.2 | AG198: 0.006 | AH198: 58.3 | AJ198: 1.3 | AK198: 0.7 | AM198: 0.51 | AP198: 0.006 | AQ198: 0.008 | AR198: 0.006 | AT198: 0.000012 | AU198: 0.000023 | AV198: 0.000025 | AX198: 0.007 | AY198: 0.000 | AZ198: 3 | BA198: 9 | BB198: 0.480
A199: 194 | B199: 198 | D199: Azelaoyl-PAF | E199: PAF-d4 | F199: - | G199: - | H199: - | I199: - | J199: - | K199: - | L199: - | M199: - | N199: - | O199: - | P199: - | Q199: - | R199: - | S199: - | T199: - | U199: - | V199: - | W199: - | X199: - | Y199: - | AA199: - | AB199: - | AD199: - | AE199: - | AG199: - | AH199: - | AJ199: - | AK199: - | AM199: - | AP199: - | AQ199: - | AR199: - | AT199: - | AU199: - | AV199: - | AX199: - | AY199: - | AZ199: 3 | BA199: 9 | BB199: -
A200: 195 | B200: 151 | D200: Lyso-PAF | E200: 15-HETE-d8 | F200: 27,761,704 | G200: 37,185,328 | H200: 35,375,156 | I200: 136,240,944 | J200: 124,317,000 | K200: 95,720,616 | L200: 120,733,704 | M200: 108,253,752 | N200: 67,288,608 | O200: 36,117 | P200: 56.048 | Q200: 41.274 | R200: 41.704 | S200: 211.924 | T200: 137.362 | U200: 75.563 | V200: 106.554 | W200: 78.452 | X200: 54.868 | Y200: 0.209 | AA200: 46.342 | AB200: 18.1 | AD200: 141.616 | AE200: 48.2 | AG200: 79.958 | AH200: 32.4 | AJ200: 3.1 | AK200: 0.6 | AM200: 0.10 | AP200: 46.342 | AQ200: 141.616 | AR200: 79.958 | AT200: 141.4 | AU200: 9324.2 | AV200: 1339.1 | AX200: 89.305 | AY200: 14008.871 | AZ200: 3 | BA200: 9 | BB200: 3.890
A201: 196 | B201: 186 | D201: PAF | E201: PAF-d4 | F201: 4,961 | G201: 5,438 | H201: 4,730 | I201: 15,835 | J201: 12,223 | K201: - | L201: 13,250 | M201: 8,046 | N201: 6,451 | O201: - | P201: 0.027 | Q201: 0.014 | R201: 0.015 | S201: 0.046 | T201: 0.035 | U201: - | V201: 0.028 | W201: 0.015 | X201: 0.012 | Y201: - | AA201: 0.018 | AB201: 39.9 | AD201: 0.040 | AE201: 19.8 | AG201: 0.019 | AH201: 46.4 | AJ201: 2.2 | AK201: 0.5 | AM201: 0.04 | AP201: 0.018 | AQ201: 0.040 | AR201: 0.019 | AT201: 0.000107 | AU201: 0.000064 | AV201: 0.000148 | AX201: 0.024 | AY201: 0.0007 | AZ201: 3 | BA201: 9 | BB201: 6.752
... 1 more rows

Sheet Figure 4a,b,c
A1: Title | B1: The lysophospholipase D enzyme Gdpd3 is required to maintain chronic myelogenous leukaemia stem cells
A2: Authour | B2: Kazuhito Naka, Ryosuke Ochiai, Eriko Matsubara, Chie Kondo, Kyung-Min Yang, Takayuki Hoshii, Masatake Araki, Kimi Araki, Yusuke Sotomaru, Ko Sasaki, Kinuko Mitani, Dong-Wook Kim, Akira Ooshima and Seong-Jin Kim
A4: Figure 4a, b, c
D6: Peak area normalised to IS area | M6: Average | P6: Stdev | S6: T test
D7: Normal | G7: Gdpd3+/+ CML cells | J7: Gdpd3-/- CML cells | M7: Normal | N7: Gdpd3+/+ CML cells | O7: Gdpd3-/- CML cells | P7: Normal | Q7: Gdpd3+/+ CML cells | R7: Gdpd3-/- CML cells
S8: Normal vs WT CML | T8: WT CML vs Gdpd3 CML
B9: Compound | C9: IS | D9: Sample 1 | E9: Sample 2 | F9: Sample 3 | G9: Sample 4 | H9: Sample 5 | I9: Sample 6 | J9: Sample 7 | K9: Sample 8 | L9: Sample 9 | M9: 1～3 | N9: 4～6 | O9: 7～9 | P9: 1～3 | Q9: 4～6 | R9: 7～9
A10: 38 | B10: 8-iso-PGF2α | C10: PGF2α-d4 | D10: 0.00071 | E10: 0.00519 | F10: 0.00495 | G10: 0.00887 | H10: 0.01113 | I10: 0.00667 | J10: 0.00380 | K10: 0.00102 | L10: 0.00622 | M10: 0.0036 | N10: 0.0089 | O10: 0.0037 | P10: =STDEV(D10:F10) -> 0.0025 | Q10: =STDEV(G10:I10) -> 0.0022 | R10: =STDEV(J10:L10) -> 0.0026 | S10: =TTEST(D10:F10,G10:I10,1,2) -> 0.02665 | T10: =TTEST(G10:I10,J10:L10,1,2) -> 0.028997
A11: 65 | B11: PGD2 | C11: PGD2-d4 | D11: 0.57366 | E11: 0.37114 | F11: 0.42385 | G11: 0.88197 | H11: 1.65128 | I11: 0.44161 | J11: 0.52224 | K11: 0.67054 | L11: 0.41758 | M11: 0.4562 | N11: 0.9916 | O11: 0.5368 | P11: =STDEV(D11:F11) -> 0.1051 | Q11: =STDEV(G11:I11) -> 0.6122 | R11: =STDEV(J11:L11) -> 0.1271 | S11: =TTEST(D11:F11,G11:I11,1,2) -> 0.10488 | T11: =TTEST(G11:I11,J11:L11,1,2) -> 0.138107
A12: 55 | B12: PGE2 | C12: PGE2-d4 | D12: 0.09086 | E12: 0.06573 | F12: 0.06691 | G12: 0.14984 | H12: 0.21569 | I12: 0.07025 | J12: 0.08166 | K12: 0.08016 | L12: 0.07075 | M12: 0.0745 | N12: 0.1453 | O12: 0.0775 | P12: 0.0142 | Q12: 0.0728 | R12: 0.0059 | S12: 0.08695 | T12: 0.091802
A13: 197 | B13: 5-KETE | C13: 11,12-EET-d11 | D13: - | E13: - | F13: - | G13: 0.01253 | H13: 0.02997 | I13: 0.02508 | J13: 0.01227 | K13: 0.00505 | L13: 0.00986 | M13: - | N13: 0.0225 | O13: 0.0091 | P13: - | Q13: =STDEV(G13:I13) -> 0.0090 | R13: =STDEV(J13:L13) -> 0.0037 | T13: 0.037173
A14: 139 | B14: 15-HEPE | C14: 15-HETE-d8 | D14: 0.00284 | E14: 0.00208 | F14: 0.00260 | G14: 0.00885 | H14: 0.01314 | I14: 0.00136 | J14: 0.00292 | K14: 0.00272 | L14: 0.00328 | M14: 0.0025 | N14: 0.0078 | O14: 0.0030 | P14: =STDEV(D14:F14) -> 0.0004 | Q14: =STDEV(G14:I14) -> 0.0060 | R14: =STDEV(J14:L14) -> 0.0003 | S14: 0.10049 | T14: 0.117668
A15: 165 | B15: 17-HDHA | C15: 12-HETE-d8 | D15: 0.00894 | E15: 0.00626 | F15: 0.00923 | G15: 0.02106 | H15: 0.03512 | I15: 0.01551 | J15: 0.01553 | K15: 0.01387 | L15: 0.00575 | M15: 0.0081 | N15: 0.0239 | O15: 0.0117 | P15: =STDEV(D15:F15) -> 0.0016 | Q15: =STDEV(G15:I15) -> 0.0101 | R15: =STDEV(J15:L15) -> 0.0052 | S15: 0.02805 | T15: 0.068753
A16: 151 | B16: Lyso-PAF | C16: 15-HETE-d8 | D16: 56.04839 | E16: 41.27417 | F16: 41.70384 | G16: 211.92350 | H16: 137.36156 | I16: 75.56308 | J16: 106.55352 | K16: 78.45212 | L16: 54.86779 | M16: 46.3421 | N16: 141.6160 | O16: 79.9578 | P16: =STDEV(D16:F16) -> 8.4086 | Q16: =STDEV(G16:I16) -> 68.2797 | R16: =STDEV(J16:L16) -> 25.8757 | S16: 0.03723 | T16: 0.108703
B21: Global lipidomics analyses (see Methods, Supplementary Method 2,3) for prostanoids, eicosanoids and docosanoid, and Lyso-PAF in BMMNCs (1x107) isolated from healthy 8-wk-old normal C57BL/6 mice (2 males, 4 females), or Gdpd3+/+ tet-CML-affected mice (5 females), or Gdpd3-/- tet-CML-affected mice (1 male, 3 females), at five weeks post-Dox withdrawal. T test data are the mean average±s.d. of peak area normalised to IS (internal standard) area (n=3 biologically independent samples) (P-value, unpaired one-sided Student’s t-test).

Sheet Figure 6a
A1: Title | B1: The lysophospholipase D enzyme Gdpd3 is required to maintain chronic myelogenous leukaemia stem cells
A2: Authour | B2: Kazuhito Naka, Ryosuke Ochiai, Eriko Matsubara, Chie Kondo, Kyung-Min Yang, Takayuki Hoshii, Masatake Araki, Kimi Araki, Yusuke Sotomaru, Ko Sasaki, Kinuko Mitani, Dong-Wook Kim, Akira Ooshima and Seong-Jin Kim
A4: Figure 6a | B4: Survival rates of retro-CML-affected mice in a primary BMT experiment that received BCR-ABL1/EGFP-transduced LSK cells from either Gdpd3+/+ mice (2 males, 2 females) or Gdpd3-/- mice (3 males, 1 female) as in Fig.2a and were treated with dasatinib (5mg kg-1 per day) for days 8-60 post-transplantation.
B5: Results shown are cumulative data obtained from two independent experiments (n=16 biologically independent recipient mice).
B6: Mouse survival was monitored for ninety days.
A9: Total mouse number (n) | B9: 16 | C9: 16
B10: Number of dead mouse | D10: Accumulated Number of dead mouse | F10: Survival rate for graph (%)
A11: Time post-transplantation (day) | B11: Wild type | C11: Gdpd3B KO | D11: =B11 -> Wild type | E11: =C11 -> Gdpd3B KO | F11: =D11 -> Wild type | G11: =E11 -> Gdpd3B KO
A12: 1 | D12: =SUM(B$12:B12) -> 0 | E12: =SUM(C$12:C12) -> 0 | F12: =(B$9-D12)/B$9*100 -> 100.00 | G12: =(C$9-E12)/C$9*100 -> 100.00
A13: 2 | D13: =SUM(B$12:B13) -> 0 | E13: =SUM(C$12:C13) -> 0 | F13: =(B$9-D13)/B$9*100 -> 100.00 | G13: 100.00
A14: 3 | D14: =SUM(B$12:B14) -> 0 | E14: =SUM(C$12:C14) -> 0 | F14: 100.00 | G14: 100.00
A15: 4 | D15: =SUM(B$12:B15) -> 0 | E15: =SUM(C$12:C15) -> 0 | F15: 100.00 | G15: 100.00
A16: 5 | D16: =SUM(B$12:B16) -> 0 | E16: =SUM(C$12:C16) -> 0 | F16: 100.00 | G16: 100.00
A17: 6 | D17: =SUM(B$12:B17) -> 0 | E17: =SUM(C$12:C17) -> 0 | F17: 100.00 | G17: 100.00
A18: 7 | D18: =SUM(B$12:B18) -> 0 | E18: =SUM(C$12:C18) -> 0 | F18: 100.00 | G18: 100.00
A19: 8 | D19: =SUM(B$12:B19) -> 0 | E19: =SUM(C$12:C19) -> 0 | F19: 100.00 | G19: 100.00
A20: 9 | D20: =SUM(B$12:B20) -> 0 | E20: =SUM(C$12:C20) -> 0 | F20: 100.00 | G20: 100.00
A21: 10 | D21: =SUM(B$12:B21) -> 0 | E21: =SUM(C$12:C21) -> 0 | F21: 100.00 | G21: 100.00
A22: 11 | D22: =SUM(B$12:B22) -> 0 | E22: =SUM(C$12:C22) -> 0 | F22: 100.00 | G22: 100.00
A23: 12 | D23: =SUM(B$12:B23) -> 0 | E23: =SUM(C$12:C23) -> 0 | F23: 100.00 | G23: 100.00
A24: 13 | D24: =SUM(B$12:B24) -> 0 | E24: =SUM(C$12:C24) -> 0 | F24: 100.00 | G24: 100.00
A25: 14 | D25: =SUM(B$12:B25) -> 0 | E25: =SUM(C$12:C25) -> 0 | F25: 100.00 | G25: 100.00
A26: 15 | D26: =SUM(B$12:B26) -> 0 | E26: =SUM(C$12:C26) -> 0 | F26: 100.00 | G26: 100.00
A27: 16 | D27: =SUM(B$12:B27) -> 0 | E27: =SUM(C$12:C27) -> 0 | F27: 100.00 | G27: 100.00
A28: 17 | D28: =SUM(B$12:B28) -> 0 | E28: =SUM(C$12:C28) -> 0 | F28: 100.00 | G28: 100.00
A29: 18 | D29: =SUM(B$12:B29) -> 0 | E29: =SUM(C$12:C29) -> 0 | F29: 100.00 | G29: 100.00
A30: 19 | D30: =SUM(B$12:B30) -> 0 | E30: =SUM(C$12:C30) -> 0 | F30: 100.00 | G30: 100.00
A31: 20 | D31: =SUM(B$12:B31) -> 0 | E31: =SUM(C$12:C31) -> 0 | F31: 100.00 | G31: 100.00
A32: 21 | D32: =SUM(B$12:B32) -> 0 | E32: =SUM(C$12:C32) -> 0 | F32: 100.00 | G32: 100.00
A33: 22 | D33: =SUM(B$12:B33) -> 0 | E33: =SUM(C$12:C33) -> 0 | F33: 100.00 | G33: 100.00
A34: 23 | D34: =SUM(B$12:B34) -> 0 | E34: =SUM(C$12:C34) -> 0 | F34: 100.00 | G34: 100.00
A35: 24 | D35: =SUM(B$12:B35) -> 0 | E35: =SUM(C$12:C35) -> 0 | F35: 100.00 | G35: 100.00
A36: 25 | D36: =SUM(B$12:B36) -> 0 | E36: =SUM(C$12:C36) -> 0 | F36: 100.00 | G36: 100.00
A37: 26 | D37: =SUM(B$12:B37) -> 0 | E37: =SUM(C$12:C37) -> 0 | F37: 100.00 | G37: 100.00
A38: 27 | D38: =SUM(B$12:B38) -> 0 | E38: =SUM(C$12:C38) -> 0 | F38: 100.00 | G38: 100.00
A39: 28 | D39: =SUM(B$12:B39) -> 0 | E39: =SUM(C$12:C39) -> 0 | F39: 100.00 | G39: 100.00
A40: 29 | D40: =SUM(B$12:B40) -> 0 | E40: =SUM(C$12:C40) -> 0 | F40: 100.00 | G40: 100.00
A41: 30 | B41: 4 | C41: 2 | D41: =SUM(B$12:B41) -> 4 | E41: =SUM(C$12:C41) -> 2 | F41: 75.00 | G41: 87.50
A42: 31 | C42: 1 | D42: =SUM(B$12:B42) -> 4 | E42: =SUM(C$12:C42) -> 3 | F42: 75.00 | G42: 81.25
A43: 32 | D43: =SUM(B$12:B43) -> 4 | E43: =SUM(C$12:C43) -> 3 | F43: 75.00 | G43: 81.25
A44: 33 | C44: 1 | D44: =SUM(B$12:B44) -> 4 | E44: =SUM(C$12:C44) -> 4 | F44: 75.00 | G44: 75.00
A45: 34 | D45: =SUM(B$12:B45) -> 4 | E45: =SUM(C$12:C45) -> 4 | F45: 75.00 | G45: 75.00
A46: 35 | D46: =SUM(B$12:B46) -> 4 | E46: =SUM(C$12:C46) -> 4 | F46: 75.00 | G46: 75.00
A47: 36 | D47: =SUM(B$12:B47) -> 4 | E47: =SUM(C$12:C47) -> 4 | F47: 75.00 | G47: 75.00
A48: 37 | D48: =SUM(B$12:B48) -> 4 | E48: =SUM(C$12:C48) -> 4 | F48: 75.00 | G48: 75.00
A49: 38 | D49: =SUM(B$12:B49) -> 4 | E49: =SUM(C$12:C49) -> 4 | F49: 75.00 | G49: 75.00
A50: 39 | D50: =SUM(B$12:B50) -> 4 | E50: =SUM(C$12:C50) -> 4 | F50: 75.00 | G50: 75.00
A51: 40 | B51: 1 | D51: =SUM(B$12:B51) -> 5 | E51: =SUM(C$12:C51) -> 4 | F51: 68.75 | G51: 75.00
A52: 41 | D52: =SUM(B$12:B52) -> 5 | E52: =SUM(C$12:C52) -> 4 | F52: 68.75 | G52: 75.00
A53: 42 | D53: =SUM(B$12:B53) -> 5 | E53: =SUM(C$12:C53) -> 4 | F53: 68.75 | G53: 75.00
A54: 43 | D54: =SUM(B$12:B54) -> 5 | E54: =SUM(C$12:C54) -> 4 | F54: 68.75 | G54: 75.00
A55: 44 | D55: =SUM(B$12:B55) -> 5 | E55: =SUM(C$12:C55) -> 4 | F55: 68.75 | G55: 75.00
A56: 45 | B56: 4 | D56: =SUM(B$12:B56) -> 9 | E56: =SUM(C$12:C56) -> 4 | F56: 43.75 | G56: 75.00
A57: 46 | D57: =SUM(B$12:B57) -> 9 | E57: =SUM(C$12:C57) -> 4 | F57: 43.75 | G57: 75.00
A58: 47 | D58: =SUM(B$12:B58) -> 9 | E58: =SUM(C$12:C58) -> 4 | F58: 43.75 | G58: 75.00
A59: 48 | D59: =SUM(B$12:B59) -> 9 | E59: =SUM(C$12:C59) -> 4 | F59: 43.75 | G59: 75.00
A60: 49 | D60: =SUM(B$12:B60) -> 9 | E60: =SUM(C$12:C60) -> 4 | F60: 43.75 | G60: 75.00
A61: 50 | D61: =SUM(B$12:B61) -> 9 | E61: =SUM(C$12:C61) -> 4 | F61: 43.75 | G61: 75.00
A62: 51 | D62: =SUM(B$12:B62) -> 9 | E62: =SUM(C$12:C62) -> 4 | F62: 43.75 | G62: 75.00
A63: 52 | D63: =SUM(B$12:B63) -> 9 | E63: =SUM(C$12:C63) -> 4 | F63: 43.75 | G63: 75.00
A64: 53 | B64: 1 | D64: =SUM(B$12:B64) -> 10 | E64: =SUM(C$12:C64) -> 4 | F64: 37.50 | G64: 75.00
A65: 54 | D65: =SUM(B$12:B65) -> 10 | E65: =SUM(C$12:C65) -> 4 | F65: 37.50 | G65: 75.00
A66: 55 | D66: =SUM(B$12:B66) -> 10 | E66: =SUM(C$12:C66) -> 4 | F66: 37.50 | G66: 75.00
A67: 56 | D67: =SUM(B$12:B67) -> 10 | E67: =SUM(C$12:C67) -> 4 | F67: 37.50 | G67: 75.00
A68: 57 | D68: =SUM(B$12:B68) -> 10 | E68: =SUM(C$12:C68) -> 4 | F68: 37.50 | G68: 75.00
A69: 58 | D69: =SUM(B$12:B69) -> 10 | E69: =SUM(C$12:C69) -> 4 | F69: 37.50 | G69: 75.00
A70: 59 | D70: =SUM(B$12:B70) -> 10 | E70: =SUM(C$12:C70) -> 4 | F70: 37.50 | G70: 75.00
A71: 60 | D71: =SUM(B$12:B71) -> 10 | E71: =SUM(C$12:C71) -> 4 | F71: 37.50 | G71: 75.00
A72: 61 | D72: =SUM(B$12:B72) -> 10 | E72: =SUM(C$12:C72) -> 4 | F72: 37.50 | G72: 75.00
A73: 62 | D73: =SUM(B$12:B73) -> 10 | E73: =SUM(C$12:C73) -> 4 | F73: 37.50 | G73: 75.00
A74: 63 | D74: =SUM(B$12:B74) -> 10 | E74: =SUM(C$12:C74) -> 4 | F74: 37.50 | G74: 75.00
A75: 64 | D75: =SUM(B$12:B75) -> 10 | E75: =SUM(C$12:C75) -> 4 | F75: 37.50 | G75: 75.00
A76: 65 | D76: =SUM(B$12:B76) -> 10 | E76: =SUM(C$12:C76) -> 4 | F76: 37.50 | G76: 75.00
A77: 66 | B77: 1 | D77: =SUM(B$12:B77) -> 11 | E77: =SUM(C$12:C77) -> 4 | F77: =(B$9-D77)/B$9*100 -> 31.25 | G77: 75.00
A78: 67 | B78: 1 | D78: =SUM(B$12:B78) -> 12 | E78: =SUM(C$12:C78) -> 4 | F78: 25.00 | G78: 75.00
A79: 68 | D79: =SUM(B$12:B79) -> 12 | E79: =SUM(C$12:C79) -> 4 | F79: 25.00 | G79: 75.00
A80: 69 | D80: =SUM(B$12:B80) -> 12 | E80: =SUM(C$12:C80) -> 4 | F80: 25.00 | G80: 75.00
A81: 70 | D81: =SUM(B$12:B81) -> 12 | E81: =SUM(C$12:C81) -> 4 | F81: 25.00 | G81: 75.00
A82: 71 | D82: =SUM(B$12:B82) -> 12 | E82: =SUM(C$12:C82) -> 4 | F82: 25.00 | G82: 75.00
A83: 72 | D83: =SUM(B$12:B83) -> 12 | E83: =SUM(C$12:C83) -> 4 | F83: 25.00 | G83: 75.00
A84: 73 | B84: 1 | C84: 1 | D84: =SUM(B$12:B84) -> 13 | E84: =SUM(C$12:C84) -> 5 | F84: 18.75 | G84: 68.75
A85: 74 | D85: =SUM(B$12:B85) -> 13 | E85: =SUM(C$12:C85) -> 5 | F85: 18.75 | G85: 68.75
A86: 75 | D86: =SUM(B$12:B86) -> 13 | E86: =SUM(C$12:C86) -> 5 | F86: 18.75 | G86: 68.75
A87: 76 | C87: 1 | D87: =SUM(B$12:B87) -> 13 | E87: =SUM(C$12:C87) -> 6 | F87: 18.75 | G87: 62.50
A88: 77 | D88: =SUM(B$12:B88) -> 13 | E88: =SUM(C$12:C88) -> 6 | F88: 18.75 | G88: 62.50
A89: 78 | D89: =SUM(B$12:B89) -> 13 | E89: =SUM(C$12:C89) -> 6 | F89: 18.75 | G89: 62.50
A90: 79 | D90: =SUM(B$12:B90) -> 13 | E90: =SUM(C$12:C90) -> 6 | F90: 18.75 | G90: 62.50
A91: 80 | C91: 1 | D91: =SUM(B$12:B91) -> 13 | E91: =SUM(C$12:C91) -> 7 | F91: 18.75 | G91: 56.25
A92: 81 | D92: =SUM(B$12:B92) -> 13 | E92: =SUM(C$12:C92) -> 7 | F92: 18.75 | G92: 56.25
A93: 82 | D93: =SUM(B$12:B93) -> 13 | E93: =SUM(C$12:C93) -> 7 | F93: 18.75 | G93: 56.25
A94: 83 | D94: =SUM(B$12:B94) -> 13 | E94: =SUM(C$12:C94) -> 7 | F94: 18.75 | G94: 56.25
A95: 84 | B95: 1 | D95: =SUM(B$12:B95) -> 14 | E95: =SUM(C$12:C95) -> 7 | F95: 12.50 | G95: 56.25
A96: 85 | D96: =SUM(B$12:B96) -> 14 | E96: =SUM(C$12:C96) -> 7 | F96: 12.50 | G96: 56.25
A97: 86 | D97: =SUM(B$12:B97) -> 14 | E97: =SUM(C$12:C97) -> 7 | F97: 12.50 | G97: 56.25
A98: 87 | C98: 1 | D98: =SUM(B$12:B98) -> 14 | E98: =SUM(C$12:C98) -> 8 | F98: 12.50 | G98: 50.00
A99: 88 | D99: =SUM(B$12:B99) -> 14 | E99: =SUM(C$12:C99) -> 8 | F99: 12.50 | G99: 50.00
A100: 89 | D100: =SUM(B$12:B100) -> 14 | E100: =SUM(C$12:C100) -> 8 | F100: 12.50 | G100: 50.00
A101: 90 | B101: 1 | D101: =SUM(B$12:B101) -> 15 | E101: =SUM(C$12:C101) -> 8 | F101: 6.25 | G101: 50.00

Sheet Figure 6b
A1: Title | B1: The lysophospholipase D enzyme Gdpd3 is required to maintain chronic myelogenous leukaemia stem cells
A2: Authour | B2: Kazuhito Naka, Ryosuke Ochiai, Eriko Matsubara, Chie Kondo, Kyung-Min Yang, Takayuki Hoshii, Masatake Araki, Kimi Araki, Yusuke Sotomaru, Ko Sasaki, Kinuko Mitani, Dong-Wook Kim, Akira Ooshima and Seong-Jin Kim
A4: Figure 6b
B9: Post-day 16-24
B10: Frequency of EGFP+ cells (%)
B11: Sample 1 | C11: Sample 2 | D11: Sample 3 | E11: Sample 4 | F11: Average | G11: Stdev | H11: T Test
A12: WT | B12: 78.5 | C12: 43.7 | D12: 83.5 | E12: 77.8 | F12: =AVERAGE(B12:E12) -> 70.88 | G12: =STDEV(B12:E12) -> 18.29
A13: Gdpd3B KO | B13: 77.9 | C13: 85 | D13: 91.7 | E13: 75.6 | F13: =AVERAGE(B13:E13) -> 82.55 | G13: =STDEV(B13:E13) -> 7.29 | H13: =TTEST(B12:E12,B13:E13,2,2) -> 0.28060
B16: Frequency of BCR-ABL1/EGFP+leukaemia cells at 16-24 days post-transplantation in PB from retro-CML-affected mice that received BCR-ABL1/EGFP-transduced LSK cells from Gdpd3+/+ mice (4 females) or Gdpd3-/- mice (4 females) as in Fig.2a and were not treated with TKI (n=4 biologically independent samples) (P-value, unpaired two-sided Student’s t-test).

Sheet Figure 6c
A1: Title | B1: The lysophospholipase D enzyme Gdpd3 is required to maintain chronic myelogenous leukaemia stem cells
A2: Authour | B2: Kazuhito Naka, Ryosuke Ochiai, Eriko Matsubara, Chie Kondo, Kyung-Min Yang, Takayuki Hoshii, Masatake Araki, Kimi Araki, Yusuke Sotomaru, Ko Sasaki, Kinuko Mitani, Dong-Wook Kim, Akira Ooshima and Seong-Jin Kim
A4: Figure 6c
B9: Post-day 40-60
B10: Frequency of EGFP+ cells (%)
B11: Sample 1 | C11: Sample 2 | D11: Sample 3 | E11: Sample 4 | F11: Average | G11: Stdev | H11: T Test
A12: WT | B12: 34.7 | C12: 75 | D12: 12.8 | E12: 48.7 | F12: =AVERAGE(B12:E12) -> 42.80 | G12: =STDEV(B12:E12) -> 26.06
A13: Gdpd3B KO | B13: 1 | C13: 10.4 | D13: 4.8 | E13: 8.4 | F13: =AVERAGE(B13:E13) -> 6.15 | G13: =STDEV(B13:E13) -> 4.14 | H13: =TTEST(B12:E12,B13:E13,2,2) -> 0.03208
B17: Frequency of BCR-ABL1/EGFP+leukaemia cells at 40-60 days post-transplantation in PB from retro-CML-affected mice that received BCR-ABL1/EGFP-transduced LSK cells from Gdpd3+/+ mice (4 females) or Gdpd3-/- mice (4 females) as in Fig.2a and were treated with dasatinib as in (a) (n=4 biologically independent samples) (P-value, unpaired two-sided Student’s t-test).

Sheet Figure 6d
A1: Title | B1: The lysophospholipase D enzyme Gdpd3 is required to maintain chronic myelogenous leukaemia stem cells
A2: Authour | B2: Kazuhito Naka, Ryosuke Ochiai, Eriko Matsubara, Chie Kondo, Kyung-Min Yang, Takayuki Hoshii, Masatake Araki, Kimi Araki, Yusuke Sotomaru, Ko Sasaki, Kinuko Mitani, Dong-Wook Kim, Akira Ooshima and Seong-Jin Kim
A4: Figure 6d
B8: GDPD3 mRNA | C8: Expression Index
C9: pre-IM | D9: post-IM | E9: T test
B10: Patient 1 | C10: 18.5 | D10: 274.9
B11: Patient 2 | C11: 23.2 | D11: 121.3
B12: Patient 3 | C12: 65.4 | D12: 204.3
B13: Patient 4 | C13: 102.9 | D13: 132.6
B14: Patient 5 | C14: 94.3 | D14: 105.1
B15: Patient 6 | C15: 65.5 | D15: 44.1 | E15: =TTEST(C10:C15,D10:D15,2,2) -> 0.03926969525
B18: Relative GDPD3 mRNA expression in CD34+ cells from CML patients pre- and post-imatinib (IM) therapy as determined by microarray analysis. Data are from a public database (GEO, GSE12211) (n=6 biologically independent samples) (P-value, unpaired two-sided Student’s t-test).

Sheet Figure 6e
A1: Title | B1: The lysophospholipase D enzyme Gdpd3 is required to maintain chronic myelogenous leukaemia stem cells
A2: Authour | B2: Kazuhito Naka, Ryosuke Ochiai, Eriko Matsubara, Chie Kondo, Kyung-Min Yang, Takayuki Hoshii, Masatake Araki, Kimi Araki, Yusuke Sotomaru, Ko Sasaki, Kinuko Mitani, Dong-Wook Kim, Akira Ooshima and Seong-Jin Kim
A4: Figure 6e
C9: Raw data | F9: Processed data
C10: Colony number | F10: Normalised to 10,000 cells
A11: K562 | B11: Sorted cell number | C11: Sample 1 | D11: Sample 2 | E11: Sample 3 | F11: Sample 1 | G11: Sample 2 | H11: Sample 3 | I11: Average | J11: Stdev | K11: T Test
A12: hGDPD3 siRNA #1 (-) | B12: 5000 | C12: 19 | D12: 20 | E12: 23 | F12: =C12/$B12*30000 -> 114.00 | G12: =D12/$B12*30000 -> 120.00 | H12: 138.00 | I12: =AVERAGE(F12:H12) -> 124.00 | J12: =STDEV(F12:H12) -> 12.49
A13: hGDPD3 siRNA #1 (+) | B13: 3536 | C13: 12 | D13: 8 | E13: 11 | F13: =C13/$B13*30000 -> 101.81 | G13: 67.87 | H13: 93.33 | I13: =AVERAGE(F13:H13) -> 87.67 | J13: 17.66 | K13: =TTEST(F12:H12,F13:H13,2,2) -> 0.043722
A14: hGDPD3 siRNA #2 (-) | B14: 10000 | C14: 46 | D14: 51 | E14: 48 | F14: =C14/$B14*30000 -> 138.00 | G14: 153.00 | H14: 144.00 | I14: 145.00 | J14: 7.55
A15: hGDPD3 siRNA #2 (+) | B15: 7445 | C15: 21 | D15: 16 | E15: 20 | F15: =C15/$B15*30000 -> 84.62 | G15: 64.47 | H15: 80.59 | I15: =AVERAGE(F15:H15) -> 76.56 | J15: =STDEV(F15:H15) -> 10.66 | K15: =TTEST(F14:H14,F15:H15,2,2) -> 0.000818
B18: Quantitation of the colony-forming capacity of K562 human CML cells that were transduced with/without FITC-labelled siRNA targetting human GDPD3 mRNA (hGDPD3 siRNA #1 or #2). FITC+ and FITC- CML cells were purified at three days post-transduction and plated in semi-solid methylcellulose medium for fourteen days. Data are the mean colony number±s.d. (n=3). (P-value compared with control, unpaired two-sided Student’s t-test).

Sheet Figure 6fg
A1: Title | B1: The lysophospholipase D enzyme Gdpd3 is required to maintain chronic myelogenous leukaemia stem cells
A2: Authour | B2: Kazuhito Naka, Ryosuke Ochiai, Eriko Matsubara, Chie Kondo, Kyung-Min Yang, Takayuki Hoshii, Masatake Araki, Kimi Araki, Yusuke Sotomaru, Ko Sasaki, Kinuko Mitani, Dong-Wook Kim, Akira Ooshima and Seong-Jin Kim
A4: Figure 6f
C6: Raw data | F6: Processed data
C7: Colony number | F7: Normalised to 10,000 cells
A8: human CD34+ CML cells | B8: Sorted cell number | C8: Sample 1 | D8: Sample 2 | E8: Sample 3 | F8: Sample 1 | G8: Sample 2 | H8: Sample 3 | I8: Average | J8: Stdev | K8: T Test
A9: hGDPD3 siRNA #1 (-) | B9: 1966 | C9: 38 | D9: 46 | E9: 58 | F9: =C9/$B9*30000 -> 579.86 | G9: 701.93 | H9: 885.05 | I9: =AVERAGE(F9:H9) -> 722.28 | J9: =STDEV(F9:H9) -> 153.61
A10: hGDPD3 siRNA #1 (+) | B10: 1018 | C10: 6 | D10: 8 | E10: 8 | F10: 176.82 | G10: 235.76 | H10: 235.76 | I10: 216.11 | J10: 34.03 | K10: =TTEST(F9:H9,F10:H10,2,2) -> 0.005082
A11: hGDPD3 siRNA #2 (-) | B11: 1816 | C11: 32 | D11: 47 | E11: 35 | F11: 528.63 | G11: 776.43 | H11: 578.19 | I11: =AVERAGE(F11:H11) -> 627.75 | J11: =STDEV(F11:H11) -> 131.12
A12: hGDPD3 siRNA #2 (+) | B12: 285 | C12: 3 | D12: 2 | E12: 2 | F12: 315.79 | G12: 210.53 | H12: 210.53 | I12: 245.61 | J12: 60.77 | K12: =TTEST(F11:H11,F12:H12,2,2) -> 0.010185
A15: Quantitation of the colony-forming capacity of primary human BM CD34+ CML cells that were transduced with/without FITC-labelled siRNA targetting human GDPD3 mRNA (hGDPD3 siRNA #1 or #2). FITC+ and FITC- CML cells were purified at three days post-transduction and plated in semi-solid methylcellulose medium for fourteen days. Data are the mean colony number±s.d. (n=3). The relevant FACS data are shown in Supplementary Fig.10 (P-value compared with control, unpaired two-sided Student’s t-test).
A22: Figure 6g
D24: Raw data | G24: Processed data
D25: Colony number | G25: Normalised to 10,000 cells
A26: human CD34+ CML cells | B26: Treatment | C26: Sorted cell number | D26: Sample 1 | E26: Sample 2 | F26: Sample 3 | G26: Sample 1 | H26: Sample 2 | I26: Sample 3 | J26: Average | K26: Stdev | L26: T Test
A27: hGDPD3 siRNA #1 (-) | B27: Imatinib (-) | C27: 2004 | D27: 62 | E27: 46 | F27: 71 | G27: =D27/$C27*30000 -> 928.14 | H27: 688.62 | I27: 1062.87 | J27: =AVERAGE(G27:I27) -> 893.21 | K27: =STDEV(G27:I27) -> 189.56
A28: hGDPD3 siRNA #1 (-) | B28: Imatinib (+) | C28: 5010 | D28: 7 | E28: 11 | F28: 8 | G28: 41.92 | H28: 65.87 | I28: 47.90 | J28: =AVERAGE(G28:I28) -> 51.90 | K28: 12.47
A29: hGDPD3 siRNA #1 (+) | B29: Imatinib (+) | C29: 198 | D29: 0 | E29: 0 | F29: 0 | G29: 0.00 | H29: 0.00 | I29: 0.00 | J29: 0.00 | K29: 0.00 | L29: =TTEST(G28:I28,G29:I29,2,2) -> 0.001961
A32: Quantitation of the colony-forming capacity of primary human BM CD34+ CML cells that were transduced with/without FITC-labelled siRNA targetting human GDPD3 mRNA (hGDPD3 siRNA #1 or #2). FITC+ and FITC- CML cells were purified at three days post-transduction and plated in semi-solid methylcellulose medium with/without imatinib (1mM) for fourteen days. Data are the mean colony number±s.d. (n=3) (P-value compared with control, unpaired two-sided Student’s t-test).

Sheet Figure 7a
A1: Title | B1: The lysophospholipase D enzyme Gdpd3 is required to maintain chronic myelogenous leukaemia stem cells
A2: Authour | B2: Kazuhito Naka, Ryosuke Ochiai, Eriko Matsubara, Chie Kondo, Kyung-Min Yang, Takayuki Hoshii, Masatake Araki, Kimi Araki, Yusuke Sotomaru, Ko Sasaki, Kinuko Mitani, Dong-Wook Kim, Akira Ooshima and Seong-Jin Kim
A4: Figure 7a
A7: Lpar4/Gpr23 | B7: FPKM
A8: LT-CML stem cells | B8: Sample 1 | C8: Sample 2 | D8: Sample 3 | E8: Average | F8: Stdev | G8: T Test
A9: WT | B9: 0.8157309585 | C9: 0.4511495154 | D9: 0.5775493649 | E9: =AVERAGE(B9:D9) -> 0.6148 | F9: =STDEV(B9:D9) -> 0.1851
A10: Gdpd3 KO | B10: 0.2543782689 | C10: 0 | D10: 0.3473204573 | E10: =AVERAGE(B10:D10) -> 0.2006 | F10: =STDEV(B10:D10) -> 0.1798 | G10: =TTEST(B9:D9,B10:D10,2,2) -> 0.04981
A13: Ltb4r1/Gpr16 | B13: FPKM
A14: LT-CML stem cells | B14: Sample 1 | C14: Sample 2 | D14: Sample 3 | E14: Average | F14: Stdev | G14: T Test
A15: WT | B15: 47.31393678 | C15: 48.98798707 | D15: 47.78837066 | E15: =AVERAGE(B15:D15) -> 48.0301 | F15: =STDEV(B15:D15) -> 0.8628
A16: Gdpd3 KO | B16: 16.07230802 | C16: 6.814848783 | D16: 16.76620182 | E16: =AVERAGE(B16:D16) -> 13.2178 | F16: =STDEV(B16:D16) -> 5.5559 | G16: =TTEST(B15:D15,B16:D16,2,2) -> 0.00043
A19: Gpr82 | B19: FPKM
A20: LT-CML stem cells | B20: Sample 1 | C20: Sample 2 | D20: Sample 3 | E20: Average | F20: Stdev | G20: T Test
A21: WT | B21: 0.06439481429 | C21: 0.2169504605 | D21: 0.1176285563 | E21: =AVERAGE(B21:D21) -> 0.1330 | F21: =STDEV(B21:D21) -> 0.0774
A22: Gdpd3 KO | B22: 0.01877130999 | C22: 0 | D22: 0.06372811041 | E22: =AVERAGE(B22:D22) -> 0.0275 | F22: =STDEV(B22:D22) -> 0.0327 | G22: =TTEST(B21:D21,B22:D22,2,2) -> 0.09545
A25: Gpr84 | B25: FPKM
A26: LT-CML stem cells | B26: Sample 1 | C26: Sample 2 | D26: Sample 3 | E26: Average | F26: Stdev | G26: T Test
A27: WT | B27: 3.578959915 | C27: 3.628634361 | D27: 3.516200024 | E27: =AVERAGE(B27:D27) -> 3.5746 | F27: =STDEV(B27:D27) -> 0.0563
A28: Gdpd3 KO | B28: 0 | C28: 0 | D28: 0.9753073362 | E28: =AVERAGE(B28:D28) -> 0.3251 | F28: =STDEV(B28:D28) -> 0.5631 | G28: =TTEST(B27:D27,B28:D28,2,2) -> 0.00057
A31: Lgr4/Gpr48 | B31: FPKM
A32: LT-CML stem cells | B32: Sample 1 | C32: Sample 2 | D32: Sample 3 | E32: Average | F32: Stdev | G32: T Test
A33: WT | B33: 0.498723281 | C33: 0.5415736592 | D33: 0.7265866787 | E33: =AVERAGE(B33:D33) -> 0.5890 | F33: =STDEV(B33:D33) -> 0.1211
A34: Gdpd3 KO | B34: 0.05576202027 | C34: 0.09332547953 | D34: 0.3583379444 | E34: =AVERAGE(B34:D34) -> 0.1691 | F34: =STDEV(B34:D34) -> 0.1649 | G34: =TTEST(B33:D33,B34:D34,2,2) -> 0.02372
A37: RNA-Seq determinations of mRNA levels of the indicated GPCR family genes in LT-CML stem cells isolated from Gdpd3+/+ tet-CML-affected mice (22 males, 12 females) and Gdpd3-/- tet-CML-affected mice (5 males, 5 females). Results are expressed as FPKM (see Methods). T test data are the mean FPKM±s.d. (n=3 biologically independent samples) (P-value, unpaired two-sided Student’s t-test). FPKM was determined by the Bioconductor package DESeq2 (ver. 1.20.0) (https://bioconductor.org/packages/release/bioc/html/DES0eq2.html). Results of the MA-plot and GO term enrichment analyses for these RNA-Seq data are shown in Supplementary Fig.11a,b.

Sheet Figure 7b
A1: Title | B1: The lysophospholipase D enzyme Gdpd3 is required to maintain chronic myelogenous leukaemia stem cells
A2: Authour | B2: Kazuhito Naka, Ryosuke Ochiai, Eriko Matsubara, Chie Kondo, Kyung-Min Yang, Takayuki Hoshii, Masatake Araki, Kimi Araki, Yusuke Sotomaru, Ko Sasaki, Kinuko Mitani, Dong-Wook Kim, Akira Ooshima and Seong-Jin Kim
A4: Figure 7b
C9: Raw data | F9: Processed data
C10: Colony number | F10: Normalised to 1,000 cells
A11: CML LSK | B11: Sorted cell number | C11: Sample 1 | D11: Sample 2 | E11: Sample 3 | F11: Sample 1 | G11: Sample 2 | H11: Sample 3 | I11: Average | J11: Stdev | K11: T Test
A12: Control | B12: 798 | C12: 105 | D12: 117 | E12: 134 | F12: =C12/$B12*3000 -> 394.74 | G12: =D12/$B12*3000 -> 439.85 | H12: 503.76 | I12: =AVERAGE(F12:H12) -> 446.12 | J12: =STDEV(F12:H12) -> 54.78
A13: mLgr4 siRNA #3 | B13: 478 | C13: 27 | D13: 37 | E13: 29 | F13: =C13/$B13*3000 -> 169.46 | G13: 232.22 | H13: 182.01 | I13: =AVERAGE(F13:H13) -> 194.56 | J13: 33.21 | K13: =TTEST(F12:H12,F13:H13,2,2) -> 0.002441
A14: mLgr4 siRNA #4 | B14: 1011 | C14: 91 | D14: 76 | E14: 88 | F14: 270.03 | G14: 225.52 | H14: 261.13 | I14: 252.23 | J14: 23.55 | K14: =TTEST(F12:H12,F14:H14,2,2) -> 0.004890
A17: Quantitation of the colony-forming capacity of Gdpd3+/+ CML-LSK cells that were transduced with/without Cy3-labelled siRNA targetting mouse Lgr4/Gpr48 mRNA (mLgr4 #3 or Lgr4 #4). Cy3+ and Cy3- CML-LSK cells were purified at three days post-transduction and plated in semi-solid methylcellulose medium. Data are the mean colony number±s.d. (n=3) and are representative of three biologically independent experiments. (P-value compared with control, unpaired two-sided Student’s t-test). The relevant FACS data are shown in Supplementary Fig.12.

Sheet Figure 7c
A1: Title | B1: The lysophospholipase D enzyme Gdpd3 is required to maintain chronic myelogenous leukaemia stem cells
A2: Authour | B2: Kazuhito Naka, Ryosuke Ochiai, Eriko Matsubara, Chie Kondo, Kyung-Min Yang, Takayuki Hoshii, Masatake Araki, Kimi Araki, Yusuke Sotomaru, Ko Sasaki, Kinuko Mitani, Dong-Wook Kim, Akira Ooshima and Seong-Jin Kim
A4: Figure 7c
C10: Absolute number of LT-CML stem cells
C11: Sample 1 | D11: Sample 2 | E11: Sample 3 | F11: Sample 4 | G11: Sample 5 | H11: Average | I11: Stdev | J11: T Test
B12: WT | C12: 4179 | D12: 7278 | E12: 5940 | F12: 4408 | G12: 8455 | H12: =AVERAGE(C12:G12) -> 6052.13 | I12: =STDEV(C12:G12) -> 1837.09
B13: Lgr4 Gt/Gt | C13: 4186 | D13: 7152 | E13: 6665 | F13: 6232 | G13: 4833 | H13: =AVERAGE(C13:G13) -> 5813.80 | I13: =STDEV(C13:G13) -> 1255.19 | J13: =TTEST(C12:G12,C13:G13,2,2) -> 0.81673
B16: Absolute numbers of LT-CML stem cells isolated from BM of the two hind limbs of Lgr4+/+ tet-CML-affected mice (4 males, 1 female) and Lgr4Gt/Gt tet-CML-affected mice (5 females). T test data are the mean colony number±s.d. (n=5 biologically independent samples) (P-value, unpaired two-sided Student’s t-test). (See Supplementary Fig.13a).

Sheet Figure 7d
A1: Title | B1: The lysophospholipase D enzyme Gdpd3 is required to maintain chronic myelogenous leukaemia stem cells
A2: Authour | B2: Kazuhito Naka, Ryosuke Ochiai, Eriko Matsubara, Chie Kondo, Kyung-Min Yang, Takayuki Hoshii, Masatake Araki, Kimi Araki, Yusuke Sotomaru, Ko Sasaki, Kinuko Mitani, Dong-Wook Kim, Akira Ooshima and Seong-Jin Kim
A4: Figure 7d
C9: Raw data | F9: Processed data
C10: Colony number | F10: Normalised to 1,000 cells
B11: LT-CML stem cells | C11: Sample 1 | D11: Sample 2 | E11: Sample 3 | F11: Sample 1 | G11: Sample 2 | H11: Sample 3 | I11: Average | J11: Stdev | K11: T Test
B12: WT | C12: 382 | D12: 335 | E12: 341 | F12: =C12/1000*3000 -> 1146 | G12: =D12/1000*3000 -> 1005 | H12: 1023 | I12: =AVERAGE(F12:H12) -> 1058.00 | J12: =STDEV(F12:H12) -> 76.74
B13: Gdpd3B KO | C13: 243 | D13: 267 | E13: 274 | F13: =C13/1000*3000 -> 729 | G13: 801 | H13: 822 | I13: =AVERAGE(F13:H13) -> 784.00 | J13: 48.77 | K13: =TTEST(F12:H12,F13:H13,2,2) -> 0.00643
B16: Quantitation of colony-forming capacity of LT-CML stem cells that were isolated from a Lgr4+/+ tet-CML-affected mouse (1 male) and a Lgr4Gt/Gt tet-CML-affected mouse (1 male) and analysed. Data are the mean colony number±s.d. (n=3) and are representative of three biologically independent experiments. (P-value, unpaired two-sided Student’s t-test).

Sheet Figure 7e
A1: Title | B1: The lysophospholipase D enzyme Gdpd3 is required to maintain chronic myelogenous leukaemia stem cells
A2: Authour | B2: Kazuhito Naka, Ryosuke Ochiai, Eriko Matsubara, Chie Kondo, Kyung-Min Yang, Takayuki Hoshii, Masatake Araki, Kimi Araki, Yusuke Sotomaru, Ko Sasaki, Kinuko Mitani, Dong-Wook Kim, Akira Ooshima and Seong-Jin Kim
A4: Figure 7e | B4: Survival rates of retro-CML-affected mice that received BCR-ABL1/EGFP-transduced LSK cells from Lgr4+/+ mice (1 male, 1 female) or Lgr4Gt/Gt mice (2 females).
B5: Results shown are cumulative data from two independent experiments. Mouse survival was monitored for ninety days.
A9: Total mouse number (n) | B9: 17 | C9: 16
B10: Number of dead mouse | D10: Accumulated Number of dead mouse | F10: Survival rate for graph (%)
A11: Time post-transplantation (day) | B11: Wild type | C11: Lgr4 Gt/Gt | D11: =B11 -> Wild type | E11: =C11 -> Lgr4 Gt/Gt | F11: =D11 -> Wild type | G11: =E11 -> Lgr4 Gt/Gt
A12: 1 | D12: =SUM(B$12:B12) -> 0 | E12: =SUM(C$12:C12) -> 0 | F12: =(B$9-D12)/B$9*100 -> 100.00 | G12: =(C$9-E12)/C$9*100 -> 100.00
A13: 2 | D13: =SUM(B$12:B13) -> 0 | E13: =SUM(C$12:C13) -> 0 | F13: =(B$9-D13)/B$9*100 -> 100.00 | G13: 100.00
A14: 3 | D14: =SUM(B$12:B14) -> 0 | E14: =SUM(C$12:C14) -> 0 | F14: 100.00 | G14: 100.00
A15: 4 | D15: =SUM(B$12:B15) -> 0 | E15: =SUM(C$12:C15) -> 0 | F15: 100.00 | G15: 100.00
A16: 5 | D16: =SUM(B$12:B16) -> 0 | E16: =SUM(C$12:C16) -> 0 | F16: 100.00 | G16: 100.00
A17: 6 | D17: =SUM(B$12:B17) -> 0 | E17: =SUM(C$12:C17) -> 0 | F17: 100.00 | G17: 100.00
A18: 7 | D18: =SUM(B$12:B18) -> 0 | E18: =SUM(C$12:C18) -> 0 | F18: 100.00 | G18: 100.00
A19: 8 | D19: =SUM(B$12:B19) -> 0 | E19: =SUM(C$12:C19) -> 0 | F19: 100.00 | G19: 100.00
A20: 9 | D20: =SUM(B$12:B20) -> 0 | E20: =SUM(C$12:C20) -> 0 | F20: 100.00 | G20: 100.00
A21: 10 | B21: 1 | D21: =SUM(B$12:B21) -> 1 | E21: =SUM(C$12:C21) -> 0 | F21: 94.12 | G21: 100.00
A22: 11 | D22: =SUM(B$12:B22) -> 1 | E22: =SUM(C$12:C22) -> 0 | F22: 94.12 | G22: 100.00
A23: 12 | D23: =SUM(B$12:B23) -> 1 | E23: =SUM(C$12:C23) -> 0 | F23: 94.12 | G23: 100.00
A24: 13 | B24: 2 | D24: =SUM(B$12:B24) -> 3 | E24: =SUM(C$12:C24) -> 0 | F24: 82.35 | G24: 100.00
A25: 14 | B25: 1 | D25: =SUM(B$12:B25) -> 4 | E25: =SUM(C$12:C25) -> 0 | F25: 76.47 | G25: 100.00
A26: 15 | D26: =SUM(B$12:B26) -> 4 | E26: =SUM(C$12:C26) -> 0 | F26: 76.47 | G26: 100.00
A27: 16 | D27: =SUM(B$12:B27) -> 4 | E27: =SUM(C$12:C27) -> 0 | F27: 76.47 | G27: 100.00
A28: 17 | B28: 1 | D28: =SUM(B$12:B28) -> 5 | E28: =SUM(C$12:C28) -> 0 | F28: 70.59 | G28: 100.00
A29: 18 | D29: =SUM(B$12:B29) -> 5 | E29: =SUM(C$12:C29) -> 0 | F29: 70.59 | G29: 100.00
A30: 19 | B30: 1 | C30: 2 | D30: =SUM(B$12:B30) -> 6 | E30: =SUM(C$12:C30) -> 2 | F30: 64.71 | G30: 87.50
A31: 20 | B31: 3 | D31: =SUM(B$12:B31) -> 9 | E31: =SUM(C$12:C31) -> 2 | F31: 47.06 | G31: 87.50
A32: 21 | B32: 1 | C32: 1 | D32: =SUM(B$12:B32) -> 10 | E32: =SUM(C$12:C32) -> 3 | F32: 41.18 | G32: 81.25
A33: 22 | B33: 1 | D33: =SUM(B$12:B33) -> 11 | E33: =SUM(C$12:C33) -> 3 | F33: 35.29 | G33: 81.25
A34: 23 | D34: =SUM(B$12:B34) -> 11 | E34: =SUM(C$12:C34) -> 3 | F34: 35.29 | G34: 81.25
A35: 24 | C35: 1 | D35: =SUM(B$12:B35) -> 11 | E35: =SUM(C$12:C35) -> 4 | F35: 35.29 | G35: 75.00
A36: 25 | D36: =SUM(B$12:B36) -> 11 | E36: =SUM(C$12:C36) -> 4 | F36: 35.29 | G36: 75.00
A37: 26 | B37: 1 | D37: =SUM(B$12:B37) -> 12 | E37: =SUM(C$12:C37) -> 4 | F37: 29.41 | G37: 75.00
A38: 27 | B38: 1 | D38: =SUM(B$12:B38) -> 13 | E38: =SUM(C$12:C38) -> 4 | F38: 23.53 | G38: 75.00
A39: 28 | D39: =SUM(B$12:B39) -> 13 | E39: =SUM(C$12:C39) -> 4 | F39: 23.53 | G39: 75.00
A40: 29 | C40: 1 | D40: =SUM(B$12:B40) -> 13 | E40: =SUM(C$12:C40) -> 5 | F40: 23.53 | G40: 68.75
A41: 30 | B41: 1 | C41: 1 | D41: =SUM(B$12:B41) -> 14 | E41: =SUM(C$12:C41) -> 6 | F41: 17.65 | G41: 62.50
A42: 31 | D42: =SUM(B$12:B42) -> 14 | E42: =SUM(C$12:C42) -> 6 | F42: 17.65 | G42: 62.50
A43: 32 | D43: =SUM(B$12:B43) -> 14 | E43: =SUM(C$12:C43) -> 6 | F43: 17.65 | G43: 62.50
A44: 33 | D44: =SUM(B$12:B44) -> 14 | E44: =SUM(C$12:C44) -> 6 | F44: 17.65 | G44: 62.50
A45: 34 | D45: =SUM(B$12:B45) -> 14 | E45: =SUM(C$12:C45) -> 6 | F45: 17.65 | G45: 62.50
A46: 35 | B46: 1 | D46: =SUM(B$12:B46) -> 15 | E46: =SUM(C$12:C46) -> 6 | F46: 11.76 | G46: 62.50
A47: 36 | D47: =SUM(B$12:B47) -> 15 | E47: =SUM(C$12:C47) -> 6 | F47: 11.76 | G47: 62.50
A48: 37 | D48: =SUM(B$12:B48) -> 15 | E48: =SUM(C$12:C48) -> 6 | F48: 11.76 | G48: 62.50
A49: 38 | D49: =SUM(B$12:B49) -> 15 | E49: =SUM(C$12:C49) -> 6 | F49: 11.76 | G49: 62.50
A50: 39 | D50: =SUM(B$12:B50) -> 15 | E50: =SUM(C$12:C50) -> 6 | F50: 11.76 | G50: 62.50
A51: 40 | D51: =SUM(B$12:B51) -> 15 | E51: =SUM(C$12:C51) -> 6 | F51: 11.76 | G51: 62.50
A52: 41 | D52: =SUM(B$12:B52) -> 15 | E52: =SUM(C$12:C52) -> 6 | F52: 11.76 | G52: 62.50
A53: 42 | D53: =SUM(B$12:B53) -> 15 | E53: =SUM(C$12:C53) -> 6 | F53: 11.76 | G53: 62.50
A54: 43 | D54: =SUM(B$12:B54) -> 15 | E54: =SUM(C$12:C54) -> 6 | F54: 11.76 | G54: 62.50
A55: 44 | D55: =SUM(B$12:B55) -> 15 | E55: =SUM(C$12:C55) -> 6 | F55: 11.76 | G55: 62.50
A56: 45 | D56: =SUM(B$12:B56) -> 15 | E56: =SUM(C$12:C56) -> 6 | F56: 11.76 | G56: 62.50
A57: 46 | D57: =SUM(B$12:B57) -> 15 | E57: =SUM(C$12:C57) -> 6 | F57: 11.76 | G57: 62.50
A58: 47 | D58: =SUM(B$12:B58) -> 15 | E58: =SUM(C$12:C58) -> 6 | F58: 11.76 | G58: 62.50
A59: 48 | D59: =SUM(B$12:B59) -> 15 | E59: =SUM(C$12:C59) -> 6 | F59: 11.76 | G59: 62.50
A60: 49 | D60: =SUM(B$12:B60) -> 15 | E60: =SUM(C$12:C60) -> 6 | F60: 11.76 | G60: 62.50
A61: 50 | D61: =SUM(B$12:B61) -> 15 | E61: =SUM(C$12:C61) -> 6 | F61: 11.76 | G61: 62.50
A62: 51 | D62: =SUM(B$12:B62) -> 15 | E62: =SUM(C$12:C62) -> 6 | F62: 11.76 | G62: 62.50
A63: 52 | D63: =SUM(B$12:B63) -> 15 | E63: =SUM(C$12:C63) -> 6 | F63: 11.76 | G63: 62.50
A64: 53 | B64: 1 | D64: =SUM(B$12:B64) -> 16 | E64: =SUM(C$12:C64) -> 6 | F64: 5.88 | G64: 62.50
A65: 54 | D65: =SUM(B$12:B65) -> 16 | E65: =SUM(C$12:C65) -> 6 | F65: 5.88 | G65: 62.50
A66: 55 | D66: =SUM(B$12:B66) -> 16 | E66: =SUM(C$12:C66) -> 6 | F66: 5.88 | G66: 62.50
A67: 56 | D67: =SUM(B$12:B67) -> 16 | E67: =SUM(C$12:C67) -> 6 | F67: 5.88 | G67: 62.50
A68: 57 | D68: =SUM(B$12:B68) -> 16 | E68: =SUM(C$12:C68) -> 6 | F68: 5.88 | G68: 62.50
A69: 58 | D69: =SUM(B$12:B69) -> 16 | E69: =SUM(C$12:C69) -> 6 | F69: 5.88 | G69: 62.50
A70: 59 | B70: 1 | D70: =SUM(B$12:B70) -> 17 | E70: =SUM(C$12:C70) -> 6 | F70: 0.00 | G70: 62.50
A71: 60 | D71: =SUM(B$12:B71) -> 17 | E71: =SUM(C$12:C71) -> 6 | F71: 0.00 | G71: 62.50
A72: 61 | D72: =SUM(B$12:B72) -> 17 | E72: =SUM(C$12:C72) -> 6 | F72: 0.00 | G72: 62.50
A73: 62 | D73: =SUM(B$12:B73) -> 17 | E73: =SUM(C$12:C73) -> 6 | F73: 0.00 | G73: 62.50
A74: 63 | D74: =SUM(B$12:B74) -> 17 | E74: =SUM(C$12:C74) -> 6 | F74: 0.00 | G74: 62.50
A75: 64 | D75: =SUM(B$12:B75) -> 17 | E75: =SUM(C$12:C75) -> 6 | F75: 0.00 | G75: 62.50
A76: 65 | D76: =SUM(B$12:B76) -> 17 | E76: =SUM(C$12:C76) -> 6 | F76: 0.00 | G76: 62.50
A77: 66 | D77: =SUM(B$12:B77) -> 17 | E77: =SUM(C$12:C77) -> 6 | F77: =(B$9-D77)/B$9*100 -> 0.00 | G77: 62.50
A78: 67 | D78: =SUM(B$12:B78) -> 17 | E78: =SUM(C$12:C78) -> 6 | F78: 0.00 | G78: 62.50
A79: 68 | D79: =SUM(B$12:B79) -> 17 | E79: =SUM(C$12:C79) -> 6 | F79: 0.00 | G79: 62.50
A80: 69 | C80: 1 | D80: =SUM(B$12:B80) -> 17 | E80: =SUM(C$12:C80) -> 7 | F80: 0.00 | G80: 56.25
A81: 70 | D81: =SUM(B$12:B81) -> 17 | E81: =SUM(C$12:C81) -> 7 | F81: 0.00 | G81: 56.25
A82: 71 | D82: =SUM(B$12:B82) -> 17 | E82: =SUM(C$12:C82) -> 7 | F82: 0.00 | G82: 56.25
A83: 72 | D83: =SUM(B$12:B83) -> 17 | E83: =SUM(C$12:C83) -> 7 | F83: 0.00 | G83: 56.25
A84: 73 | D84: =SUM(B$12:B84) -> 17 | E84: =SUM(C$12:C84) -> 7 | F84: 0.00 | G84: 56.25
A85: 74 | D85: =SUM(B$12:B85) -> 17 | E85: =SUM(C$12:C85) -> 7 | F85: 0.00 | G85: 56.25
A86: 75 | D86: =SUM(B$12:B86) -> 17 | E86: =SUM(C$12:C86) -> 7 | F86: 0.00 | G86: 56.25
A87: 76 | D87: =SUM(B$12:B87) -> 17 | E87: =SUM(C$12:C87) -> 7 | F87: 0.00 | G87: 56.25
A88: 77 | D88: =SUM(B$12:B88) -> 17 | E88: =SUM(C$12:C88) -> 7 | F88: 0.00 | G88: 56.25
A89: 78 | D89: =SUM(B$12:B89) -> 17 | E89: =SUM(C$12:C89) -> 7 | F89: 0.00 | G89: 56.25
A90: 79 | D90: =SUM(B$12:B90) -> 17 | E90: =SUM(C$12:C90) -> 7 | F90: 0.00 | G90: 56.25
A91: 80 | D91: =SUM(B$12:B91) -> 17 | E91: =SUM(C$12:C91) -> 7 | F91: 0.00 | G91: 56.25
A92: 81 | D92: =SUM(B$12:B92) -> 17 | E92: =SUM(C$12:C92) -> 7 | F92: 0.00 | G92: 56.25
A93: 82 | D93: =SUM(B$12:B93) -> 17 | E93: =SUM(C$12:C93) -> 7 | F93: 0.00 | G93: 56.25
A94: 83 | D94: =SUM(B$12:B94) -> 17 | E94: =SUM(C$12:C94) -> 7 | F94: 0.00 | G94: 56.25
A95: 84 | D95: =SUM(B$12:B95) -> 17 | E95: =SUM(C$12:C95) -> 7 | F95: 0.00 | G95: 56.25
A96: 85 | D96: =SUM(B$12:B96) -> 17 | E96: =SUM(C$12:C96) -> 7 | F96: 0.00 | G96: 56.25
A97: 86 | D97: =SUM(B$12:B97) -> 17 | E97: =SUM(C$12:C97) -> 7 | F97: 0.00 | G97: 56.25
A98: 87 | D98: =SUM(B$12:B98) -> 17 | E98: =SUM(C$12:C98) -> 7 | F98: 0.00 | G98: 56.25
A99: 88 | D99: =SUM(B$12:B99) -> 17 | E99: =SUM(C$12:C99) -> 7 | F99: 0.00 | G99: 56.25
A100: 89 | D100: =SUM(B$12:B100) -> 17 | E100: =SUM(C$12:C100) -> 7 | F100: 0.00 | G100: 56.25
A101: 90 | D101: =SUM(B$12:B101) -> 17 | E101: =SUM(C$12:C101) -> 7 | F101: 0.00 | G101: 56.25

Sheet Figure 7f
A1: Title | B1: The lysophospholipase D enzyme Gdpd3 is required to maintain chronic myelogenous leukaemia stem cells
A2: Authour | B2: Kazuhito Naka, Ryosuke Ochiai, Eriko Matsubara, Chie Kondo, Kyung-Min Yang, Takayuki Hoshii, Masatake Araki, Kimi Araki, Yusuke Sotomaru, Ko Sasaki, Kinuko Mitani, Dong-Wook Kim, Akira Ooshima and Seong-Jin Kim
A4: Figure 7e
C9: Absolute no. of BCR-ABL1/EGFP+ LSK cells
B10: Post BMT | C10: Sample 1 | D10: Sample 2 | E10: Sample 3 | F10: Sample 4 | G10: Sample 5 | H10: Sample 6 | I10: Sample 7 | J10: Average | K10: Stdev | L10: T Test
A11: WT | B11: 20 day | C11: 5937 | D11: 13933 | E11: 9530 | F11: 6952 | G11: 13393 | H11: 7788 | I11: 14457 | J11: =AVERAGE(C11:I11) -> 10284.4 | K11: =STDEV(C11:I11) -> 3586.84
A12: Lgr4 Gt/Gt | B12: 20 day | C12: 6639 | D12: 5450 | E12: 9429 | F12: 6825 | J12: =AVERAGE(C12:I12) -> 7085.8 | K12: =STDEV(C12:I12) -> 1676.64 | L12: =TTEST(C11:I11,C12:F12,2,2) -> 0.1324
A13: Lgr4 Gt/Gt | B13: 90 day | C13: 1290 | D13: 1720 | E13: 2704 | F13: 190 | G13: 782 | H13: 1987 | J13: 1445.5 | K13: 893.73 | L13: =TTEST(C11:I11,C13:H13,2,2) -> 0.0001
B16: Absolute numbers of BCR-ABL1/EGFP+ CML-LSK cells isolated from BM of the two hind limbs of Lgr4+/+ retro-CML-affected mice and Lgr4Gt/Gt retro-CML-affected mice after first-round BMT. T test data are the mean absolute numbers±s.d. of BCR-ABL1/EGFP+ LSK cells (P-value, unpaired two-sided Student’s t-test). (See also Supplementary Fig.13b).

Sheet Figure 7g
A1: Title | B1: The lysophospholipase D enzyme Gdpd3 is required to maintain chronic myelogenous leukaemia stem cells
A2: Authour | B2: Kazuhito Naka, Ryosuke Ochiai, Eriko Matsubara, Chie Kondo, Kyung-Min Yang, Takayuki Hoshii, Masatake Araki, Kimi Araki, Yusuke Sotomaru, Ko Sasaki, Kinuko Mitani, Dong-Wook Kim, Akira Ooshima and Seong-Jin Kim
A4: Figure 7g
C9: Frequency of BCR-ABL1/EGFP+ cells in PBMC (%)
C10: Sample 1 | D10: Sample 2 | E10: Sample 3 | F10: Sample 4 | G10: Sample 5 | H10: Sample 6 | I10: Sample 7 | J10: Average | K10: Stdev | L10: T Test
B11: WT | C11: 58 | D11: 32 | E11: 53 | J11: =AVERAGE(C11:E11) -> 47.60 | K11: =STDEV(C11:E11) -> 13.97
B12: Lgr4 Gt/Gt | C12: 23 | D12: 4 | E12: 11 | F12: 46 | G12: 19 | H12: 0 | I12: 12.4 | J12: =AVERAGE(C12:I12) -> 16.47 | K12: =STDEV(C12:I12) -> 15.40 | L12: =TTEST(C11:E11,C12:I12,2,2) -> 0.01717
C15: Frequency of BCR-ABL1/EGFP+ leukaemia cells post-BMT in PB of retro-CML-affected mice that received BCR-ABL1/EGFP-transduced LSK cells from Lgr4+/+ mice (3 females, n=3 biologically independent samples) or Lgr4Gt/Gt mice (7 females, n=7 biologically independent samples) as in Fig.7e. (P-value, unpaired two-sided Student’s t-test).

Sheet Supplementary Figure 1
A1: Title | B1: The lysophospholipase D enzyme Gdpd3 is required to maintain chronic myelogenous leukaemia stem cells
A2: Authour | B2: Kazuhito Naka, Ryosuke Ochiai, Eriko Matsubara, Chie Kondo, Kyung-Min Yang, Takayuki Hoshii, Masatake Araki, Kimi Araki, Yusuke Sotomaru, Ko Sasaki, Kinuko Mitani, Dong-Wook Kim, Akira Ooshima and Seong-Jin Kim
A4: Supplementary Figure 1 | H4: GEO, ID: GSE70031, NCBI, NIH, USA
C6: RPKM (reads per kilobase of exon per million mapped sequence reads)
C7: Normal WT | G7: tet-CML
C8: LT | D8: LT | E8: ST | F8: LK | G8: LT | H8: LT | I8: ST | J8: LK
B9: Gdpd3 | C9: 1.02335721 | D9: 0.9766427904 | E9: 0.7757707879 | F9: 4.462784179 | G9: 295.9202741 | H9: 275.6150732 | I9: 410.7754594 | J9: 127.8417938
B13: RNA-Seq determinations of Gdpd3 mRNA levels in LT-stem cells, ST-stem cells and Lineage-Sca-1-cKit+ (LK) cell populations isolated from bone marrow mononuclear cells (BMMNCs) of littermate normal healthy control mice (SCL-tTA+) and tet-CML mice (SCL-tTA+TRE-BCR-ABL1+) determined (Ref: 26). Results are expressed as RPKM (reads per kilobase of exon per million mapped sequence reads) from a public database gene expression omnibus that we previously made available (GEO, ID: GSE70031, NCBI, NIH, USA).

Sheet Supplementary Figure 3
A1: Title | B1: The lysophospholipase D enzyme Gdpd3 is required to maintain chronic myelogenous leukaemia stem cells
A2: Authour | B2: Kazuhito Naka, Ryosuke Ochiai, Eriko Matsubara, Chie Kondo, Kyung-Min Yang, Takayuki Hoshii, Masatake Araki, Kimi Araki, Yusuke Sotomaru, Ko Sasaki, Kinuko Mitani, Dong-Wook Kim, Akira Ooshima and Seong-Jin Kim
A4: Supplementary Figure 3 b | E4: Identification of genome-edited mice. Representative genomic sequencing data (n=5 biologically independent samples, two independent experiments) of Gdpd3+/+ and Gdpd3-/- mouse tails are shown.
C7: WT
C13: Gdpd3 delta 5bp
A19: Supplementary Figure 3 c | E19: Unprocessed original gel of suppementary figure 3c. Representative PCR genotyping (n=5 biologically independent samples, three independent experiments) by (right) Gdpd3 wild-type specific primer set and (left)Gdpd3 mutant allele (delta 5bp) specific primer set of Gdpd3+/+ and Gdpd3-/- mouse tails are shown.
G23: Mutant allele (delta 5bp) | J23: Wild type
G24: Marker +/+ -/- Marker +/+ -/-

Sheet Supplementary Figure 4
A1: Title | B1: The lysophospholipase D enzyme Gdpd3 is required to maintain chronic myelogenous leukaemia stem cells
A2: Authour | B2: Kazuhito Naka, Ryosuke Ochiai, Eriko Matsubara, Chie Kondo, Kyung-Min Yang, Takayuki Hoshii, Masatake Araki, Kimi Araki, Yusuke Sotomaru, Ko Sasaki, Kinuko Mitani, Dong-Wook Kim, Akira Ooshima and Seong-Jin Kim
A4: Supplementary Figure 4 a
C5: Raw data | F5: Processed data
C6: Colony number | F6: Normalised to 100,000 cells
B7: CFU-GM | C7: Sample 1 | D7: Sample 2 | E7: Sample 3 | F7: Sample 1 | G7: Sample 2 | H7: Sample 3 | I7: Average | J7: Stdev | K7: T Test
B8: WT | C8: 168 | D8: 173 | E8: 164 | F8: =C8/1000*3000 -> 504 | G8: =D8/1000*3000 -> 519 | H8: 492 | I8: =AVERAGE(F8:H8) -> 505.00 | J8: =STDEV(F8:H8) -> 13.53
B9: Gdpd3B KO | C9: 155 | D9: 184 | E9: 158 | F9: =C9/1000*3000 -> 465 | G9: 552 | H9: 474 | I9: =AVERAGE(F9:H9) -> 497.00 | J9: 47.84 | K9: =TTEST(F8:H8,F9:H9,2,2) -> 0.79429
A12: Supplementary Figure 4 b
C13: Raw data | F13: Processed data
C14: Colony number | F14: Normalised to 10,000 cells
B15: BFU-E | C15: Sample 1 | D15: Sample 2 | E15: Sample 3 | F15: Sample 1 | G15: Sample 2 | H15: Sample 3 | I15: Average | J15: Stdev | K15: T Test
B16: WT | C16: 13 | D16: 14 | E16: 17 | F16: =C16/1000*300 -> 3.9 | G16: =D16/1000*300 -> 4.2 | H16: 5.1 | I16: =AVERAGE(F16:H16) -> 4.40 | J16: =STDEV(F16:H16) -> 0.62
B17: Gdpd3B KO | C17: 19 | D17: 18 | E17: 14 | F17: =C17/1000*300 -> 5.7 | G17: 5.4 | H17: 4.2 | I17: =AVERAGE(F17:H17) -> 5.10 | J17: 0.79 | K17: =TTEST(F16:H16,F17:H17,2,2) -> 0.29618
A20: Supplementary Figure 4 c
C21: Raw data | F21: Processed data
C22: Colony number | F22: Normalised to 100,000 cells
B23: CFU-Mix | C23: Sample 1 | D23: Sample 2 | E23: Sample 3 | F23: Sample 1 | G23: Sample 2 | H23: Sample 3 | I23: Average | J23: Stdev | K23: T Test
B24: WT | C24: 9 | D24: 9 | E24: 10 | F24: =C24/1000*3000 -> 27 | G24: =D24/1000*3000 -> 27 | H24: 30 | I24: =AVERAGE(F24:H24) -> 28.00 | J24: =STDEV(F24:H24) -> 1.73
B25: Gdpd3B KO | C25: 7 | D25: 11 | E25: 7 | F25: =C25/1000*3000 -> 21 | G25: 33 | H25: 21 | I25: =AVERAGE(F25:H25) -> 25.00 | J25: 6.93 | K25: =TTEST(F24:H24,F25:H25,2,2) -> 0.50716
B28: Colony-forming capacity of normal murine haematopoietic cells in vitro.
B29: BMMNCs isolated from normal healthy Gdpd3+/+ and Gdpd3-/- littermate mice were cultured with cytokines in semi-solid methylcellulose medium for seven days under hypoxic (3% O2) conditions at 37°C. Raw data (n=3 biologically independent samples) of colonies for myeloid (CFU-GM), erythroid (BFU-E) and mixed (CFU-mix) lineages, and processed data are shown. T test data are the mean number±s.d. (P-value, unpaired two-sided Student’s t-test).

Sheet Supplementary Figure 5ab
A1: Title | B1: The lysophospholipase D enzyme Gdpd3 is required to maintain chronic myelogenous leukaemia stem cells
A2: Authour | B2: Kazuhito Naka, Ryosuke Ochiai, Eriko Matsubara, Chie Kondo, Kyung-Min Yang, Takayuki Hoshii, Masatake Araki, Kimi Araki, Yusuke Sotomaru, Ko Sasaki, Kinuko Mitani, Dong-Wook Kim, Akira Ooshima and Seong-Jin Kim
A5: Supplementary Figure 5a
C6: Time post-first BMT (weeek) | E6: 4 | F6: 8 | G6: 12 | H6: 16
C7: WT | D7: mouse #1 | E7: 37.7 | F7: 45.6 | G7: 48.4 | H7: 46.4
C8: WT | D8: mouse #2 | E8: 47.9 | F8: 61.1 | G8: 69 | H8: 76.3
C9: WT | D9: mouse #3 | E9: 38.1 | F9: 43.6 | G9: 46.3 | H9: 43.4
C10: WT | D10: mouse #4 | E10: 42.0 | F10: 48.2 | G10: 43.5 | H10: 37.7
C11: Gdpd3 KO | D11: mouse #1 | E11: 56.3 | F11: 66.9 | G11: 73.7 | H11: 78.9
C12: Gdpd3 KO | D12: mouse #2 | E12: 56.8 | F12: 59.1 | G12: 59 | H12: 63.3
C13: Gdpd3 KO | D13: mouse #3 | E13: 58.6 | F13: 63.6 | G13: 62.1 | H13: 61.7
C14: Gdpd3 KO | D14: mouse #4 | E14: 60.9 | F14: 68.8 | G14: 74.4 | H14: 77.4
C15: Gdpd3 KO | D15: mouse #5 | E15: 58.9 | F15: 62.8 | G15: 65.3 | H15: 67.8
C17: Average | D17: WT | E17: =AVERAGE(E7:E10) -> 41.4 | F17: =AVERAGE(F7:F10) -> 49.6 | G17: =AVERAGE(G7:G10) -> 51.8 | H17: =AVERAGE(H7:H16) -> 61.4
D18: Gdpd3 KO | E18: =AVERAGE(E11:E15) -> 58.3 | F18: =AVERAGE(F11:F15) -> 64.2 | G18: =AVERAGE(G11:G15) -> 66.9 | H18: =AVERAGE(H11:H15) -> 69.8
C19: Stdev | D19: WT | E19: =STDEV(E7:E10) -> 4.73 | F19: =STDEV(F7:F10) -> 7.88 | G19: =STDEV(G7:G10) -> 11.64 | H19: =STDEV(H7:H10) -> 17.28
D20: Gdpd3 KO | E20: =STDEV(E11:E15) -> 1.83 | F20: =STDEV(F11:F15) -> 3.77 | G20: =STDEV(G11:G15) -> 6.90 | H20: =STDEV(H11:H15) -> 7.94
C21: Ttest | E21: =TTEST(E7:E10,E11:E15,2,2) -> 0.0001 | F21: =TTEST(F7:F10,F11:F15,2,2) -> 0.0077 | G21: =TTEST(G7:G10,G11:G15,2,2) -> 0.0449 | H21: =TTEST(H7:H10,H11:H15,2,2) -> 0.0641
A23: Supplementary Figure 5b
C24: Time post-second BMT (weeek) | E24: 4 | F24: 8 | G24: 12 | H24: 16
C25: WT | D25: mouse #1 | E25: 5.8 | F25: 5.3 | G25: 3.6 | H25: 2.8
C26: WT | D26: mouse #2 | E26: 5.6 | F26: 3.2 | G26: 2.2 | H26: 1.5
C27: WT | D27: mouse #3 | E27: 4.0 | F27: 4.1 | G27: 2.7 | H27: 2.1
C28: Gdpd3 KO | D28: mouse #1 | E28: 11.6 | F28: 15 | G28: 14.1 | H28: 16
C29: Gdpd3 KO | D29: mouse #2 | E29: 10.3 | F29: 9.6 | G29: 7.7 | H29: 7.6
C30: Gdpd3 KO | D30: mouse #3 | E30: 6.9 | F30: 14.9 | G30: 14.7 | H30: 13.7
C32: Average | D32: WT | E32: =AVERAGE(E25:E27) -> 5.1 | F32: =AVERAGE(F25:F27) -> 4.2 | G32: =AVERAGE(G25:G27) -> 2.8 | H32: 2.1
D33: Gdpd3 KO | E33: =AVERAGE(E28:E30) -> 9.6 | F33: =AVERAGE(F28:F30) -> 13.2 | G33: =AVERAGE(G28:G30) -> 12.2 | H33: 12.4
C34: Stdev | D34: WT | E34: =STDEV(E25:E27) -> 0.99 | F34: =STDEV(F25:F27) -> 1.05 | G34: =STDEV(G25:G27) -> 0.71 | H34: 0.65
D35: Gdpd3 KO | E35: =STDEV(E28:E30) -> 2.43 | F35: =STDEV(F28:F30) -> 3.09 | G35: =STDEV(G28:G30) -> 3.88 | H35: 4.34
C36: Ttest | E36: =TTEST(E25:E27,E28:E30,2,2) -> 0.0418 | F36: =TTEST(F25:F27,F28:F30,2,2) -> 0.0089 | G36: =TTEST(G25:G27,G28:G30,2,2) -> 0.0149 | H36: =TTEST(H25:H27,H28:H30,2,2) -> 0.0153
B39: Competitive bone marrow reconstitution assays using normal haematopoietic stem/progenitor cells in vivo. (a) Lethally irradiated C57BL/6-CD45.1 congenic recipient mice were transplanted with normal haematopoietic LSK cells (2,000 cells) isolated from normal healthy Gdpd3+/+ or Gdpd3-/- littermate mice (C57BL/6-CD45.2) plus 5x105 unfractionated BMMNCs from healthy C57BL/6-CD45.1 mice. Reconstitution of donor-derived cells (CD45.2) was monitored by staining blood cells with mAbs against CD45.2 (FITC) and CD45.1 (PE). (b) For serial transplantation analyses, normal LSK cells (2,000 cells) were obtained from recipient mice at sixteen weeks post-transplantation (first-BMT) and transplanted into a second set of lethally irradiated C57BL/6-CD45.1 congenic mice (second-BMT) using the same protocol as for the first-BMT. (a,b) Results are the mean frequency (%)±s.d. of donor-derived cells (P-value, unpaired two-sided Student’s t-test).

Sheet Supplementary Figure 6a-d
A1: Title | B1: The lysophospholipase D enzyme Gdpd3 is required to maintain chronic myelogenous leukaemia stem cells
A2: Authour | B2: Kazuhito Naka, Ryosuke Ochiai, Eriko Matsubara, Chie Kondo, Kyung-Min Yang, Takayuki Hoshii, Masatake Araki, Kimi Araki, Yusuke Sotomaru, Ko Sasaki, Kinuko Mitani, Dong-Wook Kim, Akira Ooshima and Seong-Jin Kim
A4: Supplementary Figure 6a
B6: Frequency of BCR-ABL1/EGFP+ LSK cells (%) | G6: Post-1st BMT
C8: Mouse | D8: Cell | E8: Frequency | F8: Average | G8: Stdev | H8: T Test
B9: WT | C9: 1 | D9: BM | E9: 0.10520
C10: 2 | D10: BM | E10: 0.18660
C11: 3 | D11: BM | E11: 0.11560
C12: 4 | D12: BM | E12: 0.12080
C13: 5 | D13: BM | E13: 0.23180
C14: 6 | D14: BM | E14: 0.10620
C15: 7 | D15: BM | E15: 0.15200 | F15: =AVERAGE(E9:E15) -> 0.14546 | G15: =STDEV(E9:E15) -> 0.04805
B16: Gdpd3B KO | C16: 1 | D16: BM | E16: 0.17680
C17: 2 | D17: BM | E17: 0.07240
C18: 3 | D18: BM | E18: 0.10240 | F18: =AVERAGE(E16:E18) -> 0.11720 | G18: =STDEV(E16:E18) -> 0.05375 | H18: =TTEST(E9:E15,E16:E18,2,2) -> 0.43240
A21: Supplementary Figure 6b
B23: Frequency of BCR-ABL1/EGFP+ LSK cells (%) | F23: Post-1st BMT
C25: Mouse | D25: Cell | E25: Frequency | F25: Average | G25: Stdev | H25: T Test
B26: WT | C26: 1 | D26: Spleen | E26: 0.07160
C27: 2 | D27: Spleen | E27: 0.13020
C28: 3 | D28: Spleen | E28: 0.13460
C29: 4 | D29: Spleen | E29: 0.22700
C30: 5 | D30: Spleen | E30: 0.18580
C31: 6 | D31: Spleen | E31: 0.23780 | F31: =AVERAGE(E26:E31) -> 0.16450 | G31: =STDEV(E26:E31) -> 0.06393
B32: Gdpd3B KO | C32: 1 | D32: Spleen | E32: 0.04260
C33: 2 | D33: Spleen | E33: 0.32160
C34: 3 | D34: Spleen | E34: 0.35580
C35: 4 | D35: Spleen | E35: 0.08320 | F35: =AVERAGE(E32:E34) -> 0.24000 | G35: =STDEV(E32:E34) -> 0.17181 | H35: =TTEST(E26:E31,E32:E35,2,2) -> 0.62494
A38: Supplementary Figure 6c
B40: Frequency of BCR-ABL1/EGFP+ LSK cells (%) | F40: Post-2nd BMT
C42: Mouse | D42: Cell | E42: Frequency | F42: Average | G42: Stdev | H42: T Test
B43: WT | C43: 1 | D43: BM | E43: 0.63340
C44: 2 | D44: BM | E44: 0.15860
C45: 3 | D45: BM | E45: 0.46900
C46: 4 | D46: BM | E46: 0.68040
C47: 5 | D47: BM | E47: 0.30400
C48: 6 | D48: BM | E48: 0.21240
C49: 7 | D49: BM | E49: 0.28280
C50: 8 | D50: BM | E50: 0.15720 | F50: =AVERAGE(E43:E50) -> 0.36223 | G50: =STDEV(E43:E50) -> 0.20765
B51: Gdpd3B KO | C51: 1 | D51: BM | E51: 0.01420
C52: 2 | D52: BM | E52: 0.00520
C53: 3 | D53: BM | E53: 0.00560
C54: 4 | D54: BM | E54: 0.00120
C55: 5 | D55: BM | E55: 0.00280
C56: 6 | D56: BM | E56: 0.00240
C57: 7 | D57: BM | E57: 0.00429
C58: 8 | D58: BM | E58: 0.00160 | F58: =AVERAGE(E51:E58) -> 0.00466 | G58: =STDEV(E51:E58) -> 0.00418 | H58: =TTEST(E43:E50,E51:E58,2,2) -> 0.00025
A61: Supplementary Figure 6d
B63: Frequency of BCR-ABL1/EGFP+ LSK cells (%) | F63: Post-2nd BMT
C65: Mouse | D65: Cell | E65: Frequency | F65: Average | G65: Stdev | H65: T Test
B66: WT | C66: 1 | D66: Spleen | E66: 0.38273
C67: 2 | D67: Spleen | E67: 0.25553
C68: 3 | D68: Spleen | E68: 0.87496
C69: 4 | D69: Spleen | E69: 0.45240
C70: 5 | D70: Spleen | E70: 0.55800
C71: 6 | D71: Spleen | E71: 0.32520
C72: 7 | D72: Spleen | E72: 0.43900
C73: 8 | D73: Spleen | E73: 0.43620 | F73: =AVERAGE(E66:E73) -> 0.46550 | G73: =STDEV(E66:E73) -> 0.18844
B74: Gdpd3B KO | C74: 1 | D74: Spleen | E74: 0.05780
C75: 2 | D75: Spleen | E75: 0.01040
C76: 3 | D76: Spleen | E76: 0.03920
C77: 4 | D77: Spleen | E77: 0.00780
C78: 5 | D78: Spleen | E78: 0.01600
C79: 6 | D79: Spleen | E79: 0.01073
C80: 7 | D80: Spleen | E80: 0.08600
C81: 8 | D81: Spleen | E81: 0.02420 | F81: =AVERAGE(E74:E81) -> 0.03152 | G81: =STDEV(E74:E81) -> 0.02791 | H81: =TTEST(E66:E73,E74:E81,2,2) -> 0.00002
B84: Frequency of BCR-ABL1/EGFP+CML LSK cells in Gdpd3+/+ and Gdpd3-/- retro-CML-affected mice.
B85: BCR-ABL1/EGFP+CML LSK cells were isolated from (a,c) BM of the two hind limbs and (b,d) spleen of Gdpd3+/+ retro-CML-affected mice and Gdpd3-/- retro-CML-affected mice after (a,b) first-round and (c,d) second-round serial transplantation. Frequency of BCR-ABL1/EGFP+ LSK cells were examined by a FACS Aria III cell sorter with BD FACSDiva software ver.6.1.3 (BD Biosciences). T test data are the mean frequency (%)±s.d. of BCR-ABL1/EGFP+ LSK cells (P-value, unpaired two-sided Student’s t-test). (See also Fig.2c-f).

Sheet Supplementary Figure 7
A1: Title | B1: The lysophospholipase D enzyme Gdpd3 is required to maintain chronic myelogenous leukaemia stem cells
A2: Authour | B2: Kazuhito Naka, Ryosuke Ochiai, Eriko Matsubara, Chie Kondo, Kyung-Min Yang, Takayuki Hoshii, Masatake Araki, Kimi Araki, Yusuke Sotomaru, Ko Sasaki, Kinuko Mitani, Dong-Wook Kim, Akira Ooshima and Seong-Jin Kim
A4: Supplementary Figure 7
E9: Cell Cycle Distribution (%)
B10: Mouse | C10: Cell | D10: Cell Cycle Phase | E10: Sample 1 | F10: Sample 2 | G10: Sample 3 | H10: Average | I10: Stdev | J10: T Test
B11: WT | C11: BM | D11: G0/G1 | E11: 52.3 | F11: 54 | G11: 56 | H11: =AVERAGE(E11:G11) -> 54.1 | I11: =STDEV(E11:G11) -> 1.85
B12: Gdpd3 KO | C12: BM | D12: G0/G1 | E12: 48 | F12: 47.6 | G12: 55 | H12: =AVERAGE(E12:G12) -> 50.2 | I12: =STDEV(E12:G12) -> 4.16 | J12: =TTEST(E11:G11,E12:G12,2,2) -> 0.21224
B13: WT | C13: BM | D13: S | E13: 35.8 | F13: 35.4 | G13: 35.1 | H13: 35.4 | I13: 0.35
B14: Gdpd3 KO | C14: BM | D14: S | E14: 47.9 | F14: 48.5 | G14: 34.5 | H14: 43.6 | I14: 7.92 | J14: =TTEST(E13:G13,E14:G14,2,2) -> 0.14751
B15: WT | C15: BM | D15: G2/M | E15: 1.3 | F15: 5.5 | G15: 2.9 | H15: 3.2 | I15: 2.12
B16: Gdpd3 KO | C16: BM | D16: G2/M | E16: 3.6 | F16: 2.3 | G16: 1.6 | H16: 2.5 | I16: 1.01 | J16: =TTEST(E15:G15,E16:G16,2,2) -> 0.61757
B19: Cell cycle distribution of BCR-ABL1/EGFP+CML LSK cells in bone marrow of retro-CML-affected mice. Gdpd3+/+ retro-CML-affected mice (3 females) and Gdpd3-/- retro-CML-affected mice (3 females) were intraperitoneally administered BrdU (100 mg kg-1 of body weight in saline; Sigma) for three hrs after a first-round of BMT as in Fig.2a. BCR-ABL1/EGFP+CML LSK cells were isolated from bone marrow of two hind limbs of retro-CML-affected and stained with anti-BrdU antibody (3D4; BD Biosciences) plus 7AAD (BD Biosciences). Frequency of BrdU+ CML LSK cells in bone marrow was evaluated by a FACS Aria III cell sorter with BD FACSDiva software ver.6.1.3 (BD Biosciences). Results are each CML-affected mouse (n=3 biologically independent samples) and the mean frequency (%)±s.d. of G0/G1 phase CML-LSK cells, BrdU+ S-phase CML-LSK cells, and G2/M phase CML-LSK cells (P-value, unpaired two-sided Student’s t-test) (See also Fig.2,g,h).

Sheet Supplementary Figure 11 RNA-Seq
A1: GeneID | B1: TranscriptID | C1: GeneName | D1: Gdpd3-KO_S5 | E1: Gdpd3-KO_S6 | F1: Gdpd3-KO_S7 | G1: WT_S1 | H1: WT_S2 | I1: WT_S3 | J1: KO average | K1: WT average
A2: ENSMUSG00000090025.1 | B2: ENSMUST00000160944.1 | C2: Gm16088 | D2: 0.0000 | E2: 0.0000 | F2: 0.0111 | G2: 0.0201 | H2: 0.0025 | I2: 0.0000 | J2: =AVERAGE(D2:F2) -> 0.0037 | K2: =AVERAGE(G2:I2) -> 0.0075
A3: ENSMUSG00000064842.1 | B3: ENSMUST00000082908.1 | C3: U6 | D3: 0.0000 | E3: 0.0000 | F3: 0.0000 | G3: 0.0000 | H3: 0.0000 | I3: 0.0000 | J3: =AVERAGE(D3:F3) -> 0.0000 | K3: =AVERAGE(G3:I3) -> 0.0000
A4: ENSMUSG00000051951.5 | B4: ENSMUST00000162897.1,ENSMUST00000159265.1,ENSMUST00000070533.4 | C4: Xkr4 | D4: 0.0385 | E4: 0.0000 | F4: 0.0065 | G4: 0.0000 | H4: 0.0000 | I4: 0.0000 | J4: 0.0150 | K4: 0.0000
A5: ENSMUSG00000089699.1 | B5: ENSMUST00000161581.1 | C5: Gm1992 | D5: 0.0000 | E5: 3.2948 | F5: 0.3183 | G5: 0.0000 | H5: 0.0000 | I5: 0.0000 | J5: 1.2043 | K5: 0.0000
A6: ENSMUSG00000088390.1 | B6: ENSMUST00000157765.1 | C6: U7 | D6: 0.0000 | E6: 0.0000 | F6: 0.0000 | G6: 0.0000 | H6: 0.0000 | I6: 0.0000 | J6: 0.0000 | K6: 0.0000
A7: ENSMUSG00000089420.1 | B7: ENSMUST00000158795.1 | C7: U7 | D7: 0.0000 | E7: 0.0000 | F7: 0.0000 | G7: 0.0000 | H7: 0.0000 | I7: 0.0000 | J7: 0.0000 | K7: 0.0000
A8: ENSMUSG00000025900.4 | B8: ENSMUST00000027032.3,ENSMUST00000115540.1 | C8: Rp1 | D8: 0.0000 | E8: 0.0000 | F8: 0.0000 | G8: 0.0000 | H8: 0.0000 | I8: 0.0000 | J8: 0.0000 | K8: 0.0000
A9: ENSMUSG00000025902.7 | B9: ENSMUST00000027035.3,ENSMUST00000116652.2 | C9: Sox17 | D9: 0.0594 | E9: 1.1578 | F9: 0.0000 | G9: 0.0000 | H9: 0.0202 | I9: 0.0000 | J9: 0.4057 | K9: 0.0067
A10: ENSMUSG00000064376.1 | B10: ENSMUST00000082442.1 | C10: U6 | D10: 0.0000 | E10: 0.0000 | F10: 0.0000 | G10: 0.1878 | H10: 0.0000 | I10: 0.0000 | J10: 0.0000 | K10: 0.0626
A11: ENSMUSG00000088000.1 | B11: ENSMUST00000157375.1 | C11: U6 | D11: 0.0000 | E11: 0.0000 | F11: 0.0000 | G11: 0.0000 | H11: 0.0000 | I11: 0.0000 | J11: 0.0000 | K11: 0.0000
A12: ENSMUSG00000033845.7 | B12: ENSMUST00000130201.1,ENSMUST00000156816.1,ENSMUST00000045689.7,ENSMUST00000115538.3,ENSMUST00000146665.1,ENSMUST00000132625.1 | C12: Mrpl15 | D12: 13.3223 | E12: 18.6837 | F12: 17.5820 | G12: 11.6808 | H12: 11.9906 | I12: 11.6265 | J12: 16.5293 | K12: 11.7660
A13: ENSMUSG00000025903.8 | B13: ENSMUST00000134384.1,ENSMUST00000027036.4,ENSMUST00000155020.1,ENSMUST00000119612.2,ENSMUST00000137887.1,ENSMUST00000115529.1,ENSMUST00000150971.1,ENSMUST00000131119.1,ENSMUST00000141278.1 | C13: Lypla1 | D13: 19.2736 | E13: 15.7486 | F13: 20.0067 | G13: 23.8877 | H13: 20.2203 | I13: 21.1018 | J13: 18.3430 | K13: 21.7366
A14: ENSMUSG00000033813.8 | B14: ENSMUST00000081551.6,ENSMUST00000165720.1 | C14: Tcea1 | D14: 32.7006 | E14: 33.6824 | F14: 37.8984 | G14: 39.7188 | H14: 38.6596 | I14: 36.8395 | J14: 34.7605 | K14: 38.4060
A15: ENSMUSG00000062588.3 | B15: ENSMUST00000078030.3 | C15: Gm6104 | D15: 32.8037 | E15: 28.8039 | F15: 40.6402 | G15: 38.9075 | H15: 42.3315 | I15: 39.6813 | J15: 34.0826 | K15: 40.3068
A16: ENSMUSG00000002459.10 | B16: ENSMUST00000002533.8,ENSMUST00000118000.1,ENSMUST00000165589.1,ENSMUST00000119256.1,ENSMUST00000170566.1,ENSMUST00000147158.1,ENSMUST00000156289.1,ENSMUST00000133521.1 | C16: Rgs20 | D16: 0.0044 | E16: 0.0527 | F16: 0.0516 | G16: 0.0000 | H16: 0.0000 | I16: 0.0077 | J16: 0.0363 | K16: 0.0026
A17: ENSMUSG00000091305.1 | B17: ENSMUST00000168963.1 | C17: Gm17100 | D17: 0.0000 | E17: 0.0000 | F17: 0.0000 | G17: 0.0739 | H17: 0.0000 | I17: 0.0000 | J17: 0.0000 | K17: 0.0246
A18: ENSMUSG00000085623.1 | B18: ENSMUST00000144339.1 | C18: Gm16041 | D18: 0.0000 | E18: 0.0000 | F18: 0.0000 | G18: 0.0000 | H18: 0.0000 | I18: 0.0000 | J18: 0.0000 | K18: 0.0000
A19: ENSMUSG00000091665.1 | B19: ENSMUST00000169520.1 | C19: Gm17101 | D19: 0.0000 | E19: 0.0000 | F19: 0.4134 | G19: 0.0000 | H19: 0.0000 | I19: 0.0000 | J19: 0.1378 | K19: 0.0000
A20: ENSMUSG00000033793.7 | B20: ENSMUST00000044369.7 | C20: Atp6v1h | D20: 51.5449 | E20: 42.9631 | F20: 50.3117 | G20: 48.2511 | H20: 46.8156 | I20: 37.0369 | J20: 48.2732 | K20: 44.0345
A21: ENSMUSG00000025905.7 | B21: ENSMUST00000160777.1,ENSMUST00000027038.4,ENSMUST00000160339.1,ENSMUST00000159083.1 | C21: Oprk1 | D21: 0.0000 | E21: 0.0000 | F21: 0.0000 | G21: 0.0000 | H21: 0.0000 | I21: 0.0000 | J21: 0.0000 | K21: 0.0000
A22: ENSMUSG00000093015.1 | B22: ENSMUST00000175274.1 | C22: AC103663.1 | D22: 0.0000 | E22: 0.0000 | F22: 0.0000 | G22: 0.1990 | H22: 0.0000 | I22: 0.0000 | J22: 0.0000 | K22: 0.0663
A23: ENSMUSG00000033774.4 | B23: ENSMUST00000044180.4 | C23: Npbwr1 | D23: 0.0000 | E23: 0.0000 | F23: 0.0000 | G23: 0.0000 | H23: 0.0000 | I23: 0.0000 | J23: 0.0000 | K23: 0.0000
A24: ENSMUSG00000025907.7 | B24: ENSMUST00000159906.1,ENSMUST00000160871.1,ENSMUST00000027040.6,ENSMUST00000167867.1,ENSMUST00000162210.1,ENSMUST00000160062.1,ENSMUST00000162795.1,ENSMUST00000161327.1,ENSMUST00000159802.1,ENSMUST00000162257.1,ENSMUST00000159206.1,ENSMUST00000159661.1,ENSMUST00000161183.1,ENSMUST00000159349.1,ENSMUST00000159530.1,ENSMUST00000162418.1,ENSMUST00000159656.1 | C24: Rb1cc1 | D24: 5.5008 | E24: 5.6296 | F24: 5.1842 | G24: 6.0606 | H24: 6.3002 | I24: 5.8960 | J24: 5.4382 | K24: 6.0856
A25: ENSMUSG00000090031.1 | B25: ENSMUST00000159618.1 | C25: 4732440D04Rik | D25: 1.9294 | E25: 4.7201 | F25: 1.5730 | G25: 0.9247 | H25: 1.9162 | I25: 2.7392 | J25: 2.7408 | K25: 1.8600
A26: ENSMUSG00000073741.1 | B26: ENSMUST00000097832.1 | C26: 4732440D04Rik | D26: 1.2733 | E26: 1.8949 | F26: 2.1515 | G26: 1.8446 | H26: 2.2618 | I26: 2.2124 | J26: 1.7733 | K26: 2.1062
A27: ENSMUSG00000087247.1 | B27: ENSMUST00000133144.1 | C27: Fam150a | D27: 0.0000 | E27: 0.0000 | F27: 0.2171 | G27: 0.0000 | H27: 0.0000 | I27: 0.0000 | J27: 0.0724 | K27: 0.0000
A28: ENSMUSG00000033740.10 | B28: ENSMUST00000140079.1,ENSMUST00000131494.1,ENSMUST00000043578.6,ENSMUST00000139756.1,ENSMUST00000131467.1,ENSMUST00000150761.1,ENSMUST00000151281.1,ENSMUST00000124167.1,ENSMUST00000155921.1,ENSMUST00000139838.1,ENSMUST00000163727.1,ENSMUST00000132207.1,ENSMUST00000142304.1,ENSMUST00000151015.1,ENSMUST00000126379.1,ENSMUST00000130338.1 | C28: St18 | D28: 0.0938 | E28: 0.2875 | F28: 0.0368 | G28: 0.0093 | H28: 0.0000 | I28: 0.0779 | J28: 0.1394 | K28: 0.0291
A29: ENSMUSG00000051285.9 | B29: ENSMUST00000172291.1,ENSMUST00000061280.9,ENSMUST00000097828.4 | C29: Pcmtd1 | D29: 8.5950 | E29: 7.7857 | F29: 8.8798 | G29: 12.6482 | H29: 10.5784 | I29: 9.6920 | J29: 8.4202 | K29: 10.9728
A30: ENSMUSG00000048538.7 | B30: ENSMUST00000029124.7 | C30: Gm9826 | D30: 0.9263 | E30: 1.9674 | F30: 1.3705 | G30: 1.2366 | H30: 1.5857 | I30: 1.3462 | J30: 1.4214 | K30: 1.3895
A31: ENSMUSG00000077244.1 | B31: ENSMUST00000104056.1 | C31: SNORA17 | D31: 0.0000 | E31: 0.0000 | F31: 0.0000 | G31: 0.0000 | H31: 0.0000 | I31: 0.0000 | J31: 0.0000 | K31: 0.0000
A32: ENSMUSG00000086461.2 | B32: ENSMUST00000138711.1 | C32: Gm16899 | D32: 0.0000 | E32: 2.9371 | F32: 0.3501 | G32: 1.0287 | H32: 0.4560 | I32: 0.3584 | J32: 1.0958 | K32: 0.6143
A33: ENSMUSG00000025909.9 | B33: ENSMUST00000140295.1,ENSMUST00000132064.1,ENSMUST00000140302.1,ENSMUST00000115484.2,ENSMUST00000135046.1,ENSMUST00000115488.2,ENSMUST00000027042.7,ENSMUST00000144593.1,ENSMUST00000134075.1,ENSMUST00000126083.1 | C33: Sntg1 | D33: 0.0000 | E33: 0.0030 | F33: 0.0480 | G33: 0.0000 | H33: 0.0017 | I33: 0.0000 | J33: 0.0170 | K33: 0.0006
A34: ENSMUSG00000086235.1 | B34: ENSMUST00000140995.1 | C34: Gm16284 | D34: 0.0586 | E34: 0.0000 | F34: 0.0497 | G34: 0.0000 | H34: 0.0000 | I34: 0.0000 | J34: 0.0361 | K34: 0.0000
A35: ENSMUSG00000076169.1 | B35: ENSMUST00000102214.1 | C35: AC102703.1 | D35: 0.0000 | E35: 0.0000 | F35: 0.0000 | G35: 0.0000 | H35: 0.0000 | I35: 0.0000 | J35: 0.0000 | K35: 0.0000
A36: ENSMUSG00000084353.1 | B36: ENSMUST00000119877.1 | C36: Gm15452 | D36: 16.7313 | E36: 13.1939 | F36: 16.4483 | G36: 17.7920 | H36: 20.3366 | I36: 20.6065 | J36: 15.4579 | K36: 19.5784
A37: ENSMUSG00000076135.1 | B37: ENSMUST00000102181.1 | C37: AC163389.1 | D37: 20.4404 | E37: 21.5358 | F37: 19.0051 | G37: 14.1499 | H37: 17.3135 | I37: 15.9839 | J37: 20.3271 | K37: 15.8158
A38: ENSMUSG00000086195.1 | B38: ENSMUST00000151704.1 | C38: Gm6152 | D38: 0.1310 | E38: 0.0606 | F38: 0.0878 | G38: 0.0638 | H38: 0.0623 | I38: 0.1070 | J38: 0.0931 | K38: 0.0777
A39: ENSMUSG00000066693.2 | B39: ENSMUST00000085919.2 | C39: Gm7493 | D39: 1.8195 | E39: 1.6592 | F39: 1.0638 | G39: 1.1112 | H39: 0.9176 | I39: 0.9728 | J39: 1.5142 | K39: 1.0005
A40: ENSMUSG00000065625.1 | B40: ENSMUST00000083691.1 | C40: U6 | D40: 5.9159 | E40: 0.0000 | F40: 0.0000 | G40: 0.0000 | H40: 0.0000 | I40: 0.0000 | J40: 1.9720 | K40: 0.0000
A41: ENSMUSG00000061024.7 | B41: ENSMUST00000072079.7 | C41: Rrs1 | D41: 24.3251 | E41: 24.5323 | F41: 31.3413 | G41: 24.0186 | H41: 26.2711 | I41: 26.0097 | J41: 26.7329 | K41: 25.4331
A42: ENSMUSG00000025911.8 | B42: ENSMUST00000144177.1,ENSMUST00000027044.8,ENSMUST00000130927.1 | C42: Adhfe1 | D42: 0.1198 | E42: 2.4559 | F42: 0.4545 | G42: 0.5469 | H42: 0.3090 | I42: 0.7065 | J42: 1.0101 | K42: 0.5208
A43: ENSMUSG00000079671.2 | B43: ENSMUST00000115480.1,ENSMUST00000145176.1,ENSMUST00000148585.1,ENSMUST00000153239.1,ENSMUST00000148310.1 | C43: 2610203C22Rik | D43: 0.0048 | E43: 0.2656 | F43: 0.0851 | G43: 0.0880 | H43: 0.0552 | I43: 0.0681 | J43: 0.1185 | K43: 0.0704
A44: ENSMUSG00000081441.2 | B44: ENSMUST00000121942.1,ENSMUST00000088671.2 | C44: Gm6161 | D44: 1.5546 | E44: 1.6444 | F44: 2.3339 | G44: 2.2399 | H44: 2.0794 | I44: 2.0083 | J44: 1.8443 | K44: 2.1092
A45: ENSMUSG00000067879.3 | B45: ENSMUST00000088666.3 | C45: 3110035E14Rik | D45: 0.0000 | E45: 0.0000 | F45: 0.0855 | G45: 0.0000 | H45: 0.0000 | I45: 0.0000 | J45: 0.0285 | K45: 0.0000
A46: ENSMUSG00000025912.9 | B46: ENSMUST00000088658.4,ENSMUST00000163098.1,ENSMUST00000115468.2,ENSMUST00000166970.1,ENSMUST00000160022.1,ENSMUST00000160451.1 | C46: Mybl1 | D46: 0.1831 | E46: 0.1073 | F46: 0.1110 | G46: 0.1832 | H46: 0.2134 | I46: 0.1791 | J46: 0.1338 | K46: 0.1919
A47: ENSMUSG00000045210.8 | B47: ENSMUST00000057438.6 | C47: Vcpip1 | D47: 6.6517 | E47: 5.0018 | F47: 5.9639 | G47: 6.5386 | H47: 6.8920 | I47: 6.8474 | J47: 5.8725 | K47: 6.7593
A48: ENSMUSG00000085661.1 | B48: ENSMUST00000135143.1,ENSMUST00000148783.1 | C48: 1700034P13Rik | D48: 2.1098 | E48: 1.0471 | F48: 1.3761 | G48: 1.8334 | H48: 1.8683 | I48: 1.3713 | J48: 1.5110 | K48: 1.6910
A49: ENSMUSG00000025915.7 | B49: ENSMUST00000168907.1,ENSMUST00000166384.1,ENSMUST00000097825.4,ENSMUST00000171265.1,ENSMUST00000097826.4 | C49: Sgk3 | D49: 10.0193 | E49: 6.9699 | F49: 15.0116 | G49: 14.0328 | H49: 12.9408 | I49: 14.0664 | J49: 10.6669 | K49: 13.6800
A50: ENSMUSG00000046334.3 | B50: ENSMUST00000063059.3 | C50: Gm6195 | D50: 1.2369 | E50: 0.3051 | F50: 0.4420 | G50: 0.3629 | H50: 0.4426 | I50: 0.6649 | J50: 0.6613 | K50: 0.4901
A51: ENSMUSG00000088916.1 | B51: ENSMUST00000158291.1 | C51: U6 | D51: 0.0000 | E51: 0.0000 | F51: 0.3789 | G51: 0.0000 | H51: 0.1517 | I51: 0.3108 | J51: 0.1263 | K51: 0.1542
A52: ENSMUSG00000046101.9 | B52: ENSMUST00000052843.5,ENSMUST00000171802.1,ENSMUST00000118098.1,ENSMUST00000125294.1,ENSMUST00000140948.1 | C52: 6030422M02Rik | D52: 1.3288 | E52: 1.3366 | F52: 0.6316 | G52: 0.7554 | H52: 0.5730 | I52: 0.5763 | J52: 1.0990 | K52: 0.6349
A53: ENSMUSG00000093178.1 | B53: ENSMUST00000175437.1 | C53: AC102570.1 | D53: 7.0039 | E53: 27.2986 | F53: 6.8590 | G53: 20.3303 | H53: 12.4535 | I53: 14.0670 | J53: 13.7205 | K53: 15.6169
A54: ENSMUSG00000073738.2 | B54: ENSMUST00000097824.2 | C54: Gm10567 | D54: 0.0000 | E54: 0.0000 | F54: 0.0000 | G54: 0.0000 | H54: 0.0000 | I54: 0.1113 | J54: 0.0000 | K54: 0.0371
A55: ENSMUSG00000025916.3 | B55: ENSMUST00000027049.3,ENSMUST00000147000.1,ENSMUST00000124874.1,ENSMUST00000130102.1,ENSMUST00000155163.1 | C55: Lrrc67 | D55: 0.0000 | E55: 0.0000 | F55: 0.2220 | G55: 0.7984 | H55: 0.3871 | I55: 0.6054 | J55: 0.0740 | K55: 0.5970
A56: ENSMUSG00000087199.1 | B56: ENSMUST00000134692.1 | C56: Gm15818 | D56: 1.0003 | E56: 0.0000 | F56: 0.3942 | G56: 1.1796 | H56: 0.6315 | I56: 0.7089 | J56: 0.4648 | K56: 0.8400
A57: ENSMUSG00000065085.1 | B57: ENSMUST00000083151.1 | C57: U6 | D57: 0.0000 | E57: 0.0000 | F57: 0.0000 | G57: 0.0000 | H57: 0.0000 | I57: 0.0000 | J57: 0.0000 | K57: 0.0000
A58: ENSMUSG00000025917.3 | B58: ENSMUST00000027050.3,ENSMUST00000139578.1,ENSMUST00000150509.1 | C58: Cops5 | D58: 32.8343 | E58: 44.3167 | F58: 39.4541 | G58: 37.7328 | H58: 37.4409 | I58: 37.6203 | J58: 38.8684 | K58: 37.5980
A59: ENSMUSG00000056763.9 | B59: ENSMUST00000071087.5,ENSMUST00000143606.1,ENSMUST00000117415.1,ENSMUST00000118263.1,ENSMUST00000122156.1,ENSMUST00000119714.1,ENSMUST00000163561.1,ENSMUST00000134716.1,ENSMUST00000155974.1,ENSMUST00000088641.4,ENSMUST00000163177.1,ENSMUST00000149214.1,ENSMUST00000153804.1,ENSMUST00000123261.1,ENSMUST00000136283.1,ENSMUST00000128164.1,ENSMUST00000136898.1,ENSMUST00000148663.1 | C59: Cspp1 | D59: 2.0774 | E59: 2.7390 | F59: 2.7498 | G59: 2.2022 | H59: 2.2748 | I59: 2.2919 | J59: 2.5221 | K59: 2.2563
A60: ENSMUSG00000067851.5 | B60: ENSMUST00000088615.4,ENSMUST00000142497.1,ENSMUST00000156563.1,ENSMUST00000128834.1,ENSMUST00000131556.1 | C60: Arfgef1 | D60: 9.9970 | E60: 7.0174 | F60: 10.1357 | G60: 11.0614 | H60: 10.5189 | I60: 10.6876 | J60: 9.0501 | K60: 10.7560
A61: ENSMUSG00000088153.1 | B61: ENSMUST00000157528.1 | C61: 7SK | D61: 1.1718 | E61: 1.4872 | F61: 0.6630 | G61: 0.5862 | H61: 0.4647 | I61: 0.0680 | J61: 1.1074 | K61: 0.3730
A62: ENSMUSG00000042501.6 | B62: ENSMUST00000153695.1,ENSMUST00000035577.6,ENSMUST00000147575.1,ENSMUST00000140938.1 | C62: Cpa6 | D62: 0.4664 | E62: 0.3813 | F62: 0.0646 | G62: 0.1330 | H62: 0.0235 | I62: 0.0599 | J62: 0.3041 | K62: 0.0721
A63: ENSMUSG00000083422.1 | B63: ENSMUST00000118350.1 | C63: Gm15604 | D63: 2.6378 | E63: 0.0694 | F63: 0.1965 | G63: 0.0554 | H63: 0.0776 | I63: 0.0889 | J63: 0.9679 | K63: 0.0739
A64: ENSMUSG00000065035.1 | B64: ENSMUST00000083101.1 | C64: U6 | D64: 4.1615 | E64: 0.0000 | F64: 0.7436 | G64: 0.0000 | H64: 0.0000 | I64: 0.0000 | J64: 1.6350 | K64: 0.0000
A65: ENSMUSG00000081417.1 | B65: ENSMUST00000119252.1 | C65: Gm15603 | D65: 0.0000 | E65: 0.0374 | F65: 0.0267 | G65: 0.0000 | H65: 0.0107 | I65: 0.0000 | J65: 0.0214 | K65: 0.0036
A66: ENSMUSG00000088585.1 | B66: ENSMUST00000157960.1 | C66: SNORA66 | D66: 0.0000 | E66: 0.0000 | F66: 0.0000 | G66: 0.0000 | H66: 0.0000 | I66: 0.0000 | J66: 0.0000 | K66: 0.0000
A67: ENSMUSG00000048960.7 | B67: ENSMUST00000027056.5 | C67: Prex2 | D67: 0.5760 | E67: 0.2972 | F67: 0.3314 | G67: 0.7291 | H67: 0.7412 | I67: 0.5070 | J67: =AVERAGE(D67:F67) -> 0.4015 | K67: =AVERAGE(G67:I67) -> 0.6591
A68: ENSMUSG00000077318.1 | B68: ENSMUST00000104130.1 | C68: SNORA40 | D68: 0.0000 | E68: 0.0000 | F68: 0.0000 | G68: 0.0000 | H68: 0.0000 | I68: 0.0000 | J68: 0.0000 | K68: 0.0000
A69: ENSMUSG00000057715.6 | B69: ENSMUST00000048613.7,ENSMUST00000137824.1,ENSMUST00000135014.1,ENSMUST00000142117.1,ENSMUST00000141512.1,ENSMUST00000150870.1,ENSMUST00000171690.1,ENSMUST00000115412.2,ENSMUST00000141339.1 | C69: A830018L16Rik | D69: 0.0003 | E69: 0.0543 | F69: 0.0000 | G69: 0.0000 | H69: 0.0000 | I69: 0.0000 | J69: 0.0182 | K69: 0.0000
A70: ENSMUSG00000064969.1 | B70: ENSMUST00000083035.1 | C70: U6 | D70: 2.1903 | E70: 0.0000 | F70: 1.1154 | G70: 0.1878 | H70: 0.0000 | I70: 0.0000 | J70: 1.1019 | K70: 0.0626
A71: ENSMUSG00000066918.5 | B71: ENSMUST00000163310.1 | C71: Gm17644 | D71: 0.0000 | E71: 0.8651 | F71: 0.0000 | G71: 0.0000 | H71: 0.0008 | I71: 0.0000 | J71: 0.2884 | K71: 0.0003
A72: ENSMUSG00000016918.8 | B72: ENSMUST00000088585.3 | C72: Sulf1 | D72: 1.5665 | E72: 0.0834 | F72: 0.2590 | G72: 0.0000 | H72: 0.0000 | I72: 0.0177 | J72: 0.6363 | K72: 0.0059
A73: ENSMUSG00000025938.9 | B73: ENSMUST00000115403.2,ENSMUST00000115402.1,ENSMUST00000136197.1,ENSMUST00000146763.1,ENSMUST00000147606.1,ENSMUST00000133201.1,ENSMUST00000115401.2,ENSMUST00000171848.1 | C73: Slco5a1 | D73: 0.3382 | E73: 0.3161 | F73: 0.1191 | G73: 0.2067 | H73: 0.1419 | I73: 0.1134 | J73: 0.2578 | K73: 0.1540
A74: ENSMUSG00000042414.7 | B74: ENSMUST00000047577.6 | C74: Prdm14 | D74: 0.0000 | E74: 0.0000 | F74: 0.1241 | G74: 0.0000 | H74: 0.0901 | I74: 0.0000 | J74: 0.0414 | K74: 0.0300
A75: ENSMUSG00000005886.8 | B75: ENSMUST00000081713.4,ENSMUST00000068304.6,ENSMUST00000006037.6,ENSMUST00000146784.1,ENSMUST00000133232.1,ENSMUST00000147927.1,ENSMUST00000143603.1,ENSMUST00000139970.1,ENSMUST00000124088.1,ENSMUST00000145280.1 | C75: Ncoa2 | D75: 3.3625 | E75: 3.0052 | F75: 5.3597 | G75: 4.8181 | H75: 4.5605 | I75: 4.5839 | J75: 3.9091 | K75: 4.6542
A76: ENSMUSG00000087782.1 | B76: ENSMUST00000157157.1 | C76: U6 | D76: 0.0000 | E76: 0.0000 | F76: 0.0000 | G76: 0.0000 | H76: 0.0000 | I76: 0.0000 | J76: 0.0000 | K76: 0.0000
A77: ENSMUSG00000025935.4 | B77: ENSMUST00000027068.4 | C77: Tram1 | D77: 108.5294 | E77: 93.7870 | F77: 137.6952 | G77: 139.3166 | H77: 140.2311 | I77: 146.7915 | J77: 113.3372 | K77: 142.1131
A78: ENSMUSG00000025937.5 | B78: ENSMUST00000027071.5,ENSMUST00000156222.1 | C78: Lactb2 | D78: 5.6409 | E78: 5.2811 | F78: 7.1519 | G78: 8.1342 | H78: 7.0750 | I78: 7.3203 | J78: 6.0247 | K78: 7.5099
A79: ENSMUSG00000067813.3 | B79: ENSMUST00000088542.3 | C79: Xkr9 | D79: 0.0000 | E79: 0.0000 | F79: 0.3305 | G79: 0.0000 | H79: 0.0000 | I79: 0.0000 | J79: 0.1102 | K79: 0.0000
A80: ENSMUSG00000077368.1 | B80: ENSMUST00000104180.1 | C80: SNORA17 | D80: 0.0000 | E80: 0.0000 | F80: 0.0000 | G80: 0.0000 | H80: 0.0000 | I80: 0.0000 | J80: 0.0000 | K80: 0.0000
A81: ENSMUSG00000089358.1 | B81: ENSMUST00000158733.1 | C81: 7SK | D81: 0.0000 | E81: 0.0000 | F81: 0.0000 | G81: 0.0000 | H81: 0.0000 | I81: 0.0000 | J81: 0.0000 | K81: 0.0000
A82: ENSMUSG00000025932.7 | B82: ENSMUST00000027066.6,ENSMUST00000080664.6,ENSMUST00000168081.1 | C82: Eya1 | D82: 7.0865 | E82: 8.7764 | F82: 13.3032 | G82: 11.3690 | H82: 9.2020 | I82: 9.3084 | J82: 9.7220 | K82: 9.9598
A83: ENSMUSG00000093057.1 | B83: ENSMUST00000175316.1 | C83: AC156988.1 | D83: 0.0000 | E83: 0.0000 | F83: 0.0000 | G83: 0.5025 | H83: 0.6373 | I83: 0.0082 | J83: 0.0000 | K83: 0.3827
A84: ENSMUSG00000025930.5 | B84: ENSMUST00000027062.5 | C84: Msc | D84: 0.0000 | E84: 0.0000 | F84: 0.0000 | G84: 0.0000 | H84: 0.0000 | I84: 0.0095 | J84: 0.0000 | K84: 0.0032
A85: ENSMUSG00000054493.1 | B85: ENSMUST00000067599.1 | C85: Gm9947 | D85: 0.4816 | E85: 0.0000 | F85: 0.0545 | G85: 0.0000 | H85: 0.0000 | I85: 0.0000 | J85: 0.1787 | K85: 0.0000
A86: ENSMUSG00000081201.1 | B86: ENSMUST00000121569.1 | C86: Smt3h2-ps4 | D86: 57.6135 | E86: 48.5892 | F86: 48.2001 | G86: 44.8715 | H86: 46.5628 | I86: 45.0567 | J86: 51.4676 | K86: 45.4970
A87: ENSMUSG00000082193.1 | B87: ENSMUST00000121367.1 | C87: Rpl5-ps1 | D87: 29.9493 | E87: 32.5521 | F87: 29.4731 | G87: 19.8189 | H87: 22.5703 | I87: 20.8038 | J87: 30.6582 | K87: 21.0643
A88: ENSMUSG00000032769.4 | B88: ENSMUST00000041447.4 | C88: Trpa1 | D88: 0.0000 | E88: 0.0000 | F88: 0.0000 | G88: 0.0000 | H88: 0.0000 | I88: 0.0000 | J88: 0.0000 | K88: 0.0000
A89: ENSMUSG00000088159.1 | B89: ENSMUST00000157534.1 | C89: SNORA17 | D89: 0.0000 | E89: 0.0000 | F89: 0.6630 | G89: 0.0000 | H89: 0.0000 | I89: 0.0000 | J89: 0.2210 | K89: 0.0000
A90: ENSMUSG00000073737.2 | B90: ENSMUST00000086739.4 | C90: Gm10566 | D90: 2.4098 | E90: 1.3115 | F90: 0.6188 | G90: 0.4471 | H90: 0.7131 | I90: 0.5758 | J90: 1.4467 | K90: 0.5786
A91: ENSMUSG00000092083.1 | B91: ENSMUST00000171715.1,ENSMUST00000168586.1 | C91: Kcnb2 | D91: 0.0000 | E91: 0.0000 | F91: 0.0000 | G91: 0.0000 | H91: 0.0000 | I91: 0.0000 | J91: 0.0000 | K91: 0.0000
A92: ENSMUSG00000088829.1 | B92: ENSMUST00000158204.1 | C92: SNORA17 | D92: 0.0000 | E92: 0.0000 | F92: 0.0000 | G92: 0.0000 | H92: 0.0000 | I92: 0.0000 | J92: 0.0000 | K92: 0.0000
A93: ENSMUSG00000090498.1 | B93: ENSMUST00000170146.1 | C93: Kcnb2 | D93: 0.0000 | E93: 0.0000 | F93: 0.0000 | G93: 0.0000 | H93: 0.0000 | I93: 0.0000 | J93: 0.0000 | K93: 0.0000
A94: ENSMUSG00000077377.1 | B94: ENSMUST00000104189.1 | C94: SNORA17 | D94: 0.0000 | E94: 0.0000 | F94: 0.0000 | G94: 0.0000 | H94: 0.0398 | I94: 0.0000 | J94: 0.0000 | K94: 0.0133
A95: ENSMUSG00000025925.7 | B95: ENSMUST00000027057.6,ENSMUST00000093770.4 | C95: Terf1 | D95: 20.3560 | E95: 23.8152 | F95: 27.2582 | G95: 25.1901 | H95: 22.8717 | I95: 25.7535 | J95: 23.8098 | K95: 24.6051
A96: ENSMUSG00000032719.4 | B96: ENSMUST00000040695.4 | C96: Gm106 | D96: 0.0000 | E96: 0.0000 | F96: 0.0000 | G96: 0.0073 | H96: 0.1623 | I96: 0.1366 | J96: 0.0000 | K96: 0.1021
A97: ENSMUSG00000088943.1 | B97: ENSMUST00000158318.1 | C97: 7SK | D97: 0.3094 | E97: 0.0000 | F97: 0.0000 | G97: 0.0000 | H97: 0.0000 | I97: 0.0000 | J97: 0.1031 | K97: 0.0000
A98: ENSMUSG00000067795.5 | B98: ENSMUST00000145070.1,ENSMUST00000151004.1,ENSMUST00000115367.1 | C98: 4930444P10Rik | D98: 0.2499 | E98: 0.4126 | F98: 0.1928 | G98: 0.0000 | H98: 0.0000 | I98: 0.0020 | J98: 0.2851 | K98: 0.0007
A99: ENSMUSG00000043716.7 | B99: ENSMUST00000058437.7,ENSMUST00000140597.1,ENSMUST00000141217.1,ENSMUST00000151017.1,ENSMUST00000149566.1,ENSMUST00000125005.1 | C99: Rpl7 | D99: 259.3453 | E99: 256.9162 | F99: 257.3623 | G99: 181.5073 | H99: 184.0768 | I99: 186.8111 | J99: 257.8746 | K99: 184.1317
A100: ENSMUSG00000025921.7 | B100: ENSMUST00000027053.7,ENSMUST00000152626.1 | C100: Rdh10 | D100: 0.9972 | E100: 3.0822 | F100: 2.8498 | G100: 2.1742 | H100: 3.2249 | I100: 2.3261 | J100: 2.3097 | K100: 2.5751
A101: ENSMUSG00000025920.12 | B101: ENSMUST00000162751.1,ENSMUST00000054668.6,ENSMUST00000162627.1,ENSMUST00000027052.6,ENSMUST00000162435.1,ENSMUST00000159558.1,ENSMUST00000128957.2,ENSMUST00000131257.2,ENSMUST00000115360.1,ENSMUST00000162007.1,ENSMUST00000127420.1,ENSMUST00000149320.2,ENSMUST00000116646.1,ENSMUST00000151888.1,ENSMUST00000153966.2,ENSMUST00000115359.3,ENSMUST00000145092.1,ENSMUST00000144138.2 | C101: Stau2 | D101: 6.1551 | E101: 3.3939 | F101: 4.7229 | G101: 4.0127 | H101: 3.4395 | I101: 4.3993 | J101: 4.7573 | K101: 3.9505
A102: ENSMUSG00000089982.1 | B102: ENSMUST00000160446.1,ENSMUST00000161626.1,ENSMUST00000159190.1 | C102: Gm7568 | D102: 0.0000 | E102: 0.0000 | F102: 0.0000 | G102: 0.0000 | H102: 0.0000 | I102: 0.0325 | J102: 0.0000 | K102: 0.0108
A103: ENSMUSG00000025939.10 | B103: ENSMUST00000117146.1,ENSMUST00000133639.1,ENSMUST00000136455.1,ENSMUST00000132919.1 | C103: Ube2w | D103: 10.6581 | E103: 11.9877 | F103: 17.1674 | G103: 14.0846 | H103: 14.9829 | I103: 13.4124 | J103: 13.2711 | K103: 14.1599
A104: ENSMUSG00000079658.3 | B104: ENSMUST00000115352.3 | C104: Tceb1 | D104: 123.6982 | E104: 136.5191 | F104: 93.8678 | G104: 84.5737 | H104: 80.7482 | I104: 87.5636 | J104: 118.0284 | K104: 84.2952
A105: ENSMUSG00000087414.1 | B105: ENSMUST00000130710.1 | C105: Gm16720 | D105: 0.0029 | E105: 0.0017 | F105: 0.0143 | G105: 0.1153 | H105: 0.0181 | I105: 0.0000 | J105: 0.0063 | K105: 0.0445
A106: ENSMUSG00000025940.5 | B106: ENSMUST00000065373.4 | C106: Tmem70 | D106: 28.6590 | E106: 42.3965 | F106: 49.1077 | G106: 36.3022 | H106: 38.8898 | I106: 35.8204 | J106: 40.0544 | K106: 37.0041
A107: ENSMUSG00000025779.4 | B107: ENSMUST00000026881.4 | C107: Ly96 | D107: 36.6892 | E107: 20.4898 | F107: 26.1969 | G107: 24.7817 | H107: 19.7732 | I107: 22.4586 | J107: 27.7920 | K107: 22.3378
A108: ENSMUSG00000091020.1 | B108: ENSMUST00000071842.7 | C108: Gm5828 | D108: 0.6427 | E108: 0.4982 | F108: 0.6018 | G108: 0.9232 | H108: 0.8326 | I108: 0.9939 | J108: 0.5809 | K108: 0.9166
A109: ENSMUSG00000042686.3 | B109: ENSMUST00000038382.3 | C109: Jph1 | D109: 2.3735 | E109: 1.1023 | F109: 0.0000 | G109: 0.1375 | H109: 0.0145 | I109: 0.1340 | J109: 1.1586 | K109: 0.0954
A110: ENSMUSG00000025777.7 | B110: ENSMUST00000026879.7,ENSMUST00000150457.1 | C110: Gdap1 | D110: 0.1716 | E110: 0.0000 | F110: 0.0874 | G110: 0.0000 | H110: 0.0000 | I110: 0.0358 | J110: 0.0863 | K110: 0.0119
A111: ENSMUSG00000089534.1 | B111: ENSMUST00000158909.1 | C111: SNORA17 | D111: 0.0000 | E111: 0.0000 | F111: 0.0000 | G111: 0.0000 | H111: 0.0000 | I111: 0.0000 | J111: 0.0000 | K111: 0.0000
A112: ENSMUSG00000067780.2 | B112: ENSMUST00000088476.2 | C112: Pi15 | D112: 0.1444 | E112: 1.2176 | F112: 0.1667 | G112: 0.0000 | H112: 0.0046 | I112: 0.0071 | J112: 0.5096 | K112: 0.0039
A113: ENSMUSG00000085125.1 | B113: ENSMUST00000155588.1,ENSMUST00000127328.1,ENSMUST00000149914.1 | C113: Gm16070 | D113: 2.8393 | E113: 0.9245 | F113: 1.2776 | G113: 0.7442 | H113: 0.9069 | I113: 0.9200 | J113: 1.6805 | K113: 0.8571
A114: ENSMUSG00000025776.7 | B114: ENSMUST00000159958.1,ENSMUST00000160305.1,ENSMUST00000095075.4 | C114: Crispld1 | D114: 6.6181 | E114: 2.8764 | F114: 8.9521 | G114: 7.5500 | H114: 6.0733 | I114: 4.5050 | J114: 6.1489 | K114: 6.0428
A115: ENSMUSG00000025774.8 | B115: ENSMUST00000026876.6,ENSMUST00000130669.1,ENSMUST00000115340.1,ENSMUST00000115344.1 | C115: Crisp4 | D115: 0.0000 | E115: 0.0000 | F115: 0.1744 | G115: 0.0000 | H115: 0.0000 | I115: 0.0000 | J115: 0.0581 | K115: 0.0000
A116: ENSMUSG00000070977.4 | B116: ENSMUST00000126871.1 | C116: Defb44-ps | D116: 0.0000 | E116: 0.0000 | F116: 0.0000 | G116: 0.0000 | H116: 0.0000 | I116: 0.0000 | J116: 0.0000 | K116: 0.0000
A117: ENSMUSG00000073735.1 | B117: ENSMUST00000097818.1 | C117: Defb18 | D117: 0.0000 | E117: 0.0000 | F117: 0.0000 | G117: 0.0000 | H117: 0.0000 | I117: 0.0000 | J117: 0.0000 | K117: 0.0000
A118: ENSMUSG00000067773.5 | B118: ENSMUST00000088463.1 | C118: Defb41 | D118: 0.0000 | E118: 0.0000 | F118: 0.0000 | G118: 0.0000 | H118: 0.0000 | I118: 0.0000 | J118: 0.0000 | K118: 0.0000
A119: ENSMUSG00000089923.1 | B119: ENSMUST00000097817.3 | C119: Gm15386 | D119: 0.0000 | E119: 0.0000 | F119: 0.0000 | G119: 0.0000 | H119: 0.0000 | I119: 0.0000 | J119: 0.0000 | K119: 0.0000
A120: ENSMUSG00000088800.1 | B120: ENSMUST00000158175.1 | C120: SNORA17 | D120: 0.0000 | E120: 0.0000 | F120: 0.0000 | G120: 0.0000 | H120: 0.0000 | I120: 0.0000 | J120: 0.0000 | K120: 0.0000
A121: ENSMUSG00000089787.1 | B121: ENSMUST00000159108.1 | C121: Gm15825 | D121: 0.0000 | E121: 0.0149 | F121: 0.0000 | G121: 0.0000 | H121: 0.0000 | I121: 0.0000 | J121: 0.0050 | K121: 0.0000
A122: ENSMUSG00000042596.7 | B122: ENSMUST00000037294.7,ENSMUST00000149505.1 | C122: Tcfap2d | D122: 0.0000 | E122: 0.0070 | F122: 0.0000 | G122: 0.0000 | H122: 0.0000 | I122: 0.0000 | J122: 0.0023 | K122: 0.0000
A123: ENSMUSG00000060128.3 | B123: ENSMUST00000073196.2,ENSMUST00000162030.1 | C123: Gm10075 | D123: 206.0247 | E123: 208.9412 | F123: 216.1728 | G123: 209.6133 | H123: 193.5527 | I123: 210.2377 | J123: 210.3796 | K123: 204.4679
A124: ENSMUSG00000025927.6 | B124: ENSMUST00000027059.4,ENSMUST00000166387.1,ENSMUST00000064976.4 | C124: Tcfap2b | D124: 0.0733 | E124: 0.0043 | F124: 0.0062 | G124: 0.0000 | H124: 0.0004 | I124: 0.0008 | J124: 0.0280 | K124: 0.0004
A125: ENSMUSG00000084668.1 | B125: ENSMUST00000122719.1 | C125: SNORD29 | D125: 0.0000 | E125: 0.0000 | F125: 0.0000 | G125: 0.0000 | H125: 0.0000 | I125: 0.0000 | J125: 0.0000 | K125: 0.0000
A126: ENSMUSG00000080585.1 | B126: ENSMUST00000116935.1 | C126: AC163028.1 | D126: 0.0000 | E126: 0.0000 | F126: 0.0000 | G126: 0.0000 | H126: 0.0000 | I126: 0.0000 | J126: 0.0000 | K126: 0.0000
A127: ENSMUSG00000043760.9 | B127: ENSMUST00000088448.5,ENSMUST00000060305.7,ENSMUST00000132647.1,ENSMUST00000147480.1,ENSMUST00000128051.1 | C127: Pkhd1 | D127: 0.1310 | E127: 0.0096 | F127: 0.0917 | G127: 0.0000 | H127: 0.0000 | I127: 0.0000 | J127: 0.0774 | K127: 0.0000
A128: ENSMUSG00000089914.1 | B128: ENSMUST00000161509.1 | C128: 4930486I03Rik | D128: 0.0000 | E128: 0.0000 | F128: 0.0000 | G128: 0.0000 | H128: 0.0000 | I128: 0.0000 | J128: 0.0000 | K128: 0.0000
A129: ENSMUSG00000090142.1 | B129: ENSMUST00000160969.1 | C129: Gm15795 | D129: 2.3730 | E129: 2.7955 | F129: 1.6175 | G129: 1.3764 | H129: 1.9688 | I129: 1.5957 | J129: 2.2620 | K129: 1.6470
A130: ENSMUSG00000070175.1 | B130: ENSMUST00000093665.1 | C130: U6 | D130: 0.0000 | E130: 0.0000 | F130: 0.0000 | G130: 0.0000 | H130: 0.0000 | I130: 0.0000 | J130: 0.0000 | K130: 0.0000
A131: ENSMUSG00000065559.1 | B131: ENSMUST00000083625.1 | C131: Mir206 | D131: 0.0000 | E131: 0.0000 | F131: 0.0000 | G131: 0.0000 | H131: 0.0000 | I131: 0.0000 | J131: =AVERAGE(D131:F131) -> 0.0000 | K131: =AVERAGE(G131:I131) -> 0.0000
A132: ENSMUSG00000065480.1 | B132: ENSMUST00000083546.1 | C132: Mir133b | D132: 0.0000 | E132: 0.0000 | F132: 0.0000 | G132: 0.0000 | H132: 0.0000 | I132: 0.0000 | J132: 0.0000 | K132: 0.0000
A133: ENSMUSG00000025929.4 | B133: ENSMUST00000027061.4 | C133: Il17a | D133: 0.0000 | E133: 0.0000 | F133: 0.0000 | G133: 0.0000 | H133: 0.0000 | I133: 0.0000 | J133: 0.0000 | K133: 0.0000
A134: ENSMUSG00000041872.3 | B134: ENSMUST00000039046.3 | C134: Il17f | D134: 0.0000 | E134: 0.0000 | F134: 0.0000 | G134: 0.1028 | H134: 0.1358 | I134: 0.2921 | J134: 0.0000 | K134: 0.1769
A135: ENSMUSG00000041859.9 | B135: ENSMUST00000053266.9 | C135: Mcm3 | D135: 89.3090 | E135: 98.7823 | F135: 124.4144 | G135: 106.1274 | H135: 121.0724 | I135: 110.0612 | J135: 104.1686 | K135: 112.4203
A136: ENSMUSG00000088858.1 | B136: ENSMUST00000158233.1 | C136: SNORA17 | D136: 0.0000 | E136: 0.0000 | F136: 0.0000 | G136: 0.0000 | H136: 0.0000 | I136: 0.0000 | J136: 0.0000 | K136: 0.0000
A137: ENSMUSG00000087078.1 | B137: ENSMUST00000133805.1 | C137: 6720483E21Rik | D137: 0.0000 | E137: 0.0000 | F137: 1.7760 | G137: 1.3998 | H137: 0.8820 | I137: 0.6265 | J137: 0.5920 | K137: 0.9694
A138: ENSMUSG00000025931.8 | B138: ENSMUST00000163700.1,ENSMUST00000068880.6,ENSMUST00000172139.1,ENSMUST00000167119.1 | C138: Paqr8 | D138: 3.2467 | E138: 0.5252 | F138: 4.9940 | G138: 2.7583 | H138: 4.0654 | I138: 3.8620 | J138: 2.9219 | K138: 3.5619
A139: ENSMUSG00000077314.1 | B139: ENSMUST00000104126.1 | C139: SNORA17 | D139: 0.0000 | E139: 0.0000 | F139: 0.0000 | G139: 0.0000 | H139: 0.0000 | I139: 0.0000 | J139: 0.0000 | K139: 0.0000
A140: ENSMUSG00000041809.4 | B140: ENSMUST00000160782.1,ENSMUST00000038447.4 | C140: Efhc1 | D140: 0.7227 | E140: 0.0062 | F140: 0.9923 | G140: 1.1576 | H140: 0.6720 | I140: 0.9509 | J140: 0.5738 | K140: 0.9269
A141: ENSMUSG00000041779.4 | B141: ENSMUST00000037998.4 | C141: Tram2 | D141: 1.8402 | E141: 0.9406 | F141: 1.8436 | G141: 1.2440 | H141: 1.6927 | I141: 2.4219 | J141: 1.5415 | K141: 1.7862
A142: ENSMUSG00000025933.8 | B142: ENSMUST00000027065.5,ENSMUST00000027064.7,ENSMUST00000165595.1 | C142: Tmem14a | D142: 2.1510 | E142: 3.2381 | F142: 3.1458 | G142: 2.7225 | H142: 2.5179 | I142: 1.8017 | J142: 2.8450 | K142: 2.3474
A143: ENSMUSG00000025934.9 | B143: ENSMUST00000027067.8,ENSMUST00000121676.1,ENSMUST00000124990.1 | C143: Gsta3 | D143: 0.0000 | E143: 0.2038 | F143: 0.1143 | G143: 0.0144 | H143: 0.0687 | I143: 0.1348 | J143: 0.1060 | K143: 0.0726
A144: ENSMUSG00000046847.5 | B144: ENSMUST00000061136.5 | C144: Gm7094 | D144: 0.0000 | E144: 0.1816 | F144: 0.0526 | G144: 0.1861 | H144: 0.0211 | I144: 0.0863 | J144: 0.0781 | K144: 0.0978
A145: ENSMUSG00000025936.8 | B145: ENSMUST00000082032.5 | C145: Gm4956 | D145: 0.0000 | E145: 0.0000 | F145: 2.4150 | G145: 1.0388 | H145: 0.4052 | I145: 0.1606 | J145: 0.8050 | K145: 0.5349
A146: ENSMUSG00000067750.3 | B146: ENSMUST00000088407.3 | C146: Khdc1a | D146: 0.3185 | E146: 1.6374 | F146: 0.0000 | G146: 0.0000 | H146: 0.0000 | I146: 0.0000 | J146: 0.6520 | K146: 0.0000
A147: ENSMUSG00000086194.1 | B147: ENSMUST00000148174.1 | C147: Gm16329 | D147: 0.0000 | E147: 0.0000 | F147: 0.0000 | G147: 0.0000 | H147: 0.0000 | I147: 0.0000 | J147: 0.0000 | K147: 0.0000
A148: ENSMUSG00000087453.1 | B148: ENSMUST00000137146.1 | C148: Gm16327 | D148: 5.9618 | E148: 0.4215 | F148: 0.3490 | G148: 0.0000 | H148: 0.0000 | I148: 0.0000 | J148: 2.2441 | K148: 0.0000
A149: ENSMUSG00000041722.7 | B149: ENSMUST00000070223.5 | C149: Khdc1c | D149: 0.0120 | E149: 0.2645 | F149: 0.0000 | G149: 0.0000 | H149: 0.0000 | I149: 0.0000 | J149: 0.0922 | K149: 0.0000
A150: ENSMUSG00000085507.1 | B150: ENSMUST00000142979.1 | C150: Gm2709 | D150: 0.0000 | E150: 0.0298 | F150: 0.0000 | G150: 0.0000 | H150: 0.0000 | I150: 0.0000 | J150: 0.0099 | K150: 0.0000
A151: ENSMUSG00000087427.1 | B151: ENSMUST00000140035.1 | C151: Gm16533 | D151: 0.0000 | E151: 11.2595 | F151: 0.0000 | G151: 0.0000 | H151: 0.0000 | I151: 0.0000 | J151: 3.7532 | K151: 0.0000
A152: ENSMUSG00000085079.2 | B152: ENSMUST00000147615.1,ENSMUST00000166217.1 | C152: Khdc1b | D152: 0.0834 | E152: 0.0046 | F152: 0.0620 | G152: 0.0000 | H152: 0.0000 | I152: 0.0000 | J152: 0.0500 | K152: 0.0000
A153: ENSMUSG00000085679.2 | B153: ENSMUST00000126985.2 | C153: Gm16328 | D153: 3.1089 | E153: 0.0000 | F153: 0.0000 | G153: 0.0000 | H153: 0.0000 | I153: 0.0000 | J153: 1.0363 | K153: 0.0000
A154: ENSMUSG00000028033.9 | B154: ENSMUST00000029667.6,ENSMUST00000115300.1,ENSMUST00000173058.1,ENSMUST00000174183.1,ENSMUST00000173404.1,ENSMUST00000166949.1,ENSMUST00000115299.1,ENSMUST00000134505.1 | C154: Kcnq5 | D154: 1.0782 | E154: 1.4589 | F154: 0.8688 | G154: 0.8648 | H154: 0.7207 | I154: 0.6810 | J154: 1.1353 | K154: 0.7555
A155: ENSMUSG00000082935.1 | B155: ENSMUST00000119064.1 | C155: Gm7658 | D155: 7.4228 | E155: 8.1221 | F155: 9.6093 | G155: 3.9698 | H155: 4.8433 | I155: 4.3165 | J155: 8.3847 | K155: 4.3765
A156: ENSMUSG00000085163.1 | B156: ENSMUST00000129086.1 | C156: Gm16705 | D156: 0.0559 | E156: 1.0353 | F156: 2.6490 | G156: 0.7291 | H156: 1.1256 | I156: 1.1995 | J156: 1.2468 | K156: 1.0181
A157: ENSMUSG00000041670.8 | B157: ENSMUST00000097811.2,ENSMUST00000097810.2,ENSMUST00000097809.2,ENSMUST00000115273.1,ENSMUST00000081544.5,ENSMUST00000164877.1,ENSMUST00000097808.3,ENSMUST00000088389.3 | C157: Rims1 | D157: 0.0775 | E157: 0.1248 | F157: 0.1315 | G157: 0.0000 | H157: 0.0000 | I157: 0.0000 | J157: 0.1113 | K157: 0.0000
A158: ENSMUSG00000073730.2 | B158: ENSMUST00000073179.5 | C158: 4933415F23Rik | D158: 0.0132 | E158: 0.0077 | F158: 0.0949 | G158: 0.0023 | H158: 0.0089 | I158: 0.0023 | J158: 0.0386 | K158: 0.0045
A159: ENSMUSG00000089553.1 | B159: ENSMUST00000158928.1 | C159: SNORA17 | D159: 1.1621 | E159: 0.0000 | F159: 0.0000 | G159: 0.0000 | H159: 0.0000 | I159: 0.0000 | J159: 0.3874 | K159: 0.0000
A160: ENSMUSG00000073729.1 | B160: ENSMUST00000097807.1 | C160: Gm6420 | D160: 0.2232 | E160: 0.0000 | F160: 0.0000 | G160: 0.0000 | H160: 0.0000 | I160: 0.1943 | J160: 0.0744 | K160: 0.0648
A161: ENSMUSG00000065405.1 | B161: ENSMUST00000083471.1 | C161: Mir30a | D161: 0.0000 | E161: 2.3203 | F161: 0.0000 | G161: 0.0000 | H161: 0.0000 | I161: 0.2298 | J161: 0.7734 | K161: 0.0766
A162: ENSMUSG00000065567.1 | B162: ENSMUST00000083633.1 | C162: Mir30c-2 | D162: 0.0000 | E162: 3.9223 | F162: 0.0000 | G162: 0.2393 | H162: 0.0000 | I162: 0.0000 | J162: 1.3074 | K162: 0.0798
A163: ENSMUSG00000026158.5 | B163: ENSMUST00000027343.5 | C163: Ogfrl1 | D163: 23.9182 | E163: 14.1089 | F163: 22.2509 | G163: 25.1607 | H163: 28.9015 | I163: 25.5147 | J163: 20.0926 | K163: 26.5256
A164: ENSMUSG00000026156.8 | B164: ENSMUST00000144602.1,ENSMUST00000063663.5,ENSMUST00000140583.1 | C164: B3gat2 | D164: 2.7392 | E164: 1.4961 | F164: 1.6547 | G164: 1.7886 | H164: 1.2896 | I164: 1.5429 | J164: 1.9633 | K164: 1.5404
A165: ENSMUSG00000026155.7 | B165: ENSMUST00000149737.1,ENSMUST00000027339.7,ENSMUST00000136506.1,ENSMUST00000129254.1,ENSMUST00000148710.1,ENSMUST00000141330.1,ENSMUST00000133398.1 | C165: Smap1 | D165: 10.8887 | E165: 8.9012 | F165: 10.6272 | G165: 9.9175 | H165: 9.4618 | I165: 10.0439 | J165: 10.1390 | K165: 9.8077
A166: ENSMUSG00000026154.3 | B166: ENSMUST00000027338.3,ENSMUST00000155767.1 | C166: 1110058L19Rik | D166: 64.7305 | E166: 74.0756 | F166: 41.4209 | G166: 32.9545 | H166: 36.0773 | I166: 33.7556 | J166: 60.0757 | K166: 34.2625
A167: ENSMUSG00000026153.8 | B167: ENSMUST00000027337.8,ENSMUST00000097806.3 | C167: Fam135a | D167: 1.2827 | E167: 0.3651 | F167: 0.3936 | G167: 1.0969 | H167: 0.6676 | I167: 1.1655 | J167: 0.6805 | K167: 0.9767
A168: ENSMUSG00000026147.9 | B168: ENSMUST00000054588.8,ENSMUST00000084261.5,ENSMUST00000088349.2,ENSMUST00000115252.2,ENSMUST00000124600.1,ENSMUST00000147902.1 | C168: Col9a1 | D168: 0.0275 | E168: 0.3645 | F168: 0.0000 | G168: 0.0000 | H168: 0.0000 | I168: 0.0000 | J168: 0.1307 | K168: 0.0000
A169: ENSMUSG00000026141.7 | B169: ENSMUST00000144297.1,ENSMUST00000115244.2,ENSMUST00000051344.5 | C169: Col19a1 | D169: 0.0374 | E169: 0.1654 | F169: 0.0924 | G169: 0.0000 | H169: 0.0000 | I169: 0.0000 | J169: 0.0984 | K169: 0.0000
A170: ENSMUSG00000077463.1 | B170: ENSMUST00000104275.1 | C170: SNORA64 | D170: 0.0000 | E170: 0.0000 | F170: 0.0000 | G170: 0.0000 | H170: 0.0000 | I170: 0.0000 | J170: 0.0000 | K170: 0.0000
A171: ENSMUSG00000067736.1 | B171: ENSMUST00000088336.1 | C171: Gm10222 | D171: 277.6698 | E171: 227.6816 | F171: 212.5740 | G171: 205.9711 | H171: 164.8925 | I171: 179.2677 | J171: 239.3085 | K171: 183.3771
A172: ENSMUSG00000090378.1 | B172: ENSMUST00000164707.1 | C172: Gm10925 | D172: 4,213.1913 | E172: 4,117.5440 | F172: 2,918.3714 | G172: 3,055.6190 | H172: 2,559.5835 | I172: 2,853.2003 | J172: 3,749.7022 | K172: 2,822.8009
A173: ENSMUSG00000073725.2 | B173: ENSMUST00000095062.3 | C173: Lmbrd1 | D173: 9.0925 | E173: 12.4564 | F173: 8.8297 | G173: 9.7065 | H173: 7.9547 | I173: 9.3038 | J173: 10.1262 | K173: 8.9884
A174: ENSMUSG00000033569.10 | B174: ENSMUST00000126626.1,ENSMUST00000151309.1,ENSMUST00000146592.1,ENSMUST00000135518.1,ENSMUST00000041838.5,ENSMUST00000153568.1,ENSMUST00000126096.1,ENSMUST00000154102.1,ENSMUST00000134022.1 | C174: Bai3 | D174: 0.0788 | E174: 0.1100 | F174: 0.0287 | G174: 0.0000 | H174: 0.0026 | I174: 0.0000 | J174: 0.0725 | K174: 0.0009
A175: ENSMUSG00000080849.1 | B175: ENSMUST00000119680.1 | C175: Gm15702 | D175: 0.0000 | E175: 0.0186 | F175: 0.0000 | G175: 0.0023 | H175: 0.0122 | I175: 0.0040 | J175: 0.0062 | K175: 0.0062
A176: ENSMUSG00000064910.1 | B176: ENSMUST00000082976.1 | C176: U6 | D176: 0.0000 | E176: 0.0000 | F176: 0.0000 | G176: 0.0000 | H176: 0.0000 | I176: 0.0000 | J176: 0.0000 | K176: 0.0000
A177: ENSMUSG00000084740.1 | B177: ENSMUST00000122791.1 | C177: U6 | D177: 0.0000 | E177: 0.0000 | F177: 0.0000 | G177: 0.0000 | H177: 0.0000 | I177: 0.0000 | J177: 0.0000 | K177: 0.0000
A178: ENSMUSG00000052558.1 | B178: ENSMUST00000064487.1 | C178: Gm9884 | D178: 0.0000 | E178: 0.0000 | F178: 0.0326 | G178: 0.0000 | H178: 0.0000 | I178: 0.0000 | J178: 0.0109 | K178: 0.0000
A179: ENSMUSG00000088111.1 | B179: ENSMUST00000157486.1 | C179: SNORA17 | D179: 0.0000 | E179: 0.0000 | F179: 0.0000 | G179: 0.0000 | H179: 0.0000 | I179: 0.0000 | J179: 0.0000 | K179: 0.0000
A180: ENSMUSG00000073722.2 | B180: ENSMUST00000097801.2 | C180: 4931408C20Rik | D180: 0.0000 | E180: 0.0000 | F180: 0.0000 | G180: 0.1531 | H180: 0.0000 | I180: 0.0000 | J180: 0.0000 | K180: 0.0510
A181: ENSMUSG00000079640.1 | B181: ENSMUST00000115216.1 | C181: Gm11161 | D181: 0.0000 | E181: 0.0000 | F181: 0.0000 | G181: 0.0000 | H181: 0.0000 | I181: 0.0000 | J181: 0.0000 | K181: 0.0000
A182: ENSMUSG00000084715.1 | B182: ENSMUST00000122766.1 | C182: AC153790.1 | D182: 0.0000 | E182: 0.0150 | F182: 0.0000 | G182: 0.0000 | H182: 0.0000 | I182: 0.0000 | J182: 0.0050 | K182: 0.0000
A183: ENSMUSG00000086240.2 | B183: ENSMUST00000145844.1,ENSMUST00000171833.1 | C183: Gm7846 | D183: 21.6528 | E183: 23.3946 | F183: 19.7225 | G183: 19.4679 | H183: 15.4037 | I183: 16.9680 | J183: 21.5900 | K183: 17.2799
A184: ENSMUSG00000048411.3 | B184: ENSMUST00000059937.3 | C184: Gm597 | D184: 0.0000 | E184: 0.0000 | F184: 0.0000 | G184: 0.0000 | H184: 0.0000 | I184: 0.0000 | J184: 0.0000 | K184: 0.0000
A185: ENSMUSG00000081557.1 | B185: ENSMUST00000122295.1 | C185: Gm5697 | D185: 0.0283 | E185: 0.1050 | F185: 0.1602 | G185: 0.0755 | H185: 0.0834 | I185: 0.0755 | J185: 0.0978 | K185: 0.0781
A186: ENSMUSG00000090766.1 | B186: ENSMUST00000170691.1 | C186: Gm17684 | D186: 0.0000 | E186: 0.0000 | F186: 0.0000 | G186: 0.0000 | H186: 0.0000 | I186: 0.0000 | J186: 0.0000 | K186: 0.0000
A187: ENSMUSG00000058590.1 | B187: ENSMUST00000081488.1 | C187: Gm6462 | D187: 0.0000 | E187: 0.0000 | F187: 0.0000 | G187: 0.0000 | H187: 0.0000 | I187: 0.0000 | J187: 0.0000 | K187: 0.0000
A188: ENSMUSG00000064433.1 | B188: ENSMUST00000082499.1 | C188: Y_RNA | D188: 0.0000 | E188: 0.2451 | F188: 0.0000 | G188: 0.0000 | H188: 0.0000 | I188: 0.0000 | J188: 0.0817 | K188: 0.0000
A189: ENSMUSG00000080625.1 | B189: ENSMUST00000116975.1 | C189: AC163659.2 | D189: 0.0000 | E189: 0.0000 | F189: 0.0000 | G189: 0.0000 | H189: 0.0000 | I189: 0.0000 | J189: 0.0000 | K189: 0.0000
A190: ENSMUSG00000080391.1 | B190: ENSMUST00000116741.1 | C190: AC163659.1 | D190: 0.0000 | E190: 0.0000 | F190: 0.0000 | G190: 0.0000 | H190: 0.0000 | I190: 0.0000 | J190: 0.0000 | K190: 0.0000
A191: ENSMUSG00000077073.1 | B191: ENSMUST00000103885.1 | C191: AC126798.1 | D191: 0.0000 | E191: 0.0000 | F191: 0.0000 | G191: 0.0000 | H191: 0.0000 | I191: 0.0000 | J191: 0.0000 | K191: 0.0000
A192: ENSMUSG00000053185.1 | B192: ENSMUST00000065469.1 | C192: Gm9898 | D192: 0.0000 | E192: 0.0026 | F192: 0.0341 | G192: 0.0000 | H192: 0.1366 | I192: 0.0000 | J192: 0.0122 | K192: 0.0455
A193: ENSMUSG00000048874.8 | B193: ENSMUST00000088310.3,ENSMUST00000166261.1,ENSMUST00000046443.6 | C193: Phf3 | D193: 3.1318 | E193: 5.4116 | F193: 6.6649 | G193: 8.2594 | H193: 8.5838 | I193: 6.8987 | J193: 5.0694 | K193: 7.9140
A194: ENSMUSG00000026064.8 | B194: ENSMUST00000027232.7,ENSMUST00000153681.1,ENSMUST00000076587.3,ENSMUST00000130934.1,ENSMUST00000124445.1 | C194: Ptp4a1 | D194: 11.1101 | E194: 14.2073 | F194: 14.6826 | G194: 16.3243 | H194: 15.4140 | I194: 16.3814 | J194: 13.3334 | K194: 16.0399
A195: ENSMUSG00000086151.1 | B195: ENSMUST00000156220.1 | C195: Gm5698 | D195: 0.0070 | E195: 0.0000 | F195: 0.0000 | G195: 0.0000 | H195: 0.0000 | I195: 0.0000 | J195: =AVERAGE(D195:F195) -> 0.0023 | K195: =AVERAGE(G195:I195) -> 0.0000
A196: ENSMUSG00000086726.1 | B196: ENSMUST00000135273.1 | C196: Gm9458 | D196: 0.0000 | E196: 4.5007 | F196: 0.0000 | G196: 0.0000 | H196: 0.0000 | I196: 0.0000 | J196: 1.5002 | K196: 0.0000
A197: ENSMUSG00000087346.1 | B197: ENSMUST00000152491.1 | C197: Gm5699 | D197: 0.0068 | E197: 0.0118 | F197: 0.0000 | G197: 0.0086 | H197: 0.0000 | I197: 0.0000 | J197: 0.0062 | K197: 0.0029
A198: ENSMUSG00000086727.1 | B198: ENSMUST00000127775.1,ENSMUST00000135245.1 | C198: 4931428L18Rik | D198: 0.0000 | E198: 0.0000 | F198: 0.0000 | G198: 0.0000 | H198: 0.0000 | I198: 0.0000 | J198: 0.0000 | K198: 0.0000
A199: ENSMUSG00000050217.7 | B199: ENSMUST00000062560.7,ENSMUST00000161773.1 | C199: Lgsn | D199: 0.0000 | E199: 0.0000 | F199: 0.0000 | G199: 0.0000 | H199: 0.0000 | I199: 0.0000 | J199: 0.0000 | K199: 0.0000
A200: ENSMUSG00000026063.3 | B200: ENSMUST00000027230.1 | C200: 4930521A18Rik | D200: 0.0000 | E200: 0.0000 | F200: 0.0000 | G200: 0.0000 | H200: 0.0000 | I200: 0.0000 | J200: 0.0000 | K200: 0.0000
... 4300 more rows

Sheet Supplementary Figure 11a
A1: GeneID | B1: TranscriptID | C1: GeneName | D1: baseMean | E1: log2FoldChange | F1: lfcSE | G1: stat | H1: pvalue | I1: padj
A2: ENSMUSG00000000093.6 | B2: ENSMUST00000000095.6 | C2: Tbx2 | D2: 1.573948568 | E2: -3.656707592 | F2: 3.531007701 | G2: -1.035598872 | H2: 0.300389319 | I2: NA
A3: ENSMUSG00000000157.8 | B3: ENSMUST00000000161.7,ENSMUST00000131567.1,ENSMUST00000113773.1,ENSMUST00000113772.2,ENSMUST00000131777.1 | C3: Itgb2l | D3: 1591.764733 | E3: -2.19301517 | F3: 0.349062903 | G3: -6.282578725 | H3: 3.33E-10 | I3: 3.89E-08
A4: ENSMUSG00000000159.9 | B4: ENSMUST00000113794.1,ENSMUST00000000163.6,ENSMUST00000081093.3,ENSMUST00000113795.1,ENSMUST00000139595.1,ENSMUST00000136292.1 | C4: Igsf5 | D4: 4.082100095 | E4: -3.982858539 | F4: 3.107286759 | G4: -1.281780166 | H4: 0.199919774 | I4: NA
A5: ENSMUSG00000000182.7 | B5: ENSMUST00000000186.6 | C5: Fgf23 | D5: 2.746599438 | E5: -3.36976893 | F5: 2.424422658 | G5: -1.389926348 | H5: 0.164551244 | I5: NA
A6: ENSMUSG00000000204.8 | B6: ENSMUST00000000208.5,ENSMUST00000167596.1,ENSMUST00000168773.1,ENSMUST00000164672.1 | C6: Slfn4 | D6: 321.4110226 | E6: -1.867724649 | F6: 0.863929668 | G6: -2.161894327 | H6: 0.030626322 | I6: 0.128834962
A7: ENSMUSG00000000215.4 | B7: ENSMUST00000105931.1,ENSMUST00000105934.1,ENSMUST00000105930.1,ENSMUST00000105933.1,ENSMUST00000000220.2,ENSMUST00000105932.1,ENSMUST00000125933.1,ENSMUST00000162317.1 | C7: Ins2 | D7: 1.000472659 | E7: -1.651766155 | F7: 3.948726712 | G7: -0.418303488 | H7: 0.67572524 | I7: NA
A8: ENSMUSG00000000248.9 | B8: ENSMUST00000000254.7,ENSMUST00000146925.1,ENSMUST00000142388.1,ENSMUST00000075789.2 | C8: Clec2g | D8: 13.01916376 | E8: -2.988498923 | F8: 1.550123266 | G8: -1.927910501 | H8: 0.053866259 | I8: 0.1876691
A9: ENSMUSG00000000266.5 | B9: ENSMUST00000128809.1,ENSMUST00000112990.1,ENSMUST00000112988.1,ENSMUST00000112993.1,ENSMUST00000140144.1 | C9: Mid2 | D9: 51.58513964 | E9: -2.126388342 | F9: 1.934932649 | G9: -1.098946955 | H9: 0.271791204 | I9: 0.507804255
A10: ENSMUSG00000000317.5 | B10: ENSMUST00000000326.5,ENSMUST00000153449.1,ENSMUST00000140542.1 | C10: Bcl6b | D10: 47.08463036 | E10: -3.307951903 | F10: 1.706327641 | G10: -1.938638175 | H10: 0.052545412 | I10: 0.184750001
A11: ENSMUSG00000000386.8 | B11: ENSMUST00000135184.1,ENSMUST00000113768.1,ENSMUST00000155233.1,ENSMUST00000023655.6,ENSMUST00000170016.1,ENSMUST00000172078.1,ENSMUST00000142883.1 | C11: Mx1 | D11: 92.42759114 | E11: -1.559600686 | F11: 1.278908554 | G11: -1.219477875 | H11: 0.222662868 | I11: 0.449196874
A12: ENSMUSG00000000489.6 | B12: ENSMUST00000000500.6 | C12: Pdgfb | D12: 112.5254279 | E12: -2.19043863 | F12: 0.582383673 | G12: -3.761160781 | H12: 0.000169127 | I12: 0.002664946
A13: ENSMUSG00000000794.7 | B13: ENSMUST00000000811.7,ENSMUST00000124584.1 | C13: Kcnn3 | D13: 3.03222689 | E13: -2.247213205 | F13: 3.857298212 | G13: -0.582587366 | H13: 0.560171112 | I13: NA
A14: ENSMUSG00000001076.6 | B14: ENSMUST00000064462.3 | C14: C1ql4 | D14: 0.452008588 | E14: -1.864336179 | F14: 3.97701979 | G14: -0.468777194 | H14: 0.639228903 | I14: NA
A15: ENSMUSG00000001131.5 | B15: ENSMUST00000115342.3,ENSMUST00000009530.4 | C15: Timp1 | D15: 6.329105237 | E15: -2.096316856 | F15: 2.986048037 | G15: -0.702037218 | H15: 0.482655954 | I15: 0.704142383
A16: ENSMUSG00000001300.8 | B16: ENSMUST00000001319.7,ENSMUST00000098947.3,ENSMUST00000152698.1 | C16: Efnb2 | D16: 33.72502844 | E16: -2.302353919 | F16: 0.609498198 | G16: -3.777458122 | H16: 0.000158437 | I16: 0.002528839
A17: ENSMUSG00000001656.3 | B17: ENSMUST00000001701.3 | C17: Hoxc11 | D17: 2.569426446 | E17: -4.362940334 | F17: 3.919297168 | G17: -1.113194572 | H17: 0.265624873 | I17: NA
A18: ENSMUSG00000001739.7 | B18: ENSMUST00000111093.1,ENSMUST00000001790.4,ENSMUST00000128391.1 | C18: Cldn15 | D18: 1824.685389 | E18: -2.081879737 | F18: 0.228095637 | G18: -9.127222947 | H18: 7.03E-20 | I18: 4.33E-17
A19: ENSMUSG00000002033.7 | B19: ENSMUST00000002101.5,ENSMUST00000159019.1,ENSMUST00000160886.1 | C19: Cd3g | D19: 11.91143337 | E19: -2.473586443 | F19: 2.190122528 | G19: -1.129428337 | H19: 0.258717185 | I19: 0.492199392
A20: ENSMUSG00000002190.7 | B20: ENSMUST00000002259.6,ENSMUST00000109831.2 | C20: Clgn | D20: 7.986698344 | E20: -3.471905322 | F20: 1.808811843 | G20: -1.919439734 | H20: 0.054928706 | I20: 0.189968555
A21: ENSMUSG00000002265.8 | B21: ENSMUST00000051209.4,ENSMUST00000086313.4,ENSMUST00000150182.1,ENSMUST00000143703.1,ENSMUST00000155910.1 | C21: Peg3 | D21: 18.22688153 | E21: -1.903017413 | F21: 2.739731899 | G21: -0.694599867 | H21: 0.487306096 | I21: 0.707106686
A22: ENSMUSG00000002664.2 | B22: ENSMUST00000002740.2 | C22: Pspn | D22: 2.459574784 | E22: -2.057196579 | F22: 2.640589072 | G22: -0.779067293 | H22: 0.435940076 | I22: NA
A23: ENSMUSG00000003283.7 | B23: ENSMUST00000003370.7,ENSMUST00000109799.1 | C23: Hck | D23: 1124.099222 | E23: -1.67136631 | F23: 0.278697687 | G23: -5.99705842 | H23: 2.01E-09 | I23: 1.97E-07
A24: ENSMUSG00000003418.9 | B24: ENSMUST00000003509.8,ENSMUST00000170090.1,ENSMUST00000150781.1 | C24: St8sia6 | D24: 476.6196084 | E24: -1.802281014 | F24: 0.268692933 | G24: -6.707586205 | H24: 1.98E-11 | I24: 3.05E-09
A25: ENSMUSG00000003872.7 | B25: ENSMUST00000003971.7,ENSMUST00000124128.1,ENSMUST00000156528.1,ENSMUST00000131333.1,ENSMUST00000147787.1 | C25: Lin7b | D25: 4.370028048 | E25: -5.131512051 | F25: 3.785291128 | G25: -1.35564528 | H25: 0.175212058 | I25: 0.388881023
A26: ENSMUSG00000004098.7 | B26: ENSMUST00000004201.7,ENSMUST00000145974.1 | C26: Col5a3 | D26: 29.47334699 | E26: -1.515894912 | F26: 1.378639581 | G26: -1.099558531 | H26: 0.271524518 | I26: 0.507636137
A27: ENSMUSG00000004668.7 | B27: ENSMUST00000042740.6,ENSMUST00000141233.1,ENSMUST00000109684.1,ENSMUST00000151522.1 | C27: Abca13 | D27: 288.632192 | E27: -2.187837881 | F27: 0.805885597 | G27: -2.714824399 | H27: 0.006631092 | I27: 0.04407352
A28: ENSMUSG00000004885.5 | B28: ENSMUST00000005019.5,ENSMUST00000163040.1 | C28: Crabp2 | D28: 1.283613475 | E28: -2.097712187 | F28: 3.930984258 | G28: -0.533635357 | H28: 0.593593841 | I28: NA
A29: ENSMUSG00000004892.8 | B29: ENSMUST00000090971.5 | C29: Bcan | D29: 0.508799126 | E29: -2.022199368 | F29: 3.969801291 | G29: -0.509395614 | H29: 0.61047495 | I29: NA
A30: ENSMUSG00000004961.6 | B30: ENSMUST00000065957.5 | C30: Syt5 | D30: 9.13459853 | E30: -1.693946196 | F30: 2.121346512 | G30: -0.798524044 | H30: 0.424566446 | I30: 0.656488748
A31: ENSMUSG00000005268.13 | B31: ENSMUST00000005400.6,ENSMUST00000145428.1,ENSMUST00000137867.1,ENSMUST00000124470.1,ENSMUST00000110548.1,ENSMUST00000132361.1,ENSMUST00000138135.1,ENSMUST00000130720.1,ENSMUST00000148257.1,ENSMUST00000128450.1,ENSMUST00000128921.1,ENSMUST00000134410.1,ENSMUST00000127467.1,ENSMUST00000157020.1 | C31: Prlr | D31: 99.58804047 | E31: -2.652746666 | F31: 1.242226407 | G31: -2.135477599 | H31: 0.032722018 | I31: 0.135089448
A32: ENSMUSG00000005364.8 | B32: ENSMUST00000005497.8,ENSMUST00000167925.1 | C32: Il5ra | D32: 421.1180502 | E32: -2.297361964 | F32: 0.795171745 | G32: -2.88913933 | H32: 0.003862979 | I32: 0.029441445
A33: ENSMUSG00000005611.8 | B33: ENSMUST00000127935.1,ENSMUST00000005751.6,ENSMUST00000125758.1,ENSMUST00000106675.2,ENSMUST00000149923.1,ENSMUST00000142368.1,ENSMUST00000135590.1,ENSMUST00000154466.1 | C33: Mrvi1 | D33: 113.8816019 | E33: -3.623306844 | F33: 0.621075303 | G33: -5.833925169 | H33: 5.41E-09 | I33: 4.86E-07
A34: ENSMUSG00000005705.5 | B34: ENSMUST00000005849.5 | C34: Agrp | D34: 7.990219068 | E34: -6.002231237 | F34: 2.166736359 | G34: -2.770171466 | H34: 0.005602679 | I34: 0.038929231
A35: ENSMUSG00000006179.2 | B35: ENSMUST00000006341.2,ENSMUST00000129665.1,ENSMUST00000150547.1,ENSMUST00000130585.1 | C35: Prss16 | D35: 241.1149173 | E35: -2.141963018 | F35: 0.504089586 | G35: -4.24917133 | H35: 2.15E-05 | I35: 0.000512962
A36: ENSMUSG00000006538.8 | B36: ENSMUST00000006713.6,ENSMUST00000164097.1 | C36: Ihh | D36: 2.733177181 | E36: -4.452706093 | F36: 3.918542403 | G36: -1.136316935 | H36: 0.255823946 | I36: NA
A37: ENSMUSG00000006567.5 | B37: ENSMUST00000006742.4,ENSMUST00000110738.2 | C37: Atp7b | D37: 172.3290471 | E37: -2.10650666 | F37: 2.668472229 | G37: -0.789405502 | H37: NA | I37: NA
A38: ENSMUSG00000006574.9 | B38: ENSMUST00000006749.9,ENSMUST00000149993.1,ENSMUST00000145636.1,ENSMUST00000128405.1,ENSMUST00000151050.1 | C38: Slc4a1 | D38: 1375.810801 | E38: -1.556539173 | F38: 0.514944176 | G38: -3.022733817 | H38: 0.002505025 | I38: 0.021491292
A39: ENSMUSG00000007044.4 | B39: ENSMUST00000173207.1,ENSMUST00000007260.2 | C39: Ly6g6c | D39: 1.411221037 | E39: -3.503608466 | F39: 3.929468511 | G39: -0.891624009 | H39: 0.372594497 | I39: NA
A40: ENSMUSG00000007207.4 | B40: ENSMUST00000005509.4,ENSMUST00000150838.1,ENSMUST00000133812.1,ENSMUST00000156626.1,ENSMUST00000144198.1 | C40: Stx1a | D40: 20.66027379 | E40: -4.375041718 | F40: 1.193509142 | G40: -3.665696024 | H40: 0.000246667 | I40: 0.003562858
A41: ENSMUSG00000007594.9 | B41: ENSMUST00000007738.9 | C41: Hapln4 | D41: 6.869090962 | E41: -5.784010267 | F41: 2.235761768 | G41: -2.5870423 | H41: 0.009680371 | I41: 0.057364626
A42: ENSMUSG00000007783.8 | B42: ENSMUST00000063761.6 | C42: Cpt1c | D42: 120.3729313 | E42: -2.074896972 | F42: 0.590074899 | G42: -3.516328141 | H42: 0.00043756 | I42: 0.005667077
A43: ENSMUSG00000008461.5 | B43: ENSMUST00000008605.5 | C43: Fut1 | D43: 288.161378 | E43: -1.912695468 | F43: 1.205127058 | G43: -1.587131793 | H43: 0.112482799 | I43: 0.293386241
A44: ENSMUSG00000009070.7 | B44: ENSMUST00000009214.3,ENSMUST00000166088.1,ENSMUST00000160450.1,ENSMUST00000160072.1,ENSMUST00000159994.1,ENSMUST00000159761.1 | C44: Rtdr1 | D44: 0.559660754 | E44: -2.151744642 | F44: 3.964430856 | G44: -0.54276256 | H44: 0.587293294 | I44: NA
A45: ENSMUSG00000009092.4 | B45: ENSMUST00000009236.4 | C45: Derl3 | D45: 989.6394643 | E45: -1.615212535 | F45: 0.315976926 | G45: -5.111805327 | H45: 3.19E-07 | I45: 1.60E-05
A46: ENSMUSG00000009350.7 | B46: ENSMUST00000020779.4,ENSMUST00000143021.2,ENSMUST00000121303.1,ENSMUST00000107930.2,ENSMUST00000146650.1,ENSMUST00000167903.1 | C46: Mpo | D46: 182072.0436 | E46: -1.956308045 | F46: 0.345386916 | G46: -5.664105826 | H46: 1.48E-08 | I46: 1.15E-06
A47: ENSMUSG00000009356.6 | B47: ENSMUST00000103177.3,ENSMUST00000157004.1,ENSMUST00000136446.1 | C47: Lpo | D47: 3.887528516 | E47: -2.150333217 | F47: 2.456265859 | G47: -0.875448075 | H47: 0.381330152 | I47: NA
A48: ENSMUSG00000009628.8 | B48: ENSMUST00000149399.1,ENSMUST00000124501.1,ENSMUST00000124496.1,ENSMUST00000009772.7 | C48: Tex15 | D48: 82.21724746 | E48: -2.45214711 | F48: 1.368495452 | G48: -1.791856236 | H48: 0.073155998 | I48: 0.228339753
A49: ENSMUSG00000010660.2 | B49: ENSMUST00000010804.2 | C49: Plcd1 | D49: 6.821568254 | E49: -5.773044939 | F49: 2.103789975 | G49: -2.744116575 | H49: 0.006067399 | I49: 0.04124121
A50: ENSMUSG00000011052.5 | B50: ENSMUST00000011196.5 | C50: 1700049J03Rik | D50: 4.928973477 | E50: -3.177113991 | F50: 1.820352358 | G50: -1.745329127 | H50: 0.080927595 | I50: 0.242928075
A51: ENSMUSG00000012187.7 | B51: ENSMUST00000134947.1,ENSMUST00000149732.1,ENSMUST00000113524.1,ENSMUST00000152111.1,ENSMUST00000012331.6,ENSMUST00000125458.1 | C51: Mogat1 | D51: 3.276914709 | E51: -1.842290241 | F51: 2.321673732 | G51: -0.793518148 | H51: 0.427476 | I51: NA
A52: ENSMUSG00000013091.4 | B52: ENSMUST00000013235.4 | C52: Tmem190 | D52: 10.30788921 | E52: -4.394371713 | F52: 1.771549606 | G52: -2.480524225 | H52: 0.013118935 | I52: 0.071028889
A53: ENSMUSG00000013367.4 | B53: ENSMUST00000107974.1 | C53: Iglon5 | D53: 1.554446664 | E53: -3.639316846 | F53: 3.385786624 | G53: -1.074880744 | H53: 0.282428124 | I53: NA
A54: ENSMUSG00000013562.8 | B54: ENSMUST00000162059.1,ENSMUST00000013706.7,ENSMUST00000160270.1 | C54: 4833413E03Rik | D54: 5.413868988 | E54: -5.440256392 | F54: 2.267221885 | G54: -2.399525352 | H54: 0.016416343 | I54: 0.083483049
A55: ENSMUSG00000013974.2 | B55: ENSMUST00000014118.2 | C55: 1810033B17Rik | D55: 1361.274105 | E55: -1.870879511 | F55: 0.229146335 | G55: -8.164562226 | H55: 3.23E-16 | I55: 1.02E-13
A56: ENSMUSG00000014932.8 | B56: ENSMUST00000072311.5,ENSMUST00000168707.1 | C56: Yes1 | D56: 233.0882123 | E56: -2.514300541 | F56: 0.936258491 | G56: -2.685476892 | H56: 0.007242638 | I56: 0.046887999
A57: ENSMUSG00000015340.4 | B57: ENSMUST00000015484.3,ENSMUST00000164685.1,ENSMUST00000154503.1,ENSMUST00000170885.1,ENSMUST00000131591.1 | C57: Cybb | D57: 8338.646281 | E57: -1.853772649 | F57: 0.17471298 | G57: -10.61038882 | H57: 2.67E-26 | I57: 2.82E-23
A58: ENSMUSG00000015401.6 | B58: ENSMUST00000112280.1,ENSMUST00000015545.3,ENSMUST00000141818.1 | C58: Tmem27 | D58: 18.51543493 | E58: -1.738463296 | F58: 1.212350146 | G58: -1.433961386 | H58: 0.151583283 | I58: 0.352544035
A59: ENSMUSG00000015932.8 | B59: ENSMUST00000103172.3 | C59: Dstn | D59: 10848.55154 | E59: -1.51187072 | F59: 0.171166047 | G59: -8.832772317 | H59: 1.02e-18 | I59: 4.88E-16
A60: ENSMUSG00000015950.6 | B60: ENSMUST00000146354.1,ENSMUST00000111275.1,ENSMUST00000016094.6,ENSMUST00000144086.1,ENSMUST00000126934.1,ENSMUST00000139249.1 | C60: Ncf1 | D60: 6202.555355 | E60: -1.523227993 | F60: 0.092374689 | G60: -16.48966851 | H60: 4.35E-61 | I60: 1.93E-57
A61: ENSMUSG00000015962.5 | B61: ENSMUST00000016106.5 | C61: 1700016C15Rik | D61: 2.121842926 | E61: -4.090113856 | F61: 3.921900528 | G61: -1.042890769 | H61: 0.296998886 | I61: NA
A62: ENSMUSG00000016128.8 | B62: ENSMUST00000110483.2,ENSMUST00000062015.8,ENSMUST00000129088.1,ENSMUST00000141117.1,ENSMUST00000146814.1,ENSMUST00000126770.1 | C62: Stard13 | D62: 46.6152401 | E62: -2.303369822 | F62: 1.124507633 | G62: -2.048336315 | H62: 0.040527057 | I62: 0.155290723
A63: ENSMUSG00000016179.5 | B63: ENSMUST00000169907.1,ENSMUST00000016323.4,ENSMUST00000163202.1,ENSMUST00000165718.1,ENSMUST00000167700.1 | C63: Camk1g | D63: 3.497879712 | E63: -4.80709394 | F63: 3.915980562 | G63: -1.227558172 | H63: 0.219612872 | I63: NA
A64: ENSMUSG00000016194.8 | B64: ENSMUST00000161737.1,ENSMUST00000016338.8,ENSMUST00000160929.1,ENSMUST00000159644.1,ENSMUST00000161406.1,ENSMUST00000162842.1 | C64: Hsd11b1 | D64: 1672.896481 | E64: -1.798257779 | F64: 0.263182287 | G64: -6.832746238 | H64: 8.33E-12 | I64: 1.35E-09
A65: ENSMUSG00000016200.7 | B65: ENSMUST00000164191.1,ENSMUST00000165788.1,ENSMUST00000016344.7 | C65: Syt14 | D65: 7.260551488 | E65: -2.302549564 | F65: 1.94001639 | G65: -1.186871191 | H65: 0.235278432 | I65: 0.465216372
A66: ENSMUSG00000016493.6 | B66: ENSMUST00000162650.1,ENSMUST00000160817.1,ENSMUST00000162614.1,ENSMUST00000159563.1,ENSMUST00000161772.1,ENSMUST00000016637.6,ENSMUST00000162951.1,ENSMUST00000110814.1 | C66: Cd46 | D66: 62.65296555 | E66: -1.594403435 | F66: 0.725049677 | G66: -2.199026475 | H66: 0.02787604 | I66: 0.120839746
A67: ENSMUSG00000016529.5 | B67: ENSMUST00000016673.5 | C67: Il10 | D67: 109.9189352 | E67: -2.69944977 | F67: 1.769030504 | G67: -1.525948684 | H67: 0.127022645 | I67: 0.314462121
A68: ENSMUSG00000016758.3 | B68: ENSMUST00000016902.3 | C68: Bik | D68: 13.62340639 | E68: -1.610656706 | F68: 1.997702486 | G68: -0.806254543 | H68: 0.420096095 | I68: 0.652430517
A69: ENSMUSG00000016763.8 | B69: ENSMUST00000171496.1,ENSMUST00000144773.1,ENSMUST00000043634.5,ENSMUST00000076060.5,ENSMUST00000016907.7 | C69: Scube1 | D69: 5.355391758 | E69: -5.423942345 | F69: 3.634179152 | G69: -1.492480728 | H69: 0.135573166 | I69: 0.327364634
A70: ENSMUSG00000016982.4 | B70: ENSMUST00000117882.1,ENSMUST00000017126.3 | C70: Pom121l2 | D70: 0.446079678 | E70: -1.846678838 | F70: 3.977876462 | G70: -0.464237353 | H70: 0.642477702 | I70: NA
A71: ENSMUSG00000017002.8 | B71: ENSMUST00000109367.3,ENSMUST00000165980.1,ENSMUST00000167427.1 | C71: Slpi | D71: 50158.84967 | E71: -1.676116269 | F71: 0.287123581 | G71: -5.837612727 | H71: 5.30E-09 | I71: 4.78E-07
A72: ENSMUSG00000017400.4 | B72: ENSMUST00000017544.2,ENSMUST00000131519.1 | C72: Stac2 | D72: 36.38861254 | E72: -1.56101857 | F72: 1.937259119 | G72: -0.805787184 | H72: 0.420365569 | I72: 0.652686018
A73: ENSMUSG00000017724.8 | B73: ENSMUST00000164750.1,ENSMUST00000107176.1,ENSMUST00000017868.6,ENSMUST00000132040.1,ENSMUST00000129160.1,ENSMUST00000131862.1,ENSMUST00000129995.1,ENSMUST00000140970.1,ENSMUST00000131117.1,ENSMUST00000149099.1,ENSMUST00000137179.1,ENSMUST00000154512.1 | C73: Etv4 | D73: 4.638601146 | E73: -5.215136932 | F73: 2.499414525 | G73: -2.08654342 | H73: 0.036929426 | I73: 0.146228137
A74: ENSMUSG00000017832.2 | B74: ENSMUST00000169833.1,ENSMUST00000017976.2 | C74: Hspb9 | D74: 6.989048404 | E74: -3.79246149 | F74: 1.996680018 | G74: -1.899383705 | H74: 0.057514044 | I74: 0.195646518
A75: ENSMUSG00000017943.9 | B75: ENSMUST00000109420.3,ENSMUST00000109421.3,ENSMUST00000018087.6,ENSMUST00000137070.1 | C75: Gdap1l1 | D75: 1.259328122 | E75: -3.337777491 | F75: 3.932224229 | G75: -0.848826846 | H75: 0.395977649 | I75: NA
A76: ENSMUSG00000018417.8 | B76: ENSMUST00000046390.7,ENSMUST00000114537.2,ENSMUST00000114541.1,ENSMUST00000018561.7,ENSMUST00000145367.1,ENSMUST00000140731.1,ENSMUST00000140930.1,ENSMUST00000136273.1,ENSMUST00000136701.1,ENSMUST00000126952.1,ENSMUST00000144694.1,ENSMUST00000135125.1,ENSMUST00000151525.1,ENSMUST00000123299.1,ENSMUST00000126657.1 | C76: Myo1b | D76: 88.32741834 | E76: -1.590167819 | F76: 0.511290817 | G76: -3.110104396 | H76: 0.001870212 | I76: 0.017293425
A77: ENSMUSG00000018470.2 | B77: ENSMUST00000018614.2,ENSMUST00000142328.1,ENSMUST00000134561.1 | C77: Kcnab3 | D77: 22.91325968 | E77: -3.913002397 | F77: 1.561992204 | G77: -2.505135677 | H77: 0.012240443 | I77: 0.067743511
A78: ENSMUSG00000018569.6 | B78: ENSMUST00000108597.1,ENSMUST00000060651.5,ENSMUST00000108596.1,ENSMUST00000018713.6,ENSMUST00000151515.1 | C78: Cldn7 | D78: 448.9609737 | E78: -1.798737302 | F78: 0.687057519 | G78: -2.618030155 | H78: 0.008843899 | I78: 0.05403766
A79: ENSMUSG00000018924.6 | B79: ENSMUST00000019068.6,ENSMUST00000130000.1 | C79: Alox15 | D79: 2088.627752 | E79: -2.115536947 | F79: 0.483994471 | G79: -4.370994038 | H79: 1.24E-05 | I79: 0.000327839
A80: ENSMUSG00000019359.8 | B80: ENSMUST00000144912.1,ENSMUST00000156336.1,ENSMUST00000019503.7,ENSMUST00000113744.1,ENSMUST00000151572.2 | C80: Gdpd2 | D80: 16.0536265 | E80: -7.006735508 | F80: 1.841881081 | G80: -3.804119375 | H80: 0.00014231 | I80: 0.002321529
A81: ENSMUSG00000019772.4 | B81: ENSMUST00000019906.4 | C81: Vip | D81: 2.938218958 | E81: -4.555122911 | F81: 3.917736538 | G81: -1.162692505 | H81: 0.244954283 | I81: NA
A82: ENSMUSG00000019874.5 | B82: ENSMUST00000020024.5,ENSMUST00000165013.1 | C82: Fabp7 | D82: 2.194705023 | E82: -4.138274908 | F82: 3.501233256 | G82: -1.18194779 | H82: 0.237226418 | I82: NA
A83: ENSMUSG00000019891.7 | B83: ENSMUST00000069004.5,ENSMUST00000140921.1,ENSMUST00000105476.2 | C83: Dcbld1 | D83: 78.30153217 | E83: -1.6360073 | F83: 0.77726653 | G83: -2.104821496 | H83: 0.035306849 | I83: 0.142146237
A84: ENSMUSG00000020020.7 | B84: ENSMUST00000095333.4 | C84: Usp44 | D84: 62.82319357 | E84: -1.929497433 | F84: 1.285793992 | G84: -1.500627196 | H84: 0.133452013 | I84: 0.323677935
A85: ENSMUSG00000020057.2 | B85: ENSMUST00000020249.1,ENSMUST00000156097.1,ENSMUST00000138159.1 | C85: Dram1 | D85: 857.5155652 | E85: -2.011384301 | F85: 0.224406113 | G85: -8.963143993 | H85: 3.16E-19 | I85: 1.64e-16
A86: ENSMUSG00000020068.4 | B86: ENSMUST00000124784.1,ENSMUST00000020262.4,ENSMUST00000130531.1 | C86: Pbld2 | D86: 38.52597081 | E86: -1.775859654 | F86: 0.905597317 | G86: -1.960981577 | H86: 0.049881172 | I86: 0.178609374
A87: ENSMUSG00000020105.8 | B87: ENSMUST00000074807.6 | C87: Lrig3 | D87: 74.78429076 | E87: -1.770012092 | F87: 0.530420796 | G87: -3.336996036 | H87: 0.000846892 | I87: 0.009366469
A88: ENSMUSG00000020125.6 | B88: ENSMUST00000046091.5 | C88: Elane | D88: 75559.03789 | E88: -1.961654918 | F88: 0.299830634 | G88: -6.542543339 | H88: 6.05E-11 | I88: 8.33E-09
A89: ENSMUSG00000020155.2 | B89: ENSMUST00000020362.2 | C89: Kcnmb1 | D89: 3.602312864 | E89: -4.849377117 | F89: 2.71932063 | G89: -1.783304647 | H89: 0.074536725 | I89: NA
A90: ENSMUSG00000020331.3 | B90: ENSMUST00000099513.1,ENSMUST00000020581.2 | C90: Hcn2 | D90: 6.598180228 | E90: -1.748501012 | F90: 2.500484336 | G90: -0.699264933 | H90: 0.484386478 | I90: 0.705190825
A91: ENSMUSG00000020374.10 | B91: ENSMUST00000093141.5,ENSMUST00000093142.5,ENSMUST00000063444.2,ENSMUST00000109172.3 | C91: Rasgef1c | D91: 19.93415887 | E91: -2.067743491 | F91: 1.899467511 | G91: -1.088591133 | H91: 0.276334229 | I91: 0.512690349
A92: ENSMUSG00000020383.1 | B92: ENSMUST00000020650.1 | C92: Il13 | D92: 1.475535752 | E92: -3.563298899 | F92: 3.92855114 | G92: -0.907026222 | H92: 0.364392931 | I92: NA
A93: ENSMUSG00000020672.7 | B93: ENSMUST00000142046.1,ENSMUST00000021004.7,ENSMUST00000149710.1,ENSMUST00000133324.1,ENSMUST00000130062.1,ENSMUST00000156953.1,ENSMUST00000125530.1 | C93: Sntg2 | D93: 27.63229226 | E93: -1.92460046 | F93: 0.78355806 | G93: -2.456232102 | H93: 0.014040244 | I93: 0.074645785
A94: ENSMUSG00000020684.7 | B94: ENSMUST00000156548.1,ENSMUST00000021022.2,ENSMUST00000108140.3,ENSMUST00000164425.1 | C94: Rasl10b | D94: 0.496941306 | E94: -1.989921215 | F94: 3.97121484 | G94: -0.501086266 | H94: 0.616310412 | I94: NA
A95: ENSMUSG00000020686.6 | B95: ENSMUST00000052521.2,ENSMUST00000147301.1 | C95: Gas2l2 | D95: 8.981809474 | E95: -6.167876348 | F95: 2.524705639 | G95: -2.443008108 | H95: 0.01456541 | I95: 0.076394371
A96: ENSMUSG00000020734.6 | B96: ENSMUST00000003351.6,ENSMUST00000019007.3,ENSMUST00000106554.1 | C96: Grin2c | D96: 1.91715953 | E96: -2.786502042 | F96: 3.559935426 | G96: -0.782739491 | H96: 0.433780107 | I96: NA
A97: ENSMUSG00000020804.5 | B97: ENSMUST00000142978.1,ENSMUST00000021160.3,ENSMUST00000153476.1,ENSMUST00000021159.4,ENSMUST00000123507.1,ENSMUST00000132601.1 | C97: Aanat | D97: 0.457937499 | E97: -1.881808108 | F97: 3.976182176 | G97: -0.473270093 | H97: 0.636020496 | I97: NA
A98: ENSMUSG00000020838.5 | B98: ENSMUST00000108402.2,ENSMUST00000021195.4,ENSMUST00000129572.1,ENSMUST00000137819.1 | C98: Slc6a4 | D98: 68.04459624 | E98: -1.51699244 | F98: 1.149474493 | G98: -1.319726927 | H98: 0.186926207 | I98: 0.404994611
A99: ENSMUSG00000020846.6 | B99: ENSMUST00000021207.6 | C99: Fam101b | D99: 1309.379389 | E99: -1.912596693 | F99: 0.207919385 | G99: -9.198741584 | H99: 3.62E-20 | I99: 2.57e-17
A100: ENSMUSG00000020940.7 | B100: ENSMUST00000021323.4,ENSMUST00000107026.2,ENSMUST00000172850.1,ENSMUST00000174567.1,ENSMUST00000140559.1 | C100: 1700023F06Rik | D100: 1.119843069 | E100: -1.7793741 | F100: 3.945193576 | G100: -0.451023268 | H100: 0.651972779 | I100: NA
A101: ENSMUSG00000020961.8 | B101: ENSMUST00000052969.7,ENSMUST00000164713.1,ENSMUST00000111609.2,ENSMUST00000170077.1,ENSMUST00000170984.1,ENSMUST00000166967.1,ENSMUST00000166008.1 | C101: Ston2 | D101: 113.7329248 | E101: -1.582475027 | F101: 0.844078636 | G101: -1.874795736 | H101: 0.06082083 | I101: 0.203004503
A102: ENSMUSG00000020963.8 | B102: ENSMUST00000021346.7,ENSMUST00000021343.6 | C102: Tshr | D102: 132.2498226 | E102: -4.573143178 | F102: 1.178988138 | G102: -3.878871239 | H102: 0.000104942 | I102: 0.00183906
A103: ENSMUSG00000020990.4 | B103: ENSMUST00000021377.4 | C103: Cdkl1 | D103: 5.477907023 | E103: -2.235839602 | F103: 3.033687142 | G103: -0.737004014 | H103: 0.461119908 | I103: 0.686374122
A104: ENSMUSG00000021032.7 | B104: ENSMUST00000021420.7,ENSMUST00000110177.2,ENSMUST00000110176.1 | C104: Ngb | D104: 3.247001919 | E104: -4.700655481 | F104: 3.916685211 | G104: -1.200161674 | H104: 0.230076557 | I104: NA
A105: ENSMUSG00000021047.6 | B105: ENSMUST00000021438.6 | C105: Nova1 | D105: 1.679885561 | E105: -3.748034393 | F105: 3.423524452 | G105: -1.094788265 | H105: 0.273609409 | I105: NA
A106: ENSMUSG00000021176.4 | B106: ENSMUST00000046485.3,ENSMUST00000168898.1 | C106: 2610021K21Rik | D106: 235.1930553 | E106: -1.887905458 | F106: 0.757562199 | G106: -2.492079805 | H106: 0.01269975 | I106: 0.069432393
A107: ENSMUSG00000021187.8 | B107: ENSMUST00000162735.1,ENSMUST00000110047.2,ENSMUST00000160715.1,ENSMUST00000160830.1 | C107: Tc2n | D107: 16.98322079 | E107: -2.003735921 | F107: 1.567495142 | G107: -1.27830439 | H107: 0.201142121 | I107: 0.422789113
A108: ENSMUSG00000021207.7 | B108: ENSMUST00000021628.3,ENSMUST00000074985.5,ENSMUST00000137279.1 | C108: Akr1c21 | D108: 1.488296871 | E108: -3.578458617 | F108: 3.928324098 | G108: -0.910937725 | H108: 0.362328187 | I108: NA
A109: ENSMUSG00000021322.6 | B109: ENSMUST00000021757.3,ENSMUST00000086503.4 | C109: Aoah | D109: 578.9942715 | E109: -1.824320518 | F109: 0.282100133 | G109: -6.466925407 | H109: 1.00E-10 | I109: 1.32E-08
A110: ENSMUSG00000021336.9 | B110: ENSMUST00000021769.8,ENSMUST00000110407.2,ENSMUST00000091697.4,ENSMUST00000110406.1 | C110: Slc17a4 | D110: 4.255543673 | E110: -5.093231324 | F110: 3.808884759 | G110: -1.337197538 | H110: 0.181158165 | I110: 0.396446543
A111: ENSMUSG00000021356.3 | B111: ENSMUST00000021784.2,ENSMUST00000110307.1 | C111: Irf4 | D111: 1113.302493 | E111: -1.973845637 | F111: 0.228802238 | G111: -8.626863333 | H111: 6.31E-18 | I111: 2.66E-15
A112: ENSMUSG00000021492.9 | B112: ENSMUST00000021948.8,ENSMUST00000170921.1 | C112: F12 | D112: 4.789562282 | E112: -5.262283866 | F112: 2.792651263 | G112: -1.884332618 | H112: 0.059519998 | I112: 0.20016836
A113: ENSMUSG00000021573.8 | B113: ENSMUST00000140217.1,ENSMUST00000022057.8,ENSMUST00000123284.1,ENSMUST00000123939.1 | C113: Tppp | D113: 10.47049317 | E113: -2.505948023 | F113: 2.844149036 | G113: -0.881088857 | H113: 0.378269728 | I113: 0.616178901
A114: ENSMUSG00000021638.6 | B114: ENSMUST00000069756.4,ENSMUST00000022140.5,ENSMUST00000159459.1,ENSMUST00000160859.1,ENSMUST00000159515.1 | C114: Ocln | D114: 199.5576455 | E114: -1.76018374 | F114: 1.294371176 | G114: -1.35987557 | H114: 0.173869303 | I114: 0.386984787
A115: ENSMUSG00000021680.7 | B115: ENSMUST00000045583.7 | C115: Crhbp | D115: 31.25357262 | E115: -2.674306147 | F115: 1.18795228 | G115: -2.251189877 | H115: 0.024373514 | I115: 0.110007577
A116: ENSMUSG00000021751.7 | B116: ENSMUST00000022271.7,ENSMUST00000164598.1,ENSMUST00000116361.2,ENSMUST00000165169.1,ENSMUST00000164412.1,ENSMUST00000170534.1,ENSMUST00000171567.1,ENSMUST00000171175.1 | C116: Acox2 | D116: 38.08751141 | E116: -2.097617112 | F116: 1.331996162 | G116: -1.57479216 | H116: 0.115304427 | I116: 0.297182158
A117: ENSMUSG00000021760.3 | B117: ENSMUST00000022282.3 | C117: Gpx8 | D117: 42.55044254 | E117: -3.335583346 | F117: 1.66216672 | G117: -2.006768218 | H117: 0.044774348 | I117: 0.165975555
A118: ENSMUSG00000021765.6 | B118: ENSMUST00000022287.5,ENSMUST00000168744.1 | C118: Fst | D118: 7.222534144 | E118: -1.740956305 | F118: 2.963481179 | G118: -0.587470006 | H118: 0.556888089 | I118: 0.760662382
A119: ENSMUSG00000021782.7 | B119: ENSMUST00000166007.1,ENSMUST00000042009.6,ENSMUST00000073687.6,ENSMUST00000090398.4,ENSMUST00000164815.1,ENSMUST00000170138.1,ENSMUST00000171831.1,ENSMUST00000170112.1,ENSMUST00000164638.1,ENSMUST00000167343.1,ENSMUST00000169880.1 | C119: Dlg5 | D119: 22.74986199 | E119: -1.658169614 | F119: 0.762101241 | G119: -2.175786531 | H119: 0.029571226 | I119: 0.125854912
A120: ENSMUSG00000021822.2 | B120: ENSMUST00000022368.2 | C120: Plau | D120: 5.865341025 | E120: -2.989686487 | F120: 2.42765163 | G120: -1.231513801 | H120: 0.218130758 | I120: 0.443986147
A121: ENSMUSG00000021933.5 | B121: ENSMUST00000022501.3,ENSMUST00000165651.1,ENSMUST00000128573.1 | C121: Gucy1b2 | D121: 1.488296871 | E121: -3.578458617 | F121: 3.928324098 | G121: -0.910937725 | H121: 0.362328187 | I121: NA
A122: ENSMUSG00000021986.6 | B122: ENSMUST00000089421.2,ENSMUST00000022561.6 | C122: Fam123a | D122: 11.68813498 | E122: -2.579307471 | F122: 1.950854189 | G122: -1.322142621 | H122: 0.186120663 | I122: 0.403801392
A123: ENSMUSG00000022026.5 | B123: ENSMUST00000100352.2,ENSMUST00000088735.3 | C123: Olfm4 | D123: 423.2300295 | E123: -4.130920721 | F123: 0.793360148 | G123: -5.206866934 | H123: 1.92E-07 | I123: 1.03E-05
A124: ENSMUSG00000022057.7 | B124: ENSMUST00000022641.7 | C124: Adamdec1 | D124: 2.171109287 | E124: -4.123811943 | F124: 3.921551813 | G124: -1.051576554 | H124: 0.292993869 | I124: NA
A125: ENSMUSG00000022126.6 | B125: ENSMUST00000022722.6 | C125: Irg1 | D125: 3.037717924 | E125: -4.607108442 | F125: 3.9173488 | G125: -1.176078179 | H125: 0.239563637 | I125: NA
A126: ENSMUSG00000022211.8 | B126: ENSMUST00000076236.5 | C126: Lrrc16b | D126: 20.19621786 | E126: -1.878804749 | F126: 1.34624936 | G126: -1.395584506 | H126: 0.162839651 | I126: 0.369705331
A127: ENSMUSG00000022324.7 | B127: ENSMUST00000022947.5,ENSMUST00000163455.1 | C127: Matn2 | D127: 83.01993072 | E127: -1.630142945 | F127: 1.281248879 | G127: -1.272307801 | H127: 0.203263778 | I127: 0.425434922
A128: ENSMUSG00000022340.7 | B128: ENSMUST00000090057.4,ENSMUST00000110269.1,ENSMUST00000110267.1,ENSMUST00000059651.3 | C128: Sybu | D128: 5.546020188 | E128: -5.474337503 | F128: 3.636575926 | G128: -1.505354931 | H128: 0.13223285 | I128: 0.321856061
A129: ENSMUSG00000022367.7 | B129: ENSMUST00000050544.7 | C129: Has2 | D129: 5.749375273 | E129: -5.525365395 | F129: 3.595706423 | G129: -1.53665643 | H129: 0.124377466 | I129: 0.310153811
